Workbook

Sheet DASHBOARD

Sheet INPUT
B2: S.N. | C2: Name Of Student | D2: DOB | E2: Registration No. | F2: SYMBOL NO. | G2: Com.Nepali | Q2: Com. English | AA2: Com.Social Studies & Life Skill | AK2: OPT 1st | AU2: OPT 2nd | BE2: OPT 3rd | BO2: GPA | BP2: EXTRA CREDIT SUBJECT
G3: Sub Code | H3: MARKS (TH) | I3: GRADE (TH) | J3: G.P. (TH) | K3: WGP (TH) | L3: MARKS (IN) | M3: GRADE (IN) | N3: G.P. (IN) | O3: WGP (IN) | P3: FINAL GRADE | Q3: Sub Code | R3: MARKS (TH) | S3: GRADE (TH) | T3: G.P. (TH) | U3: WGP (TH) | V3: MARKS (IN) | W3: GRADE (IN) | X3: G.P. (IN) | Y3: WGP (IN) | Z3: FINAL GRADE | AA3: Sub Code | AB3: MARKS (TH) | AC3: GRADE (TH) | AD3: G.P. (TH) | AE3: WGP (TH) | AF3: MARKS (IN) | AG3: GRADE (IN) | AH3: G.P. (IN) | AI3: WGP (IN) | AJ3: FINAL GRADE | AK3: Sub Code | AL3: MARKS (TH) | AM3: GRADE (TH) | AN3: G.P. (TH) | AO3: WGP (TH) | AP3: MARKS (IN) | AQ3: GRADE (IN) | AR3: G.P. (IN) | AS3: WGP (IN) | AT3: FINAL GRADE | AU3: Sub Code | AV3: MARKS (TH) | AW3: GRADE (TH) | AX3: G.P. (TH) | AY3: WGP (TH) | AZ3: MARKS (IN) | BA3: GRADE (IN) | BB3: G.P. (IN) | BC3: WGP (IN) | BD3: FINAL GRADE | BE3: Sub Code | BF3: MARKS (TH) | BG3: GRADE (TH) | BH3: G.P. (TH) | BI3: WGP (TH) | BJ3: MARKS (IN) | BK3: GRADE (IN) | BL3: G.P. (IN) | BM3: WGP (IN) | BN3: FINAL GRADE | BP3: Sub Code | BQ3: MARKS (TH) | BR3: GRADE (TH) | BS3: G.P. (TH) | BT3: WGP (TH) | BU3: MARKS (IN) | BV3: GRADE (IN) | BW3: G.P. (IN) | BX3: WGP (IN) | BY3: FINAL GRADE
H4: 75 | K4: 2.25 | L4: 25 | O4: 0.75 | R4: 75 | U4: 3 | V4: 25 | Y4: 1 | AB4: 75 | AE4: 3.75 | AF4: 25 | AI4: 1.25 | AL4: 75 | AO4: 3.75 | AP4: 25 | AS4: 1.25 | AV4: 75 | AY4: 3.75 | AZ4: 25 | BC4: 1.25 | BF4: 75 | BI4: 3.75 | BJ4: 25 | BM4: 1.25 | BQ4: 75 | BT4: 3.75 | BU4: 25 | BX4: 1.25
B5: 1 | C5: ALISHA KARKI | D5: 4/31/2063 | E5: 801130210001 | F5: 11301320 | G5: 0011 | H5: 38 | I5: =IF(H5/H$4>=0.9,"A+",IF(H5/H$4>=0.8,"A",IF(H5/H$4>=0.7,"B+",IF(H5/H$4>=0.6,"B",IF(H5/H$4>=0.5,"C+",IF(H5/H$4>=0.4,"C",IF(H5/H$4>=0.35,"D",IF(H5/H$4>0,"NG","ABS")))))))) -> C+ | J5: =IF(I5="A+",4,IF(I5="A",3.6,IF(I5="B+",3.2,IF(I5="B",2.8,IF(I5="C+",2.4,IF(I5="C",2,IF(I5="D",1.6,IF(I5="NG","-","ABS")))))))) -> 2.4 | K5: =IFERROR($K$4*J5,"-") -> 5.4 | L5: 10 | M5: =IF(L5/L$4>=0.9,"A+",IF(L5/L$4>=0.8,"A",IF(L5/L$4>=0.7,"B+",IF(L5/L$4>=0.6,"B",IF(L5/L$4>=0.5,"C+",IF(L5/L$4>=0.4,"C",IF(L5/L$4>0,"NG","ABS"))))))) -> C | N5: =IF(M5="A+",4,IF(M5="A",3.6,IF(M5="B+",3.2,IF(M5="B",2.8,IF(M5="C+",2.4,IF(M5="C",2,IF(M5="D",1.6,IF(M5="NG","-","ABS")))))))) -> 2 | O5: =IFERROR($O$4*N5,"-") -> 1.5 | P5: =IFERROR(IF((K5+O5)/($K$4+$O$4)>3.6,"A+",IF((K5+O5)/($K$4+$O$4)>3.2,"A",IF((K5+O5)/($K$4+$O$4)>2.8,"B+",IF((K5+O5)/($K$4+$O$4)>2.4,"B",IF((K5+O5)/($K$4+$O$4)>2,"C+",IF((K5+O5)/($K$4+$O$4)>1.6,"C",IF((K5+O5)/($K$4+$O$4)=1.6,"D",IF((K5+O5)/($K$4+$O$4)<1.6,"NG","")))))))),"*") -> C+ | Q5: 0031 | R5: 38 | S5: =IF(R5/R$4>=0.9,"A+",IF(R5/R$4>=0.8,"A",IF(R5/R$4>=0.7,"B+",IF(R5/R$4>=0.6,"B",IF(R5/R$4>=0.5,"C+",IF(R5/R$4>=0.4,"C",IF(R5/R$4>=0.35,"D",IF(R5/R$4>0,"NG","ABS")))))))) -> C+ | T5: =IF(S5="A+",4,IF(S5="A",3.6,IF(S5="B+",3.2,IF(S5="B",2.8,IF(S5="C+",2.4,IF(S5="C",2,IF(S5="D",1.6,IF(S5="NG","-","ABS")))))))) -> 2.4 | U5: =IFERROR($U$4*T5,"-") -> 7.2 | V5: 10 | W5: =IF(V5/V$4>=0.9,"A+",IF(V5/V$4>=0.8,"A",IF(V5/V$4>=0.7,"B+",IF(V5/V$4>=0.6,"B",IF(V5/V$4>=0.5,"C+",IF(V5/V$4>=0.4,"C",IF(V5/V$4>0,"NG","ABS"))))))) -> C | X5: =IF(W5="A+",4,IF(W5="A",3.6,IF(W5="B+",3.2,IF(W5="B",2.8,IF(W5="C+",2.4,IF(W5="C",2,IF(W5="D",1.6,IF(W5="NG","-","ABS")))))))) -> 2 | Y5: =IFERROR($Y$4*X5,"-") -> 2 | Z5: =IFERROR(IF((U5+Y5)/($U$4+$Y$4)>3.6,"A+",IF((U5+Y5)/($U$4+$Y$4)>3.2,"A",IF((U5+Y5)/($U$4+$Y$4)>2.8,"B+",IF((U5+Y5)/($U$4+$Y$4)>2.4,"B",IF((U5+Y5)/($U$4+$Y$4)>2,"C+",IF((U5+Y5)/($U$4+$Y$4)>1.6,"C",IF((U5+Y5)/($U$4+$Y$4)=1.6,"D",IF((U5+Y5)/($U$4+$Y$4)<1.6,"NG","")))))))),"*") -> C+ | AA5: 0051 | AB5: 40 | AC5: =IF(AB5/AB$4>=0.9,"A+",IF(AB5/AB$4>=0.8,"A",IF(AB5/AB$4>=0.7,"B+",IF(AB5/AB$4>=0.6,"B",IF(AB5/AB$4>=0.5,"C+",IF(AB5/AB$4>=0.4,"C",IF(AB5/AB$4>=0.35,"D",IF(AB5/AB$4>0,"NG","ABS")))))))) -> C+ | AD5: =IF(AC5="A+",4,IF(AC5="A",3.6,IF(AC5="B+",3.2,IF(AC5="B",2.8,IF(AC5="C+",2.4,IF(AC5="C",2,IF(AC5="D",1.6,IF(AC5="NG","-","ABS")))))))) -> 2.4 | AE5: =IFERROR($AE$4*AD5,"-") -> 9 | AF5: 21 | AG5: =IF(AF5/AF$4>=0.9,"A+",IF(AF5/AF$4>=0.8,"A",IF(AF5/AF$4>=0.7,"B+",IF(AF5/AF$4>=0.6,"B",IF(AF5/AF$4>=0.5,"C+",IF(AF5/AF$4>=0.4,"C",IF(AF5/AF$4>0,"NG","ABS"))))))) -> A | AH5: =IF(AG5="A+",4,IF(AG5="A",3.6,IF(AG5="B+",3.2,IF(AG5="B",2.8,IF(AG5="C+",2.4,IF(AG5="C",2,IF(AG5="D",1.6,IF(AG5="NG","-","ABS")))))))) -> 3.6 | AI5: =IFERROR($AI$4*AH5,"-") -> 4.5 | AJ5: =IFERROR(IF((AE5+AI5)/($AE$4+$AI$4)>3.6,"A+",IF((AE5+AI5)/($AE$4+$AI$4)>3.2,"A",IF((AE5+AI5)/($AE$4+$AI$4)>2.8,"B+",IF((AE5+AI5)/($AE$4+$AI$4)>2.4,"B",IF((AE5+AI5)/($AE$4+$AI$4)>2,"C+",IF((AE5+AI5)/($AE$4+$AI$4)>1.6,"C",IF((AE5+AI5)/($AE$4+$AI$4)=1.6,"D",IF((AE5+AI5)/($AE$4+$AI$4)<1.6,"NG","")))))))),"*") -> B | AK5: 1031 | AL5: 60 | AM5: =IF(AL5/AL$4>=0.9,"A+",IF(AL5/AL$4>=0.8,"A",IF(AL5/AL$4>=0.7,"B+",IF(AL5/AL$4>=0.6,"B",IF(AL5/AL$4>=0.5,"C+",IF(AL5/AL$4>=0.4,"C",IF(AL5/AL$4>=0.35,"D",IF(AL5/AL$4>0,"NG","ABS")))))))) -> A | AN5: =IF(AM5="A+",4,IF(AM5="A",3.6,IF(AM5="B+",3.2,IF(AM5="B",2.8,IF(AM5="C+",2.4,IF(AM5="C",2,IF(AM5="D",1.6,IF(AM5="NG","-","ABS")))))))) -> 3.6 | AO5: =IFERROR($AO$4*AN5,"-") -> 13.5 | AP5: 23 | AQ5: =IF(AP5/AP$4>=0.9,"A+",IF(AP5/AP$4>=0.8,"A",IF(AP5/AP$4>=0.7,"B+",IF(AP5/AP$4>=0.6,"B",IF(AP5/AP$4>=0.5,"C+",IF(AP5/AP$4>=0.4,"C",IF(AP5/AP$4>0,"NG","ABS"))))))) -> A+ | AR5: =IF(AQ5="A+",4,IF(AQ5="A",3.6,IF(AQ5="B+",3.2,IF(AQ5="B",2.8,IF(AQ5="C+",2.4,IF(AQ5="C",2,IF(AQ5="D",1.6,IF(AQ5="NG","-","ABS")))))))) -> 4 | AS5: =IFERROR($AS$4*AR5,"-") -> 5 | AT5: =IFERROR(IF((AO5+AS5)/($AO$4+$AS$4)>3.6,"A+",IF((AO5+AS5)/($AO$4+$AS$4)>3.2,"A",IF((AO5+AS5)/($AO$4+$AS$4)>2.8,"B+",IF((AO5+AS5)/($AO$4+$AS$4)>2.4,"B",IF((AO5+AS5)/($AO$4+$AS$4)>2,"C+",IF((AO5+AS5)/($AO$4+$AS$4)>1.6,"C",IF((AO5+AS5)/($AO$4+$AS$4)=1.6,"D",IF((AO5+AS5)/($AO$4+$AS$4)<1.6,"NG","")))))))),"*") -> A+ | AU5: 4251 | AV5: 37 | AW5: =IF(AV5/AV$4>=0.9,"A+",IF(AV5/AV$4>=0.8,"A",IF(AV5/AV$4>=0.7,"B+",IF(AV5/AV$4>=0.6,"B",IF(AV5/AV$4>=0.5,"C+",IF(AV5/AV$4>=0.4,"C",IF(AV5/AV$4>=0.35,"D",IF(AV5/AV$4>0,"NG","ABS")))))))) -> C | AX5: =IF(AW5="A+",4,IF(AW5="A",3.6,IF(AW5="B+",3.2,IF(AW5="B",2.8,IF(AW5="C+",2.4,IF(AW5="C",2,IF(AW5="D",1.6,IF(AW5="NG","-","ABS")))))))) -> 2 | AY5: =IFERROR($AY$4*AX5,"-") -> 7.5 | AZ5: 49 | BA5: =IF(AZ5/AZ$4>=0.9,"A+",IF(AZ5/AZ$4>=0.8,"A",IF(AZ5/AZ$4>=0.7,"B+",IF(AZ5/AZ$4>=0.6,"B",IF(AZ5/AZ$4>=0.5,"C+",IF(AZ5/AZ$4>=0.4,"C",IF(AZ5/AZ$4>0,"NG","ABS"))))))) -> A+ | BB5: =IF(BA5="A+",4,IF(BA5="A",3.6,IF(BA5="B+",3.2,IF(BA5="B",2.8,IF(BA5="C+",2.4,IF(BA5="C",2,IF(BA5="D",1.6,IF(BA5="NG","-","ABS")))))))) -> 4 | BC5: =IFERROR($BC$4*BB5,"-") -> 5 | BD5: =IFERROR(IF((AY5+BC5)/($AY$4+$BC$4)>3.6,"A+",IF((AY5+BC5)/($AY$4+$BC$4)>3.2,"A",IF((AY5+BC5)/($AY$4+$BC$4)>2.8,"B+",IF((AY5+BC5)/($AY$4+$BC$4)>2.4,"B",IF((AY5+BC5)/($AY$4+$BC$4)>2,"C+",IF((AY5+BC5)/($AY$4+$BC$4)>1.6,"C",IF((AY5+BC5)/($AY$4+$BC$4)=1.6,"D",IF((AY5+BC5)/($AY$4+$BC$4)<1.6,"NG","")))))))),"*") -> B | BE5: 4171 | BF5: 51 | BG5: =IF(BF5/BF$4>=0.9,"A+",IF(BF5/BF$4>=0.8,"A",IF(BF5/BF$4>=0.7,"B+",IF(BF5/BF$4>=0.6,"B",IF(BF5/BF$4>=0.5,"C+",IF(BF5/BF$4>=0.4,"C",IF(BF5/BF$4>=0.35,"D",IF(BF5/BF$4>0,"NG","ABS")))))))) -> B | BH5: =IF(BG5="A+",4,IF(BG5="A",3.6,IF(BG5="B+",3.2,IF(BG5="B",2.8,IF(BG5="C+",2.4,IF(BG5="C",2,IF(BG5="D",1.6,IF(BG5="NG","-","ABS")))))))) -> 2.8 | BI5: =IFERROR($BI$4*BH5,"-") -> 10.5 | BJ5: 20 | BK5: =IF(BJ5/BJ$4>=0.9,"A+",IF(BJ5/BJ$4>=0.8,"A",IF(BJ5/BJ$4>=0.7,"B+",IF(BJ5/BJ$4>=0.6,"B",IF(BJ5/BJ$4>=0.5,"C+",IF(BJ5/BJ$4>=0.4,"C",IF(BJ5/BJ$4>0,"NG","ABS"))))))) -> A | BL5: =IF(BK5="A+",4,IF(BK5="A",3.6,IF(BK5="B+",3.2,IF(BK5="B",2.8,IF(BK5="C+",2.4,IF(BK5="C",2,IF(BK5="D",1.6,IF(BK5="NG","-","ABS")))))))) -> 3.6 | BM5: =IFERROR($BM$4*BL5,"-") -> 4.5 | BN5: =IFERROR(IF((BI5+BM5)/($BI$4+$BM$4)>3.6,"A+",IF((BI5+BM5)/($BI$4+$BM$4)>3.2,"A",IF((BI5+BM5)/($BI$4+$BM$4)>2.8,"B+",IF((BI5+BM5)/($BI$4+$BM$4)>2.4,"B",IF((BI5+BM5)/($BI$4+$BM$4)>2,"C+",IF((BI5+BM5)/($BI$4+$BM$4)>1.6,"C",IF((BI5+BM5)/($BI$4+$BM$4)=1.6,"D",IF((BI5+BM5)/($BI$4+$BM$4)<1.6,"NG","")))))))),"*") -> B+ | BO5: =IFERROR((K5+O5+U5+Y5+AE5+AI5+AO5+AS5+AY5+BC5+BI5+BM5)/($K$4+$O$4+$U$4+$Y$4+$AE$4+$AI$4+$AO$4+$AS$4+$AY$4+$BC$4+$BI$4+$BM$4),"-") -> 2.8 | BR5: =IF(BQ5/BQ$4>=0.9,"A+",IF(BQ5/BQ$4>=0.8,"A",IF(BQ5/BQ$4>=0.7,"B+",IF(BQ5/BQ$4>=0.6,"B",IF(BQ5/BQ$4>=0.5,"C+",IF(BQ5/BQ$4>=0.4,"C",IF(BQ5/BQ$4>=0.35,"D",IF(BQ5/BQ$4>0,"NG","ABS")))))))) -> ABS | BS5: =IF(BR5="A+",4,IF(BR5="A",3.6,IF(BR5="B+",3.2,IF(BR5="B",2.8,IF(BR5="C+",2.4,IF(BR5="C",2,IF(BR5="D",1.6,IF(BR5="NG","-","ABS")))))))) -> ABS | BT5: =IFERROR($BT$4*BS5,"-") -> - | BV5: =IF(BU5/BU$4>=0.9,"A+",IF(BU5/BU$4>=0.8,"A",IF(BU5/BU$4>=0.7,"B+",IF(BU5/BU$4>=0.6,"B",IF(BU5/BU$4>=0.5,"C+",IF(BU5/BU$4>=0.4,"C",IF(BU5/BU$4>0,"NG","ABS"))))))) -> ABS | BW5: =IF(BV5="A+",4,IF(BV5="A",3.6,IF(BV5="B+",3.2,IF(BV5="B",2.8,IF(BV5="C+",2.4,IF(BV5="C",2,IF(BV5="D",1.6,IF(BV5="NG","-","ABS")))))))) -> ABS | BX5: =IFERROR($BX$4*BW5,"-") -> - | BY5: =IFERROR(IF((BT5+BX5)/($BT$4+$BX$4)>3.6,"A+",IF((BT5+BX5)/($BT$4+$BX$4)>3.2,"A",IF((BT5+BX5)/($BT$4+$BX$4)>2.8,"B+",IF((BT5+BX5)/($BT$4+$BX$4)>2.4,"B",IF((BT5+BX5)/($BT$4+$BX$4)>2,"C+",IF((BT5+BX5)/($BT$4+$BX$4)>1.6,"C",IF((BT5+BX5)/($BT$4+$BX$4)=1.6,"D",IF((BT5+BX5)/($BT$4+$BX$4)<1.6,"NG","")))))))),"") -> 
B6: 2 | C6: AMRITA RAI | D6: 2063-09-02 | E6: 801130210002 | F6: 11301321 | G6: 0011 | H6: 40 | I6: C+ | J6: 2.4 | K6: 5.4 | L6: 12 | M6: =IF(L6/L$4>=0.9,"A+",IF(L6/L$4>=0.8,"A",IF(L6/L$4>=0.7,"B+",IF(L6/L$4>=0.6,"B",IF(L6/L$4>=0.5,"C+",IF(L6/L$4>=0.4,"C",IF(L6/L$4>0,"NG","ABS"))))))) -> C | N6: =IF(M6="A+",4,IF(M6="A",3.6,IF(M6="B+",3.2,IF(M6="B",2.8,IF(M6="C+",2.4,IF(M6="C",2,IF(M6="D",1.6,IF(M6="NG","-","ABS")))))))) -> 2 | O6: =IFERROR($O$4*N6,"-") -> 1.5 | P6: =IFERROR(IF((K6+O6)/($K$4+$O$4)>3.6,"A+",IF((K6+O6)/($K$4+$O$4)>3.2,"A",IF((K6+O6)/($K$4+$O$4)>2.8,"B+",IF((K6+O6)/($K$4+$O$4)>2.4,"B",IF((K6+O6)/($K$4+$O$4)>2,"C+",IF((K6+O6)/($K$4+$O$4)>1.6,"C",IF((K6+O6)/($K$4+$O$4)=1.6,"D",IF((K6+O6)/($K$4+$O$4)<1.6,"NG","")))))))),"*") -> C+ | Q6: 0031 | R6: 40 | S6: =IF(R6/R$4>=0.9,"A+",IF(R6/R$4>=0.8,"A",IF(R6/R$4>=0.7,"B+",IF(R6/R$4>=0.6,"B",IF(R6/R$4>=0.5,"C+",IF(R6/R$4>=0.4,"C",IF(R6/R$4>=0.35,"D",IF(R6/R$4>0,"NG","ABS")))))))) -> C+ | T6: =IF(S6="A+",4,IF(S6="A",3.6,IF(S6="B+",3.2,IF(S6="B",2.8,IF(S6="C+",2.4,IF(S6="C",2,IF(S6="D",1.6,IF(S6="NG","-","ABS")))))))) -> 2.4 | U6: =IFERROR($U$4*T6,"-") -> 7.2 | V6: 12 | W6: =IF(V6/V$4>=0.9,"A+",IF(V6/V$4>=0.8,"A",IF(V6/V$4>=0.7,"B+",IF(V6/V$4>=0.6,"B",IF(V6/V$4>=0.5,"C+",IF(V6/V$4>=0.4,"C",IF(V6/V$4>0,"NG","ABS"))))))) -> C | X6: =IF(W6="A+",4,IF(W6="A",3.6,IF(W6="B+",3.2,IF(W6="B",2.8,IF(W6="C+",2.4,IF(W6="C",2,IF(W6="D",1.6,IF(W6="NG","-","ABS")))))))) -> 2 | Y6: =IFERROR($Y$4*X6,"-") -> 2 | Z6: =IFERROR(IF((U6+Y6)/($U$4+$Y$4)>3.6,"A+",IF((U6+Y6)/($U$4+$Y$4)>3.2,"A",IF((U6+Y6)/($U$4+$Y$4)>2.8,"B+",IF((U6+Y6)/($U$4+$Y$4)>2.4,"B",IF((U6+Y6)/($U$4+$Y$4)>2,"C+",IF((U6+Y6)/($U$4+$Y$4)>1.6,"C",IF((U6+Y6)/($U$4+$Y$4)=1.6,"D",IF((U6+Y6)/($U$4+$Y$4)<1.6,"NG","")))))))),"*") -> C+ | AA6: 0051 | AB6: 68 | AC6: =IF(AB6/AB$4>=0.9,"A+",IF(AB6/AB$4>=0.8,"A",IF(AB6/AB$4>=0.7,"B+",IF(AB6/AB$4>=0.6,"B",IF(AB6/AB$4>=0.5,"C+",IF(AB6/AB$4>=0.4,"C",IF(AB6/AB$4>=0.35,"D",IF(AB6/AB$4>0,"NG","ABS")))))))) -> A+ | AD6: =IF(AC6="A+",4,IF(AC6="A",3.6,IF(AC6="B+",3.2,IF(AC6="B",2.8,IF(AC6="C+",2.4,IF(AC6="C",2,IF(AC6="D",1.6,IF(AC6="NG","-","ABS")))))))) -> 4 | AE6: =IFERROR($AE$4*AD6,"-") -> 15 | AF6: 23 | AG6: =IF(AF6/AF$4>=0.9,"A+",IF(AF6/AF$4>=0.8,"A",IF(AF6/AF$4>=0.7,"B+",IF(AF6/AF$4>=0.6,"B",IF(AF6/AF$4>=0.5,"C+",IF(AF6/AF$4>=0.4,"C",IF(AF6/AF$4>0,"NG","ABS"))))))) -> A+ | AH6: =IF(AG6="A+",4,IF(AG6="A",3.6,IF(AG6="B+",3.2,IF(AG6="B",2.8,IF(AG6="C+",2.4,IF(AG6="C",2,IF(AG6="D",1.6,IF(AG6="NG","-","ABS")))))))) -> 4 | AI6: =IFERROR($AI$4*AH6,"-") -> 5 | AJ6: =IFERROR(IF((AE6+AI6)/($AE$4+$AI$4)>3.6,"A+",IF((AE6+AI6)/($AE$4+$AI$4)>3.2,"A",IF((AE6+AI6)/($AE$4+$AI$4)>2.8,"B+",IF((AE6+AI6)/($AE$4+$AI$4)>2.4,"B",IF((AE6+AI6)/($AE$4+$AI$4)>2,"C+",IF((AE6+AI6)/($AE$4+$AI$4)>1.6,"C",IF((AE6+AI6)/($AE$4+$AI$4)=1.6,"D",IF((AE6+AI6)/($AE$4+$AI$4)<1.6,"NG","")))))))),"*") -> A+ | AK6: 1031 | AL6: 61 | AM6: =IF(AL6/AL$4>=0.9,"A+",IF(AL6/AL$4>=0.8,"A",IF(AL6/AL$4>=0.7,"B+",IF(AL6/AL$4>=0.6,"B",IF(AL6/AL$4>=0.5,"C+",IF(AL6/AL$4>=0.4,"C",IF(AL6/AL$4>=0.35,"D",IF(AL6/AL$4>0,"NG","ABS")))))))) -> A | AN6: =IF(AM6="A+",4,IF(AM6="A",3.6,IF(AM6="B+",3.2,IF(AM6="B",2.8,IF(AM6="C+",2.4,IF(AM6="C",2,IF(AM6="D",1.6,IF(AM6="NG","-","ABS")))))))) -> 3.6 | AO6: =IFERROR($AO$4*AN6,"-") -> 13.5 | AP6: 24 | AQ6: =IF(AP6/AP$4>=0.9,"A+",IF(AP6/AP$4>=0.8,"A",IF(AP6/AP$4>=0.7,"B+",IF(AP6/AP$4>=0.6,"B",IF(AP6/AP$4>=0.5,"C+",IF(AP6/AP$4>=0.4,"C",IF(AP6/AP$4>0,"NG","ABS"))))))) -> A+ | AR6: =IF(AQ6="A+",4,IF(AQ6="A",3.6,IF(AQ6="B+",3.2,IF(AQ6="B",2.8,IF(AQ6="C+",2.4,IF(AQ6="C",2,IF(AQ6="D",1.6,IF(AQ6="NG","-","ABS")))))))) -> 4 | AS6: =IFERROR($AS$4*AR6,"-") -> 5 | AT6: =IFERROR(IF((AO6+AS6)/($AO$4+$AS$4)>3.6,"A+",IF((AO6+AS6)/($AO$4+$AS$4)>3.2,"A",IF((AO6+AS6)/($AO$4+$AS$4)>2.8,"B+",IF((AO6+AS6)/($AO$4+$AS$4)>2.4,"B",IF((AO6+AS6)/($AO$4+$AS$4)>2,"C+",IF((AO6+AS6)/($AO$4+$AS$4)>1.6,"C",IF((AO6+AS6)/($AO$4+$AS$4)=1.6,"D",IF((AO6+AS6)/($AO$4+$AS$4)<1.6,"NG","")))))))),"*") -> A+ | AU6: 4251 | AV6: 34 | AW6: =IF(AV6/AV$4>=0.9,"A+",IF(AV6/AV$4>=0.8,"A",IF(AV6/AV$4>=0.7,"B+",IF(AV6/AV$4>=0.6,"B",IF(AV6/AV$4>=0.5,"C+",IF(AV6/AV$4>=0.4,"C",IF(AV6/AV$4>=0.35,"D",IF(AV6/AV$4>0,"NG","ABS")))))))) -> C | AX6: =IF(AW6="A+",4,IF(AW6="A",3.6,IF(AW6="B+",3.2,IF(AW6="B",2.8,IF(AW6="C+",2.4,IF(AW6="C",2,IF(AW6="D",1.6,IF(AW6="NG","-","ABS")))))))) -> 2 | AY6: =IFERROR($AY$4*AX6,"-") -> 7.5 | AZ6: 48 | BA6: =IF(AZ6/AZ$4>=0.9,"A+",IF(AZ6/AZ$4>=0.8,"A",IF(AZ6/AZ$4>=0.7,"B+",IF(AZ6/AZ$4>=0.6,"B",IF(AZ6/AZ$4>=0.5,"C+",IF(AZ6/AZ$4>=0.4,"C",IF(AZ6/AZ$4>0,"NG","ABS"))))))) -> A+ | BB6: =IF(BA6="A+",4,IF(BA6="A",3.6,IF(BA6="B+",3.2,IF(BA6="B",2.8,IF(BA6="C+",2.4,IF(BA6="C",2,IF(BA6="D",1.6,IF(BA6="NG","-","ABS")))))))) -> 4 | BC6: =IFERROR($BC$4*BB6,"-") -> 5 | BD6: =IFERROR(IF((AY6+BC6)/($AY$4+$BC$4)>3.6,"A+",IF((AY6+BC6)/($AY$4+$BC$4)>3.2,"A",IF((AY6+BC6)/($AY$4+$BC$4)>2.8,"B+",IF((AY6+BC6)/($AY$4+$BC$4)>2.4,"B",IF((AY6+BC6)/($AY$4+$BC$4)>2,"C+",IF((AY6+BC6)/($AY$4+$BC$4)>1.6,"C",IF((AY6+BC6)/($AY$4+$BC$4)=1.6,"D",IF((AY6+BC6)/($AY$4+$BC$4)<1.6,"NG","")))))))),"*") -> B | BE6: 4171 | BF6: 62 | BG6: =IF(BF6/BF$4>=0.9,"A+",IF(BF6/BF$4>=0.8,"A",IF(BF6/BF$4>=0.7,"B+",IF(BF6/BF$4>=0.6,"B",IF(BF6/BF$4>=0.5,"C+",IF(BF6/BF$4>=0.4,"C",IF(BF6/BF$4>=0.35,"D",IF(BF6/BF$4>0,"NG","ABS")))))))) -> A | BH6: =IF(BG6="A+",4,IF(BG6="A",3.6,IF(BG6="B+",3.2,IF(BG6="B",2.8,IF(BG6="C+",2.4,IF(BG6="C",2,IF(BG6="D",1.6,IF(BG6="NG","-","ABS")))))))) -> 3.6 | BI6: =IFERROR($BI$4*BH6,"-") -> 13.5 | BJ6: 20 | BK6: =IF(BJ6/BJ$4>=0.9,"A+",IF(BJ6/BJ$4>=0.8,"A",IF(BJ6/BJ$4>=0.7,"B+",IF(BJ6/BJ$4>=0.6,"B",IF(BJ6/BJ$4>=0.5,"C+",IF(BJ6/BJ$4>=0.4,"C",IF(BJ6/BJ$4>0,"NG","ABS"))))))) -> A | BL6: =IF(BK6="A+",4,IF(BK6="A",3.6,IF(BK6="B+",3.2,IF(BK6="B",2.8,IF(BK6="C+",2.4,IF(BK6="C",2,IF(BK6="D",1.6,IF(BK6="NG","-","ABS")))))))) -> 3.6 | BM6: =IFERROR($BM$4*BL6,"-") -> 4.5 | BN6: =IFERROR(IF((BI6+BM6)/($BI$4+$BM$4)>3.6,"A+",IF((BI6+BM6)/($BI$4+$BM$4)>3.2,"A",IF((BI6+BM6)/($BI$4+$BM$4)>2.8,"B+",IF((BI6+BM6)/($BI$4+$BM$4)>2.4,"B",IF((BI6+BM6)/($BI$4+$BM$4)>2,"C+",IF((BI6+BM6)/($BI$4+$BM$4)>1.6,"C",IF((BI6+BM6)/($BI$4+$BM$4)=1.6,"D",IF((BI6+BM6)/($BI$4+$BM$4)<1.6,"NG","")))))))),"*") -> A | BO6: =IFERROR((K6+O6+U6+Y6+AE6+AI6+AO6+AS6+AY6+BC6+BI6+BM6)/($K$4+$O$4+$U$4+$Y$4+$AE$4+$AI$4+$AO$4+$AS$4+$AY$4+$BC$4+$BI$4+$BM$4),"-") -> 3.151851852 | BR6: =IF(BQ6/BQ$4>=0.9,"A+",IF(BQ6/BQ$4>=0.8,"A",IF(BQ6/BQ$4>=0.7,"B+",IF(BQ6/BQ$4>=0.6,"B",IF(BQ6/BQ$4>=0.5,"C+",IF(BQ6/BQ$4>=0.4,"C",IF(BQ6/BQ$4>=0.35,"D",IF(BQ6/BQ$4>0,"NG","ABS")))))))) -> ABS | BS6: =IF(BR6="A+",4,IF(BR6="A",3.6,IF(BR6="B+",3.2,IF(BR6="B",2.8,IF(BR6="C+",2.4,IF(BR6="C",2,IF(BR6="D",1.6,IF(BR6="NG","-","ABS")))))))) -> ABS | BT6: =IFERROR($BT$4*BS6,"-") -> - | BV6: =IF(BU6/BU$4>=0.9,"A+",IF(BU6/BU$4>=0.8,"A",IF(BU6/BU$4>=0.7,"B+",IF(BU6/BU$4>=0.6,"B",IF(BU6/BU$4>=0.5,"C+",IF(BU6/BU$4>=0.4,"C",IF(BU6/BU$4>0,"NG","ABS"))))))) -> ABS | BW6: =IF(BV6="A+",4,IF(BV6="A",3.6,IF(BV6="B+",3.2,IF(BV6="B",2.8,IF(BV6="C+",2.4,IF(BV6="C",2,IF(BV6="D",1.6,IF(BV6="NG","-","ABS")))))))) -> ABS | BX6: =IFERROR($BX$4*BW6,"-") -> - | BY6: =IFERROR(IF((BT6+BX6)/($BT$4+$BX$4)>3.6,"A+",IF((BT6+BX6)/($BT$4+$BX$4)>3.2,"A",IF((BT6+BX6)/($BT$4+$BX$4)>2.8,"B+",IF((BT6+BX6)/($BT$4+$BX$4)>2.4,"B",IF((BT6+BX6)/($BT$4+$BX$4)>2,"C+",IF((BT6+BX6)/($BT$4+$BX$4)>1.6,"C",IF((BT6+BX6)/($BT$4+$BX$4)=1.6,"D",IF((BT6+BX6)/($BT$4+$BX$4)<1.6,"NG","")))))))),"") -> 
B7: 3 | C7: ANISHA THAPA MAGAR | D7: 2062-07-07 | E7: 801130210003 | F7: 11301322 | G7: 0011 | H7: 41 | I7: C+ | J7: 2.4 | K7: 5.4 | L7: 10 | M7: C | N7: 2 | O7: 1.5 | P7: C+ | Q7: 0031 | R7: 41 | S7: C+ | T7: 2.4 | U7: 7.2 | V7: 10 | W7: C | X7: 2 | Y7: 2 | Z7: C+ | AA7: 0051 | AB7: 54 | AC7: B+ | AD7: 3.2 | AE7: 12 | AF7: 22 | AG7: A | AH7: 3.6 | AI7: 4.5 | AJ7: A | AK7: 1031 | AL7: 62 | AM7: A | AN7: 3.6 | AO7: 13.5 | AP7: 23 | AQ7: A+ | AR7: 4 | AS7: 5 | AT7: A+ | AU7: 4251 | AV7: 41 | AW7: C+ | AX7: 2.4 | AY7: 9 | AZ7: 50 | BA7: A+ | BB7: 4 | BC7: 5 | BD7: B | BE7: 4171 | BF7: 56 | BG7: B+ | BH7: 3.2 | BI7: 12 | BJ7: 20 | BK7: A | BL7: 3.6 | BM7: 4.5 | BN7: A | BO7: 3.022222222 | BR7: ABS | BS7: ABS | BT7: - | BV7: ABS | BW7: ABS | BX7: -
B8: 4 | C8: ANUPAMA TAMANG | D8: 2062-12-20 | E8: 801130210004 | F8: 11301323 | G8: 0011 | H8: 32 | I8: C | J8: 2 | K8: 4.5 | L8: 10 | M8: C | N8: 2 | O8: 1.5 | P8: C | Q8: 0031 | R8: 32 | S8: C | T8: 2 | U8: 6 | V8: 10 | W8: C | X8: 2 | Y8: 2 | Z8: C | AA8: 0051 | AB8: 46 | AC8: B | AD8: 2.8 | AE8: 10.5 | AF8: 21 | AG8: A | AH8: 3.6 | AI8: 4.5 | AJ8: B+ | AK8: 1031 | AL8: 52 | AM8: B | AN8: 2.8 | AO8: 10.5 | AP8: 22 | AQ8: A | AR8: 3.6 | AS8: 4.5 | AT8: B+ | AU8: 4251 | AV8: 37 | AW8: C | AX8: 2 | AY8: 7.5 | AZ8: 49 | BA8: A+ | BB8: 4 | BC8: 5 | BD8: B | BE8: 4171 | BF8: 53 | BG8: B+ | BH8: 3.2 | BI8: 12 | BK8: ABS | BL8: ABS | BM8: - | BN8: * | BO8: - | BR8: ABS | BS8: ABS | BT8: - | BV8: ABS | BW8: ABS | BX8: -
B9: 5 | C9: ASMITA PARIYAR | D9: 2062-12-27 | E9: 801130210005 | F9: 11301324 | G9: 0011 | H9: 33 | I9: C | J9: 2 | K9: 4.5 | L9: 11 | M9: C | N9: 2 | O9: 1.5 | P9: C | Q9: 0031 | R9: 33 | S9: C | T9: 2 | U9: 6 | V9: 11 | W9: C | X9: 2 | Y9: 2 | Z9: C | AA9: 0051 | AB9: 45 | AC9: B | AD9: 2.8 | AE9: 10.5 | AF9: 21 | AG9: A | AH9: 3.6 | AI9: 4.5 | AJ9: B+ | AK9: 1031 | AL9: 52 | AM9: B | AN9: 2.8 | AO9: 10.5 | AP9: 21 | AQ9: A | AR9: 3.6 | AS9: 4.5 | AT9: B+ | AU9: 4251 | AV9: 35 | AW9: C | AX9: 2 | AY9: 7.5 | AZ9: 49 | BA9: A+ | BB9: 4 | BC9: 5 | BD9: B | BE9: 4171 | BF9: 61 | BG9: A | BH9: 3.6 | BI9: 13.5 | BK9: ABS | BL9: ABS | BM9: - | BN9: * | BO9: - | BR9: ABS | BS9: ABS | BT9: - | BV9: ABS | BW9: ABS | BX9: -
B10: 6 | C10: BIKASH RAI | D10: 2063-03-10 | E10: 801130210006 | F10: 11301325 | G10: 0011 | H10: 42 | I10: C+ | J10: 2.4 | K10: 5.4 | L10: 12 | M10: C | N10: 2 | O10: 1.5 | P10: C+ | Q10: 0031 | R10: 42 | S10: C+ | T10: 2.4 | U10: 7.2 | V10: 12 | W10: C | X10: 2 | Y10: 2 | Z10: C+ | AA10: 0051 | AB10: 60 | AC10: A | AD10: 3.6 | AE10: 13.5 | AF10: 23 | AG10: A+ | AH10: 4 | AI10: 5 | AJ10: A+ | AK10: 1031 | AL10: 63 | AM10: A | AN10: 3.6 | AO10: 13.5 | AP10: 23 | AQ10: A+ | AR10: 4 | AS10: 5 | AT10: A+ | AU10: 4251 | AV10: 43 | AW10: C+ | AX10: 2.4 | AY10: 9 | AZ10: 50 | BA10: A+ | BB10: 4 | BC10: 5 | BD10: B | BE10: 4171 | BF10: 61 | BG10: A | BH10: 3.6 | BI10: 13.5 | BK10: ABS | BL10: ABS | BM10: - | BN10: * | BO10: - | BR10: ABS | BS10: ABS | BT10: - | BV10: ABS | BW10: ABS | BX10: -
B11: 7 | C11: DIKESH RAI | D11: 2063-07-06 | E11: 801130210007 | F11: 11301326 | G11: 0011 | H11: 37 | I11: C | J11: 2 | K11: 4.5 | L11: 12 | M11: C | N11: 2 | O11: 1.5 | P11: C | Q11: 0031 | R11: 37 | S11: C | T11: 2 | U11: 6 | V11: 12 | W11: C | X11: 2 | Y11: 2 | Z11: C | AA11: 0051 | AB11: 37 | AC11: C | AD11: 2 | AE11: 7.5 | AF11: 20 | AG11: A | AH11: 3.6 | AI11: 4.5 | AJ11: C+ | AK11: 1031 | AL11: 50 | AM11: B | AN11: 2.8 | AO11: 10.5 | AP11: 22 | AQ11: A | AR11: 3.6 | AS11: 4.5 | AT11: B+ | AU11: 4251 | AV11: 38 | AW11: C+ | AX11: 2.4 | AY11: 9 | AZ11: 49 | BA11: A+ | BB11: 4 | BC11: 5 | BD11: B | BE11: 4171 | BF11: 61 | BG11: A | BH11: 3.6 | BI11: 13.5 | BK11: ABS | BL11: ABS | BM11: - | BN11: * | BO11: - | BR11: ABS | BS11: ABS | BT11: - | BV11: ABS | BW11: ABS | BX11: -
B12: 8 | C12: ERON BHUJEL | D12: 2064-06-02 | E12: 801130210008 | F12: 11301327 | G12: 0011 | H12: 36 | I12: C | J12: 2 | K12: 4.5 | L12: 11 | M12: C | N12: 2 | O12: 1.5 | P12: C | Q12: 0031 | R12: 36 | S12: C | T12: 2 | U12: 6 | V12: 11 | W12: C | X12: 2 | Y12: 2 | Z12: C | AA12: 0051 | AB12: 61 | AC12: A | AD12: 3.6 | AE12: 13.5 | AF12: 23 | AG12: A+ | AH12: 4 | AI12: 5 | AJ12: A+ | AK12: 1031 | AL12: 51 | AM12: B | AN12: 2.8 | AO12: 10.5 | AP12: 22 | AQ12: A | AR12: 3.6 | AS12: 4.5 | AT12: B+ | AU12: 4251 | AV12: 39 | AW12: C+ | AX12: 2.4 | AY12: 9 | AZ12: 45 | BA12: A+ | BB12: 4 | BC12: 5 | BD12: B | BE12: 4171 | BF12: 50 | BG12: B | BH12: 2.8 | BI12: 10.5 | BK12: ABS | BL12: ABS | BM12: - | BN12: * | BO12: - | BR12: ABS | BS12: ABS | BT12: - | BV12: ABS | BW12: ABS | BX12: -
B13: 9 | C13: ISMITA RAI | D13: 2062-06-05 | E13: 801130210009 | F13: 11301328 | G13: 0011 | H13: 39 | I13: C+ | J13: 2.4 | K13: 5.4 | L13: 11 | M13: C | N13: 2 | O13: 1.5 | P13: C+ | Q13: 0031 | R13: 39 | S13: C+ | T13: 2.4 | U13: 7.2 | V13: 11 | W13: C | X13: 2 | Y13: 2 | Z13: C+ | AA13: 0051 | AB13: 61 | AC13: A | AD13: 3.6 | AE13: 13.5 | AF13: 23 | AG13: A+ | AH13: 4 | AI13: 5 | AJ13: A+ | AK13: 1031 | AL13: 55 | AM13: B+ | AN13: 3.2 | AO13: 12 | AP13: 24 | AQ13: A+ | AR13: 4 | AS13: 5 | AT13: A | AU13: 4251 | AV13: 34 | AW13: C | AX13: 2 | AY13: 7.5 | AZ13: 48 | BA13: A+ | BB13: 4 | BC13: 5 | BD13: B | BE13: 4171 | BF13: 57 | BG13: B+ | BH13: 3.2 | BI13: 12 | BK13: ABS | BL13: ABS | BM13: - | BN13: * | BO13: - | BR13: ABS | BS13: ABS | BT13: - | BV13: ABS | BW13: ABS | BX13: -
B14: 10 | C14: KANCHAN KHATRI | D14: 2063-12-05 | E14: 801130210010 | F14: 11301329 | G14: 0011 | H14: 40 | I14: C+ | J14: 2.4 | K14: 5.4 | L14: 10 | M14: C | N14: 2 | O14: 1.5 | P14: C+ | Q14: 0031 | R14: 40 | S14: C+ | T14: 2.4 | U14: 7.2 | V14: 10 | W14: C | X14: 2 | Y14: 2 | Z14: C+ | AA14: 0051 | AB14: 56 | AC14: B+ | AD14: 3.2 | AE14: 12 | AF14: 23 | AG14: A+ | AH14: 4 | AI14: 5 | AJ14: A | AK14: 1031 | AL14: 55 | AM14: B+ | AN14: 3.2 | AO14: 12 | AP14: 23 | AQ14: A+ | AR14: 4 | AS14: 5 | AT14: A | AU14: 4251 | AV14: 41 | AW14: C+ | AX14: 2.4 | AY14: 9 | AZ14: 48 | BA14: A+ | BB14: 4 | BC14: 5 | BD14: B | BE14: 4171 | BF14: 59 | BG14: B+ | BH14: 3.2 | BI14: 12 | BK14: ABS | BL14: ABS | BM14: - | BN14: * | BO14: - | BR14: ABS | BS14: ABS | BT14: - | BV14: ABS | BW14: ABS | BX14: -
B15: 11 | C15: KAUSTUV JUNG KHADKA | D15: 2064-03-11 | E15: 801130210011 | F15: 11301330 | G15: 0011 | H15: 58 | I15: =IF(H15/H$4>=0.9,"A+",IF(H15/H$4>=0.8,"A",IF(H15/H$4>=0.7,"B+",IF(H15/H$4>=0.6,"B",IF(H15/H$4>=0.5,"C+",IF(H15/H$4>=0.4,"C",IF(H15/H$4>=0.35,"D",IF(H15/H$4>0,"NG","ABS")))))))) -> B+ | J15: =IF(I15="A+",4,IF(I15="A",3.6,IF(I15="B+",3.2,IF(I15="B",2.8,IF(I15="C+",2.4,IF(I15="C",2,IF(I15="D",1.6,IF(I15="NG","-","ABS")))))))) -> 3.2 | K15: =IFERROR($K$4*J15,"-") -> 7.2 | L15: 17 | M15: B | N15: 2.8 | O15: 2.1 | P15: B+ | Q15: 0031 | R15: 58 | S15: B+ | T15: 3.2 | U15: 9.6 | V15: 17 | W15: B | X15: 2.8 | Y15: 2.8 | Z15: B+ | AA15: 0051 | AB15: 60 | AC15: A | AD15: 3.6 | AE15: 13.5 | AF15: 23 | AG15: A+ | AH15: 4 | AI15: 5 | AJ15: A+ | AK15: 1031 | AL15: 65 | AM15: A | AN15: 3.6 | AO15: 13.5 | AP15: 24 | AQ15: A+ | AR15: 4 | AS15: 5 | AT15: A+ | AU15: 4251 | AV15: 42 | AW15: C+ | AX15: 2.4 | AY15: 9 | AZ15: 48 | BA15: A+ | BB15: 4 | BC15: 5 | BD15: B | BE15: 4171 | BF15: 53 | BG15: B+ | BH15: 3.2 | BI15: 12 | BK15: ABS | BL15: ABS | BM15: - | BN15: * | BO15: - | BR15: ABS | BS15: ABS | BT15: - | BV15: ABS | BW15: ABS | BX15: -
B16: 12 | C16: KUSUM RAI | D16: 2063-01-19 | E16: 801130210012 | F16: 11301331 | G16: 0011 | H16: 38 | I16: C+ | J16: 2.4 | K16: 5.4 | L16: 10 | M16: C | N16: 2 | O16: 1.5 | P16: C+ | Q16: 0031 | R16: 38 | S16: C+ | T16: 2.4 | U16: 7.2 | V16: 10 | W16: C | X16: 2 | Y16: 2 | Z16: C+ | AA16: 0051 | AB16: 48 | AC16: B | AD16: 2.8 | AE16: 10.5 | AF16: 21 | AG16: A | AH16: 3.6 | AI16: 4.5 | AJ16: B+ | AK16: 1031 | AL16: 53 | AM16: B+ | AN16: 3.2 | AO16: 12 | AP16: 21 | AQ16: A | AR16: 3.6 | AS16: 4.5 | AT16: A | AU16: 4251 | AV16: 34 | AW16: C | AX16: 2 | AY16: 7.5 | AZ16: 45 | BA16: A+ | BB16: 4 | BC16: 5 | BD16: B | BE16: 4171 | BF16: 54 | BG16: B+ | BH16: 3.2 | BI16: 12 | BK16: ABS | BL16: ABS | BM16: - | BN16: * | BO16: - | BR16: ABS | BS16: ABS | BT16: - | BV16: ABS | BW16: ABS | BX16: -
B17: 13 | C17: LEPMUHANG RAI | D17: 2062-04-23 | E17: 801130210013 | F17: 11301332 | G17: 0011 | H17: 37 | I17: C | J17: 2 | K17: 4.5 | L17: 12 | M17: C | N17: 2 | O17: 1.5 | P17: C | Q17: 0031 | R17: 37 | S17: C | T17: 2 | U17: 6 | V17: 12 | W17: C | X17: 2 | Y17: 2 | Z17: C | AA17: 0051 | AB17: 54 | AC17: B+ | AD17: 3.2 | AE17: 12 | AF17: 22 | AG17: A | AH17: 3.6 | AI17: 4.5 | AJ17: A | AK17: 1031 | AL17: 53 | AM17: B+ | AN17: 3.2 | AO17: 12 | AP17: 22 | AQ17: A | AR17: 3.6 | AS17: 4.5 | AT17: A | AU17: 4251 | AV17: 39 | AW17: C+ | AX17: 2.4 | AY17: 9 | AZ17: 42 | BA17: A+ | BB17: 4 | BC17: 5 | BD17: B | BE17: 4171 | BF17: 60 | BG17: A | BH17: 3.6 | BI17: 13.5 | BK17: ABS | BL17: ABS | BM17: - | BN17: * | BO17: - | BR17: ABS | BS17: ABS | BT17: - | BV17: ABS | BW17: ABS | BX17: -
B18: 14 | C18: MAHESH DAHAL | D18: 2061-04-01 | E18: 801130210014 | F18: 11301333 | G18: 0011 | H18: 35 | I18: C | J18: 2 | K18: 4.5 | L18: 12 | M18: C | N18: 2 | O18: 1.5 | P18: C | Q18: 0031 | R18: 35 | S18: C | T18: 2 | U18: 6 | V18: 12 | W18: C | X18: 2 | Y18: 2 | Z18: C | AA18: 0051 | AB18: 49 | AC18: B | AD18: 2.8 | AE18: 10.5 | AF18: 21 | AG18: A | AH18: 3.6 | AI18: 4.5 | AJ18: B+ | AK18: 1031 | AL18: 51 | AM18: B | AN18: 2.8 | AO18: 10.5 | AP18: 22 | AQ18: A | AR18: 3.6 | AS18: 4.5 | AT18: B+ | AU18: 4251 | AV18: 44 | AW18: C+ | AX18: 2.4 | AY18: 9 | AZ18: 50 | BA18: A+ | BB18: 4 | BC18: 5 | BD18: B | BE18: 4171 | BF18: 60 | BG18: A | BH18: 3.6 | BI18: 13.5 | BK18: ABS | BL18: ABS | BM18: - | BN18: * | BO18: - | BR18: ABS | BS18: ABS | BT18: - | BV18: ABS | BW18: ABS | BX18: -
B19: 15 | C19: MANISHA RAI | D19: 2064-01-15 | E19: 801130210015 | F19: 11301334 | G19: 0011 | H19: 60 | I19: A | J19: 3.6 | K19: 8.1 | L19: 20 | M19: A | N19: 3.6 | O19: 2.7 | P19: A | Q19: 0031 | R19: 62 | S19: A | T19: 3.6 | U19: 10.8 | V19: 20 | W19: A | X19: 3.6 | Y19: 3.6 | Z19: A | AA19: 0051 | AB19: 68 | AC19: A+ | AD19: 4 | AE19: 15 | AF19: 23 | AG19: A+ | AH19: 4 | AI19: 5 | AJ19: A+ | AK19: 1031 | AL19: 70 | AM19: A+ | AN19: 4 | AO19: 15 | AP19: 24 | AQ19: A+ | AR19: 4 | AS19: 5 | AT19: A+ | AU19: 4251 | AV19: 43 | AW19: C+ | AX19: 2.4 | AY19: 9 | AZ19: 50 | BA19: A+ | BB19: 4 | BC19: 5 | BD19: B | BE19: 4171 | BF19: 61 | BG19: A | BH19: 3.6 | BI19: 13.5 | BK19: ABS | BL19: ABS | BM19: - | BN19: * | BO19: - | BR19: ABS | BS19: ABS | BT19: - | BV19: ABS | BW19: ABS | BX19: -
B20: 16 | C20: MANISHA THAPA | D20: 2062-06-25 | E20: 801130210016 | F20: 11301335 | G20: 0011 | H20: 62 | I20: A | J20: 3.6 | K20: 8.1 | L20: 18 | M20: B+ | N20: 3.2 | O20: 2.4 | P20: A | Q20: 0031 | R20: 62 | S20: A | T20: 3.6 | U20: 10.8 | V20: 18 | W20: B+ | X20: 3.2 | Y20: 3.2 | Z20: A | AA20: 0051 | AB20: 66 | AC20: A | AD20: 3.6 | AE20: 13.5 | AF20: 23 | AG20: A+ | AH20: 4 | AI20: 5 | AJ20: A+ | AK20: 1031 | AL20: 70 | AM20: A+ | AN20: 4 | AO20: 15 | AP20: 24 | AQ20: A+ | AR20: 4 | AS20: 5 | AT20: A+ | AU20: 4251 | AV20: 44 | AW20: C+ | AX20: 2.4 | AY20: 9 | AZ20: 49 | BA20: A+ | BB20: 4 | BC20: 5 | BD20: B | BE20: 4171 | BF20: 64 | BG20: A | BH20: 3.6 | BI20: 13.5 | BK20: ABS | BL20: ABS | BM20: - | BN20: * | BO20: - | BR20: ABS | BS20: ABS | BT20: - | BV20: ABS | BW20: ABS | BX20: -
B21: 17 | C21: MOUSAM RAI | D21: 2063-06-29 | E21: 801130210017 | F21: 11301336 | G21: 0011 | H21: 38 | I21: C+ | J21: 2.4 | K21: 5.4 | L21: 13 | M21: C+ | N21: 2.4 | O21: 1.8 | P21: C+ | Q21: 0031 | R21: 38 | S21: C+ | T21: 2.4 | U21: 7.2 | V21: 13 | W21: C+ | X21: 2.4 | Y21: 2.4 | Z21: C+ | AA21: 0051 | AB21: 60 | AC21: A | AD21: 3.6 | AE21: 13.5 | AF21: 23 | AG21: A+ | AH21: 4 | AI21: 5 | AJ21: A+ | AK21: 1031 | AL21: 50 | AM21: B | AN21: 2.8 | AO21: 10.5 | AP21: 21 | AQ21: A | AR21: 3.6 | AS21: 4.5 | AT21: B+ | AU21: 4251 | AV21: 30 | AW21: C | AX21: 2 | AY21: 7.5 | AZ21: 47 | BA21: A+ | BB21: 4 | BC21: 5 | BD21: B | BE21: 4171 | BF21: 41 | BG21: C+ | BH21: 2.4 | BI21: 9 | BK21: ABS | BL21: ABS | BM21: - | BN21: * | BO21: - | BR21: ABS | BS21: ABS | BT21: - | BV21: ABS | BW21: ABS | BX21: -
B22: 18 | C22: NANIMA SHRESTHA | D22: 2064-11-16 | E22: 801130210018 | F22: 11301337 | G22: 0011 | H22: 38 | I22: C+ | J22: 2.4 | K22: 5.4 | L22: 11 | M22: C | N22: 2 | O22: 1.5 | P22: C+ | Q22: 0031 | R22: 38 | S22: C+ | T22: 2.4 | U22: 7.2 | V22: 11 | W22: C | X22: 2 | Y22: 2 | Z22: C+ | AA22: 0051 | AB22: 66 | AC22: A | AD22: 3.6 | AE22: 13.5 | AF22: 23 | AG22: A+ | AH22: 4 | AI22: 5 | AJ22: A+ | AK22: 1031 | AL22: 55 | AM22: B+ | AN22: 3.2 | AO22: 12 | AP22: 22 | AQ22: A | AR22: 3.6 | AS22: 4.5 | AT22: A | AU22: 4251 | AV22: 37 | AW22: C | AX22: 2 | AY22: 7.5 | AZ22: 49 | BA22: A+ | BB22: 4 | BC22: 5 | BD22: B | BE22: 4171 | BF22: 46 | BG22: B | BH22: 2.8 | BI22: 10.5 | BK22: ABS | BL22: ABS | BM22: - | BN22: * | BO22: - | BR22: ABS | BS22: ABS | BT22: - | BV22: ABS | BW22: ABS | BX22: -
B23: 19 | C23: PRABIN TAMANG | D23: 2062-02-27 | E23: 801130210019 | F23: 11301338 | G23: 0011 | H23: 40 | I23: C+ | J23: 2.4 | K23: 5.4 | L23: 13 | M23: C+ | N23: 2.4 | O23: 1.8 | P23: C+ | Q23: 0031 | R23: 40 | S23: C+ | T23: 2.4 | U23: 7.2 | V23: 13 | W23: C+ | X23: 2.4 | Y23: 2.4 | Z23: C+ | AA23: 0051 | AB23: 66 | AC23: A | AD23: 3.6 | AE23: 13.5 | AF23: 23 | AG23: A+ | AH23: 4 | AI23: 5 | AJ23: A+ | AK23: 1031 | AL23: 51 | AM23: B | AN23: 2.8 | AO23: 10.5 | AP23: 22 | AQ23: A | AR23: 3.6 | AS23: 4.5 | AT23: B+ | AU23: 4251 | AV23: 33 | AW23: C | AX23: 2 | AY23: 7.5 | AZ23: 47 | BA23: A+ | BB23: 4 | BC23: 5 | BD23: B | BE23: 4171 | BF23: 46 | BG23: B | BH23: 2.8 | BI23: 10.5 | BK23: ABS | BL23: ABS | BM23: - | BN23: * | BO23: - | BR23: ABS | BS23: ABS | BT23: - | BV23: ABS | BW23: ABS | BX23: -
B24: 20 | C24: PRAMISAN RAI | D24: 2063-05-27 | E24: 801130210020 | F24: 11301339 | G24: 0011 | H24: 42 | I24: C+ | J24: 2.4 | K24: 5.4 | L24: 14 | M24: C+ | N24: 2.4 | O24: 1.8 | P24: C+ | Q24: 0031 | R24: 42 | S24: C+ | T24: 2.4 | U24: 7.2 | V24: 14 | W24: C+ | X24: 2.4 | Y24: 2.4 | Z24: C+ | AA24: 0051 | AB24: 67 | AC24: A | AD24: 3.6 | AE24: 13.5 | AF24: 23 | AG24: A+ | AH24: 4 | AI24: 5 | AJ24: A+ | AK24: 1031 | AL24: 52 | AM24: B | AN24: 2.8 | AO24: 10.5 | AP24: 22 | AQ24: A | AR24: 3.6 | AS24: 4.5 | AT24: B+ | AU24: 4251 | AV24: 40 | AW24: C+ | AX24: 2.4 | AY24: 9 | AZ24: 50 | BA24: A+ | BB24: 4 | BC24: 5 | BD24: B | BE24: 4171 | BF24: 44 | BG24: C+ | BH24: 2.4 | BI24: 9 | BK24: ABS | BL24: ABS | BM24: - | BN24: * | BO24: - | BR24: ABS | BS24: ABS | BT24: - | BV24: ABS | BW24: ABS | BX24: -
B25: 21 | C25: REJINA RAI | D25: 2062-02-27 | E25: 801130210021 | F25: 11301340 | G25: 0011 | H25: 68 | I25: A+ | J25: 4 | K25: 9 | L25: 22 | M25: A | N25: 3.6 | O25: 2.7 | P25: A+ | Q25: 0031 | R25: 68 | S25: A+ | T25: 4 | U25: 12 | V25: 22 | W25: A | X25: 3.6 | Y25: 3.6 | Z25: A+ | AA25: 0051 | AB25: 69 | AC25: A+ | AD25: 4 | AE25: 15 | AF25: 23 | AG25: A+ | AH25: 4 | AI25: 5 | AJ25: A+ | AK25: 1031 | AL25: 70 | AM25: A+ | AN25: 4 | AO25: 15 | AP25: 24 | AQ25: A+ | AR25: 4 | AS25: 5 | AT25: A+ | AU25: 4251 | AV25: 45 | AW25: B | AX25: 2.8 | AY25: 10.5 | AZ25: 50 | BA25: A+ | BB25: 4 | BC25: 5 | BD25: B+ | BE25: 4051 | BF25: 71 | BG25: A+ | BH25: 4 | BI25: 15 | BK25: ABS | BL25: ABS | BM25: - | BN25: * | BO25: - | BR25: ABS | BS25: ABS | BT25: - | BV25: ABS | BW25: ABS | BX25: -
B26: 22 | C26: ROHAN JOSHI | D26: 2062-04-08 | E26: 801130210022 | F26: 11301341 | G26: 0011 | H26: 58 | I26: B+ | J26: 3.2 | K26: 7.2 | L26: 18 | M26: B+ | N26: 3.2 | O26: 2.4 | P26: B+ | Q26: 0031 | R26: 58 | S26: B+ | T26: 3.2 | U26: 9.6 | V26: 18 | W26: B+ | X26: 3.2 | Y26: 3.2 | Z26: B+ | AA26: 0051 | AB26: 52 | AC26: B | AD26: 2.8 | AE26: 10.5 | AF26: 21 | AG26: A | AH26: 3.6 | AI26: 4.5 | AJ26: B+ | AK26: 1031 | AL26: 61 | AM26: A | AN26: 3.6 | AO26: 13.5 | AP26: 23 | AQ26: A+ | AR26: 4 | AS26: 5 | AT26: A+ | AU26: 4251 | AV26: 42 | AW26: C+ | AX26: 2.4 | AY26: 9 | AZ26: 49 | BA26: A+ | BB26: 4 | BC26: 5 | BD26: B | BE26: 4051 | BF26: 65 | BG26: A | BH26: 3.6 | BI26: 13.5 | BK26: ABS | BL26: ABS | BM26: - | BN26: * | BO26: - | BR26: ABS | BS26: ABS | BT26: - | BV26: ABS | BW26: ABS | BX26: -
B27: 23 | C27: SALINA GAJMER | D27: 2063-04-25 | E27: 801130210023 | F27: 11301342 | G27: 0011 | H27: 35 | I27: =IF(H27/H$4>=0.9,"A+",IF(H27/H$4>=0.8,"A",IF(H27/H$4>=0.7,"B+",IF(H27/H$4>=0.6,"B",IF(H27/H$4>=0.5,"C+",IF(H27/H$4>=0.4,"C",IF(H27/H$4>=0.35,"D",IF(H27/H$4>0,"NG","ABS")))))))) -> C | J27: =IF(I27="A+",4,IF(I27="A",3.6,IF(I27="B+",3.2,IF(I27="B",2.8,IF(I27="C+",2.4,IF(I27="C",2,IF(I27="D",1.6,IF(I27="NG","-","ABS")))))))) -> 2 | K27: =IFERROR($K$4*J27,"-") -> 4.5 | L27: 10 | M27: C | N27: 2 | O27: 1.5 | P27: C | Q27: 0031 | R27: 35 | S27: C | T27: 2 | U27: 6 | V27: 10 | W27: C | X27: 2 | Y27: 2 | Z27: C | AA27: 0051 | AB27: 50 | AC27: B | AD27: 2.8 | AE27: 10.5 | AF27: 22 | AG27: A | AH27: 3.6 | AI27: 4.5 | AJ27: B+ | AK27: 1031 | AL27: 56 | AM27: B+ | AN27: 3.2 | AO27: 12 | AP27: 21 | AQ27: A | AR27: 3.6 | AS27: 4.5 | AT27: A | AU27: 4251 | AV27: 42 | AW27: C+ | AX27: 2.4 | AY27: 9 | AZ27: 50 | BA27: A+ | BB27: 4 | BC27: 5 | BD27: B | BE27: 4171 | BF27: 55 | BG27: B+ | BH27: 3.2 | BI27: 12 | BK27: ABS | BL27: ABS | BM27: - | BN27: * | BO27: - | BR27: ABS | BS27: ABS | BT27: - | BV27: ABS | BW27: ABS | BX27: -
B28: 24 | C28: SAPHAL SHRESTHA | D28: 2062-08-06 | E28: 801130210024 | F28: 11301343 | G28: 0011 | H28: 58 | I28: B+ | J28: 3.2 | K28: 7.2 | L28: 18 | M28: B+ | N28: 3.2 | O28: 2.4 | P28: B+ | Q28: 0031 | R28: 58 | S28: B+ | T28: 3.2 | U28: 9.6 | V28: 18 | W28: B+ | X28: 3.2 | Y28: 3.2 | Z28: B+ | AA28: 0051 | AB28: 58 | AC28: B+ | AD28: 3.2 | AE28: 12 | AF28: 22 | AG28: A | AH28: 3.6 | AI28: 4.5 | AJ28: A | AK28: 1031 | AL28: 70 | AM28: A+ | AN28: 4 | AO28: 15 | AP28: 24 | AQ28: A+ | AR28: 4 | AS28: 5 | AT28: A+ | AU28: 4251 | AV28: 41 | AW28: C+ | AX28: 2.4 | AY28: 9 | AZ28: 49 | BA28: A+ | BB28: 4 | BC28: 5 | BD28: B | BE28: 4171 | BF28: 57 | BG28: B+ | BH28: 3.2 | BI28: 12 | BK28: ABS | BL28: ABS | BM28: - | BN28: * | BO28: - | BR28: ABS | BS28: ABS | BT28: - | BV28: ABS | BW28: ABS | BX28: -
B29: 25 | C29: SAUGAT SHRESTHA | D29: 2062-01-05 | E29: 801130210025 | F29: 11301344 | G29: 0011 | H29: 39 | I29: C+ | J29: 2.4 | K29: 5.4 | L29: 11 | M29: C | N29: 2 | O29: 1.5 | P29: C+ | Q29: 0031 | R29: 39 | S29: C+ | T29: 2.4 | U29: 7.2 | V29: 11 | W29: C | X29: 2 | Y29: 2 | Z29: C+ | AA29: 0051 | AB29: 56 | AC29: B+ | AD29: 3.2 | AE29: 12 | AF29: 22 | AG29: A | AH29: 3.6 | AI29: 4.5 | AJ29: A | AK29: 1031 | AL29: 51 | AM29: B | AN29: 2.8 | AO29: 10.5 | AP29: 22 | AQ29: A | AR29: 3.6 | AS29: 4.5 | AT29: B+ | AU29: 4251 | AV29: 31 | AW29: C | AX29: 2 | AY29: 7.5 | AZ29: 47 | BA29: A+ | BB29: 4 | BC29: 5 | BD29: B | BE29: 4171 | BF29: 44 | BG29: C+ | BH29: 2.4 | BI29: 9 | BK29: ABS | BL29: ABS | BM29: - | BN29: * | BO29: - | BR29: ABS | BS29: ABS | BT29: - | BV29: ABS | BW29: ABS | BX29: -
B30: 26 | C30: SIKSHA RAI | D30: 2064-03-21 | E30: 801130210026 | F30: 11301345 | G30: 0011 | H30: 51 | I30: B | J30: 2.8 | K30: 6.3 | L30: 14 | M30: C+ | N30: 2.4 | O30: 1.8 | P30: B | Q30: 0031 | R30: 51 | S30: B | T30: 2.8 | U30: 8.4 | V30: 14 | W30: C+ | X30: 2.4 | Y30: 2.4 | Z30: B | AA30: 0051 | AB30: 70 | AC30: A+ | AD30: 4 | AE30: 15 | AF30: 23 | AG30: A+ | AH30: 4 | AI30: 5 | AJ30: A+ | AK30: 1031 | AL30: 70 | AM30: A+ | AN30: 4 | AO30: 15 | AP30: 24 | AQ30: A+ | AR30: 4 | AS30: 5 | AT30: A+ | AU30: 4251 | AV30: 39 | AW30: C+ | AX30: 2.4 | AY30: 9 | AZ30: 49 | BA30: A+ | BB30: 4 | BC30: 5 | BD30: B | BE30: 4051 | BF30: 70 | BG30: A+ | BH30: 4 | BI30: 15 | BK30: ABS | BL30: ABS | BM30: - | BN30: * | BO30: - | BR30: ABS | BS30: ABS | BT30: - | BV30: ABS | BW30: ABS | BX30: -
B31: 27 | C31: ESAN RAI | D31: MALE | E31: 58291 | G31: 0011 | I31: ABS | J31: ABS | K31: - | M31: ABS | N31: ABS | O31: - | P31: * | Q31: 0031 | S31: ABS | T31: ABS | U31: - | W31: ABS | X31: ABS | Y31: - | Z31: * | AA31: 0051 | AC31: ABS | AD31: ABS | AE31: - | AG31: ABS | AH31: ABS | AI31: - | AJ31: * | AM31: ABS | AN31: ABS | AO31: - | AQ31: ABS | AR31: ABS | AS31: - | AT31: * | AW31: ABS | AX31: ABS | AY31: - | BA31: ABS | BB31: ABS | BC31: - | BD31: * | BG31: ABS | BH31: ABS | BI31: - | BK31: ABS | BL31: ABS | BM31: - | BN31: * | BO31: - | BR31: ABS | BS31: ABS | BT31: - | BV31: ABS | BW31: ABS | BX31: -
B32: 28 | C32: ESHAN RAI | D32: MALE | E32: 59856 | G32: 0011 | I32: ABS | J32: ABS | K32: - | M32: ABS | N32: ABS | O32: - | P32: * | Q32: 0031 | S32: ABS | T32: ABS | U32: - | W32: ABS | X32: ABS | Y32: - | Z32: * | AA32: 0051 | AC32: ABS | AD32: ABS | AE32: - | AG32: ABS | AH32: ABS | AI32: - | AJ32: * | AM32: ABS | AN32: ABS | AO32: - | AQ32: ABS | AR32: ABS | AS32: - | AT32: * | AW32: ABS | AX32: ABS | AY32: - | BA32: ABS | BB32: ABS | BC32: - | BD32: * | BG32: ABS | BH32: ABS | BI32: - | BK32: ABS | BL32: ABS | BM32: - | BN32: * | BO32: - | BR32: ABS | BS32: ABS | BT32: - | BV32: ABS | BW32: ABS | BX32: -
B33: 29 | C33: INDESH RAI | D33: MALE | E33: 58546 | G33: 0011 | I33: ABS | J33: ABS | K33: - | M33: ABS | N33: ABS | O33: - | P33: * | Q33: 0031 | S33: ABS | T33: ABS | U33: - | W33: ABS | X33: ABS | Y33: - | Z33: * | AA33: 0051 | AC33: ABS | AD33: ABS | AE33: - | AG33: ABS | AH33: ABS | AI33: - | AJ33: * | AM33: ABS | AN33: ABS | AO33: - | AQ33: ABS | AR33: ABS | AS33: - | AT33: * | AW33: ABS | AX33: ABS | AY33: - | BA33: ABS | BB33: ABS | BC33: - | BD33: * | BG33: ABS | BH33: ABS | BI33: - | BK33: ABS | BL33: ABS | BM33: - | BN33: * | BO33: - | BR33: ABS | BS33: ABS | BT33: - | BV33: ABS | BW33: ABS | BX33: -
B34: 30 | C34: JENY RAI | D34: FEMALE | E34: 58353 | G34: 0011 | I34: ABS | J34: ABS | K34: - | M34: ABS | N34: ABS | O34: - | P34: * | Q34: 0031 | S34: ABS | T34: ABS | U34: - | W34: ABS | X34: ABS | Y34: - | Z34: * | AA34: 0051 | AC34: ABS | AD34: ABS | AE34: - | AG34: ABS | AH34: ABS | AI34: - | AJ34: * | AM34: ABS | AN34: ABS | AO34: - | AQ34: ABS | AR34: ABS | AS34: - | AT34: * | AW34: ABS | AX34: ABS | AY34: - | BA34: ABS | BB34: ABS | BC34: - | BD34: * | BG34: ABS | BH34: ABS | BI34: - | BK34: ABS | BL34: ABS | BM34: - | BN34: * | BO34: - | BR34: ABS | BS34: ABS | BT34: - | BV34: ABS | BW34: ABS | BX34: -
B35: 31 | C35: MANOJ MAGAR | D35: MALE | E35: 59378 | G35: 0011 | I35: ABS | J35: ABS | K35: - | M35: ABS | N35: ABS | O35: - | P35: * | Q35: 0031 | S35: ABS | T35: ABS | U35: - | W35: ABS | X35: ABS | Y35: - | Z35: * | AA35: 0051 | AC35: ABS | AD35: ABS | AE35: - | AG35: ABS | AH35: ABS | AI35: - | AJ35: * | AM35: ABS | AN35: ABS | AO35: - | AQ35: ABS | AR35: ABS | AS35: - | AT35: * | AW35: ABS | AX35: ABS | AY35: - | BA35: ABS | BB35: ABS | BC35: - | BD35: * | BG35: ABS | BH35: ABS | BI35: - | BK35: ABS | BL35: ABS | BM35: - | BN35: * | BO35: - | BR35: ABS | BS35: ABS | BT35: - | BV35: ABS | BW35: ABS | BX35: -
B36: 32 | G36: 0011 | I36: ABS | J36: ABS | K36: - | M36: ABS | N36: ABS | O36: - | P36: * | Q36: 0031 | S36: ABS | T36: ABS | U36: - | W36: ABS | X36: ABS | Y36: - | Z36: * | AA36: 0051 | AC36: ABS | AD36: ABS | AE36: - | AG36: ABS | AH36: ABS | AI36: - | AJ36: * | AM36: ABS | AN36: ABS | AO36: - | AQ36: ABS | AR36: ABS | AS36: - | AT36: * | AW36: ABS | AX36: ABS | AY36: - | BA36: ABS | BB36: ABS | BC36: - | BD36: * | BG36: ABS | BH36: ABS | BI36: - | BK36: ABS | BL36: ABS | BM36: - | BN36: * | BO36: - | BR36: ABS | BS36: ABS | BT36: - | BV36: ABS | BW36: ABS | BX36: -
B37: 33 | G37: 0011 | I37: ABS | J37: ABS | K37: - | M37: ABS | N37: ABS | O37: - | P37: * | Q37: 0031 | S37: ABS | T37: ABS | U37: - | W37: ABS | X37: ABS | Y37: - | Z37: * | AA37: 0051 | AC37: ABS | AD37: ABS | AE37: - | AG37: ABS | AH37: ABS | AI37: - | AJ37: * | AM37: ABS | AN37: ABS | AO37: - | AQ37: ABS | AR37: ABS | AS37: - | AT37: * | AW37: ABS | AX37: ABS | AY37: - | BA37: ABS | BB37: ABS | BC37: - | BD37: * | BG37: ABS | BH37: ABS | BI37: - | BK37: ABS | BL37: ABS | BM37: - | BN37: * | BO37: - | BR37: ABS | BS37: ABS | BT37: - | BV37: ABS | BW37: ABS | BX37: -
B38: 34 | G38: 0011 | I38: ABS | J38: ABS | K38: - | M38: ABS | N38: ABS | O38: - | P38: * | Q38: 0031 | S38: ABS | T38: ABS | U38: - | W38: ABS | X38: ABS | Y38: - | Z38: * | AA38: 0051 | AC38: ABS | AD38: ABS | AE38: - | AG38: ABS | AH38: ABS | AI38: - | AJ38: * | AM38: ABS | AN38: ABS | AO38: - | AQ38: ABS | AR38: ABS | AS38: - | AT38: * | AW38: ABS | AX38: ABS | AY38: - | BA38: ABS | BB38: ABS | BC38: - | BD38: * | BG38: ABS | BH38: ABS | BI38: - | BK38: ABS | BL38: ABS | BM38: - | BN38: * | BO38: - | BR38: ABS | BS38: ABS | BT38: - | BV38: ABS | BW38: ABS | BX38: -
B39: 35 | G39: 0011 | I39: ABS | J39: ABS | K39: - | M39: ABS | N39: ABS | O39: - | P39: * | Q39: 0031 | S39: ABS | T39: ABS | U39: - | W39: ABS | X39: ABS | Y39: - | Z39: * | AA39: 0051 | AC39: ABS | AD39: ABS | AE39: - | AG39: ABS | AH39: ABS | AI39: - | AJ39: * | AM39: ABS | AN39: ABS | AO39: - | AQ39: ABS | AR39: ABS | AS39: - | AT39: * | AW39: ABS | AX39: ABS | AY39: - | BA39: ABS | BB39: ABS | BC39: - | BD39: * | BG39: ABS | BH39: ABS | BI39: - | BK39: ABS | BL39: ABS | BM39: - | BN39: * | BO39: - | BR39: ABS | BS39: ABS | BT39: - | BV39: ABS | BW39: ABS | BX39: -
B40: 36 | G40: 0011 | I40: ABS | J40: ABS | K40: - | M40: ABS | N40: ABS | O40: - | P40: * | Q40: 0031 | S40: ABS | T40: ABS | U40: - | W40: ABS | X40: ABS | Y40: - | Z40: * | AA40: 0051 | AC40: ABS | AD40: ABS | AE40: - | AG40: ABS | AH40: ABS | AI40: - | AJ40: * | AM40: ABS | AN40: ABS | AO40: - | AQ40: ABS | AR40: ABS | AS40: - | AT40: * | AW40: ABS | AX40: ABS | AY40: - | BA40: ABS | BB40: ABS | BC40: - | BD40: * | BG40: ABS | BH40: ABS | BI40: - | BK40: ABS | BL40: ABS | BM40: - | BN40: * | BO40: - | BR40: ABS | BS40: ABS | BT40: - | BV40: ABS | BW40: ABS | BX40: -
B41: 37 | G41: 0011 | I41: ABS | J41: ABS | K41: - | M41: ABS | N41: ABS | O41: - | P41: * | Q41: 0031 | S41: ABS | T41: ABS | U41: - | W41: ABS | X41: ABS | Y41: - | Z41: * | AA41: 0051 | AC41: ABS | AD41: ABS | AE41: - | AG41: ABS | AH41: ABS | AI41: - | AJ41: * | AM41: ABS | AN41: ABS | AO41: - | AQ41: ABS | AR41: ABS | AS41: - | AT41: * | AW41: ABS | AX41: ABS | AY41: - | BA41: ABS | BB41: ABS | BC41: - | BD41: * | BG41: ABS | BH41: ABS | BI41: - | BK41: ABS | BL41: ABS | BM41: - | BN41: * | BO41: - | BR41: ABS | BS41: ABS | BT41: - | BV41: ABS | BW41: ABS | BX41: -
B42: 38 | G42: 0011 | I42: ABS | J42: ABS | K42: - | M42: ABS | N42: ABS | O42: - | P42: * | Q42: 0031 | S42: ABS | T42: ABS | U42: - | W42: ABS | X42: ABS | Y42: - | Z42: * | AA42: 0051 | AC42: ABS | AD42: ABS | AE42: - | AG42: ABS | AH42: ABS | AI42: - | AJ42: * | AM42: ABS | AN42: ABS | AO42: - | AQ42: ABS | AR42: ABS | AS42: - | AT42: * | AW42: ABS | AX42: ABS | AY42: - | BA42: ABS | BB42: ABS | BC42: - | BD42: * | BG42: ABS | BH42: ABS | BI42: - | BK42: ABS | BL42: ABS | BM42: - | BN42: * | BO42: - | BR42: ABS | BS42: ABS | BT42: - | BV42: ABS | BW42: ABS | BX42: -
B43: 39 | G43: 0011 | I43: ABS | J43: ABS | K43: - | M43: ABS | N43: ABS | O43: - | P43: * | Q43: 0031 | S43: ABS | T43: ABS | U43: - | W43: ABS | X43: ABS | Y43: - | Z43: * | AA43: 0051 | AC43: ABS | AD43: ABS | AE43: - | AG43: ABS | AH43: ABS | AI43: - | AJ43: * | AM43: ABS | AN43: ABS | AO43: - | AQ43: ABS | AR43: ABS | AS43: - | AT43: * | AW43: ABS | AX43: ABS | AY43: - | BA43: ABS | BB43: ABS | BC43: - | BD43: * | BG43: ABS | BH43: ABS | BI43: - | BK43: ABS | BL43: ABS | BM43: - | BN43: * | BO43: - | BR43: ABS | BS43: ABS | BT43: - | BV43: ABS | BW43: ABS | BX43: -
B44: 40 | G44: 0011 | I44: ABS | J44: ABS | K44: - | M44: ABS | N44: ABS | O44: - | P44: * | Q44: 0031 | S44: ABS | T44: ABS | U44: - | W44: ABS | X44: ABS | Y44: - | Z44: * | AA44: 0051 | AC44: ABS | AD44: ABS | AE44: - | AG44: ABS | AH44: ABS | AI44: - | AJ44: * | AM44: ABS | AN44: ABS | AO44: - | AQ44: ABS | AR44: ABS | AS44: - | AT44: * | AW44: ABS | AX44: ABS | AY44: - | BA44: ABS | BB44: ABS | BC44: - | BD44: * | BG44: ABS | BH44: ABS | BI44: - | BK44: ABS | BL44: ABS | BM44: - | BN44: * | BO44: - | BR44: ABS | BS44: ABS | BT44: - | BV44: ABS | BW44: ABS | BX44: -
B45: 41 | G45: 0011 | I45: ABS | J45: ABS | K45: - | M45: ABS | N45: ABS | O45: - | P45: * | Q45: 0031 | S45: ABS | T45: ABS | U45: - | W45: ABS | X45: ABS | Y45: - | Z45: * | AA45: 0051 | AC45: ABS | AD45: ABS | AE45: - | AG45: ABS | AH45: ABS | AI45: - | AJ45: * | AM45: ABS | AN45: ABS | AO45: - | AQ45: ABS | AR45: ABS | AS45: - | AT45: * | AW45: ABS | AX45: ABS | AY45: - | BA45: ABS | BB45: ABS | BC45: - | BD45: * | BG45: ABS | BH45: ABS | BI45: - | BK45: ABS | BL45: ABS | BM45: - | BN45: * | BO45: - | BR45: ABS | BS45: ABS | BT45: - | BV45: ABS | BW45: ABS | BX45: -
B46: 42 | G46: 0011 | I46: ABS | J46: ABS | K46: - | M46: ABS | N46: ABS | O46: - | P46: * | Q46: 0031 | S46: ABS | T46: ABS | U46: - | W46: ABS | X46: ABS | Y46: - | Z46: * | AA46: 0051 | AC46: ABS | AD46: ABS | AE46: - | AG46: ABS | AH46: ABS | AI46: - | AJ46: * | AM46: ABS | AN46: ABS | AO46: - | AQ46: ABS | AR46: ABS | AS46: - | AT46: * | AW46: ABS | AX46: ABS | AY46: - | BA46: ABS | BB46: ABS | BC46: - | BD46: * | BG46: ABS | BH46: ABS | BI46: - | BK46: ABS | BL46: ABS | BM46: - | BN46: * | BO46: - | BR46: ABS | BS46: ABS | BT46: - | BV46: ABS | BW46: ABS | BX46: -
B47: 43 | G47: 0011 | I47: ABS | J47: ABS | K47: - | M47: ABS | N47: ABS | O47: - | P47: * | Q47: 0031 | S47: ABS | T47: ABS | U47: - | W47: ABS | X47: ABS | Y47: - | Z47: * | AA47: 0051 | AC47: ABS | AD47: ABS | AE47: - | AG47: ABS | AH47: ABS | AI47: - | AJ47: * | AM47: ABS | AN47: ABS | AO47: - | AQ47: ABS | AR47: ABS | AS47: - | AT47: * | AW47: ABS | AX47: ABS | AY47: - | BA47: ABS | BB47: ABS | BC47: - | BD47: * | BG47: ABS | BH47: ABS | BI47: - | BK47: ABS | BL47: ABS | BM47: - | BN47: * | BO47: - | BR47: ABS | BS47: ABS | BT47: - | BV47: ABS | BW47: ABS | BX47: -
B48: 44 | G48: 0011 | I48: ABS | J48: ABS | K48: - | M48: ABS | N48: ABS | O48: - | P48: * | Q48: 0031 | S48: ABS | T48: ABS | U48: - | W48: ABS | X48: ABS | Y48: - | Z48: * | AA48: 0051 | AC48: ABS | AD48: ABS | AE48: - | AG48: ABS | AH48: ABS | AI48: - | AJ48: * | AM48: ABS | AN48: ABS | AO48: - | AQ48: ABS | AR48: ABS | AS48: - | AT48: * | AW48: ABS | AX48: ABS | AY48: - | BA48: ABS | BB48: ABS | BC48: - | BD48: * | BG48: ABS | BH48: ABS | BI48: - | BK48: ABS | BL48: ABS | BM48: - | BN48: * | BO48: - | BR48: ABS | BS48: ABS | BT48: - | BV48: ABS | BW48: ABS | BX48: -
B49: 45 | G49: 0011 | I49: ABS | J49: ABS | K49: - | M49: ABS | N49: ABS | O49: - | P49: * | Q49: 0031 | S49: ABS | T49: ABS | U49: - | W49: ABS | X49: ABS | Y49: - | Z49: * | AA49: 0051 | AC49: ABS | AD49: ABS | AE49: - | AG49: ABS | AH49: ABS | AI49: - | AJ49: * | AM49: ABS | AN49: ABS | AO49: - | AQ49: ABS | AR49: ABS | AS49: - | AT49: * | AW49: ABS | AX49: ABS | AY49: - | BA49: ABS | BB49: ABS | BC49: - | BD49: * | BG49: ABS | BH49: ABS | BI49: - | BK49: ABS | BL49: ABS | BM49: - | BN49: * | BO49: - | BR49: ABS | BS49: ABS | BT49: - | BV49: ABS | BW49: ABS | BX49: -
B50: 46 | G50: 0011 | I50: ABS | J50: ABS | K50: - | M50: ABS | N50: ABS | O50: - | P50: * | Q50: 0031 | S50: ABS | T50: ABS | U50: - | W50: ABS | X50: ABS | Y50: - | Z50: * | AA50: 0051 | AC50: ABS | AD50: ABS | AE50: - | AG50: ABS | AH50: ABS | AI50: - | AJ50: * | AM50: ABS | AN50: ABS | AO50: - | AQ50: ABS | AR50: ABS | AS50: - | AT50: * | AW50: ABS | AX50: ABS | AY50: - | BA50: ABS | BB50: ABS | BC50: - | BD50: * | BG50: ABS | BH50: ABS | BI50: - | BK50: ABS | BL50: ABS | BM50: - | BN50: * | BO50: - | BR50: ABS | BS50: ABS | BT50: - | BV50: ABS | BW50: ABS | BX50: -
B51: 47 | G51: 0011 | I51: ABS | J51: ABS | K51: - | M51: ABS | N51: ABS | O51: - | P51: * | Q51: 0031 | S51: ABS | T51: ABS | U51: - | W51: ABS | X51: ABS | Y51: - | Z51: * | AA51: 0051 | AC51: ABS | AD51: ABS | AE51: - | AG51: ABS | AH51: ABS | AI51: - | AJ51: * | AM51: ABS | AN51: ABS | AO51: - | AQ51: ABS | AR51: ABS | AS51: - | AT51: * | AW51: ABS | AX51: ABS | AY51: - | BA51: ABS | BB51: ABS | BC51: - | BD51: * | BG51: ABS | BH51: ABS | BI51: - | BK51: ABS | BL51: ABS | BM51: - | BN51: * | BO51: - | BR51: ABS | BS51: ABS | BT51: - | BV51: ABS | BW51: ABS | BX51: -
B52: 48 | G52: 0011 | I52: ABS | J52: ABS | K52: - | M52: ABS | N52: ABS | O52: - | P52: * | Q52: 0031 | S52: ABS | T52: ABS | U52: - | W52: ABS | X52: ABS | Y52: - | Z52: * | AA52: 0051 | AC52: ABS | AD52: ABS | AE52: - | AG52: ABS | AH52: ABS | AI52: - | AJ52: * | AM52: ABS | AN52: ABS | AO52: - | AQ52: ABS | AR52: ABS | AS52: - | AT52: * | AW52: ABS | AX52: ABS | AY52: - | BA52: ABS | BB52: ABS | BC52: - | BD52: * | BG52: ABS | BH52: ABS | BI52: - | BK52: ABS | BL52: ABS | BM52: - | BN52: * | BO52: - | BR52: ABS | BS52: ABS | BT52: - | BV52: ABS | BW52: ABS | BX52: -
B53: 49 | G53: 0011 | I53: ABS | J53: ABS | K53: - | M53: ABS | N53: ABS | O53: - | P53: * | Q53: 0031 | S53: ABS | T53: ABS | U53: - | W53: ABS | X53: ABS | Y53: - | Z53: * | AA53: 0051 | AC53: ABS | AD53: ABS | AE53: - | AG53: ABS | AH53: ABS | AI53: - | AJ53: * | AM53: ABS | AN53: ABS | AO53: - | AQ53: ABS | AR53: ABS | AS53: - | AT53: * | AW53: ABS | AX53: ABS | AY53: - | BA53: ABS | BB53: ABS | BC53: - | BD53: * | BG53: ABS | BH53: ABS | BI53: - | BK53: ABS | BL53: ABS | BM53: - | BN53: * | BO53: - | BR53: ABS | BS53: ABS | BT53: - | BV53: ABS | BW53: ABS | BX53: -
B54: 50 | G54: 0011 | I54: ABS | J54: ABS | K54: - | M54: ABS | N54: ABS | O54: - | P54: * | Q54: 0031 | S54: ABS | T54: ABS | U54: - | W54: ABS | X54: ABS | Y54: - | Z54: * | AA54: 0051 | AC54: ABS | AD54: ABS | AE54: - | AG54: ABS | AH54: ABS | AI54: - | AJ54: * | AM54: ABS | AN54: ABS | AO54: - | AQ54: ABS | AR54: ABS | AS54: - | AT54: * | AW54: ABS | AX54: ABS | AY54: - | BA54: ABS | BB54: ABS | BC54: - | BD54: * | BG54: ABS | BH54: ABS | BI54: - | BK54: ABS | BL54: ABS | BM54: - | BN54: * | BO54: - | BR54: ABS | BS54: ABS | BT54: - | BV54: ABS | BW54: ABS | BX54: -
B55: 51 | G55: 0011 | I55: ABS | J55: ABS | K55: - | M55: ABS | N55: ABS | O55: - | P55: * | Q55: 0031 | S55: ABS | T55: ABS | U55: - | W55: ABS | X55: ABS | Y55: - | Z55: * | AA55: 0051 | AC55: ABS | AD55: ABS | AE55: - | AG55: ABS | AH55: ABS | AI55: - | AJ55: * | AM55: ABS | AN55: ABS | AO55: - | AQ55: ABS | AR55: ABS | AS55: - | AT55: * | AW55: ABS | AX55: ABS | AY55: - | BA55: ABS | BB55: ABS | BC55: - | BD55: * | BG55: ABS | BH55: ABS | BI55: - | BK55: ABS | BL55: ABS | BM55: - | BN55: * | BO55: - | BR55: ABS | BS55: ABS | BT55: - | BV55: ABS | BW55: ABS | BX55: -
B56: 52 | G56: 0011 | I56: ABS | J56: ABS | K56: - | M56: ABS | N56: ABS | O56: - | P56: * | Q56: 0031 | S56: ABS | T56: ABS | U56: - | W56: ABS | X56: ABS | Y56: - | Z56: * | AA56: 0051 | AC56: ABS | AD56: ABS | AE56: - | AG56: ABS | AH56: ABS | AI56: - | AJ56: * | AM56: ABS | AN56: ABS | AO56: - | AQ56: ABS | AR56: ABS | AS56: - | AT56: * | AW56: ABS | AX56: ABS | AY56: - | BA56: ABS | BB56: ABS | BC56: - | BD56: * | BG56: ABS | BH56: ABS | BI56: - | BK56: ABS | BL56: ABS | BM56: - | BN56: * | BO56: - | BR56: ABS | BS56: ABS | BT56: - | BV56: ABS | BW56: ABS | BX56: -
B57: 53 | G57: 0011 | I57: ABS | J57: ABS | K57: - | M57: ABS | N57: ABS | O57: - | P57: * | Q57: 0031 | S57: ABS | T57: ABS | U57: - | W57: ABS | X57: ABS | Y57: - | Z57: * | AA57: 0051 | AC57: ABS | AD57: ABS | AE57: - | AG57: ABS | AH57: ABS | AI57: - | AJ57: * | AM57: ABS | AN57: ABS | AO57: - | AQ57: ABS | AR57: ABS | AS57: - | AT57: * | AW57: ABS | AX57: ABS | AY57: - | BA57: ABS | BB57: ABS | BC57: - | BD57: * | BG57: ABS | BH57: ABS | BI57: - | BK57: ABS | BL57: ABS | BM57: - | BN57: * | BO57: - | BR57: ABS | BS57: ABS | BT57: - | BV57: ABS | BW57: ABS | BX57: -
B58: 54 | G58: 0011 | I58: ABS | J58: ABS | K58: - | M58: ABS | N58: ABS | O58: - | P58: * | Q58: 0031 | S58: ABS | T58: ABS | U58: - | W58: ABS | X58: ABS | Y58: - | Z58: * | AA58: 0051 | AC58: ABS | AD58: ABS | AE58: - | AG58: ABS | AH58: ABS | AI58: - | AJ58: * | AM58: ABS | AN58: ABS | AO58: - | AQ58: ABS | AR58: ABS | AS58: - | AT58: * | AW58: ABS | AX58: ABS | AY58: - | BA58: ABS | BB58: ABS | BC58: - | BD58: * | BG58: ABS | BH58: ABS | BI58: - | BK58: ABS | BL58: ABS | BM58: - | BN58: * | BO58: - | BR58: ABS | BS58: ABS | BT58: - | BV58: ABS | BW58: ABS | BX58: -
B59: 55 | G59: 0011 | I59: ABS | J59: ABS | K59: - | M59: ABS | N59: ABS | O59: - | P59: * | Q59: 0031 | S59: ABS | T59: ABS | U59: - | W59: ABS | X59: ABS | Y59: - | Z59: * | AA59: 0051 | AC59: ABS | AD59: ABS | AE59: - | AG59: ABS | AH59: ABS | AI59: - | AJ59: * | AM59: ABS | AN59: ABS | AO59: - | AQ59: ABS | AR59: ABS | AS59: - | AT59: * | AW59: ABS | AX59: ABS | AY59: - | BA59: ABS | BB59: ABS | BC59: - | BD59: * | BG59: ABS | BH59: ABS | BI59: - | BK59: ABS | BL59: ABS | BM59: - | BN59: * | BO59: - | BR59: ABS | BS59: ABS | BT59: - | BV59: ABS | BW59: ABS | BX59: -
B60: 56 | G60: 0011 | I60: ABS | J60: ABS | K60: - | M60: ABS | N60: ABS | O60: - | P60: * | Q60: 0031 | S60: ABS | T60: ABS | U60: - | W60: ABS | X60: ABS | Y60: - | Z60: * | AA60: 0051 | AC60: ABS | AD60: ABS | AE60: - | AG60: ABS | AH60: ABS | AI60: - | AJ60: * | AM60: ABS | AN60: ABS | AO60: - | AQ60: ABS | AR60: ABS | AS60: - | AT60: * | AW60: ABS | AX60: ABS | AY60: - | BA60: ABS | BB60: ABS | BC60: - | BD60: * | BG60: ABS | BH60: ABS | BI60: - | BK60: ABS | BL60: ABS | BM60: - | BN60: * | BO60: - | BR60: ABS | BS60: ABS | BT60: - | BV60: ABS | BW60: ABS | BX60: -
B61: 57 | G61: 0011 | I61: ABS | J61: ABS | K61: - | M61: ABS | N61: ABS | O61: - | P61: * | Q61: 0031 | S61: ABS | T61: ABS | U61: - | W61: ABS | X61: ABS | Y61: - | Z61: * | AA61: 0051 | AC61: ABS | AD61: ABS | AE61: - | AG61: ABS | AH61: ABS | AI61: - | AJ61: * | AM61: ABS | AN61: ABS | AO61: - | AQ61: ABS | AR61: ABS | AS61: - | AT61: * | AW61: ABS | AX61: ABS | AY61: - | BA61: ABS | BB61: ABS | BC61: - | BD61: * | BG61: ABS | BH61: ABS | BI61: - | BK61: ABS | BL61: ABS | BM61: - | BN61: * | BO61: - | BR61: ABS | BS61: ABS | BT61: - | BV61: ABS | BW61: ABS | BX61: -
B62: 58 | G62: 0011 | I62: ABS | J62: ABS | K62: - | M62: ABS | N62: ABS | O62: - | P62: * | Q62: 0031 | S62: ABS | T62: ABS | U62: - | W62: ABS | X62: ABS | Y62: - | Z62: * | AA62: 0051 | AC62: ABS | AD62: ABS | AE62: - | AG62: ABS | AH62: ABS | AI62: - | AJ62: * | AM62: ABS | AN62: ABS | AO62: - | AQ62: ABS | AR62: ABS | AS62: - | AT62: * | AW62: ABS | AX62: ABS | AY62: - | BA62: ABS | BB62: ABS | BC62: - | BD62: * | BG62: ABS | BH62: ABS | BI62: - | BK62: ABS | BL62: ABS | BM62: - | BN62: * | BO62: - | BR62: ABS | BS62: ABS | BT62: - | BV62: ABS | BW62: ABS | BX62: -
B63: 59 | G63: 0011 | I63: ABS | J63: ABS | K63: - | M63: ABS | N63: ABS | O63: - | P63: * | Q63: 0031 | S63: ABS | T63: ABS | U63: - | W63: ABS | X63: ABS | Y63: - | Z63: * | AA63: 0051 | AC63: ABS | AD63: ABS | AE63: - | AG63: ABS | AH63: ABS | AI63: - | AJ63: * | AM63: ABS | AN63: ABS | AO63: - | AQ63: ABS | AR63: ABS | AS63: - | AT63: * | AW63: ABS | AX63: ABS | AY63: - | BA63: ABS | BB63: ABS | BC63: - | BD63: * | BG63: ABS | BH63: ABS | BI63: - | BK63: ABS | BL63: ABS | BM63: - | BN63: * | BO63: - | BR63: ABS | BS63: ABS | BT63: - | BV63: ABS | BW63: ABS | BX63: -
B64: 60 | G64: 0011 | I64: ABS | J64: ABS | K64: - | M64: ABS | N64: ABS | O64: - | P64: * | Q64: 0031 | S64: ABS | T64: ABS | U64: - | W64: ABS | X64: ABS | Y64: - | Z64: * | AA64: 0051 | AC64: ABS | AD64: ABS | AE64: - | AG64: ABS | AH64: ABS | AI64: - | AJ64: * | AM64: ABS | AN64: ABS | AO64: - | AQ64: ABS | AR64: ABS | AS64: - | AT64: * | AW64: ABS | AX64: ABS | AY64: - | BA64: ABS | BB64: ABS | BC64: - | BD64: * | BG64: ABS | BH64: ABS | BI64: - | BK64: ABS | BL64: ABS | BM64: - | BN64: * | BO64: - | BR64: ABS | BS64: ABS | BT64: - | BV64: ABS | BW64: ABS | BX64: -
B65: 61 | G65: 0011 | I65: ABS | J65: ABS | K65: - | M65: ABS | N65: ABS | O65: - | P65: * | Q65: 0031 | S65: ABS | T65: ABS | U65: - | W65: ABS | X65: ABS | Y65: - | Z65: * | AA65: 0051 | AC65: ABS | AD65: ABS | AE65: - | AG65: ABS | AH65: ABS | AI65: - | AJ65: * | AM65: ABS | AN65: ABS | AO65: - | AQ65: ABS | AR65: ABS | AS65: - | AT65: * | AW65: ABS | AX65: ABS | AY65: - | BA65: ABS | BB65: ABS | BC65: - | BD65: * | BG65: ABS | BH65: ABS | BI65: - | BK65: ABS | BL65: ABS | BM65: - | BN65: * | BO65: - | BR65: ABS | BS65: ABS | BT65: - | BV65: ABS | BW65: ABS | BX65: -
B66: 62 | G66: 0011 | I66: ABS | J66: ABS | K66: - | M66: ABS | N66: ABS | O66: - | P66: * | Q66: 0031 | S66: ABS | T66: ABS | U66: - | W66: ABS | X66: ABS | Y66: - | Z66: * | AA66: 0051 | AC66: ABS | AD66: ABS | AE66: - | AG66: ABS | AH66: ABS | AI66: - | AJ66: * | AM66: ABS | AN66: ABS | AO66: - | AQ66: ABS | AR66: ABS | AS66: - | AT66: * | AW66: ABS | AX66: ABS | AY66: - | BA66: ABS | BB66: ABS | BC66: - | BD66: * | BG66: ABS | BH66: ABS | BI66: - | BK66: ABS | BL66: ABS | BM66: - | BN66: * | BO66: - | BR66: ABS | BS66: ABS | BT66: - | BV66: ABS | BW66: ABS | BX66: -
B67: 63 | G67: 0011 | I67: ABS | J67: ABS | K67: - | M67: ABS | N67: ABS | O67: - | P67: * | Q67: 0031 | S67: ABS | T67: ABS | U67: - | W67: ABS | X67: ABS | Y67: - | Z67: * | AA67: 0051 | AC67: ABS | AD67: ABS | AE67: - | AG67: ABS | AH67: ABS | AI67: - | AJ67: * | AM67: ABS | AN67: ABS | AO67: - | AQ67: ABS | AR67: ABS | AS67: - | AT67: * | AW67: ABS | AX67: ABS | AY67: - | BA67: ABS | BB67: ABS | BC67: - | BD67: * | BG67: ABS | BH67: ABS | BI67: - | BK67: ABS | BL67: ABS | BM67: - | BN67: * | BO67: - | BR67: ABS | BS67: ABS | BT67: - | BV67: ABS | BW67: ABS | BX67: -
B68: 64 | G68: 0011 | I68: ABS | J68: ABS | K68: - | M68: ABS | N68: ABS | O68: - | P68: * | Q68: 0031 | S68: ABS | T68: ABS | U68: - | W68: ABS | X68: ABS | Y68: - | Z68: * | AA68: 0051 | AC68: ABS | AD68: ABS | AE68: - | AG68: ABS | AH68: ABS | AI68: - | AJ68: * | AM68: ABS | AN68: ABS | AO68: - | AQ68: ABS | AR68: ABS | AS68: - | AT68: * | AW68: ABS | AX68: ABS | AY68: - | BA68: ABS | BB68: ABS | BC68: - | BD68: * | BG68: ABS | BH68: ABS | BI68: - | BK68: ABS | BL68: ABS | BM68: - | BN68: * | BO68: - | BR68: ABS | BS68: ABS | BT68: - | BV68: ABS | BW68: ABS | BX68: -
B69: 65 | G69: 0011 | I69: ABS | J69: ABS | K69: - | M69: ABS | N69: ABS | O69: - | P69: * | Q69: 0031 | S69: ABS | T69: ABS | U69: - | W69: ABS | X69: ABS | Y69: - | Z69: * | AA69: 0051 | AC69: ABS | AD69: ABS | AE69: - | AG69: ABS | AH69: ABS | AI69: - | AJ69: * | AM69: ABS | AN69: ABS | AO69: - | AQ69: ABS | AR69: ABS | AS69: - | AT69: * | AW69: ABS | AX69: ABS | AY69: - | BA69: ABS | BB69: ABS | BC69: - | BD69: * | BG69: ABS | BH69: ABS | BI69: - | BK69: ABS | BL69: ABS | BM69: - | BN69: * | BO69: - | BR69: ABS | BS69: ABS | BT69: - | BV69: ABS | BW69: ABS | BX69: -
B70: 66 | G70: 0011 | I70: =IF(H70/H$4>=0.9,"A+",IF(H70/H$4>=0.8,"A",IF(H70/H$4>=0.7,"B+",IF(H70/H$4>=0.6,"B",IF(H70/H$4>=0.5,"C+",IF(H70/H$4>=0.4,"C",IF(H70/H$4>=0.35,"D",IF(H70/H$4>0,"NG","ABS")))))))) -> ABS | J70: =IF(I70="A+",4,IF(I70="A",3.6,IF(I70="B+",3.2,IF(I70="B",2.8,IF(I70="C+",2.4,IF(I70="C",2,IF(I70="D",1.6,IF(I70="NG","-","ABS")))))))) -> ABS | K70: =IFERROR($K$4*J70,"-") -> - | M70: =IF(L70/L$4>=0.9,"A+",IF(L70/L$4>=0.8,"A",IF(L70/L$4>=0.7,"B+",IF(L70/L$4>=0.6,"B",IF(L70/L$4>=0.5,"C+",IF(L70/L$4>=0.4,"C",IF(L70/L$4>0,"NG","ABS"))))))) -> ABS | N70: =IF(M70="A+",4,IF(M70="A",3.6,IF(M70="B+",3.2,IF(M70="B",2.8,IF(M70="C+",2.4,IF(M70="C",2,IF(M70="D",1.6,IF(M70="NG","-","ABS")))))))) -> ABS | O70: =IFERROR($O$4*N70,"-") -> - | P70: =IFERROR(IF((K70+O70)/($K$4+$O$4)>3.6,"A+",IF((K70+O70)/($K$4+$O$4)>3.2,"A",IF((K70+O70)/($K$4+$O$4)>2.8,"B+",IF((K70+O70)/($K$4+$O$4)>2.4,"B",IF((K70+O70)/($K$4+$O$4)>2,"C+",IF((K70+O70)/($K$4+$O$4)>1.6,"C",IF((K70+O70)/($K$4+$O$4)=1.6,"D",IF((K70+O70)/($K$4+$O$4)<1.6,"NG","")))))))),"*") -> * | Q70: 0031 | S70: =IF(R70/R$4>=0.9,"A+",IF(R70/R$4>=0.8,"A",IF(R70/R$4>=0.7,"B+",IF(R70/R$4>=0.6,"B",IF(R70/R$4>=0.5,"C+",IF(R70/R$4>=0.4,"C",IF(R70/R$4>=0.35,"D",IF(R70/R$4>0,"NG","ABS")))))))) -> ABS | T70: =IF(S70="A+",4,IF(S70="A",3.6,IF(S70="B+",3.2,IF(S70="B",2.8,IF(S70="C+",2.4,IF(S70="C",2,IF(S70="D",1.6,IF(S70="NG","-","ABS")))))))) -> ABS | U70: =IFERROR($U$4*T70,"-") -> - | W70: =IF(V70/V$4>=0.9,"A+",IF(V70/V$4>=0.8,"A",IF(V70/V$4>=0.7,"B+",IF(V70/V$4>=0.6,"B",IF(V70/V$4>=0.5,"C+",IF(V70/V$4>=0.4,"C",IF(V70/V$4>0,"NG","ABS"))))))) -> ABS | X70: =IF(W70="A+",4,IF(W70="A",3.6,IF(W70="B+",3.2,IF(W70="B",2.8,IF(W70="C+",2.4,IF(W70="C",2,IF(W70="D",1.6,IF(W70="NG","-","ABS")))))))) -> ABS | Y70: =IFERROR($Y$4*X70,"-") -> - | Z70: =IFERROR(IF((U70+Y70)/($U$4+$Y$4)>3.6,"A+",IF((U70+Y70)/($U$4+$Y$4)>3.2,"A",IF((U70+Y70)/($U$4+$Y$4)>2.8,"B+",IF((U70+Y70)/($U$4+$Y$4)>2.4,"B",IF((U70+Y70)/($U$4+$Y$4)>2,"C+",IF((U70+Y70)/($U$4+$Y$4)>1.6,"C",IF((U70+Y70)/($U$4+$Y$4)=1.6,"D",IF((U70+Y70)/($U$4+$Y$4)<1.6,"NG","")))))))),"*") -> * | AA70: 0051 | AC70: =IF(AB70/AB$4>=0.9,"A+",IF(AB70/AB$4>=0.8,"A",IF(AB70/AB$4>=0.7,"B+",IF(AB70/AB$4>=0.6,"B",IF(AB70/AB$4>=0.5,"C+",IF(AB70/AB$4>=0.4,"C",IF(AB70/AB$4>=0.35,"D",IF(AB70/AB$4>0,"NG","ABS")))))))) -> ABS | AD70: =IF(AC70="A+",4,IF(AC70="A",3.6,IF(AC70="B+",3.2,IF(AC70="B",2.8,IF(AC70="C+",2.4,IF(AC70="C",2,IF(AC70="D",1.6,IF(AC70="NG","-","ABS")))))))) -> ABS | AE70: =IFERROR($AE$4*AD70,"-") -> - | AG70: =IF(AF70/AF$4>=0.9,"A+",IF(AF70/AF$4>=0.8,"A",IF(AF70/AF$4>=0.7,"B+",IF(AF70/AF$4>=0.6,"B",IF(AF70/AF$4>=0.5,"C+",IF(AF70/AF$4>=0.4,"C",IF(AF70/AF$4>0,"NG","ABS"))))))) -> ABS | AH70: =IF(AG70="A+",4,IF(AG70="A",3.6,IF(AG70="B+",3.2,IF(AG70="B",2.8,IF(AG70="C+",2.4,IF(AG70="C",2,IF(AG70="D",1.6,IF(AG70="NG","-","ABS")))))))) -> ABS | AI70: =IFERROR($AI$4*AH70,"-") -> - | AJ70: =IFERROR(IF((AE70+AI70)/($AE$4+$AI$4)>3.6,"A+",IF((AE70+AI70)/($AE$4+$AI$4)>3.2,"A",IF((AE70+AI70)/($AE$4+$AI$4)>2.8,"B+",IF((AE70+AI70)/($AE$4+$AI$4)>2.4,"B",IF((AE70+AI70)/($AE$4+$AI$4)>2,"C+",IF((AE70+AI70)/($AE$4+$AI$4)>1.6,"C",IF((AE70+AI70)/($AE$4+$AI$4)=1.6,"D",IF((AE70+AI70)/($AE$4+$AI$4)<1.6,"NG","")))))))),"*") -> * | AM70: =IF(AL70/AL$4>=0.9,"A+",IF(AL70/AL$4>=0.8,"A",IF(AL70/AL$4>=0.7,"B+",IF(AL70/AL$4>=0.6,"B",IF(AL70/AL$4>=0.5,"C+",IF(AL70/AL$4>=0.4,"C",IF(AL70/AL$4>=0.35,"D",IF(AL70/AL$4>0,"NG","ABS")))))))) -> ABS | AN70: =IF(AM70="A+",4,IF(AM70="A",3.6,IF(AM70="B+",3.2,IF(AM70="B",2.8,IF(AM70="C+",2.4,IF(AM70="C",2,IF(AM70="D",1.6,IF(AM70="NG","-","ABS")))))))) -> ABS | AO70: =IFERROR($AO$4*AN70,"-") -> - | AQ70: =IF(AP70/AP$4>=0.9,"A+",IF(AP70/AP$4>=0.8,"A",IF(AP70/AP$4>=0.7,"B+",IF(AP70/AP$4>=0.6,"B",IF(AP70/AP$4>=0.5,"C+",IF(AP70/AP$4>=0.4,"C",IF(AP70/AP$4>0,"NG","ABS"))))))) -> ABS | AR70: =IF(AQ70="A+",4,IF(AQ70="A",3.6,IF(AQ70="B+",3.2,IF(AQ70="B",2.8,IF(AQ70="C+",2.4,IF(AQ70="C",2,IF(AQ70="D",1.6,IF(AQ70="NG","-","ABS")))))))) -> ABS | AS70: =IFERROR($AS$4*AR70,"-") -> - | AT70: =IFERROR(IF((AO70+AS70)/($AO$4+$AS$4)>3.6,"A+",IF((AO70+AS70)/($AO$4+$AS$4)>3.2,"A",IF((AO70+AS70)/($AO$4+$AS$4)>2.8,"B+",IF((AO70+AS70)/($AO$4+$AS$4)>2.4,"B",IF((AO70+AS70)/($AO$4+$AS$4)>2,"C+",IF((AO70+AS70)/($AO$4+$AS$4)>1.6,"C",IF((AO70+AS70)/($AO$4+$AS$4)=1.6,"D",IF((AO70+AS70)/($AO$4+$AS$4)<1.6,"NG","")))))))),"*") -> * | AW70: =IF(AV70/AV$4>=0.9,"A+",IF(AV70/AV$4>=0.8,"A",IF(AV70/AV$4>=0.7,"B+",IF(AV70/AV$4>=0.6,"B",IF(AV70/AV$4>=0.5,"C+",IF(AV70/AV$4>=0.4,"C",IF(AV70/AV$4>=0.35,"D",IF(AV70/AV$4>0,"NG","ABS")))))))) -> ABS | AX70: =IF(AW70="A+",4,IF(AW70="A",3.6,IF(AW70="B+",3.2,IF(AW70="B",2.8,IF(AW70="C+",2.4,IF(AW70="C",2,IF(AW70="D",1.6,IF(AW70="NG","-","ABS")))))))) -> ABS | AY70: =IFERROR($AY$4*AX70,"-") -> - | BA70: =IF(AZ70/AZ$4>=0.9,"A+",IF(AZ70/AZ$4>=0.8,"A",IF(AZ70/AZ$4>=0.7,"B+",IF(AZ70/AZ$4>=0.6,"B",IF(AZ70/AZ$4>=0.5,"C+",IF(AZ70/AZ$4>=0.4,"C",IF(AZ70/AZ$4>0,"NG","ABS"))))))) -> ABS | BB70: =IF(BA70="A+",4,IF(BA70="A",3.6,IF(BA70="B+",3.2,IF(BA70="B",2.8,IF(BA70="C+",2.4,IF(BA70="C",2,IF(BA70="D",1.6,IF(BA70="NG","-","ABS")))))))) -> ABS | BC70: =IFERROR($BC$4*BB70,"-") -> - | BD70: =IFERROR(IF((AY70+BC70)/($AY$4+$BC$4)>3.6,"A+",IF((AY70+BC70)/($AY$4+$BC$4)>3.2,"A",IF((AY70+BC70)/($AY$4+$BC$4)>2.8,"B+",IF((AY70+BC70)/($AY$4+$BC$4)>2.4,"B",IF((AY70+BC70)/($AY$4+$BC$4)>2,"C+",IF((AY70+BC70)/($AY$4+$BC$4)>1.6,"C",IF((AY70+BC70)/($AY$4+$BC$4)=1.6,"D",IF((AY70+BC70)/($AY$4+$BC$4)<1.6,"NG","")))))))),"*") -> * | BG70: =IF(BF70/BF$4>=0.9,"A+",IF(BF70/BF$4>=0.8,"A",IF(BF70/BF$4>=0.7,"B+",IF(BF70/BF$4>=0.6,"B",IF(BF70/BF$4>=0.5,"C+",IF(BF70/BF$4>=0.4,"C",IF(BF70/BF$4>=0.35,"D",IF(BF70/BF$4>0,"NG","ABS")))))))) -> ABS | BH70: =IF(BG70="A+",4,IF(BG70="A",3.6,IF(BG70="B+",3.2,IF(BG70="B",2.8,IF(BG70="C+",2.4,IF(BG70="C",2,IF(BG70="D",1.6,IF(BG70="NG","-","ABS")))))))) -> ABS | BI70: =IFERROR($BI$4*BH70,"-") -> - | BK70: =IF(BJ70/BJ$4>=0.9,"A+",IF(BJ70/BJ$4>=0.8,"A",IF(BJ70/BJ$4>=0.7,"B+",IF(BJ70/BJ$4>=0.6,"B",IF(BJ70/BJ$4>=0.5,"C+",IF(BJ70/BJ$4>=0.4,"C",IF(BJ70/BJ$4>0,"NG","ABS"))))))) -> ABS | BL70: =IF(BK70="A+",4,IF(BK70="A",3.6,IF(BK70="B+",3.2,IF(BK70="B",2.8,IF(BK70="C+",2.4,IF(BK70="C",2,IF(BK70="D",1.6,IF(BK70="NG","-","ABS")))))))) -> ABS | BM70: =IFERROR($BM$4*BL70,"-") -> - | BN70: =IFERROR(IF((BI70+BM70)/($BI$4+$BM$4)>3.6,"A+",IF((BI70+BM70)/($BI$4+$BM$4)>3.2,"A",IF((BI70+BM70)/($BI$4+$BM$4)>2.8,"B+",IF((BI70+BM70)/($BI$4+$BM$4)>2.4,"B",IF((BI70+BM70)/($BI$4+$BM$4)>2,"C+",IF((BI70+BM70)/($BI$4+$BM$4)>1.6,"C",IF((BI70+BM70)/($BI$4+$BM$4)=1.6,"D",IF((BI70+BM70)/($BI$4+$BM$4)<1.6,"NG","")))))))),"*") -> * | BO70: =IFERROR((K70+O70+U70+Y70+AE70+AI70+AO70+AS70+AY70+BC70+BI70+BM70)/($K$4+$O$4+$U$4+$Y$4+$AE$4+$AI$4+$AO$4+$AS$4+$AY$4+$BC$4+$BI$4+$BM$4),"-") -> - | BR70: =IF(BQ70/BQ$4>=0.9,"A+",IF(BQ70/BQ$4>=0.8,"A",IF(BQ70/BQ$4>=0.7,"B+",IF(BQ70/BQ$4>=0.6,"B",IF(BQ70/BQ$4>=0.5,"C+",IF(BQ70/BQ$4>=0.4,"C",IF(BQ70/BQ$4>=0.35,"D",IF(BQ70/BQ$4>0,"NG","ABS")))))))) -> ABS | BS70: =IF(BR70="A+",4,IF(BR70="A",3.6,IF(BR70="B+",3.2,IF(BR70="B",2.8,IF(BR70="C+",2.4,IF(BR70="C",2,IF(BR70="D",1.6,IF(BR70="NG","-","ABS")))))))) -> ABS | BT70: =IFERROR($BT$4*BS70,"-") -> - | BV70: =IF(BU70/BU$4>=0.9,"A+",IF(BU70/BU$4>=0.8,"A",IF(BU70/BU$4>=0.7,"B+",IF(BU70/BU$4>=0.6,"B",IF(BU70/BU$4>=0.5,"C+",IF(BU70/BU$4>=0.4,"C",IF(BU70/BU$4>0,"NG","ABS"))))))) -> ABS | BW70: =IF(BV70="A+",4,IF(BV70="A",3.6,IF(BV70="B+",3.2,IF(BV70="B",2.8,IF(BV70="C+",2.4,IF(BV70="C",2,IF(BV70="D",1.6,IF(BV70="NG","-","ABS")))))))) -> ABS | BX70: =IFERROR($BX$4*BW70,"-") -> - | BY70: =IFERROR(IF((BT70+BX70)/($BT$4+$BX$4)>3.6,"A+",IF((BT70+BX70)/($BT$4+$BX$4)>3.2,"A",IF((BT70+BX70)/($BT$4+$BX$4)>2.8,"B+",IF((BT70+BX70)/($BT$4+$BX$4)>2.4,"B",IF((BT70+BX70)/($BT$4+$BX$4)>2,"C+",IF((BT70+BX70)/($BT$4+$BX$4)>1.6,"C",IF((BT70+BX70)/($BT$4+$BX$4)=1.6,"D",IF((BT70+BX70)/($BT$4+$BX$4)<1.6,"NG","")))))))),"") -> 
B71: 67 | G71: 0011 | I71: ABS | J71: ABS | K71: - | M71: ABS | N71: ABS | O71: - | P71: * | Q71: 0031 | S71: ABS | T71: ABS | U71: - | W71: ABS | X71: ABS | Y71: - | Z71: * | AA71: 0051 | AC71: ABS | AD71: ABS | AE71: - | AG71: ABS | AH71: ABS | AI71: - | AJ71: * | AM71: ABS | AN71: ABS | AO71: - | AQ71: ABS | AR71: ABS | AS71: - | AT71: * | AW71: ABS | AX71: ABS | AY71: - | BA71: ABS | BB71: ABS | BC71: - | BD71: * | BG71: ABS | BH71: ABS | BI71: - | BK71: ABS | BL71: ABS | BM71: - | BN71: * | BO71: - | BR71: ABS | BS71: ABS | BT71: - | BV71: ABS | BW71: ABS | BX71: -
B72: 68 | G72: 0011 | I72: ABS | J72: ABS | K72: - | M72: ABS | N72: ABS | O72: - | P72: * | Q72: 0031 | S72: ABS | T72: ABS | U72: - | W72: ABS | X72: ABS | Y72: - | Z72: * | AA72: 0051 | AC72: ABS | AD72: ABS | AE72: - | AG72: ABS | AH72: ABS | AI72: - | AJ72: * | AM72: ABS | AN72: ABS | AO72: - | AQ72: ABS | AR72: ABS | AS72: - | AT72: * | AW72: ABS | AX72: ABS | AY72: - | BA72: ABS | BB72: ABS | BC72: - | BD72: * | BG72: ABS | BH72: ABS | BI72: - | BK72: ABS | BL72: ABS | BM72: - | BN72: * | BO72: - | BR72: ABS | BS72: ABS | BT72: - | BV72: ABS | BW72: ABS | BX72: -
B73: 69 | G73: 0011 | I73: ABS | J73: ABS | K73: - | M73: ABS | N73: ABS | O73: - | P73: * | Q73: 0031 | S73: ABS | T73: ABS | U73: - | W73: ABS | X73: ABS | Y73: - | Z73: * | AA73: 0051 | AC73: ABS | AD73: ABS | AE73: - | AG73: ABS | AH73: ABS | AI73: - | AJ73: * | AM73: ABS | AN73: ABS | AO73: - | AQ73: ABS | AR73: ABS | AS73: - | AT73: * | AW73: ABS | AX73: ABS | AY73: - | BA73: ABS | BB73: ABS | BC73: - | BD73: * | BG73: ABS | BH73: ABS | BI73: - | BK73: ABS | BL73: ABS | BM73: - | BN73: * | BO73: - | BR73: ABS | BS73: ABS | BT73: - | BV73: ABS | BW73: ABS | BX73: -
B74: 70 | G74: 0011 | I74: ABS | J74: ABS | K74: - | M74: ABS | N74: ABS | O74: - | P74: * | Q74: 0031 | S74: ABS | T74: ABS | U74: - | W74: ABS | X74: ABS | Y74: - | Z74: * | AA74: 0051 | AC74: ABS | AD74: ABS | AE74: - | AG74: ABS | AH74: ABS | AI74: - | AJ74: * | AM74: ABS | AN74: ABS | AO74: - | AQ74: ABS | AR74: ABS | AS74: - | AT74: * | AW74: ABS | AX74: ABS | AY74: - | BA74: ABS | BB74: ABS | BC74: - | BD74: * | BG74: ABS | BH74: ABS | BI74: - | BK74: ABS | BL74: ABS | BM74: - | BN74: * | BO74: - | BR74: ABS | BS74: ABS | BT74: - | BV74: ABS | BW74: ABS | BX74: -
B75: 71 | G75: 0011 | I75: ABS | J75: ABS | K75: - | M75: ABS | N75: ABS | O75: - | P75: * | Q75: 0031 | S75: ABS | T75: ABS | U75: - | W75: ABS | X75: ABS | Y75: - | Z75: * | AA75: 0051 | AC75: ABS | AD75: ABS | AE75: - | AG75: ABS | AH75: ABS | AI75: - | AJ75: * | AM75: ABS | AN75: ABS | AO75: - | AQ75: ABS | AR75: ABS | AS75: - | AT75: * | AW75: ABS | AX75: ABS | AY75: - | BA75: ABS | BB75: ABS | BC75: - | BD75: * | BG75: ABS | BH75: ABS | BI75: - | BK75: ABS | BL75: ABS | BM75: - | BN75: * | BO75: - | BR75: ABS | BS75: ABS | BT75: - | BV75: ABS | BW75: ABS | BX75: -
B76: 72 | G76: 0011 | I76: ABS | J76: ABS | K76: - | M76: ABS | N76: ABS | O76: - | P76: * | Q76: 0031 | S76: ABS | T76: ABS | U76: - | W76: ABS | X76: ABS | Y76: - | Z76: * | AA76: 0051 | AC76: ABS | AD76: ABS | AE76: - | AG76: ABS | AH76: ABS | AI76: - | AJ76: * | AM76: ABS | AN76: ABS | AO76: - | AQ76: ABS | AR76: ABS | AS76: - | AT76: * | AW76: ABS | AX76: ABS | AY76: - | BA76: ABS | BB76: ABS | BC76: - | BD76: * | BG76: ABS | BH76: ABS | BI76: - | BK76: ABS | BL76: ABS | BM76: - | BN76: * | BO76: - | BR76: ABS | BS76: ABS | BT76: - | BV76: ABS | BW76: ABS | BX76: -
B77: 73 | G77: 0011 | I77: ABS | J77: ABS | K77: - | M77: ABS | N77: ABS | O77: - | P77: * | Q77: 0031 | S77: ABS | T77: ABS | U77: - | W77: ABS | X77: ABS | Y77: - | Z77: * | AA77: 0051 | AC77: ABS | AD77: ABS | AE77: - | AG77: ABS | AH77: ABS | AI77: - | AJ77: * | AM77: ABS | AN77: ABS | AO77: - | AQ77: ABS | AR77: ABS | AS77: - | AT77: * | AW77: ABS | AX77: ABS | AY77: - | BA77: ABS | BB77: ABS | BC77: - | BD77: * | BG77: ABS | BH77: ABS | BI77: - | BK77: ABS | BL77: ABS | BM77: - | BN77: * | BO77: - | BR77: ABS | BS77: ABS | BT77: - | BV77: ABS | BW77: ABS | BX77: -
B78: 74 | G78: 0011 | I78: ABS | J78: ABS | K78: - | M78: ABS | N78: ABS | O78: - | P78: * | Q78: 0031 | S78: ABS | T78: ABS | U78: - | W78: ABS | X78: ABS | Y78: - | Z78: * | AA78: 0051 | AC78: ABS | AD78: ABS | AE78: - | AG78: ABS | AH78: ABS | AI78: - | AJ78: * | AM78: ABS | AN78: ABS | AO78: - | AQ78: ABS | AR78: ABS | AS78: - | AT78: * | AW78: ABS | AX78: ABS | AY78: - | BA78: ABS | BB78: ABS | BC78: - | BD78: * | BG78: ABS | BH78: ABS | BI78: - | BK78: ABS | BL78: ABS | BM78: - | BN78: * | BO78: - | BR78: ABS | BS78: ABS | BT78: - | BV78: ABS | BW78: ABS | BX78: -
B79: 75 | G79: 0011 | I79: ABS | J79: ABS | K79: - | M79: ABS | N79: ABS | O79: - | P79: * | Q79: 0031 | S79: ABS | T79: ABS | U79: - | W79: ABS | X79: ABS | Y79: - | Z79: * | AA79: 0051 | AC79: ABS | AD79: ABS | AE79: - | AG79: ABS | AH79: ABS | AI79: - | AJ79: * | AM79: ABS | AN79: ABS | AO79: - | AQ79: ABS | AR79: ABS | AS79: - | AT79: * | AW79: ABS | AX79: ABS | AY79: - | BA79: ABS | BB79: ABS | BC79: - | BD79: * | BG79: ABS | BH79: ABS | BI79: - | BK79: ABS | BL79: ABS | BM79: - | BN79: * | BO79: - | BR79: ABS | BS79: ABS | BT79: - | BV79: ABS | BW79: ABS | BX79: -
B80: 76 | G80: 0011 | I80: ABS | J80: ABS | K80: - | M80: ABS | N80: ABS | O80: - | P80: * | Q80: 0031 | S80: ABS | T80: ABS | U80: - | W80: ABS | X80: ABS | Y80: - | Z80: * | AA80: 0051 | AC80: ABS | AD80: ABS | AE80: - | AG80: ABS | AH80: ABS | AI80: - | AJ80: * | AM80: ABS | AN80: ABS | AO80: - | AQ80: ABS | AR80: ABS | AS80: - | AT80: * | AW80: ABS | AX80: ABS | AY80: - | BA80: ABS | BB80: ABS | BC80: - | BD80: * | BG80: ABS | BH80: ABS | BI80: - | BK80: ABS | BL80: ABS | BM80: - | BN80: * | BO80: - | BR80: ABS | BS80: ABS | BT80: - | BV80: ABS | BW80: ABS | BX80: -
B81: 77 | G81: 0011 | I81: ABS | J81: ABS | K81: - | M81: ABS | N81: ABS | O81: - | P81: * | Q81: 0031 | S81: ABS | T81: ABS | U81: - | W81: ABS | X81: ABS | Y81: - | Z81: * | AA81: 0051 | AC81: ABS | AD81: ABS | AE81: - | AG81: ABS | AH81: ABS | AI81: - | AJ81: * | AM81: ABS | AN81: ABS | AO81: - | AQ81: ABS | AR81: ABS | AS81: - | AT81: * | AW81: ABS | AX81: ABS | AY81: - | BA81: ABS | BB81: ABS | BC81: - | BD81: * | BG81: ABS | BH81: ABS | BI81: - | BK81: ABS | BL81: ABS | BM81: - | BN81: * | BO81: - | BR81: ABS | BS81: ABS | BT81: - | BV81: ABS | BW81: ABS | BX81: -
B82: 78 | G82: 0011 | I82: ABS | J82: ABS | K82: - | M82: ABS | N82: ABS | O82: - | P82: * | Q82: 0031 | S82: ABS | T82: ABS | U82: - | W82: ABS | X82: ABS | Y82: - | Z82: * | AA82: 0051 | AC82: ABS | AD82: ABS | AE82: - | AG82: ABS | AH82: ABS | AI82: - | AJ82: * | AM82: ABS | AN82: ABS | AO82: - | AQ82: ABS | AR82: ABS | AS82: - | AT82: * | AW82: ABS | AX82: ABS | AY82: - | BA82: ABS | BB82: ABS | BC82: - | BD82: * | BG82: ABS | BH82: ABS | BI82: - | BK82: ABS | BL82: ABS | BM82: - | BN82: * | BO82: - | BR82: ABS | BS82: ABS | BT82: - | BV82: ABS | BW82: ABS | BX82: -
B83: 79 | G83: 0011 | I83: ABS | J83: ABS | K83: - | M83: ABS | N83: ABS | O83: - | P83: * | Q83: 0031 | S83: ABS | T83: ABS | U83: - | W83: ABS | X83: ABS | Y83: - | Z83: * | AA83: 0051 | AC83: ABS | AD83: ABS | AE83: - | AG83: ABS | AH83: ABS | AI83: - | AJ83: * | AM83: ABS | AN83: ABS | AO83: - | AQ83: ABS | AR83: ABS | AS83: - | AT83: * | AW83: ABS | AX83: ABS | AY83: - | BA83: ABS | BB83: ABS | BC83: - | BD83: * | BG83: ABS | BH83: ABS | BI83: - | BK83: ABS | BL83: ABS | BM83: - | BN83: * | BO83: - | BR83: ABS | BS83: ABS | BT83: - | BV83: ABS | BW83: ABS | BX83: -
B84: 80 | G84: 0011 | I84: ABS | J84: ABS | K84: - | M84: ABS | N84: ABS | O84: - | P84: * | Q84: 0031 | S84: ABS | T84: ABS | U84: - | W84: ABS | X84: ABS | Y84: - | Z84: * | AA84: 0051 | AC84: ABS | AD84: ABS | AE84: - | AG84: ABS | AH84: ABS | AI84: - | AJ84: * | AM84: ABS | AN84: ABS | AO84: - | AQ84: ABS | AR84: ABS | AS84: - | AT84: * | AW84: ABS | AX84: ABS | AY84: - | BA84: ABS | BB84: ABS | BC84: - | BD84: * | BG84: ABS | BH84: ABS | BI84: - | BK84: ABS | BL84: ABS | BM84: - | BN84: * | BO84: - | BR84: ABS | BS84: ABS | BT84: - | BV84: ABS | BW84: ABS | BX84: -
B85: 81 | G85: 0011 | I85: ABS | J85: ABS | K85: - | M85: ABS | N85: ABS | O85: - | P85: * | Q85: 0031 | S85: ABS | T85: ABS | U85: - | W85: ABS | X85: ABS | Y85: - | Z85: * | AA85: 0051 | AC85: ABS | AD85: ABS | AE85: - | AG85: ABS | AH85: ABS | AI85: - | AJ85: * | AM85: ABS | AN85: ABS | AO85: - | AQ85: ABS | AR85: ABS | AS85: - | AT85: * | AW85: ABS | AX85: ABS | AY85: - | BA85: ABS | BB85: ABS | BC85: - | BD85: * | BG85: ABS | BH85: ABS | BI85: - | BK85: ABS | BL85: ABS | BM85: - | BN85: * | BO85: - | BR85: ABS | BS85: ABS | BT85: - | BV85: ABS | BW85: ABS | BX85: -
B86: 82 | G86: 0011 | I86: ABS | J86: ABS | K86: - | M86: ABS | N86: ABS | O86: - | P86: * | Q86: 0031 | S86: ABS | T86: ABS | U86: - | W86: ABS | X86: ABS | Y86: - | Z86: * | AA86: 0051 | AC86: ABS | AD86: ABS | AE86: - | AG86: ABS | AH86: ABS | AI86: - | AJ86: * | AM86: ABS | AN86: ABS | AO86: - | AQ86: ABS | AR86: ABS | AS86: - | AT86: * | AW86: ABS | AX86: ABS | AY86: - | BA86: ABS | BB86: ABS | BC86: - | BD86: * | BG86: ABS | BH86: ABS | BI86: - | BK86: ABS | BL86: ABS | BM86: - | BN86: * | BO86: - | BR86: ABS | BS86: ABS | BT86: - | BV86: ABS | BW86: ABS | BX86: -
B87: 83 | G87: 0011 | I87: ABS | J87: ABS | K87: - | M87: ABS | N87: ABS | O87: - | P87: * | Q87: 0031 | S87: ABS | T87: ABS | U87: - | W87: ABS | X87: ABS | Y87: - | Z87: * | AA87: 0051 | AC87: ABS | AD87: ABS | AE87: - | AG87: ABS | AH87: ABS | AI87: - | AJ87: * | AM87: ABS | AN87: ABS | AO87: - | AQ87: ABS | AR87: ABS | AS87: - | AT87: * | AW87: ABS | AX87: ABS | AY87: - | BA87: ABS | BB87: ABS | BC87: - | BD87: * | BG87: ABS | BH87: ABS | BI87: - | BK87: ABS | BL87: ABS | BM87: - | BN87: * | BO87: - | BR87: ABS | BS87: ABS | BT87: - | BV87: ABS | BW87: ABS | BX87: -
B88: 84 | G88: 0011 | I88: ABS | J88: ABS | K88: - | M88: ABS | N88: ABS | O88: - | P88: * | Q88: 0031 | S88: ABS | T88: ABS | U88: - | W88: ABS | X88: ABS | Y88: - | Z88: * | AA88: 0051 | AC88: ABS | AD88: ABS | AE88: - | AG88: ABS | AH88: ABS | AI88: - | AJ88: * | AM88: ABS | AN88: ABS | AO88: - | AQ88: ABS | AR88: ABS | AS88: - | AT88: * | AW88: ABS | AX88: ABS | AY88: - | BA88: ABS | BB88: ABS | BC88: - | BD88: * | BG88: ABS | BH88: ABS | BI88: - | BK88: ABS | BL88: ABS | BM88: - | BN88: * | BO88: - | BR88: ABS | BS88: ABS | BT88: - | BV88: ABS | BW88: ABS | BX88: -
B89: 85 | G89: 0011 | I89: ABS | J89: ABS | K89: - | M89: ABS | N89: ABS | O89: - | P89: * | Q89: 0031 | S89: ABS | T89: ABS | U89: - | W89: ABS | X89: ABS | Y89: - | Z89: * | AA89: 0051 | AC89: ABS | AD89: ABS | AE89: - | AG89: ABS | AH89: ABS | AI89: - | AJ89: * | AM89: ABS | AN89: ABS | AO89: - | AQ89: ABS | AR89: ABS | AS89: - | AT89: * | AW89: ABS | AX89: ABS | AY89: - | BA89: ABS | BB89: ABS | BC89: - | BD89: * | BG89: ABS | BH89: ABS | BI89: - | BK89: ABS | BL89: ABS | BM89: - | BN89: * | BO89: - | BR89: ABS | BS89: ABS | BT89: - | BV89: ABS | BW89: ABS | BX89: -
B90: 86 | G90: 0011 | I90: ABS | J90: ABS | K90: - | M90: ABS | N90: ABS | O90: - | P90: * | Q90: 0031 | S90: ABS | T90: ABS | U90: - | W90: ABS | X90: ABS | Y90: - | Z90: * | AA90: 0051 | AC90: ABS | AD90: ABS | AE90: - | AG90: ABS | AH90: ABS | AI90: - | AJ90: * | AM90: ABS | AN90: ABS | AO90: - | AQ90: ABS | AR90: ABS | AS90: - | AT90: * | AW90: ABS | AX90: ABS | AY90: - | BA90: ABS | BB90: ABS | BC90: - | BD90: * | BG90: ABS | BH90: ABS | BI90: - | BK90: ABS | BL90: ABS | BM90: - | BN90: * | BO90: - | BR90: ABS | BS90: ABS | BT90: - | BV90: ABS | BW90: ABS | BX90: -
B91: 87 | G91: 0011 | I91: ABS | J91: ABS | K91: - | M91: ABS | N91: ABS | O91: - | P91: * | Q91: 0031 | S91: ABS | T91: ABS | U91: - | W91: ABS | X91: ABS | Y91: - | Z91: * | AA91: 0051 | AC91: ABS | AD91: ABS | AE91: - | AG91: ABS | AH91: ABS | AI91: - | AJ91: * | AM91: ABS | AN91: ABS | AO91: - | AQ91: ABS | AR91: ABS | AS91: - | AT91: * | AW91: ABS | AX91: ABS | AY91: - | BA91: ABS | BB91: ABS | BC91: - | BD91: * | BG91: ABS | BH91: ABS | BI91: - | BK91: ABS | BL91: ABS | BM91: - | BN91: * | BO91: - | BR91: ABS | BS91: ABS | BT91: - | BV91: ABS | BW91: ABS | BX91: -
B92: 88 | G92: 0011 | I92: ABS | J92: ABS | K92: - | M92: ABS | N92: ABS | O92: - | P92: * | Q92: 0031 | S92: ABS | T92: ABS | U92: - | W92: ABS | X92: ABS | Y92: - | Z92: * | AA92: 0051 | AC92: ABS | AD92: ABS | AE92: - | AG92: ABS | AH92: ABS | AI92: - | AJ92: * | AM92: ABS | AN92: ABS | AO92: - | AQ92: ABS | AR92: ABS | AS92: - | AT92: * | AW92: ABS | AX92: ABS | AY92: - | BA92: ABS | BB92: ABS | BC92: - | BD92: * | BG92: ABS | BH92: ABS | BI92: - | BK92: ABS | BL92: ABS | BM92: - | BN92: * | BO92: - | BR92: ABS | BS92: ABS | BT92: - | BV92: ABS | BW92: ABS | BX92: -
B93: 89 | G93: 0011 | I93: ABS | J93: ABS | K93: - | M93: ABS | N93: ABS | O93: - | P93: * | Q93: 0031 | S93: ABS | T93: ABS | U93: - | W93: ABS | X93: ABS | Y93: - | Z93: * | AA93: 0051 | AC93: ABS | AD93: ABS | AE93: - | AG93: ABS | AH93: ABS | AI93: - | AJ93: * | AM93: ABS | AN93: ABS | AO93: - | AQ93: ABS | AR93: ABS | AS93: - | AT93: * | AW93: ABS | AX93: ABS | AY93: - | BA93: ABS | BB93: ABS | BC93: - | BD93: * | BG93: ABS | BH93: ABS | BI93: - | BK93: ABS | BL93: ABS | BM93: - | BN93: * | BO93: - | BR93: ABS | BS93: ABS | BT93: - | BV93: ABS | BW93: ABS | BX93: -
B94: 90 | G94: 0011 | I94: ABS | J94: ABS | K94: - | M94: ABS | N94: ABS | O94: - | P94: * | Q94: 0031 | S94: ABS | T94: ABS | U94: - | W94: ABS | X94: ABS | Y94: - | Z94: * | AA94: 0051 | AC94: ABS | AD94: ABS | AE94: - | AG94: ABS | AH94: ABS | AI94: - | AJ94: * | AM94: ABS | AN94: ABS | AO94: - | AQ94: ABS | AR94: ABS | AS94: - | AT94: * | AW94: ABS | AX94: ABS | AY94: - | BA94: ABS | BB94: ABS | BC94: - | BD94: * | BG94: ABS | BH94: ABS | BI94: - | BK94: ABS | BL94: ABS | BM94: - | BN94: * | BO94: - | BR94: ABS | BS94: ABS | BT94: - | BV94: ABS | BW94: ABS | BX94: -
B95: 91 | G95: 0011 | I95: ABS | J95: ABS | K95: - | M95: ABS | N95: ABS | O95: - | P95: * | Q95: 0031 | S95: ABS | T95: ABS | U95: - | W95: ABS | X95: ABS | Y95: - | Z95: * | AA95: 0051 | AC95: ABS | AD95: ABS | AE95: - | AG95: ABS | AH95: ABS | AI95: - | AJ95: * | AM95: ABS | AN95: ABS | AO95: - | AQ95: ABS | AR95: ABS | AS95: - | AT95: * | AW95: ABS | AX95: ABS | AY95: - | BA95: ABS | BB95: ABS | BC95: - | BD95: * | BG95: ABS | BH95: ABS | BI95: - | BK95: ABS | BL95: ABS | BM95: - | BN95: * | BO95: - | BR95: ABS | BS95: ABS | BT95: - | BV95: ABS | BW95: ABS | BX95: -
B96: 92 | G96: 0011 | I96: ABS | J96: ABS | K96: - | M96: ABS | N96: ABS | O96: - | P96: * | Q96: 0031 | S96: ABS | T96: ABS | U96: - | W96: ABS | X96: ABS | Y96: - | Z96: * | AA96: 0051 | AC96: ABS | AD96: ABS | AE96: - | AG96: ABS | AH96: ABS | AI96: - | AJ96: * | AM96: ABS | AN96: ABS | AO96: - | AQ96: ABS | AR96: ABS | AS96: - | AT96: * | AW96: ABS | AX96: ABS | AY96: - | BA96: ABS | BB96: ABS | BC96: - | BD96: * | BG96: ABS | BH96: ABS | BI96: - | BK96: ABS | BL96: ABS | BM96: - | BN96: * | BO96: - | BR96: ABS | BS96: ABS | BT96: - | BV96: ABS | BW96: ABS | BX96: -
B97: 93 | G97: 0011 | I97: ABS | J97: ABS | K97: - | M97: ABS | N97: ABS | O97: - | P97: * | Q97: 0031 | S97: ABS | T97: ABS | U97: - | W97: ABS | X97: ABS | Y97: - | Z97: * | AA97: 0051 | AC97: ABS | AD97: ABS | AE97: - | AG97: ABS | AH97: ABS | AI97: - | AJ97: * | AM97: ABS | AN97: ABS | AO97: - | AQ97: ABS | AR97: ABS | AS97: - | AT97: * | AW97: ABS | AX97: ABS | AY97: - | BA97: ABS | BB97: ABS | BC97: - | BD97: * | BG97: ABS | BH97: ABS | BI97: - | BK97: ABS | BL97: ABS | BM97: - | BN97: * | BO97: - | BR97: ABS | BS97: ABS | BT97: - | BV97: ABS | BW97: ABS | BX97: -
B98: 94 | G98: 0011 | I98: ABS | J98: ABS | K98: - | M98: ABS | N98: ABS | O98: - | P98: * | Q98: 0031 | S98: ABS | T98: ABS | U98: - | W98: ABS | X98: ABS | Y98: - | Z98: * | AA98: 0051 | AC98: ABS | AD98: ABS | AE98: - | AG98: ABS | AH98: ABS | AI98: - | AJ98: * | AM98: ABS | AN98: ABS | AO98: - | AQ98: ABS | AR98: ABS | AS98: - | AT98: * | AW98: ABS | AX98: ABS | AY98: - | BA98: ABS | BB98: ABS | BC98: - | BD98: * | BG98: ABS | BH98: ABS | BI98: - | BK98: ABS | BL98: ABS | BM98: - | BN98: * | BO98: - | BR98: ABS | BS98: ABS | BT98: - | BV98: ABS | BW98: ABS | BX98: -
B99: 95 | G99: 0011 | I99: ABS | J99: ABS | K99: - | M99: ABS | N99: ABS | O99: - | P99: * | Q99: 0031 | S99: ABS | T99: ABS | U99: - | W99: ABS | X99: ABS | Y99: - | Z99: * | AA99: 0051 | AC99: ABS | AD99: ABS | AE99: - | AG99: ABS | AH99: ABS | AI99: - | AJ99: * | AM99: ABS | AN99: ABS | AO99: - | AQ99: ABS | AR99: ABS | AS99: - | AT99: * | AW99: ABS | AX99: ABS | AY99: - | BA99: ABS | BB99: ABS | BC99: - | BD99: * | BG99: ABS | BH99: ABS | BI99: - | BK99: ABS | BL99: ABS | BM99: - | BN99: * | BO99: - | BR99: ABS | BS99: ABS | BT99: - | BV99: ABS | BW99: ABS | BX99: -
B100: 96 | G100: 0011 | I100: ABS | J100: ABS | K100: - | M100: ABS | N100: ABS | O100: - | P100: * | Q100: 0031 | S100: ABS | T100: ABS | U100: - | W100: ABS | X100: ABS | Y100: - | Z100: * | AA100: 0051 | AC100: ABS | AD100: ABS | AE100: - | AG100: ABS | AH100: ABS | AI100: - | AJ100: * | AM100: ABS | AN100: ABS | AO100: - | AQ100: ABS | AR100: ABS | AS100: - | AT100: * | AW100: ABS | AX100: ABS | AY100: - | BA100: ABS | BB100: ABS | BC100: - | BD100: * | BG100: ABS | BH100: ABS | BI100: - | BK100: ABS | BL100: ABS | BM100: - | BN100: * | BO100: - | BR100: ABS | BS100: ABS | BT100: - | BV100: ABS | BW100: ABS | BX100: -
B101: 97 | G101: 0011 | I101: ABS | J101: ABS | K101: - | M101: ABS | N101: ABS | O101: - | P101: * | Q101: 0031 | S101: ABS | T101: ABS | U101: - | W101: ABS | X101: ABS | Y101: - | Z101: * | AA101: 0051 | AC101: ABS | AD101: ABS | AE101: - | AG101: ABS | AH101: ABS | AI101: - | AJ101: * | AM101: ABS | AN101: ABS | AO101: - | AQ101: ABS | AR101: ABS | AS101: - | AT101: * | AW101: ABS | AX101: ABS | AY101: - | BA101: ABS | BB101: ABS | BC101: - | BD101: * | BG101: ABS | BH101: ABS | BI101: - | BK101: ABS | BL101: ABS | BM101: - | BN101: * | BO101: - | BR101: ABS | BS101: ABS | BT101: - | BV101: ABS | BW101: ABS | BX101: -
B102: 98 | G102: 0011 | I102: ABS | J102: ABS | K102: - | M102: ABS | N102: ABS | O102: - | P102: * | Q102: 0031 | S102: ABS | T102: ABS | U102: - | W102: ABS | X102: ABS | Y102: - | Z102: * | AA102: 0051 | AC102: ABS | AD102: ABS | AE102: - | AG102: ABS | AH102: ABS | AI102: - | AJ102: * | AM102: ABS | AN102: ABS | AO102: - | AQ102: ABS | AR102: ABS | AS102: - | AT102: * | AW102: ABS | AX102: ABS | AY102: - | BA102: ABS | BB102: ABS | BC102: - | BD102: * | BG102: ABS | BH102: ABS | BI102: - | BK102: ABS | BL102: ABS | BM102: - | BN102: * | BO102: - | BR102: ABS | BS102: ABS | BT102: - | BV102: ABS | BW102: ABS | BX102: -
B103: 99 | G103: 0011 | I103: ABS | J103: ABS | K103: - | M103: ABS | N103: ABS | O103: - | P103: * | Q103: 0031 | S103: ABS | T103: ABS | U103: - | W103: ABS | X103: ABS | Y103: - | Z103: * | AA103: 0051 | AC103: ABS | AD103: ABS | AE103: - | AG103: ABS | AH103: ABS | AI103: - | AJ103: * | AM103: ABS | AN103: ABS | AO103: - | AQ103: ABS | AR103: ABS | AS103: - | AT103: * | AW103: ABS | AX103: ABS | AY103: - | BA103: ABS | BB103: ABS | BC103: - | BD103: * | BG103: ABS | BH103: ABS | BI103: - | BK103: ABS | BL103: ABS | BM103: - | BN103: * | BO103: - | BR103: ABS | BS103: ABS | BT103: - | BV103: ABS | BW103: ABS | BX103: -
B104: 100 | G104: 0011 | I104: ABS | J104: ABS | K104: - | M104: ABS | N104: ABS | O104: - | P104: * | Q104: 0031 | S104: ABS | T104: ABS | U104: - | W104: ABS | X104: ABS | Y104: - | Z104: * | AA104: 0051 | AC104: ABS | AD104: ABS | AE104: - | AG104: ABS | AH104: ABS | AI104: - | AJ104: * | AM104: ABS | AN104: ABS | AO104: - | AQ104: ABS | AR104: ABS | AS104: - | AT104: * | AW104: ABS | AX104: ABS | AY104: - | BA104: ABS | BB104: ABS | BC104: - | BD104: * | BG104: ABS | BH104: ABS | BI104: - | BK104: ABS | BL104: ABS | BM104: - | BN104: * | BO104: - | BR104: ABS | BS104: ABS | BT104: - | BV104: ABS | BW104: ABS | BX104: -
B105: 101 | G105: 0011 | I105: ABS | J105: ABS | K105: - | M105: ABS | N105: ABS | O105: - | P105: * | Q105: 0031 | S105: ABS | T105: ABS | U105: - | W105: ABS | X105: ABS | Y105: - | Z105: * | AA105: 0051 | AC105: ABS | AD105: ABS | AE105: - | AG105: ABS | AH105: ABS | AI105: - | AJ105: * | AM105: ABS | AN105: ABS | AO105: - | AQ105: ABS | AR105: ABS | AS105: - | AT105: * | AW105: ABS | AX105: ABS | AY105: - | BA105: ABS | BB105: ABS | BC105: - | BD105: * | BG105: ABS | BH105: ABS | BI105: - | BK105: ABS | BL105: ABS | BM105: - | BN105: * | BO105: - | BR105: ABS | BS105: ABS | BT105: - | BV105: ABS | BW105: ABS | BX105: -
B106: 102 | G106: 0011 | I106: ABS | J106: ABS | K106: - | M106: ABS | N106: ABS | O106: - | P106: * | Q106: 0031 | S106: ABS | T106: ABS | U106: - | W106: ABS | X106: ABS | Y106: - | Z106: * | AA106: 0051 | AC106: ABS | AD106: ABS | AE106: - | AG106: ABS | AH106: ABS | AI106: - | AJ106: * | AM106: ABS | AN106: ABS | AO106: - | AQ106: ABS | AR106: ABS | AS106: - | AT106: * | AW106: ABS | AX106: ABS | AY106: - | BA106: ABS | BB106: ABS | BC106: - | BD106: * | BG106: ABS | BH106: ABS | BI106: - | BK106: ABS | BL106: ABS | BM106: - | BN106: * | BO106: - | BR106: ABS | BS106: ABS | BT106: - | BV106: ABS | BW106: ABS | BX106: -
B107: 103 | G107: 0011 | I107: ABS | J107: ABS | K107: - | M107: ABS | N107: ABS | O107: - | P107: * | Q107: 0031 | S107: ABS | T107: ABS | U107: - | W107: ABS | X107: ABS | Y107: - | Z107: * | AA107: 0051 | AC107: ABS | AD107: ABS | AE107: - | AG107: ABS | AH107: ABS | AI107: - | AJ107: * | AM107: ABS | AN107: ABS | AO107: - | AQ107: ABS | AR107: ABS | AS107: - | AT107: * | AW107: ABS | AX107: ABS | AY107: - | BA107: ABS | BB107: ABS | BC107: - | BD107: * | BG107: ABS | BH107: ABS | BI107: - | BK107: ABS | BL107: ABS | BM107: - | BN107: * | BO107: - | BR107: ABS | BS107: ABS | BT107: - | BV107: ABS | BW107: ABS | BX107: -
B108: 104 | G108: 0011 | I108: ABS | J108: ABS | K108: - | M108: ABS | N108: ABS | O108: - | P108: * | Q108: 0031 | S108: ABS | T108: ABS | U108: - | W108: ABS | X108: ABS | Y108: - | Z108: * | AA108: 0051 | AC108: ABS | AD108: ABS | AE108: - | AG108: ABS | AH108: ABS | AI108: - | AJ108: * | AM108: ABS | AN108: ABS | AO108: - | AQ108: ABS | AR108: ABS | AS108: - | AT108: * | AW108: ABS | AX108: ABS | AY108: - | BA108: ABS | BB108: ABS | BC108: - | BD108: * | BG108: ABS | BH108: ABS | BI108: - | BK108: ABS | BL108: ABS | BM108: - | BN108: * | BO108: - | BR108: ABS | BS108: ABS | BT108: - | BV108: ABS | BW108: ABS | BX108: -
B109: 105 | G109: 0011 | I109: ABS | J109: ABS | K109: - | M109: ABS | N109: ABS | O109: - | P109: * | Q109: 0031 | S109: ABS | T109: ABS | U109: - | W109: ABS | X109: ABS | Y109: - | Z109: * | AA109: 0051 | AC109: ABS | AD109: ABS | AE109: - | AG109: ABS | AH109: ABS | AI109: - | AJ109: * | AM109: ABS | AN109: ABS | AO109: - | AQ109: ABS | AR109: ABS | AS109: - | AT109: * | AW109: ABS | AX109: ABS | AY109: - | BA109: ABS | BB109: ABS | BC109: - | BD109: * | BG109: ABS | BH109: ABS | BI109: - | BK109: ABS | BL109: ABS | BM109: - | BN109: * | BO109: - | BR109: ABS | BS109: ABS | BT109: - | BV109: ABS | BW109: ABS | BX109: -
B110: 106 | G110: 0011 | I110: ABS | J110: ABS | K110: - | M110: ABS | N110: ABS | O110: - | P110: * | Q110: 0031 | S110: ABS | T110: ABS | U110: - | W110: ABS | X110: ABS | Y110: - | Z110: * | AA110: 0051 | AC110: ABS | AD110: ABS | AE110: - | AG110: ABS | AH110: ABS | AI110: - | AJ110: * | AM110: ABS | AN110: ABS | AO110: - | AQ110: ABS | AR110: ABS | AS110: - | AT110: * | AW110: ABS | AX110: ABS | AY110: - | BA110: ABS | BB110: ABS | BC110: - | BD110: * | BG110: ABS | BH110: ABS | BI110: - | BK110: ABS | BL110: ABS | BM110: - | BN110: * | BO110: - | BR110: ABS | BS110: ABS | BT110: - | BV110: ABS | BW110: ABS | BX110: -
B111: 107 | G111: 0011 | I111: ABS | J111: ABS | K111: - | M111: ABS | N111: ABS | O111: - | P111: * | Q111: 0031 | S111: ABS | T111: ABS | U111: - | W111: ABS | X111: ABS | Y111: - | Z111: * | AA111: 0051 | AC111: ABS | AD111: ABS | AE111: - | AG111: ABS | AH111: ABS | AI111: - | AJ111: * | AM111: ABS | AN111: ABS | AO111: - | AQ111: ABS | AR111: ABS | AS111: - | AT111: * | AW111: ABS | AX111: ABS | AY111: - | BA111: ABS | BB111: ABS | BC111: - | BD111: * | BG111: ABS | BH111: ABS | BI111: - | BK111: ABS | BL111: ABS | BM111: - | BN111: * | BO111: - | BR111: ABS | BS111: ABS | BT111: - | BV111: ABS | BW111: ABS | BX111: -
B112: 108 | G112: 0011 | I112: ABS | J112: ABS | K112: - | M112: ABS | N112: ABS | O112: - | P112: * | Q112: 0031 | S112: ABS | T112: ABS | U112: - | W112: ABS | X112: ABS | Y112: - | Z112: * | AA112: 0051 | AC112: ABS | AD112: ABS | AE112: - | AG112: ABS | AH112: ABS | AI112: - | AJ112: * | AM112: ABS | AN112: ABS | AO112: - | AQ112: ABS | AR112: ABS | AS112: - | AT112: * | AW112: ABS | AX112: ABS | AY112: - | BA112: ABS | BB112: ABS | BC112: - | BD112: * | BG112: ABS | BH112: ABS | BI112: - | BK112: ABS | BL112: ABS | BM112: - | BN112: * | BO112: - | BR112: ABS | BS112: ABS | BT112: - | BV112: ABS | BW112: ABS | BX112: -
B113: 109 | G113: 0011 | I113: ABS | J113: ABS | K113: - | M113: ABS | N113: ABS | O113: - | P113: * | Q113: 0031 | S113: ABS | T113: ABS | U113: - | W113: ABS | X113: ABS | Y113: - | Z113: * | AA113: 0051 | AC113: ABS | AD113: ABS | AE113: - | AG113: ABS | AH113: ABS | AI113: - | AJ113: * | AM113: ABS | AN113: ABS | AO113: - | AQ113: ABS | AR113: ABS | AS113: - | AT113: * | AW113: ABS | AX113: ABS | AY113: - | BA113: ABS | BB113: ABS | BC113: - | BD113: * | BG113: ABS | BH113: ABS | BI113: - | BK113: ABS | BL113: ABS | BM113: - | BN113: * | BO113: - | BR113: ABS | BS113: ABS | BT113: - | BV113: ABS | BW113: ABS | BX113: -
B114: 110 | G114: 0011 | I114: ABS | J114: ABS | K114: - | M114: ABS | N114: ABS | O114: - | P114: * | Q114: 0031 | S114: ABS | T114: ABS | U114: - | W114: ABS | X114: ABS | Y114: - | Z114: * | AA114: 0051 | AC114: ABS | AD114: ABS | AE114: - | AG114: ABS | AH114: ABS | AI114: - | AJ114: * | AM114: ABS | AN114: ABS | AO114: - | AQ114: ABS | AR114: ABS | AS114: - | AT114: * | AW114: ABS | AX114: ABS | AY114: - | BA114: ABS | BB114: ABS | BC114: - | BD114: * | BG114: ABS | BH114: ABS | BI114: - | BK114: ABS | BL114: ABS | BM114: - | BN114: * | BO114: - | BR114: ABS | BS114: ABS | BT114: - | BV114: ABS | BW114: ABS | BX114: -
B115: 111 | G115: 0011 | I115: ABS | J115: ABS | K115: - | M115: ABS | N115: ABS | O115: - | P115: * | Q115: 0031 | S115: ABS | T115: ABS | U115: - | W115: ABS | X115: ABS | Y115: - | Z115: * | AA115: 0051 | AC115: ABS | AD115: ABS | AE115: - | AG115: ABS | AH115: ABS | AI115: - | AJ115: * | AM115: ABS | AN115: ABS | AO115: - | AQ115: ABS | AR115: ABS | AS115: - | AT115: * | AW115: ABS | AX115: ABS | AY115: - | BA115: ABS | BB115: ABS | BC115: - | BD115: * | BG115: ABS | BH115: ABS | BI115: - | BK115: ABS | BL115: ABS | BM115: - | BN115: * | BO115: - | BR115: ABS | BS115: ABS | BT115: - | BV115: ABS | BW115: ABS | BX115: -
B116: 112 | G116: 0011 | I116: ABS | J116: ABS | K116: - | M116: ABS | N116: ABS | O116: - | P116: * | Q116: 0031 | S116: ABS | T116: ABS | U116: - | W116: ABS | X116: ABS | Y116: - | Z116: * | AA116: 0051 | AC116: ABS | AD116: ABS | AE116: - | AG116: ABS | AH116: ABS | AI116: - | AJ116: * | AM116: ABS | AN116: ABS | AO116: - | AQ116: ABS | AR116: ABS | AS116: - | AT116: * | AW116: ABS | AX116: ABS | AY116: - | BA116: ABS | BB116: ABS | BC116: - | BD116: * | BG116: ABS | BH116: ABS | BI116: - | BK116: ABS | BL116: ABS | BM116: - | BN116: * | BO116: - | BR116: ABS | BS116: ABS | BT116: - | BV116: ABS | BW116: ABS | BX116: -
B117: 113 | G117: 0011 | I117: ABS | J117: ABS | K117: - | M117: ABS | N117: ABS | O117: - | P117: * | Q117: 0031 | S117: ABS | T117: ABS | U117: - | W117: ABS | X117: ABS | Y117: - | Z117: * | AA117: 0051 | AC117: ABS | AD117: ABS | AE117: - | AG117: ABS | AH117: ABS | AI117: - | AJ117: * | AM117: ABS | AN117: ABS | AO117: - | AQ117: ABS | AR117: ABS | AS117: - | AT117: * | AW117: ABS | AX117: ABS | AY117: - | BA117: ABS | BB117: ABS | BC117: - | BD117: * | BG117: ABS | BH117: ABS | BI117: - | BK117: ABS | BL117: ABS | BM117: - | BN117: * | BO117: - | BR117: ABS | BS117: ABS | BT117: - | BV117: ABS | BW117: ABS | BX117: -
B118: 114 | G118: 0011 | I118: ABS | J118: ABS | K118: - | M118: ABS | N118: ABS | O118: - | P118: * | Q118: 0031 | S118: ABS | T118: ABS | U118: - | W118: ABS | X118: ABS | Y118: - | Z118: * | AA118: 0051 | AC118: ABS | AD118: ABS | AE118: - | AG118: ABS | AH118: ABS | AI118: - | AJ118: * | AM118: ABS | AN118: ABS | AO118: - | AQ118: ABS | AR118: ABS | AS118: - | AT118: * | AW118: ABS | AX118: ABS | AY118: - | BA118: ABS | BB118: ABS | BC118: - | BD118: * | BG118: ABS | BH118: ABS | BI118: - | BK118: ABS | BL118: ABS | BM118: - | BN118: * | BO118: - | BR118: ABS | BS118: ABS | BT118: - | BV118: ABS | BW118: ABS | BX118: -
B119: 115 | G119: 0011 | I119: ABS | J119: ABS | K119: - | M119: ABS | N119: ABS | O119: - | P119: * | Q119: 0031 | S119: ABS | T119: ABS | U119: - | W119: ABS | X119: ABS | Y119: - | Z119: * | AA119: 0051 | AC119: ABS | AD119: ABS | AE119: - | AG119: ABS | AH119: ABS | AI119: - | AJ119: * | AM119: ABS | AN119: ABS | AO119: - | AQ119: ABS | AR119: ABS | AS119: - | AT119: * | AW119: ABS | AX119: ABS | AY119: - | BA119: ABS | BB119: ABS | BC119: - | BD119: * | BG119: ABS | BH119: ABS | BI119: - | BK119: ABS | BL119: ABS | BM119: - | BN119: * | BO119: - | BR119: ABS | BS119: ABS | BT119: - | BV119: ABS | BW119: ABS | BX119: -
B120: 116 | G120: 0011 | I120: ABS | J120: ABS | K120: - | M120: ABS | N120: ABS | O120: - | P120: * | Q120: 0031 | S120: ABS | T120: ABS | U120: - | W120: ABS | X120: ABS | Y120: - | Z120: * | AA120: 0051 | AC120: ABS | AD120: ABS | AE120: - | AG120: ABS | AH120: ABS | AI120: - | AJ120: * | AM120: ABS | AN120: ABS | AO120: - | AQ120: ABS | AR120: ABS | AS120: - | AT120: * | AW120: ABS | AX120: ABS | AY120: - | BA120: ABS | BB120: ABS | BC120: - | BD120: * | BG120: ABS | BH120: ABS | BI120: - | BK120: ABS | BL120: ABS | BM120: - | BN120: * | BO120: - | BR120: ABS | BS120: ABS | BT120: - | BV120: ABS | BW120: ABS | BX120: -
B121: 117 | G121: 0011 | I121: ABS | J121: ABS | K121: - | M121: ABS | N121: ABS | O121: - | P121: * | Q121: 0031 | S121: ABS | T121: ABS | U121: - | W121: ABS | X121: ABS | Y121: - | Z121: * | AA121: 0051 | AC121: ABS | AD121: ABS | AE121: - | AG121: ABS | AH121: ABS | AI121: - | AJ121: * | AM121: ABS | AN121: ABS | AO121: - | AQ121: ABS | AR121: ABS | AS121: - | AT121: * | AW121: ABS | AX121: ABS | AY121: - | BA121: ABS | BB121: ABS | BC121: - | BD121: * | BG121: ABS | BH121: ABS | BI121: - | BK121: ABS | BL121: ABS | BM121: - | BN121: * | BO121: - | BR121: ABS | BS121: ABS | BT121: - | BV121: ABS | BW121: ABS | BX121: -
B122: 118 | G122: 0011 | I122: ABS | J122: ABS | K122: - | M122: ABS | N122: ABS | O122: - | P122: * | Q122: 0031 | S122: ABS | T122: ABS | U122: - | W122: ABS | X122: ABS | Y122: - | Z122: * | AA122: 0051 | AC122: ABS | AD122: ABS | AE122: - | AG122: ABS | AH122: ABS | AI122: - | AJ122: * | AM122: ABS | AN122: ABS | AO122: - | AQ122: ABS | AR122: ABS | AS122: - | AT122: * | AW122: ABS | AX122: ABS | AY122: - | BA122: ABS | BB122: ABS | BC122: - | BD122: * | BG122: ABS | BH122: ABS | BI122: - | BK122: ABS | BL122: ABS | BM122: - | BN122: * | BO122: - | BR122: ABS | BS122: ABS | BT122: - | BV122: ABS | BW122: ABS | BX122: -
B123: 119 | G123: 0011 | I123: ABS | J123: ABS | K123: - | M123: ABS | N123: ABS | O123: - | P123: * | Q123: 0031 | S123: ABS | T123: ABS | U123: - | W123: ABS | X123: ABS | Y123: - | Z123: * | AA123: 0051 | AC123: ABS | AD123: ABS | AE123: - | AG123: ABS | AH123: ABS | AI123: - | AJ123: * | AM123: ABS | AN123: ABS | AO123: - | AQ123: ABS | AR123: ABS | AS123: - | AT123: * | AW123: ABS | AX123: ABS | AY123: - | BA123: ABS | BB123: ABS | BC123: - | BD123: * | BG123: ABS | BH123: ABS | BI123: - | BK123: ABS | BL123: ABS | BM123: - | BN123: * | BO123: - | BR123: ABS | BS123: ABS | BT123: - | BV123: ABS | BW123: ABS | BX123: -
B124: 120 | G124: 0011 | I124: ABS | J124: ABS | K124: - | M124: ABS | N124: ABS | O124: - | P124: * | Q124: 0031 | S124: ABS | T124: ABS | U124: - | W124: ABS | X124: ABS | Y124: - | Z124: * | AA124: 0051 | AC124: ABS | AD124: ABS | AE124: - | AG124: ABS | AH124: ABS | AI124: - | AJ124: * | AM124: ABS | AN124: ABS | AO124: - | AQ124: ABS | AR124: ABS | AS124: - | AT124: * | AW124: ABS | AX124: ABS | AY124: - | BA124: ABS | BB124: ABS | BC124: - | BD124: * | BG124: ABS | BH124: ABS | BI124: - | BK124: ABS | BL124: ABS | BM124: - | BN124: * | BO124: - | BR124: ABS | BS124: ABS | BT124: - | BV124: ABS | BW124: ABS | BX124: -
B125: 121 | G125: 0011 | I125: ABS | J125: ABS | K125: - | M125: ABS | N125: ABS | O125: - | P125: * | Q125: 0031 | S125: ABS | T125: ABS | U125: - | W125: ABS | X125: ABS | Y125: - | Z125: * | AA125: 0051 | AC125: ABS | AD125: ABS | AE125: - | AG125: ABS | AH125: ABS | AI125: - | AJ125: * | AM125: ABS | AN125: ABS | AO125: - | AQ125: ABS | AR125: ABS | AS125: - | AT125: * | AW125: ABS | AX125: ABS | AY125: - | BA125: ABS | BB125: ABS | BC125: - | BD125: * | BG125: ABS | BH125: ABS | BI125: - | BK125: ABS | BL125: ABS | BM125: - | BN125: * | BO125: - | BR125: ABS | BS125: ABS | BT125: - | BV125: ABS | BW125: ABS | BX125: -
B126: 122 | G126: 0011 | I126: ABS | J126: ABS | K126: - | M126: ABS | N126: ABS | O126: - | P126: * | Q126: 0031 | S126: ABS | T126: ABS | U126: - | W126: ABS | X126: ABS | Y126: - | Z126: * | AA126: 0051 | AC126: ABS | AD126: ABS | AE126: - | AG126: ABS | AH126: ABS | AI126: - | AJ126: * | AM126: ABS | AN126: ABS | AO126: - | AQ126: ABS | AR126: ABS | AS126: - | AT126: * | AW126: ABS | AX126: ABS | AY126: - | BA126: ABS | BB126: ABS | BC126: - | BD126: * | BG126: ABS | BH126: ABS | BI126: - | BK126: ABS | BL126: ABS | BM126: - | BN126: * | BO126: - | BR126: ABS | BS126: ABS | BT126: - | BV126: ABS | BW126: ABS | BX126: -
B127: 123 | G127: 0011 | I127: ABS | J127: ABS | K127: - | M127: ABS | N127: ABS | O127: - | P127: * | Q127: 0031 | S127: ABS | T127: ABS | U127: - | W127: ABS | X127: ABS | Y127: - | Z127: * | AA127: 0051 | AC127: ABS | AD127: ABS | AE127: - | AG127: ABS | AH127: ABS | AI127: - | AJ127: * | AM127: ABS | AN127: ABS | AO127: - | AQ127: ABS | AR127: ABS | AS127: - | AT127: * | AW127: ABS | AX127: ABS | AY127: - | BA127: ABS | BB127: ABS | BC127: - | BD127: * | BG127: ABS | BH127: ABS | BI127: - | BK127: ABS | BL127: ABS | BM127: - | BN127: * | BO127: - | BR127: ABS | BS127: ABS | BT127: - | BV127: ABS | BW127: ABS | BX127: -
B128: 124 | G128: 0011 | I128: ABS | J128: ABS | K128: - | M128: ABS | N128: ABS | O128: - | P128: * | Q128: 0031 | S128: ABS | T128: ABS | U128: - | W128: ABS | X128: ABS | Y128: - | Z128: * | AA128: 0051 | AC128: ABS | AD128: ABS | AE128: - | AG128: ABS | AH128: ABS | AI128: - | AJ128: * | AM128: ABS | AN128: ABS | AO128: - | AQ128: ABS | AR128: ABS | AS128: - | AT128: * | AW128: ABS | AX128: ABS | AY128: - | BA128: ABS | BB128: ABS | BC128: - | BD128: * | BG128: ABS | BH128: ABS | BI128: - | BK128: ABS | BL128: ABS | BM128: - | BN128: * | BO128: - | BR128: ABS | BS128: ABS | BT128: - | BV128: ABS | BW128: ABS | BX128: -
B129: 125 | G129: 0011 | I129: ABS | J129: ABS | K129: - | M129: ABS | N129: ABS | O129: - | P129: * | Q129: 0031 | S129: ABS | T129: ABS | U129: - | W129: ABS | X129: ABS | Y129: - | Z129: * | AA129: 0051 | AC129: ABS | AD129: ABS | AE129: - | AG129: ABS | AH129: ABS | AI129: - | AJ129: * | AM129: ABS | AN129: ABS | AO129: - | AQ129: ABS | AR129: ABS | AS129: - | AT129: * | AW129: ABS | AX129: ABS | AY129: - | BA129: ABS | BB129: ABS | BC129: - | BD129: * | BG129: ABS | BH129: ABS | BI129: - | BK129: ABS | BL129: ABS | BM129: - | BN129: * | BO129: - | BR129: ABS | BS129: ABS | BT129: - | BV129: ABS | BW129: ABS | BX129: -
B130: 126 | G130: 0011 | I130: ABS | J130: ABS | K130: - | M130: ABS | N130: ABS | O130: - | P130: * | Q130: 0031 | S130: ABS | T130: ABS | U130: - | W130: ABS | X130: ABS | Y130: - | Z130: * | AA130: 0051 | AC130: ABS | AD130: ABS | AE130: - | AG130: ABS | AH130: ABS | AI130: - | AJ130: * | AM130: ABS | AN130: ABS | AO130: - | AQ130: ABS | AR130: ABS | AS130: - | AT130: * | AW130: ABS | AX130: ABS | AY130: - | BA130: ABS | BB130: ABS | BC130: - | BD130: * | BG130: ABS | BH130: ABS | BI130: - | BK130: ABS | BL130: ABS | BM130: - | BN130: * | BO130: - | BR130: ABS | BS130: ABS | BT130: - | BV130: ABS | BW130: ABS | BX130: -
B131: 127 | G131: 0011 | I131: ABS | J131: ABS | K131: - | M131: ABS | N131: ABS | O131: - | P131: * | Q131: 0031 | S131: ABS | T131: ABS | U131: - | W131: ABS | X131: ABS | Y131: - | Z131: * | AA131: 0051 | AC131: ABS | AD131: ABS | AE131: - | AG131: ABS | AH131: ABS | AI131: - | AJ131: * | AM131: ABS | AN131: ABS | AO131: - | AQ131: ABS | AR131: ABS | AS131: - | AT131: * | AW131: ABS | AX131: ABS | AY131: - | BA131: ABS | BB131: ABS | BC131: - | BD131: * | BG131: ABS | BH131: ABS | BI131: - | BK131: ABS | BL131: ABS | BM131: - | BN131: * | BO131: - | BR131: ABS | BS131: ABS | BT131: - | BV131: ABS | BW131: ABS | BX131: -
B132: 128 | G132: 0011 | I132: ABS | J132: ABS | K132: - | M132: ABS | N132: ABS | O132: - | P132: * | Q132: 0031 | S132: ABS | T132: ABS | U132: - | W132: ABS | X132: ABS | Y132: - | Z132: * | AA132: 0051 | AC132: ABS | AD132: ABS | AE132: - | AG132: ABS | AH132: ABS | AI132: - | AJ132: * | AM132: ABS | AN132: ABS | AO132: - | AQ132: ABS | AR132: ABS | AS132: - | AT132: * | AW132: ABS | AX132: ABS | AY132: - | BA132: ABS | BB132: ABS | BC132: - | BD132: * | BG132: ABS | BH132: ABS | BI132: - | BK132: ABS | BL132: ABS | BM132: - | BN132: * | BO132: - | BR132: ABS | BS132: ABS | BT132: - | BV132: ABS | BW132: ABS | BX132: -
B133: 129 | G133: 0011 | I133: ABS | J133: ABS | K133: - | M133: ABS | N133: ABS | O133: - | P133: * | Q133: 0031 | S133: ABS | T133: ABS | U133: - | W133: ABS | X133: ABS | Y133: - | Z133: * | AA133: 0051 | AC133: ABS | AD133: ABS | AE133: - | AG133: ABS | AH133: ABS | AI133: - | AJ133: * | AM133: ABS | AN133: ABS | AO133: - | AQ133: ABS | AR133: ABS | AS133: - | AT133: * | AW133: ABS | AX133: ABS | AY133: - | BA133: ABS | BB133: ABS | BC133: - | BD133: * | BG133: ABS | BH133: ABS | BI133: - | BK133: ABS | BL133: ABS | BM133: - | BN133: * | BO133: - | BR133: ABS | BS133: ABS | BT133: - | BV133: ABS | BW133: ABS | BX133: -
B134: 130 | G134: 0011 | I134: =IF(H134/H$4>=0.9,"A+",IF(H134/H$4>=0.8,"A",IF(H134/H$4>=0.7,"B+",IF(H134/H$4>=0.6,"B",IF(H134/H$4>=0.5,"C+",IF(H134/H$4>=0.4,"C",IF(H134/H$4>=0.35,"D",IF(H134/H$4>0,"NG","ABS")))))))) -> ABS | J134: =IF(I134="A+",4,IF(I134="A",3.6,IF(I134="B+",3.2,IF(I134="B",2.8,IF(I134="C+",2.4,IF(I134="C",2,IF(I134="D",1.6,IF(I134="NG","-","ABS")))))))) -> ABS | K134: =IFERROR($K$4*J134,"-") -> - | M134: =IF(L134/L$4>=0.9,"A+",IF(L134/L$4>=0.8,"A",IF(L134/L$4>=0.7,"B+",IF(L134/L$4>=0.6,"B",IF(L134/L$4>=0.5,"C+",IF(L134/L$4>=0.4,"C",IF(L134/L$4>0,"NG","ABS"))))))) -> ABS | N134: =IF(M134="A+",4,IF(M134="A",3.6,IF(M134="B+",3.2,IF(M134="B",2.8,IF(M134="C+",2.4,IF(M134="C",2,IF(M134="D",1.6,IF(M134="NG","-","ABS")))))))) -> ABS | O134: =IFERROR($O$4*N134,"-") -> - | P134: =IFERROR(IF((K134+O134)/($K$4+$O$4)>3.6,"A+",IF((K134+O134)/($K$4+$O$4)>3.2,"A",IF((K134+O134)/($K$4+$O$4)>2.8,"B+",IF((K134+O134)/($K$4+$O$4)>2.4,"B",IF((K134+O134)/($K$4+$O$4)>2,"C+",IF((K134+O134)/($K$4+$O$4)>1.6,"C",IF((K134+O134)/($K$4+$O$4)=1.6,"D",IF((K134+O134)/($K$4+$O$4)<1.6,"NG","")))))))),"*") -> * | Q134: 0031 | S134: =IF(R134/R$4>=0.9,"A+",IF(R134/R$4>=0.8,"A",IF(R134/R$4>=0.7,"B+",IF(R134/R$4>=0.6,"B",IF(R134/R$4>=0.5,"C+",IF(R134/R$4>=0.4,"C",IF(R134/R$4>=0.35,"D",IF(R134/R$4>0,"NG","ABS")))))))) -> ABS | T134: =IF(S134="A+",4,IF(S134="A",3.6,IF(S134="B+",3.2,IF(S134="B",2.8,IF(S134="C+",2.4,IF(S134="C",2,IF(S134="D",1.6,IF(S134="NG","-","ABS")))))))) -> ABS | U134: =IFERROR($U$4*T134,"-") -> - | W134: =IF(V134/V$4>=0.9,"A+",IF(V134/V$4>=0.8,"A",IF(V134/V$4>=0.7,"B+",IF(V134/V$4>=0.6,"B",IF(V134/V$4>=0.5,"C+",IF(V134/V$4>=0.4,"C",IF(V134/V$4>0,"NG","ABS"))))))) -> ABS | X134: =IF(W134="A+",4,IF(W134="A",3.6,IF(W134="B+",3.2,IF(W134="B",2.8,IF(W134="C+",2.4,IF(W134="C",2,IF(W134="D",1.6,IF(W134="NG","-","ABS")))))))) -> ABS | Y134: =IFERROR($Y$4*X134,"-") -> - | Z134: =IFERROR(IF((U134+Y134)/($U$4+$Y$4)>3.6,"A+",IF((U134+Y134)/($U$4+$Y$4)>3.2,"A",IF((U134+Y134)/($U$4+$Y$4)>2.8,"B+",IF((U134+Y134)/($U$4+$Y$4)>2.4,"B",IF((U134+Y134)/($U$4+$Y$4)>2,"C+",IF((U134+Y134)/($U$4+$Y$4)>1.6,"C",IF((U134+Y134)/($U$4+$Y$4)=1.6,"D",IF((U134+Y134)/($U$4+$Y$4)<1.6,"NG","")))))))),"*") -> * | AA134: 0051 | AC134: =IF(AB134/AB$4>=0.9,"A+",IF(AB134/AB$4>=0.8,"A",IF(AB134/AB$4>=0.7,"B+",IF(AB134/AB$4>=0.6,"B",IF(AB134/AB$4>=0.5,"C+",IF(AB134/AB$4>=0.4,"C",IF(AB134/AB$4>=0.35,"D",IF(AB134/AB$4>0,"NG","ABS")))))))) -> ABS | AD134: =IF(AC134="A+",4,IF(AC134="A",3.6,IF(AC134="B+",3.2,IF(AC134="B",2.8,IF(AC134="C+",2.4,IF(AC134="C",2,IF(AC134="D",1.6,IF(AC134="NG","-","ABS")))))))) -> ABS | AE134: =IFERROR($AE$4*AD134,"-") -> - | AG134: =IF(AF134/AF$4>=0.9,"A+",IF(AF134/AF$4>=0.8,"A",IF(AF134/AF$4>=0.7,"B+",IF(AF134/AF$4>=0.6,"B",IF(AF134/AF$4>=0.5,"C+",IF(AF134/AF$4>=0.4,"C",IF(AF134/AF$4>0,"NG","ABS"))))))) -> ABS | AH134: =IF(AG134="A+",4,IF(AG134="A",3.6,IF(AG134="B+",3.2,IF(AG134="B",2.8,IF(AG134="C+",2.4,IF(AG134="C",2,IF(AG134="D",1.6,IF(AG134="NG","-","ABS")))))))) -> ABS | AI134: =IFERROR($AI$4*AH134,"-") -> - | AJ134: =IFERROR(IF((AE134+AI134)/($AE$4+$AI$4)>3.6,"A+",IF((AE134+AI134)/($AE$4+$AI$4)>3.2,"A",IF((AE134+AI134)/($AE$4+$AI$4)>2.8,"B+",IF((AE134+AI134)/($AE$4+$AI$4)>2.4,"B",IF((AE134+AI134)/($AE$4+$AI$4)>2,"C+",IF((AE134+AI134)/($AE$4+$AI$4)>1.6,"C",IF((AE134+AI134)/($AE$4+$AI$4)=1.6,"D",IF((AE134+AI134)/($AE$4+$AI$4)<1.6,"NG","")))))))),"*") -> * | AM134: =IF(AL134/AL$4>=0.9,"A+",IF(AL134/AL$4>=0.8,"A",IF(AL134/AL$4>=0.7,"B+",IF(AL134/AL$4>=0.6,"B",IF(AL134/AL$4>=0.5,"C+",IF(AL134/AL$4>=0.4,"C",IF(AL134/AL$4>=0.35,"D",IF(AL134/AL$4>0,"NG","ABS")))))))) -> ABS | AN134: =IF(AM134="A+",4,IF(AM134="A",3.6,IF(AM134="B+",3.2,IF(AM134="B",2.8,IF(AM134="C+",2.4,IF(AM134="C",2,IF(AM134="D",1.6,IF(AM134="NG","-","ABS")))))))) -> ABS | AO134: =IFERROR($AO$4*AN134,"-") -> - | AQ134: =IF(AP134/AP$4>=0.9,"A+",IF(AP134/AP$4>=0.8,"A",IF(AP134/AP$4>=0.7,"B+",IF(AP134/AP$4>=0.6,"B",IF(AP134/AP$4>=0.5,"C+",IF(AP134/AP$4>=0.4,"C",IF(AP134/AP$4>0,"NG","ABS"))))))) -> ABS | AR134: =IF(AQ134="A+",4,IF(AQ134="A",3.6,IF(AQ134="B+",3.2,IF(AQ134="B",2.8,IF(AQ134="C+",2.4,IF(AQ134="C",2,IF(AQ134="D",1.6,IF(AQ134="NG","-","ABS")))))))) -> ABS | AS134: =IFERROR($AS$4*AR134,"-") -> - | AT134: =IFERROR(IF((AO134+AS134)/($AO$4+$AS$4)>3.6,"A+",IF((AO134+AS134)/($AO$4+$AS$4)>3.2,"A",IF((AO134+AS134)/($AO$4+$AS$4)>2.8,"B+",IF((AO134+AS134)/($AO$4+$AS$4)>2.4,"B",IF((AO134+AS134)/($AO$4+$AS$4)>2,"C+",IF((AO134+AS134)/($AO$4+$AS$4)>1.6,"C",IF((AO134+AS134)/($AO$4+$AS$4)=1.6,"D",IF((AO134+AS134)/($AO$4+$AS$4)<1.6,"NG","")))))))),"*") -> * | AW134: =IF(AV134/AV$4>=0.9,"A+",IF(AV134/AV$4>=0.8,"A",IF(AV134/AV$4>=0.7,"B+",IF(AV134/AV$4>=0.6,"B",IF(AV134/AV$4>=0.5,"C+",IF(AV134/AV$4>=0.4,"C",IF(AV134/AV$4>=0.35,"D",IF(AV134/AV$4>0,"NG","ABS")))))))) -> ABS | AX134: =IF(AW134="A+",4,IF(AW134="A",3.6,IF(AW134="B+",3.2,IF(AW134="B",2.8,IF(AW134="C+",2.4,IF(AW134="C",2,IF(AW134="D",1.6,IF(AW134="NG","-","ABS")))))))) -> ABS | AY134: =IFERROR($AY$4*AX134,"-") -> - | BA134: =IF(AZ134/AZ$4>=0.9,"A+",IF(AZ134/AZ$4>=0.8,"A",IF(AZ134/AZ$4>=0.7,"B+",IF(AZ134/AZ$4>=0.6,"B",IF(AZ134/AZ$4>=0.5,"C+",IF(AZ134/AZ$4>=0.4,"C",IF(AZ134/AZ$4>0,"NG","ABS"))))))) -> ABS | BB134: =IF(BA134="A+",4,IF(BA134="A",3.6,IF(BA134="B+",3.2,IF(BA134="B",2.8,IF(BA134="C+",2.4,IF(BA134="C",2,IF(BA134="D",1.6,IF(BA134="NG","-","ABS")))))))) -> ABS | BC134: =IFERROR($BC$4*BB134,"-") -> - | BD134: =IFERROR(IF((AY134+BC134)/($AY$4+$BC$4)>3.6,"A+",IF((AY134+BC134)/($AY$4+$BC$4)>3.2,"A",IF((AY134+BC134)/($AY$4+$BC$4)>2.8,"B+",IF((AY134+BC134)/($AY$4+$BC$4)>2.4,"B",IF((AY134+BC134)/($AY$4+$BC$4)>2,"C+",IF((AY134+BC134)/($AY$4+$BC$4)>1.6,"C",IF((AY134+BC134)/($AY$4+$BC$4)=1.6,"D",IF((AY134+BC134)/($AY$4+$BC$4)<1.6,"NG","")))))))),"*") -> * | BG134: =IF(BF134/BF$4>=0.9,"A+",IF(BF134/BF$4>=0.8,"A",IF(BF134/BF$4>=0.7,"B+",IF(BF134/BF$4>=0.6,"B",IF(BF134/BF$4>=0.5,"C+",IF(BF134/BF$4>=0.4,"C",IF(BF134/BF$4>=0.35,"D",IF(BF134/BF$4>0,"NG","ABS")))))))) -> ABS | BH134: =IF(BG134="A+",4,IF(BG134="A",3.6,IF(BG134="B+",3.2,IF(BG134="B",2.8,IF(BG134="C+",2.4,IF(BG134="C",2,IF(BG134="D",1.6,IF(BG134="NG","-","ABS")))))))) -> ABS | BI134: =IFERROR($BI$4*BH134,"-") -> - | BK134: =IF(BJ134/BJ$4>=0.9,"A+",IF(BJ134/BJ$4>=0.8,"A",IF(BJ134/BJ$4>=0.7,"B+",IF(BJ134/BJ$4>=0.6,"B",IF(BJ134/BJ$4>=0.5,"C+",IF(BJ134/BJ$4>=0.4,"C",IF(BJ134/BJ$4>0,"NG","ABS"))))))) -> ABS | BL134: =IF(BK134="A+",4,IF(BK134="A",3.6,IF(BK134="B+",3.2,IF(BK134="B",2.8,IF(BK134="C+",2.4,IF(BK134="C",2,IF(BK134="D",1.6,IF(BK134="NG","-","ABS")))))))) -> ABS | BM134: =IFERROR($BM$4*BL134,"-") -> - | BN134: =IFERROR(IF((BI134+BM134)/($BI$4+$BM$4)>3.6,"A+",IF((BI134+BM134)/($BI$4+$BM$4)>3.2,"A",IF((BI134+BM134)/($BI$4+$BM$4)>2.8,"B+",IF((BI134+BM134)/($BI$4+$BM$4)>2.4,"B",IF((BI134+BM134)/($BI$4+$BM$4)>2,"C+",IF((BI134+BM134)/($BI$4+$BM$4)>1.6,"C",IF((BI134+BM134)/($BI$4+$BM$4)=1.6,"D",IF((BI134+BM134)/($BI$4+$BM$4)<1.6,"NG","")))))))),"*") -> * | BO134: =IFERROR((K134+O134+U134+Y134+AE134+AI134+AO134+AS134+AY134+BC134+BI134+BM134)/($K$4+$O$4+$U$4+$Y$4+$AE$4+$AI$4+$AO$4+$AS$4+$AY$4+$BC$4+$BI$4+$BM$4),"-") -> - | BR134: =IF(BQ134/BQ$4>=0.9,"A+",IF(BQ134/BQ$4>=0.8,"A",IF(BQ134/BQ$4>=0.7,"B+",IF(BQ134/BQ$4>=0.6,"B",IF(BQ134/BQ$4>=0.5,"C+",IF(BQ134/BQ$4>=0.4,"C",IF(BQ134/BQ$4>=0.35,"D",IF(BQ134/BQ$4>0,"NG","ABS")))))))) -> ABS | BS134: =IF(BR134="A+",4,IF(BR134="A",3.6,IF(BR134="B+",3.2,IF(BR134="B",2.8,IF(BR134="C+",2.4,IF(BR134="C",2,IF(BR134="D",1.6,IF(BR134="NG","-","ABS")))))))) -> ABS | BT134: =IFERROR($BT$4*BS134,"-") -> - | BV134: =IF(BU134/BU$4>=0.9,"A+",IF(BU134/BU$4>=0.8,"A",IF(BU134/BU$4>=0.7,"B+",IF(BU134/BU$4>=0.6,"B",IF(BU134/BU$4>=0.5,"C+",IF(BU134/BU$4>=0.4,"C",IF(BU134/BU$4>0,"NG","ABS"))))))) -> ABS | BW134: =IF(BV134="A+",4,IF(BV134="A",3.6,IF(BV134="B+",3.2,IF(BV134="B",2.8,IF(BV134="C+",2.4,IF(BV134="C",2,IF(BV134="D",1.6,IF(BV134="NG","-","ABS")))))))) -> ABS | BX134: =IFERROR($BX$4*BW134,"-") -> - | BY134: =IFERROR(IF((BT134+BX134)/($BT$4+$BX$4)>3.6,"A+",IF((BT134+BX134)/($BT$4+$BX$4)>3.2,"A",IF((BT134+BX134)/($BT$4+$BX$4)>2.8,"B+",IF((BT134+BX134)/($BT$4+$BX$4)>2.4,"B",IF((BT134+BX134)/($BT$4+$BX$4)>2,"C+",IF((BT134+BX134)/($BT$4+$BX$4)>1.6,"C",IF((BT134+BX134)/($BT$4+$BX$4)=1.6,"D",IF((BT134+BX134)/($BT$4+$BX$4)<1.6,"NG","")))))))),"") -> 
B135: 131 | G135: 0011 | I135: ABS | J135: ABS | K135: - | M135: ABS | N135: ABS | O135: - | P135: * | Q135: 0031 | S135: ABS | T135: ABS | U135: - | W135: ABS | X135: ABS | Y135: - | Z135: * | AA135: 0051 | AC135: ABS | AD135: ABS | AE135: - | AG135: ABS | AH135: ABS | AI135: - | AJ135: * | AM135: ABS | AN135: ABS | AO135: - | AQ135: ABS | AR135: ABS | AS135: - | AT135: * | AW135: ABS | AX135: ABS | AY135: - | BA135: ABS | BB135: ABS | BC135: - | BD135: * | BG135: ABS | BH135: ABS | BI135: - | BK135: ABS | BL135: ABS | BM135: - | BN135: * | BO135: - | BR135: ABS | BS135: ABS | BT135: - | BV135: ABS | BW135: ABS | BX135: -
B136: 132 | G136: 0011 | I136: ABS | J136: ABS | K136: - | M136: ABS | N136: ABS | O136: - | P136: * | Q136: 0031 | S136: ABS | T136: ABS | U136: - | W136: ABS | X136: ABS | Y136: - | Z136: * | AA136: 0051 | AC136: ABS | AD136: ABS | AE136: - | AG136: ABS | AH136: ABS | AI136: - | AJ136: * | AM136: ABS | AN136: ABS | AO136: - | AQ136: ABS | AR136: ABS | AS136: - | AT136: * | AW136: ABS | AX136: ABS | AY136: - | BA136: ABS | BB136: ABS | BC136: - | BD136: * | BG136: ABS | BH136: ABS | BI136: - | BK136: ABS | BL136: ABS | BM136: - | BN136: * | BO136: - | BR136: ABS | BS136: ABS | BT136: - | BV136: ABS | BW136: ABS | BX136: -
B137: 133 | G137: 0011 | I137: ABS | J137: ABS | K137: - | M137: ABS | N137: ABS | O137: - | P137: * | Q137: 0031 | S137: ABS | T137: ABS | U137: - | W137: ABS | X137: ABS | Y137: - | Z137: * | AA137: 0051 | AC137: ABS | AD137: ABS | AE137: - | AG137: ABS | AH137: ABS | AI137: - | AJ137: * | AM137: ABS | AN137: ABS | AO137: - | AQ137: ABS | AR137: ABS | AS137: - | AT137: * | AW137: ABS | AX137: ABS | AY137: - | BA137: ABS | BB137: ABS | BC137: - | BD137: * | BG137: ABS | BH137: ABS | BI137: - | BK137: ABS | BL137: ABS | BM137: - | BN137: * | BO137: - | BR137: ABS | BS137: ABS | BT137: - | BV137: ABS | BW137: ABS | BX137: -
B138: 134 | G138: 0011 | I138: ABS | J138: ABS | K138: - | M138: ABS | N138: ABS | O138: - | P138: * | Q138: 0031 | S138: ABS | T138: ABS | U138: - | W138: ABS | X138: ABS | Y138: - | Z138: * | AA138: 0051 | AC138: ABS | AD138: ABS | AE138: - | AG138: ABS | AH138: ABS | AI138: - | AJ138: * | AM138: ABS | AN138: ABS | AO138: - | AQ138: ABS | AR138: ABS | AS138: - | AT138: * | AW138: ABS | AX138: ABS | AY138: - | BA138: ABS | BB138: ABS | BC138: - | BD138: * | BG138: ABS | BH138: ABS | BI138: - | BK138: ABS | BL138: ABS | BM138: - | BN138: * | BO138: - | BR138: ABS | BS138: ABS | BT138: - | BV138: ABS | BW138: ABS | BX138: -
B139: 135 | G139: 0011 | I139: ABS | J139: ABS | K139: - | M139: ABS | N139: ABS | O139: - | P139: * | Q139: 0031 | S139: ABS | T139: ABS | U139: - | W139: ABS | X139: ABS | Y139: - | Z139: * | AA139: 0051 | AC139: ABS | AD139: ABS | AE139: - | AG139: ABS | AH139: ABS | AI139: - | AJ139: * | AM139: ABS | AN139: ABS | AO139: - | AQ139: ABS | AR139: ABS | AS139: - | AT139: * | AW139: ABS | AX139: ABS | AY139: - | BA139: ABS | BB139: ABS | BC139: - | BD139: * | BG139: ABS | BH139: ABS | BI139: - | BK139: ABS | BL139: ABS | BM139: - | BN139: * | BO139: - | BR139: ABS | BS139: ABS | BT139: - | BV139: ABS | BW139: ABS | BX139: -
B140: 136 | G140: 0011 | I140: ABS | J140: ABS | K140: - | M140: ABS | N140: ABS | O140: - | P140: * | Q140: 0031 | S140: ABS | T140: ABS | U140: - | W140: ABS | X140: ABS | Y140: - | Z140: * | AA140: 0051 | AC140: ABS | AD140: ABS | AE140: - | AG140: ABS | AH140: ABS | AI140: - | AJ140: * | AM140: ABS | AN140: ABS | AO140: - | AQ140: ABS | AR140: ABS | AS140: - | AT140: * | AW140: ABS | AX140: ABS | AY140: - | BA140: ABS | BB140: ABS | BC140: - | BD140: * | BG140: ABS | BH140: ABS | BI140: - | BK140: ABS | BL140: ABS | BM140: - | BN140: * | BO140: - | BR140: ABS | BS140: ABS | BT140: - | BV140: ABS | BW140: ABS | BX140: -
B141: 137 | G141: 0011 | I141: ABS | J141: ABS | K141: - | M141: ABS | N141: ABS | O141: - | P141: * | Q141: 0031 | S141: ABS | T141: ABS | U141: - | W141: ABS | X141: ABS | Y141: - | Z141: * | AA141: 0051 | AC141: ABS | AD141: ABS | AE141: - | AG141: ABS | AH141: ABS | AI141: - | AJ141: * | AM141: ABS | AN141: ABS | AO141: - | AQ141: ABS | AR141: ABS | AS141: - | AT141: * | AW141: ABS | AX141: ABS | AY141: - | BA141: ABS | BB141: ABS | BC141: - | BD141: * | BG141: ABS | BH141: ABS | BI141: - | BK141: ABS | BL141: ABS | BM141: - | BN141: * | BO141: - | BR141: ABS | BS141: ABS | BT141: - | BV141: ABS | BW141: ABS | BX141: -
B142: 138 | G142: 0011 | I142: ABS | J142: ABS | K142: - | M142: ABS | N142: ABS | O142: - | P142: * | Q142: 0031 | S142: ABS | T142: ABS | U142: - | W142: ABS | X142: ABS | Y142: - | Z142: * | AA142: 0051 | AC142: ABS | AD142: ABS | AE142: - | AG142: ABS | AH142: ABS | AI142: - | AJ142: * | AM142: ABS | AN142: ABS | AO142: - | AQ142: ABS | AR142: ABS | AS142: - | AT142: * | AW142: ABS | AX142: ABS | AY142: - | BA142: ABS | BB142: ABS | BC142: - | BD142: * | BG142: ABS | BH142: ABS | BI142: - | BK142: ABS | BL142: ABS | BM142: - | BN142: * | BO142: - | BR142: ABS | BS142: ABS | BT142: - | BV142: ABS | BW142: ABS | BX142: -
B143: 139 | G143: 0011 | I143: ABS | J143: ABS | K143: - | M143: ABS | N143: ABS | O143: - | P143: * | Q143: 0031 | S143: ABS | T143: ABS | U143: - | W143: ABS | X143: ABS | Y143: - | Z143: * | AA143: 0051 | AC143: ABS | AD143: ABS | AE143: - | AG143: ABS | AH143: ABS | AI143: - | AJ143: * | AM143: ABS | AN143: ABS | AO143: - | AQ143: ABS | AR143: ABS | AS143: - | AT143: * | AW143: ABS | AX143: ABS | AY143: - | BA143: ABS | BB143: ABS | BC143: - | BD143: * | BG143: ABS | BH143: ABS | BI143: - | BK143: ABS | BL143: ABS | BM143: - | BN143: * | BO143: - | BR143: ABS | BS143: ABS | BT143: - | BV143: ABS | BW143: ABS | BX143: -
B144: 140 | G144: 0011 | I144: ABS | J144: ABS | K144: - | M144: ABS | N144: ABS | O144: - | P144: * | Q144: 0031 | S144: ABS | T144: ABS | U144: - | W144: ABS | X144: ABS | Y144: - | Z144: * | AA144: 0051 | AC144: ABS | AD144: ABS | AE144: - | AG144: ABS | AH144: ABS | AI144: - | AJ144: * | AM144: ABS | AN144: ABS | AO144: - | AQ144: ABS | AR144: ABS | AS144: - | AT144: * | AW144: ABS | AX144: ABS | AY144: - | BA144: ABS | BB144: ABS | BC144: - | BD144: * | BG144: ABS | BH144: ABS | BI144: - | BK144: ABS | BL144: ABS | BM144: - | BN144: * | BO144: - | BR144: ABS | BS144: ABS | BT144: - | BV144: ABS | BW144: ABS | BX144: -
B145: 141 | G145: 0011 | I145: ABS | J145: ABS | K145: - | M145: ABS | N145: ABS | O145: - | P145: * | Q145: 0031 | S145: ABS | T145: ABS | U145: - | W145: ABS | X145: ABS | Y145: - | Z145: * | AA145: 0051 | AC145: ABS | AD145: ABS | AE145: - | AG145: ABS | AH145: ABS | AI145: - | AJ145: * | AM145: ABS | AN145: ABS | AO145: - | AQ145: ABS | AR145: ABS | AS145: - | AT145: * | AW145: ABS | AX145: ABS | AY145: - | BA145: ABS | BB145: ABS | BC145: - | BD145: * | BG145: ABS | BH145: ABS | BI145: - | BK145: ABS | BL145: ABS | BM145: - | BN145: * | BO145: - | BR145: ABS | BS145: ABS | BT145: - | BV145: ABS | BW145: ABS | BX145: -
B146: 142 | G146: 0011 | I146: ABS | J146: ABS | K146: - | M146: ABS | N146: ABS | O146: - | P146: * | Q146: 0031 | S146: ABS | T146: ABS | U146: - | W146: ABS | X146: ABS | Y146: - | Z146: * | AA146: 0051 | AC146: ABS | AD146: ABS | AE146: - | AG146: ABS | AH146: ABS | AI146: - | AJ146: * | AM146: ABS | AN146: ABS | AO146: - | AQ146: ABS | AR146: ABS | AS146: - | AT146: * | AW146: ABS | AX146: ABS | AY146: - | BA146: ABS | BB146: ABS | BC146: - | BD146: * | BG146: ABS | BH146: ABS | BI146: - | BK146: ABS | BL146: ABS | BM146: - | BN146: * | BO146: - | BR146: ABS | BS146: ABS | BT146: - | BV146: ABS | BW146: ABS | BX146: -
B147: 143 | G147: 0011 | I147: ABS | J147: ABS | K147: - | M147: ABS | N147: ABS | O147: - | P147: * | Q147: 0031 | S147: ABS | T147: ABS | U147: - | W147: ABS | X147: ABS | Y147: - | Z147: * | AA147: 0051 | AC147: ABS | AD147: ABS | AE147: - | AG147: ABS | AH147: ABS | AI147: - | AJ147: * | AM147: ABS | AN147: ABS | AO147: - | AQ147: ABS | AR147: ABS | AS147: - | AT147: * | AW147: ABS | AX147: ABS | AY147: - | BA147: ABS | BB147: ABS | BC147: - | BD147: * | BG147: ABS | BH147: ABS | BI147: - | BK147: ABS | BL147: ABS | BM147: - | BN147: * | BO147: - | BR147: ABS | BS147: ABS | BT147: - | BV147: ABS | BW147: ABS | BX147: -
B148: 144 | G148: 0011 | I148: ABS | J148: ABS | K148: - | M148: ABS | N148: ABS | O148: - | P148: * | Q148: 0031 | S148: ABS | T148: ABS | U148: - | W148: ABS | X148: ABS | Y148: - | Z148: * | AA148: 0051 | AC148: ABS | AD148: ABS | AE148: - | AG148: ABS | AH148: ABS | AI148: - | AJ148: * | AM148: ABS | AN148: ABS | AO148: - | AQ148: ABS | AR148: ABS | AS148: - | AT148: * | AW148: ABS | AX148: ABS | AY148: - | BA148: ABS | BB148: ABS | BC148: - | BD148: * | BG148: ABS | BH148: ABS | BI148: - | BK148: ABS | BL148: ABS | BM148: - | BN148: * | BO148: - | BR148: ABS | BS148: ABS | BT148: - | BV148: ABS | BW148: ABS | BX148: -
B149: 145 | G149: 0011 | I149: ABS | J149: ABS | K149: - | M149: ABS | N149: ABS | O149: - | P149: * | Q149: 0031 | S149: ABS | T149: ABS | U149: - | W149: ABS | X149: ABS | Y149: - | Z149: * | AA149: 0051 | AC149: ABS | AD149: ABS | AE149: - | AG149: ABS | AH149: ABS | AI149: - | AJ149: * | AM149: ABS | AN149: ABS | AO149: - | AQ149: ABS | AR149: ABS | AS149: - | AT149: * | AW149: ABS | AX149: ABS | AY149: - | BA149: ABS | BB149: ABS | BC149: - | BD149: * | BG149: ABS | BH149: ABS | BI149: - | BK149: ABS | BL149: ABS | BM149: - | BN149: * | BO149: - | BR149: ABS | BS149: ABS | BT149: - | BV149: ABS | BW149: ABS | BX149: -
B150: 146 | G150: 0011 | I150: ABS | J150: ABS | K150: - | M150: ABS | N150: ABS | O150: - | P150: * | Q150: 0031 | S150: ABS | T150: ABS | U150: - | W150: ABS | X150: ABS | Y150: - | Z150: * | AA150: 0051 | AC150: ABS | AD150: ABS | AE150: - | AG150: ABS | AH150: ABS | AI150: - | AJ150: * | AM150: ABS | AN150: ABS | AO150: - | AQ150: ABS | AR150: ABS | AS150: - | AT150: * | AW150: ABS | AX150: ABS | AY150: - | BA150: ABS | BB150: ABS | BC150: - | BD150: * | BG150: ABS | BH150: ABS | BI150: - | BK150: ABS | BL150: ABS | BM150: - | BN150: * | BO150: - | BR150: ABS | BS150: ABS | BT150: - | BV150: ABS | BW150: ABS | BX150: -
B151: 147 | G151: 0011 | I151: ABS | J151: ABS | K151: - | M151: ABS | N151: ABS | O151: - | P151: * | Q151: 0031 | S151: ABS | T151: ABS | U151: - | W151: ABS | X151: ABS | Y151: - | Z151: * | AA151: 0051 | AC151: ABS | AD151: ABS | AE151: - | AG151: ABS | AH151: ABS | AI151: - | AJ151: * | AM151: ABS | AN151: ABS | AO151: - | AQ151: ABS | AR151: ABS | AS151: - | AT151: * | AW151: ABS | AX151: ABS | AY151: - | BA151: ABS | BB151: ABS | BC151: - | BD151: * | BG151: ABS | BH151: ABS | BI151: - | BK151: ABS | BL151: ABS | BM151: - | BN151: * | BO151: - | BR151: ABS | BS151: ABS | BT151: - | BV151: ABS | BW151: ABS | BX151: -
B152: 148 | G152: 0011 | I152: ABS | J152: ABS | K152: - | M152: ABS | N152: ABS | O152: - | P152: * | Q152: 0031 | S152: ABS | T152: ABS | U152: - | W152: ABS | X152: ABS | Y152: - | Z152: * | AA152: 0051 | AC152: ABS | AD152: ABS | AE152: - | AG152: ABS | AH152: ABS | AI152: - | AJ152: * | AM152: ABS | AN152: ABS | AO152: - | AQ152: ABS | AR152: ABS | AS152: - | AT152: * | AW152: ABS | AX152: ABS | AY152: - | BA152: ABS | BB152: ABS | BC152: - | BD152: * | BG152: ABS | BH152: ABS | BI152: - | BK152: ABS | BL152: ABS | BM152: - | BN152: * | BO152: - | BR152: ABS | BS152: ABS | BT152: - | BV152: ABS | BW152: ABS | BX152: -
B153: 149 | G153: 0011 | I153: ABS | J153: ABS | K153: - | M153: ABS | N153: ABS | O153: - | P153: * | Q153: 0031 | S153: ABS | T153: ABS | U153: - | W153: ABS | X153: ABS | Y153: - | Z153: * | AA153: 0051 | AC153: ABS | AD153: ABS | AE153: - | AG153: ABS | AH153: ABS | AI153: - | AJ153: * | AM153: ABS | AN153: ABS | AO153: - | AQ153: ABS | AR153: ABS | AS153: - | AT153: * | AW153: ABS | AX153: ABS | AY153: - | BA153: ABS | BB153: ABS | BC153: - | BD153: * | BG153: ABS | BH153: ABS | BI153: - | BK153: ABS | BL153: ABS | BM153: - | BN153: * | BO153: - | BR153: ABS | BS153: ABS | BT153: - | BV153: ABS | BW153: ABS | BX153: -
B154: 150 | G154: 0011 | I154: ABS | J154: ABS | K154: - | M154: ABS | N154: ABS | O154: - | P154: * | Q154: 0031 | S154: ABS | T154: ABS | U154: - | W154: ABS | X154: ABS | Y154: - | Z154: * | AA154: 0051 | AC154: ABS | AD154: ABS | AE154: - | AG154: ABS | AH154: ABS | AI154: - | AJ154: * | AM154: ABS | AN154: ABS | AO154: - | AQ154: ABS | AR154: ABS | AS154: - | AT154: * | AW154: ABS | AX154: ABS | AY154: - | BA154: ABS | BB154: ABS | BC154: - | BD154: * | BG154: ABS | BH154: ABS | BI154: - | BK154: ABS | BL154: ABS | BM154: - | BN154: * | BO154: - | BR154: ABS | BS154: ABS | BT154: - | BV154: ABS | BW154: ABS | BX154: -

Sheet PROCESSING
D1: 3 | E1: 4 | H1: 7 | J1: 9 | N1: 13 | P1: 15 | T1: 19 | V1: 21 | Z1: 25 | AB1: 27 | AF1: 31 | AH1: 33 | AL1: 37 | AN1: 39 | AS1: 44 | AU1: 46
B2: SYMBOL NO. | C2: Name Of Student | D2: DOB | E2: Registration No. | F2: Com.Nepali | L2: Com.English | R2: Social & Life Skill | X2: OPT 1st | AD2: OPT 2nd | AJ2: OPT 3rd | AP2: GPA | AQ2: EXTRA CREDIT SUBJECT | AW2: Not Graded | AX2: Absent | AY2: Withheld | AZ2: Top 5 | BB2: Less 5 | BD2: Top/Less 5 Helper | BE2: Top/Less 5 Helper 2
F3: Sub Code | G3: TH | H3: G.P. (TH) | I3: IN | J3: G.P. (IN) | K3: FINAL GRADE | L3: Sub Code | M3: TH | N3: G.P. (TH) | O3: IN | P3: G.P. (IN) | Q3: FINAL GRADE | R3: Sub Code | S3: TH | T3: G.P. (TH) | U3: IN | V3: G.P. (IN) | W3: FINAL GRADE | X3: Sub Code | Y3: TH | Z3: G.P. (TH) | AA3: IN | AB3: G.P. (IN) | AC3: FINAL GRADE | AD3: Sub Code | AE3: TH | AF3: G.P. (TH) | AG3: IN | AH3: G.P. (IN) | AI3: FINAL GRADE | AJ3: Sub Code | AK3: TH | AL3: G.P. (TH) | AM3: IN | AN3: G.P. (IN) | AO3: FINAL GRADE | AQ3: Sub Code | AR3: TH | AS3: G.P. (TH) | AT3: IN | AU3: G.P. (IN) | AV3: FINAL GRADE
B5: =INPUT!F5 -> 11301320 | C5: =INPUT!C5 -> ALISHA KARKI | D5: =INPUT!D5 -> 4/31/2063 | E5: =INPUT!E5 -> 801130210001 | F5: =INPUT!G5 -> 0011 | G5: =INPUT!I5 -> C+ | H5: =INPUT!J5 -> 2.4 | I5: =INPUT!M5 -> C | J5: =INPUT!N5 -> 2 | K5: =INPUT!P5 -> C+ | L5: =INPUT!Q5 -> 0031 | M5: =INPUT!S5 -> C+ | N5: =INPUT!T5 -> 2.4 | O5: =INPUT!W5 -> C | P5: =INPUT!X5 -> 2 | Q5: =INPUT!Z5 -> C+ | R5: =INPUT!AA5 -> 0051 | S5: =INPUT!AC5 -> C+ | T5: =INPUT!AD5 -> 2.4 | U5: =INPUT!AG5 -> A | V5: =INPUT!AH5 -> 3.6 | W5: =INPUT!AJ5 -> B | X5: =INPUT!AK5 -> 1031 | Y5: =INPUT!AM5 -> A | Z5: =INPUT!AN5 -> 3.6 | AA5: =INPUT!AQ5 -> A+ | AB5: =INPUT!AR5 -> 4 | AC5: =INPUT!AT5 -> A+ | AD5: =INPUT!AU5 -> 4251 | AE5: =INPUT!AW5 -> C | AF5: =INPUT!AX5 -> 2 | AG5: =INPUT!BA5 -> A+ | AH5: =INPUT!BB5 -> 4 | AI5: =INPUT!BD5 -> B | AJ5: =INPUT!BE5 -> 4171 | AK5: =INPUT!BG5 -> B | AL5: =INPUT!BH5 -> 2.8 | AM5: =INPUT!BK5 -> A | AN5: =INPUT!BL5 -> 3.6 | AO5: =INPUT!BN5 -> B+ | AP5: =INPUT!BO5 -> 2.8 | AQ5: =INPUT!BP5 -> 0 | AR5: =INPUT!BR5 -> ABS | AS5: =INPUT!BS5 -> ABS | AT5: =INPUT!BV5 -> ABS | AU5: =INPUT!BW5 -> ABS | AV5: =INPUT!BY5 ->  | AW5: =IF(OR(G5="NG",M5="NG",S5="NG",Y5="NG",AE5="NG",AK5="NG"),"NG","") ->  | AX5: =IF(OR(H5="ABS",N5="ABS",T5="ABS",Z5="ABS",AF5="ABS",AL5="ABS"),"ABS","") ->  | AY5: =IF(OR(J5="-",P5="-",V5="-",AB5="-",AH5="-",AN5="NG",AW5="NG"),"W","") ->  | AZ5: =INDEX(Name,MATCH(BD5,$BE$5:$BE$154,0)) -> AMRITA RAI | BA5: =LARGE(GPA,{1;2;3;4;5}) -> 3.151851852 | BB5: =INDEX(Name,MATCH(BD12,$BE$5:$BE$154,0)) -> ALISHA KARKI | BC5: =SMALL(GPA,{1;2;3;4;5}) -> 2.8 | BD5: =BA5&"_"&COUNTIF($BA$5:BA5,BA5) -> 3.15185185185185_1 | BE5: =AP5&"_"&COUNTIF($AP$5:AP5,AP5) -> 2.8_1
B6: =INPUT!F6 -> 11301321 | C6: =INPUT!C6 -> AMRITA RAI | D6: =INPUT!D6 -> 2063-09-02 | E6: =INPUT!E6 -> 801130210002 | F6: =INPUT!G6 -> 0011 | G6: =INPUT!I6 -> C+ | H6: =INPUT!J6 -> 2.4 | I6: =INPUT!M6 -> C | J6: =INPUT!N6 -> 2 | K6: =INPUT!P6 -> C+ | L6: =INPUT!Q6 -> 0031 | M6: =INPUT!S6 -> C+ | N6: =INPUT!T6 -> 2.4 | O6: =INPUT!W6 -> C | P6: =INPUT!X6 -> 2 | Q6: =INPUT!Z6 -> C+ | R6: =INPUT!AA6 -> 0051 | S6: =INPUT!AC6 -> A+ | T6: =INPUT!AD6 -> 4 | U6: =INPUT!AG6 -> A+ | V6: =INPUT!AH6 -> 4 | W6: =INPUT!AJ6 -> A+ | X6: =INPUT!AK6 -> 1031 | Y6: =INPUT!AM6 -> A | Z6: =INPUT!AN6 -> 3.6 | AA6: =INPUT!AQ6 -> A+ | AB6: =INPUT!AR6 -> 4 | AC6: =INPUT!AT6 -> A+ | AD6: =INPUT!AU6 -> 4251 | AE6: =INPUT!AW6 -> C | AF6: =INPUT!AX6 -> 2 | AG6: =INPUT!BA6 -> A+ | AH6: =INPUT!BB6 -> 4 | AI6: =INPUT!BD6 -> B | AJ6: =INPUT!BE6 -> 4171 | AK6: =INPUT!BG6 -> A | AL6: =INPUT!BH6 -> 3.6 | AM6: =INPUT!BK6 -> A | AN6: =INPUT!BL6 -> 3.6 | AO6: =INPUT!BN6 -> A | AP6: =INPUT!BO6 -> 3.151851852 | AQ6: =INPUT!BP6 -> 0 | AR6: =INPUT!BR6 -> ABS | AS6: =INPUT!BS6 -> ABS | AT6: =INPUT!BV6 -> ABS | AU6: =INPUT!BW6 -> ABS | AV6: =INPUT!BY6 ->  | AW6: =IF(OR(G6="NG",M6="NG",S6="NG",Y6="NG",AE6="NG",AK6="NG"),"NG","") ->  | AX6: =IF(OR(H6="ABS",N6="ABS",T6="ABS",Z6="ABS",AF6="ABS",AL6="ABS"),"ABS","") ->  | AY6: =IF(OR(J6="-",P6="-",V6="-",AB6="-",AH6="-",AN6="NG",AW6="NG"),"W","") ->  | AZ6: =INDEX(Name,MATCH(BD6,$BE$5:$BE$154,0)) -> ANISHA THAPA MAGAR | BA6: 3.022222222 | BB6: =INDEX(Name,MATCH(BD13,$BE$5:$BE$154,0)) -> ANISHA THAPA MAGAR | BC6: 3.022222222 | BD6: =BA6&"_"&COUNTIF($BA$5:BA6,BA6) -> 3.02222222222222_1 | BE6: =AP6&"_"&COUNTIF($AP$5:AP6,AP6) -> 3.15185185185185_1
B7: =INPUT!F7 -> 11301322 | C7: =INPUT!C7 -> ANISHA THAPA MAGAR | D7: =INPUT!D7 -> 2062-07-07 | E7: =INPUT!E7 -> 801130210003 | F7: =INPUT!G7 -> 0011 | G7: =INPUT!I7 -> C+ | H7: =INPUT!J7 -> 2.4 | I7: =INPUT!M7 -> C | J7: =INPUT!N7 -> 2 | K7: =INPUT!P7 -> C+ | L7: =INPUT!Q7 -> 0031 | M7: =INPUT!S7 -> C+ | N7: =INPUT!T7 -> 2.4 | O7: =INPUT!W7 -> C | P7: =INPUT!X7 -> 2 | Q7: =INPUT!Z7 -> C+ | R7: =INPUT!AA7 -> 0051 | S7: =INPUT!AC7 -> B+ | T7: =INPUT!AD7 -> 3.2 | U7: =INPUT!AG7 -> A | V7: =INPUT!AH7 -> 3.6 | W7: =INPUT!AJ7 -> A | X7: =INPUT!AK7 -> 1031 | Y7: =INPUT!AM7 -> A | Z7: =INPUT!AN7 -> 3.6 | AA7: =INPUT!AQ7 -> A+ | AB7: =INPUT!AR7 -> 4 | AC7: =INPUT!AT7 -> A+ | AD7: =INPUT!AU7 -> 4251 | AE7: =INPUT!AW7 -> C+ | AF7: =INPUT!AX7 -> 2.4 | AG7: =INPUT!BA7 -> A+ | AH7: =INPUT!BB7 -> 4 | AI7: =INPUT!BD7 -> B | AJ7: =INPUT!BE7 -> 4171 | AK7: =INPUT!BG7 -> B+ | AL7: =INPUT!BH7 -> 3.2 | AM7: =INPUT!BK7 -> A | AN7: =INPUT!BL7 -> 3.6 | AO7: =INPUT!BN7 -> A | AP7: =INPUT!BO7 -> 3.022222222 | AQ7: =INPUT!BP7 -> 0 | AR7: =INPUT!BR7 -> ABS | AS7: =INPUT!BS7 -> ABS | AT7: =INPUT!BV7 -> ABS | AU7: =INPUT!BW7 -> ABS | AV7: =INPUT!BY7 ->  | AZ7: =INDEX(Name,MATCH(BD7,$BE$5:$BE$154,0)) -> ALISHA KARKI | BA7: 2.8 | BB7: =INDEX(Name,MATCH(BD14,$BE$5:$BE$154,0)) -> AMRITA RAI | BC7: 3.151851852 | BD7: =BA7&"_"&COUNTIF($BA$5:BA7,BA7) -> 2.8_1 | BE7: =AP7&"_"&COUNTIF($AP$5:AP7,AP7) -> 3.02222222222222_1
B8: =INPUT!F8 -> 11301323 | C8: =INPUT!C8 -> ANUPAMA TAMANG | D8: =INPUT!D8 -> 2062-12-20 | E8: =INPUT!E8 -> 801130210004 | F8: =INPUT!G8 -> 0011 | G8: =INPUT!I8 -> C | H8: =INPUT!J8 -> 2 | I8: =INPUT!M8 -> C | J8: =INPUT!N8 -> 2 | K8: =INPUT!P8 -> C | L8: =INPUT!Q8 -> 0031 | M8: =INPUT!S8 -> C | N8: =INPUT!T8 -> 2 | O8: =INPUT!W8 -> C | P8: =INPUT!X8 -> 2 | Q8: =INPUT!Z8 -> C | R8: =INPUT!AA8 -> 0051 | S8: =INPUT!AC8 -> B | T8: =INPUT!AD8 -> 2.8 | U8: =INPUT!AG8 -> A | V8: =INPUT!AH8 -> 3.6 | W8: =INPUT!AJ8 -> B+ | X8: =INPUT!AK8 -> 1031 | Y8: =INPUT!AM8 -> B | Z8: =INPUT!AN8 -> 2.8 | AA8: =INPUT!AQ8 -> A | AB8: =INPUT!AR8 -> 3.6 | AC8: =INPUT!AT8 -> B+ | AD8: =INPUT!AU8 -> 4251 | AE8: =INPUT!AW8 -> C | AF8: =INPUT!AX8 -> 2 | AG8: =INPUT!BA8 -> A+ | AH8: =INPUT!BB8 -> 4 | AI8: =INPUT!BD8 -> B | AJ8: =INPUT!BE8 -> 4171 | AK8: =INPUT!BG8 -> B+ | AL8: =INPUT!BH8 -> 3.2 | AM8: =INPUT!BK8 -> ABS | AN8: =INPUT!BL8 -> ABS | AO8: =INPUT!BN8 -> * | AP8: =INPUT!BO8 -> - | AQ8: =INPUT!BP8 -> 0 | AR8: =INPUT!BR8 -> ABS | AS8: =INPUT!BS8 -> ABS | AT8: =INPUT!BV8 -> ABS | AU8: =INPUT!BW8 -> ABS | AV8: =INPUT!BY8 ->  | AZ8: =INDEX(Name,MATCH(BD8,$BE$5:$BE$154,0)) ->  | BB8: =INDEX(Name,MATCH(BD15,$BE$5:$BE$154,0)) ->  | BD8: =BA8&"_"&COUNTIF($BA$5:BA8,BA8) ->  | BE8: =AP8&"_"&COUNTIF($AP$5:AP8,AP8) -> -_1
B9: =INPUT!F9 -> 11301324 | C9: =INPUT!C9 -> ASMITA PARIYAR | D9: =INPUT!D9 -> 2062-12-27 | E9: =INPUT!E9 -> 801130210005 | F9: =INPUT!G9 -> 0011 | G9: =INPUT!I9 -> C | H9: =INPUT!J9 -> 2 | I9: =INPUT!M9 -> C | J9: =INPUT!N9 -> 2 | K9: =INPUT!P9 -> C | L9: =INPUT!Q9 -> 0031 | M9: =INPUT!S9 -> C | N9: =INPUT!T9 -> 2 | O9: =INPUT!W9 -> C | P9: =INPUT!X9 -> 2 | Q9: =INPUT!Z9 -> C | R9: =INPUT!AA9 -> 0051 | S9: =INPUT!AC9 -> B | T9: =INPUT!AD9 -> 2.8 | U9: =INPUT!AG9 -> A | V9: =INPUT!AH9 -> 3.6 | W9: =INPUT!AJ9 -> B+ | X9: =INPUT!AK9 -> 1031 | Y9: =INPUT!AM9 -> B | Z9: =INPUT!AN9 -> 2.8 | AA9: =INPUT!AQ9 -> A | AB9: =INPUT!AR9 -> 3.6 | AC9: =INPUT!AT9 -> B+ | AD9: =INPUT!AU9 -> 4251 | AE9: =INPUT!AW9 -> C | AF9: =INPUT!AX9 -> 2 | AG9: =INPUT!BA9 -> A+ | AH9: =INPUT!BB9 -> 4 | AI9: =INPUT!BD9 -> B | AJ9: =INPUT!BE9 -> 4171 | AK9: =INPUT!BG9 -> A | AL9: =INPUT!BH9 -> 3.6 | AM9: =INPUT!BK9 -> ABS | AN9: =INPUT!BL9 -> ABS | AO9: =INPUT!BN9 -> * | AP9: =INPUT!BO9 -> - | AQ9: =INPUT!BP9 -> 0 | AR9: =INPUT!BR9 -> ABS | AS9: =INPUT!BS9 -> ABS | AT9: =INPUT!BV9 -> ABS | AU9: =INPUT!BW9 -> ABS | AV9: =INPUT!BY9 ->  | AZ9: =INDEX(Name,MATCH(BD9,$BE$5:$BE$154,0)) ->  | BB9: =INDEX(Name,MATCH(BD16,$BE$5:$BE$154,0)) ->  | BD9: =BA9&"_"&COUNTIF($BA$5:BA9,BA9) ->  | BE9: =AP9&"_"&COUNTIF($AP$5:AP9,AP9) -> -_2
B10: =INPUT!F10 -> 11301325 | C10: =INPUT!C10 -> BIKASH RAI | D10: =INPUT!D10 -> 2063-03-10 | E10: =INPUT!E10 -> 801130210006 | F10: =INPUT!G10 -> 0011 | G10: =INPUT!I10 -> C+ | H10: =INPUT!J10 -> 2.4 | I10: =INPUT!M10 -> C | J10: =INPUT!N10 -> 2 | K10: =INPUT!P10 -> C+ | L10: =INPUT!Q10 -> 0031 | M10: =INPUT!S10 -> C+ | N10: =INPUT!T10 -> 2.4 | O10: =INPUT!W10 -> C | P10: =INPUT!X10 -> 2 | Q10: =INPUT!Z10 -> C+ | R10: =INPUT!AA10 -> 0051 | S10: =INPUT!AC10 -> A | T10: =INPUT!AD10 -> 3.6 | U10: =INPUT!AG10 -> A+ | V10: =INPUT!AH10 -> 4 | W10: =INPUT!AJ10 -> A+ | X10: =INPUT!AK10 -> 1031 | Y10: =INPUT!AM10 -> A | Z10: =INPUT!AN10 -> 3.6 | AA10: =INPUT!AQ10 -> A+ | AB10: =INPUT!AR10 -> 4 | AC10: =INPUT!AT10 -> A+ | AD10: =INPUT!AU10 -> 4251 | AE10: =INPUT!AW10 -> C+ | AF10: =INPUT!AX10 -> 2.4 | AG10: =INPUT!BA10 -> A+ | AH10: =INPUT!BB10 -> 4 | AI10: =INPUT!BD10 -> B | AJ10: =INPUT!BE10 -> 4171 | AK10: =INPUT!BG10 -> A | AL10: =INPUT!BH10 -> 3.6 | AM10: =INPUT!BK10 -> ABS | AN10: =INPUT!BL10 -> ABS | AO10: =INPUT!BN10 -> * | AP10: =INPUT!BO10 -> - | AQ10: =INPUT!BP10 -> 0 | AR10: =INPUT!BR10 -> ABS | AS10: =INPUT!BS10 -> ABS | AT10: =INPUT!BV10 -> ABS | AU10: =INPUT!BW10 -> ABS | AV10: =INPUT!BY10 ->  | BE10: =AP10&"_"&COUNTIF($AP$5:AP10,AP10) -> -_3
B11: =INPUT!F11 -> 11301326 | C11: =INPUT!C11 -> DIKESH RAI | D11: =INPUT!D11 -> 2063-07-06 | E11: =INPUT!E11 -> 801130210007 | F11: =INPUT!G11 -> 0011 | G11: =INPUT!I11 -> C | H11: =INPUT!J11 -> 2 | I11: =INPUT!M11 -> C | J11: =INPUT!N11 -> 2 | K11: =INPUT!P11 -> C | L11: =INPUT!Q11 -> 0031 | M11: =INPUT!S11 -> C | N11: =INPUT!T11 -> 2 | O11: =INPUT!W11 -> C | P11: =INPUT!X11 -> 2 | Q11: =INPUT!Z11 -> C | R11: =INPUT!AA11 -> 0051 | S11: =INPUT!AC11 -> C | T11: =INPUT!AD11 -> 2 | U11: =INPUT!AG11 -> A | V11: =INPUT!AH11 -> 3.6 | W11: =INPUT!AJ11 -> C+ | X11: =INPUT!AK11 -> 1031 | Y11: =INPUT!AM11 -> B | Z11: =INPUT!AN11 -> 2.8 | AA11: =INPUT!AQ11 -> A | AB11: =INPUT!AR11 -> 3.6 | AC11: =INPUT!AT11 -> B+ | AD11: =INPUT!AU11 -> 4251 | AE11: =INPUT!AW11 -> C+ | AF11: =INPUT!AX11 -> 2.4 | AG11: =INPUT!BA11 -> A+ | AH11: =INPUT!BB11 -> 4 | AI11: =INPUT!BD11 -> B | AJ11: =INPUT!BE11 -> 4171 | AK11: =INPUT!BG11 -> A | AL11: =INPUT!BH11 -> 3.6 | AM11: =INPUT!BK11 -> ABS | AN11: =INPUT!BL11 -> ABS | AO11: =INPUT!BN11 -> * | AP11: =INPUT!BO11 -> - | AQ11: =INPUT!BP11 -> 0 | AR11: =INPUT!BR11 -> ABS | AS11: =INPUT!BS11 -> ABS | AT11: =INPUT!BV11 -> ABS | AU11: =INPUT!BW11 -> ABS | AV11: =INPUT!BY11 ->  | BE11: =AP11&"_"&COUNTIF($AP$5:AP11,AP11) -> -_4
B12: =INPUT!F12 -> 11301327 | C12: =INPUT!C12 -> ERON BHUJEL | D12: =INPUT!D12 -> 2064-06-02 | E12: =INPUT!E12 -> 801130210008 | F12: =INPUT!G12 -> 0011 | G12: =INPUT!I12 -> C | H12: =INPUT!J12 -> 2 | I12: =INPUT!M12 -> C | J12: =INPUT!N12 -> 2 | K12: =INPUT!P12 -> C | L12: =INPUT!Q12 -> 0031 | M12: =INPUT!S12 -> C | N12: =INPUT!T12 -> 2 | O12: =INPUT!W12 -> C | P12: =INPUT!X12 -> 2 | Q12: =INPUT!Z12 -> C | R12: =INPUT!AA12 -> 0051 | S12: =INPUT!AC12 -> A | T12: =INPUT!AD12 -> 3.6 | U12: =INPUT!AG12 -> A+ | V12: =INPUT!AH12 -> 4 | W12: =INPUT!AJ12 -> A+ | X12: =INPUT!AK12 -> 1031 | Y12: =INPUT!AM12 -> B | Z12: =INPUT!AN12 -> 2.8 | AA12: =INPUT!AQ12 -> A | AB12: =INPUT!AR12 -> 3.6 | AC12: =INPUT!AT12 -> B+ | AD12: =INPUT!AU12 -> 4251 | AE12: =INPUT!AW12 -> C+ | AF12: =INPUT!AX12 -> 2.4 | AG12: =INPUT!BA12 -> A+ | AH12: =INPUT!BB12 -> 4 | AI12: =INPUT!BD12 -> B | AJ12: =INPUT!BE12 -> 4171 | AK12: =INPUT!BG12 -> B | AL12: =INPUT!BH12 -> 2.8 | AM12: =INPUT!BK12 -> ABS | AN12: =INPUT!BL12 -> ABS | AO12: =INPUT!BN12 -> * | AP12: =INPUT!BO12 -> - | AQ12: =INPUT!BP12 -> 0 | AR12: =INPUT!BR12 -> ABS | AS12: =INPUT!BS12 -> ABS | AT12: =INPUT!BV12 -> ABS | AU12: =INPUT!BW12 -> ABS | AV12: =INPUT!BY12 ->  | BD12: =BC5&"_"&COUNTIF($BC$5:BC5,BC5) -> 2.8_1 | BE12: =AP12&"_"&COUNTIF($AP$5:AP12,AP12) -> -_5
B13: =INPUT!F13 -> 11301328 | C13: =INPUT!C13 -> ISMITA RAI | D13: =INPUT!D13 -> 2062-06-05 | E13: =INPUT!E13 -> 801130210009 | F13: =INPUT!G13 -> 0011 | G13: =INPUT!I13 -> C+ | H13: =INPUT!J13 -> 2.4 | I13: =INPUT!M13 -> C | J13: =INPUT!N13 -> 2 | K13: =INPUT!P13 -> C+ | L13: =INPUT!Q13 -> 0031 | M13: =INPUT!S13 -> C+ | N13: =INPUT!T13 -> 2.4 | O13: =INPUT!W13 -> C | P13: =INPUT!X13 -> 2 | Q13: =INPUT!Z13 -> C+ | R13: =INPUT!AA13 -> 0051 | S13: =INPUT!AC13 -> A | T13: =INPUT!AD13 -> 3.6 | U13: =INPUT!AG13 -> A+ | V13: =INPUT!AH13 -> 4 | W13: =INPUT!AJ13 -> A+ | X13: =INPUT!AK13 -> 1031 | Y13: =INPUT!AM13 -> B+ | Z13: =INPUT!AN13 -> 3.2 | AA13: =INPUT!AQ13 -> A+ | AB13: =INPUT!AR13 -> 4 | AC13: =INPUT!AT13 -> A | AD13: =INPUT!AU13 -> 4251 | AE13: =INPUT!AW13 -> C | AF13: =INPUT!AX13 -> 2 | AG13: =INPUT!BA13 -> A+ | AH13: =INPUT!BB13 -> 4 | AI13: =INPUT!BD13 -> B | AJ13: =INPUT!BE13 -> 4171 | AK13: =INPUT!BG13 -> B+ | AL13: =INPUT!BH13 -> 3.2 | AM13: =INPUT!BK13 -> ABS | AN13: =INPUT!BL13 -> ABS | AO13: =INPUT!BN13 -> * | AP13: =INPUT!BO13 -> - | AQ13: =INPUT!BP13 -> 0 | AR13: =INPUT!BR13 -> ABS | AS13: =INPUT!BS13 -> ABS | AT13: =INPUT!BV13 -> ABS | AU13: =INPUT!BW13 -> ABS | AV13: =INPUT!BY13 ->  | BD13: =BC6&"_"&COUNTIF($BC$5:BC6,BC6) -> 3.02222222222222_1 | BE13: =AP13&"_"&COUNTIF($AP$5:AP13,AP13) -> -_6
B14: =INPUT!F14 -> 11301329 | C14: =INPUT!C14 -> KANCHAN KHATRI | D14: =INPUT!D14 -> 2063-12-05 | E14: =INPUT!E14 -> 801130210010 | F14: =INPUT!G14 -> 0011 | G14: =INPUT!I14 -> C+ | H14: =INPUT!J14 -> 2.4 | I14: =INPUT!M14 -> C | J14: =INPUT!N14 -> 2 | K14: =INPUT!P14 -> C+ | L14: =INPUT!Q14 -> 0031 | M14: =INPUT!S14 -> C+ | N14: =INPUT!T14 -> 2.4 | O14: =INPUT!W14 -> C | P14: =INPUT!X14 -> 2 | Q14: =INPUT!Z14 -> C+ | R14: =INPUT!AA14 -> 0051 | S14: =INPUT!AC14 -> B+ | T14: =INPUT!AD14 -> 3.2 | U14: =INPUT!AG14 -> A+ | V14: =INPUT!AH14 -> 4 | W14: =INPUT!AJ14 -> A | X14: =INPUT!AK14 -> 1031 | Y14: =INPUT!AM14 -> B+ | Z14: =INPUT!AN14 -> 3.2 | AA14: =INPUT!AQ14 -> A+ | AB14: =INPUT!AR14 -> 4 | AC14: =INPUT!AT14 -> A | AD14: =INPUT!AU14 -> 4251 | AE14: =INPUT!AW14 -> C+ | AF14: =INPUT!AX14 -> 2.4 | AG14: =INPUT!BA14 -> A+ | AH14: =INPUT!BB14 -> 4 | AI14: =INPUT!BD14 -> B | AJ14: =INPUT!BE14 -> 4171 | AK14: =INPUT!BG14 -> B+ | AL14: =INPUT!BH14 -> 3.2 | AM14: =INPUT!BK14 -> ABS | AN14: =INPUT!BL14 -> ABS | AO14: =INPUT!BN14 -> * | AP14: =INPUT!BO14 -> - | AQ14: =INPUT!BP14 -> 0 | AR14: =INPUT!BR14 -> ABS | AS14: =INPUT!BS14 -> ABS | AT14: =INPUT!BV14 -> ABS | AU14: =INPUT!BW14 -> ABS | AV14: =INPUT!BY14 ->  | BD14: =BC7&"_"&COUNTIF($BC$5:BC7,BC7) -> 3.15185185185185_1 | BE14: =AP14&"_"&COUNTIF($AP$5:AP14,AP14) -> -_7
B15: =INPUT!F15 -> 11301330 | C15: =INPUT!C15 -> KAUSTUV JUNG KHADKA | D15: =INPUT!D15 -> 2064-03-11 | E15: =INPUT!E15 -> 801130210011 | F15: =INPUT!G15 -> 0011 | G15: =INPUT!I15 -> B+ | H15: =INPUT!J15 -> 3.2 | I15: =INPUT!M15 -> B | J15: =INPUT!N15 -> 2.8 | K15: =INPUT!P15 -> B+ | L15: =INPUT!Q15 -> 0031 | M15: =INPUT!S15 -> B+ | N15: =INPUT!T15 -> 3.2 | O15: =INPUT!W15 -> B | P15: =INPUT!X15 -> 2.8 | Q15: =INPUT!Z15 -> B+ | R15: =INPUT!AA15 -> 0051 | S15: =INPUT!AC15 -> A | T15: =INPUT!AD15 -> 3.6 | U15: =INPUT!AG15 -> A+ | V15: =INPUT!AH15 -> 4 | W15: =INPUT!AJ15 -> A+ | X15: =INPUT!AK15 -> 1031 | Y15: =INPUT!AM15 -> A | Z15: =INPUT!AN15 -> 3.6 | AA15: =INPUT!AQ15 -> A+ | AB15: =INPUT!AR15 -> 4 | AC15: =INPUT!AT15 -> A+ | AD15: =INPUT!AU15 -> 4251 | AE15: =INPUT!AW15 -> C+ | AF15: =INPUT!AX15 -> 2.4 | AG15: =INPUT!BA15 -> A+ | AH15: =INPUT!BB15 -> 4 | AI15: =INPUT!BD15 -> B | AJ15: =INPUT!BE15 -> 4171 | AK15: =INPUT!BG15 -> B+ | AL15: =INPUT!BH15 -> 3.2 | AM15: =INPUT!BK15 -> ABS | AN15: =INPUT!BL15 -> ABS | AO15: =INPUT!BN15 -> * | AP15: =INPUT!BO15 -> - | AQ15: =INPUT!BP15 -> 0 | AR15: =INPUT!BR15 -> ABS | AS15: =INPUT!BS15 -> ABS | AT15: =INPUT!BV15 -> ABS | AU15: =INPUT!BW15 -> ABS | AV15: =INPUT!BY15 ->  | BD15: =BC8&"_"&COUNTIF($BC$5:BC8,BC8) ->  | BE15: =AP15&"_"&COUNTIF($AP$5:AP15,AP15) -> -_8
B16: =INPUT!F16 -> 11301331 | C16: =INPUT!C16 -> KUSUM RAI | D16: =INPUT!D16 -> 2063-01-19 | E16: =INPUT!E16 -> 801130210012 | F16: =INPUT!G16 -> 0011 | G16: =INPUT!I16 -> C+ | H16: =INPUT!J16 -> 2.4 | I16: =INPUT!M16 -> C | J16: =INPUT!N16 -> 2 | K16: =INPUT!P16 -> C+ | L16: =INPUT!Q16 -> 0031 | M16: =INPUT!S16 -> C+ | N16: =INPUT!T16 -> 2.4 | O16: =INPUT!W16 -> C | P16: =INPUT!X16 -> 2 | Q16: =INPUT!Z16 -> C+ | R16: =INPUT!AA16 -> 0051 | S16: =INPUT!AC16 -> B | T16: =INPUT!AD16 -> 2.8 | U16: =INPUT!AG16 -> A | V16: =INPUT!AH16 -> 3.6 | W16: =INPUT!AJ16 -> B+ | X16: =INPUT!AK16 -> 1031 | Y16: =INPUT!AM16 -> B+ | Z16: =INPUT!AN16 -> 3.2 | AA16: =INPUT!AQ16 -> A | AB16: =INPUT!AR16 -> 3.6 | AC16: =INPUT!AT16 -> A | AD16: =INPUT!AU16 -> 4251 | AE16: =INPUT!AW16 -> C | AF16: =INPUT!AX16 -> 2 | AG16: =INPUT!BA16 -> A+ | AH16: =INPUT!BB16 -> 4 | AI16: =INPUT!BD16 -> B | AJ16: =INPUT!BE16 -> 4171 | AK16: =INPUT!BG16 -> B+ | AL16: =INPUT!BH16 -> 3.2 | AM16: =INPUT!BK16 -> ABS | AN16: =INPUT!BL16 -> ABS | AO16: =INPUT!BN16 -> * | AP16: =INPUT!BO16 -> - | AQ16: =INPUT!BP16 -> 0 | AR16: =INPUT!BR16 -> ABS | AS16: =INPUT!BS16 -> ABS | AT16: =INPUT!BV16 -> ABS | AU16: =INPUT!BW16 -> ABS | AV16: =INPUT!BY16 ->  | BD16: =BC9&"_"&COUNTIF($BC$5:BC9,BC9) ->  | BE16: =AP16&"_"&COUNTIF($AP$5:AP16,AP16) -> -_9
B17: =INPUT!F17 -> 11301332 | C17: =INPUT!C17 -> LEPMUHANG RAI | D17: =INPUT!D17 -> 2062-04-23 | E17: =INPUT!E17 -> 801130210013 | F17: =INPUT!G17 -> 0011 | G17: =INPUT!I17 -> C | H17: =INPUT!J17 -> 2 | I17: =INPUT!M17 -> C | J17: =INPUT!N17 -> 2 | K17: =INPUT!P17 -> C | L17: =INPUT!Q17 -> 0031 | M17: =INPUT!S17 -> C | N17: =INPUT!T17 -> 2 | O17: =INPUT!W17 -> C | P17: =INPUT!X17 -> 2 | Q17: =INPUT!Z17 -> C | R17: =INPUT!AA17 -> 0051 | S17: =INPUT!AC17 -> B+ | T17: =INPUT!AD17 -> 3.2 | U17: =INPUT!AG17 -> A | V17: =INPUT!AH17 -> 3.6 | W17: =INPUT!AJ17 -> A | X17: =INPUT!AK17 -> 1031 | Y17: =INPUT!AM17 -> B+ | Z17: =INPUT!AN17 -> 3.2 | AA17: =INPUT!AQ17 -> A | AB17: =INPUT!AR17 -> 3.6 | AC17: =INPUT!AT17 -> A | AD17: =INPUT!AU17 -> 4251 | AE17: =INPUT!AW17 -> C+ | AF17: =INPUT!AX17 -> 2.4 | AG17: =INPUT!BA17 -> A+ | AH17: =INPUT!BB17 -> 4 | AI17: =INPUT!BD17 -> B | AJ17: =INPUT!BE17 -> 4171 | AK17: =INPUT!BG17 -> A | AL17: =INPUT!BH17 -> 3.6 | AM17: =INPUT!BK17 -> ABS | AN17: =INPUT!BL17 -> ABS | AO17: =INPUT!BN17 -> * | AP17: =INPUT!BO17 -> - | AQ17: =INPUT!BP17 -> 0 | AR17: =INPUT!BR17 -> ABS | AS17: =INPUT!BS17 -> ABS | AT17: =INPUT!BV17 -> ABS | AU17: =INPUT!BW17 -> ABS | AV17: =INPUT!BY17 ->  | BE17: =AP17&"_"&COUNTIF($AP$5:AP17,AP17) -> -_10
B18: =INPUT!F18 -> 11301333 | C18: =INPUT!C18 -> MAHESH DAHAL | D18: =INPUT!D18 -> 2061-04-01 | E18: =INPUT!E18 -> 801130210014 | F18: =INPUT!G18 -> 0011 | G18: =INPUT!I18 -> C | H18: =INPUT!J18 -> 2 | I18: =INPUT!M18 -> C | J18: =INPUT!N18 -> 2 | K18: =INPUT!P18 -> C | L18: =INPUT!Q18 -> 0031 | M18: =INPUT!S18 -> C | N18: =INPUT!T18 -> 2 | O18: =INPUT!W18 -> C | P18: =INPUT!X18 -> 2 | Q18: =INPUT!Z18 -> C | R18: =INPUT!AA18 -> 0051 | S18: =INPUT!AC18 -> B | T18: =INPUT!AD18 -> 2.8 | U18: =INPUT!AG18 -> A | V18: =INPUT!AH18 -> 3.6 | W18: =INPUT!AJ18 -> B+ | X18: =INPUT!AK18 -> 1031 | Y18: =INPUT!AM18 -> B | Z18: =INPUT!AN18 -> 2.8 | AA18: =INPUT!AQ18 -> A | AB18: =INPUT!AR18 -> 3.6 | AC18: =INPUT!AT18 -> B+ | AD18: =INPUT!AU18 -> 4251 | AE18: =INPUT!AW18 -> C+ | AF18: =INPUT!AX18 -> 2.4 | AG18: =INPUT!BA18 -> A+ | AH18: =INPUT!BB18 -> 4 | AI18: =INPUT!BD18 -> B | AJ18: =INPUT!BE18 -> 4171 | AK18: =INPUT!BG18 -> A | AL18: =INPUT!BH18 -> 3.6 | AM18: =INPUT!BK18 -> ABS | AN18: =INPUT!BL18 -> ABS | AO18: =INPUT!BN18 -> * | AP18: =INPUT!BO18 -> - | AQ18: =INPUT!BP18 -> 0 | AR18: =INPUT!BR18 -> ABS | AS18: =INPUT!BS18 -> ABS | AT18: =INPUT!BV18 -> ABS | AU18: =INPUT!BW18 -> ABS | AV18: =INPUT!BY18 ->  | BE18: =AP18&"_"&COUNTIF($AP$5:AP18,AP18) -> -_11
B19: =INPUT!F19 -> 11301334 | C19: =INPUT!C19 -> MANISHA RAI | D19: =INPUT!D19 -> 2064-01-15 | E19: =INPUT!E19 -> 801130210015 | F19: =INPUT!G19 -> 0011 | G19: =INPUT!I19 -> A | H19: =INPUT!J19 -> 3.6 | I19: =INPUT!M19 -> A | J19: =INPUT!N19 -> 3.6 | K19: =INPUT!P19 -> A | L19: =INPUT!Q19 -> 0031 | M19: =INPUT!S19 -> A | N19: =INPUT!T19 -> 3.6 | O19: =INPUT!W19 -> A | P19: =INPUT!X19 -> 3.6 | Q19: =INPUT!Z19 -> A | R19: =INPUT!AA19 -> 0051 | S19: =INPUT!AC19 -> A+ | T19: =INPUT!AD19 -> 4 | U19: =INPUT!AG19 -> A+ | V19: =INPUT!AH19 -> 4 | W19: =INPUT!AJ19 -> A+ | X19: =INPUT!AK19 -> 1031 | Y19: =INPUT!AM19 -> A+ | Z19: =INPUT!AN19 -> 4 | AA19: =INPUT!AQ19 -> A+ | AB19: =INPUT!AR19 -> 4 | AC19: =INPUT!AT19 -> A+ | AD19: =INPUT!AU19 -> 4251 | AE19: =INPUT!AW19 -> C+ | AF19: =INPUT!AX19 -> 2.4 | AG19: =INPUT!BA19 -> A+ | AH19: =INPUT!BB19 -> 4 | AI19: =INPUT!BD19 -> B | AJ19: =INPUT!BE19 -> 4171 | AK19: =INPUT!BG19 -> A | AL19: =INPUT!BH19 -> 3.6 | AM19: =INPUT!BK19 -> ABS | AN19: =INPUT!BL19 -> ABS | AO19: =INPUT!BN19 -> * | AP19: =INPUT!BO19 -> - | AQ19: =INPUT!BP19 -> 0 | AR19: =INPUT!BR19 -> ABS | AS19: =INPUT!BS19 -> ABS | AT19: =INPUT!BV19 -> ABS | AU19: =INPUT!BW19 -> ABS | AV19: =INPUT!BY19 ->  | BE19: =AP19&"_"&COUNTIF($AP$5:AP19,AP19) -> -_12
B20: =INPUT!F20 -> 11301335 | C20: =INPUT!C20 -> MANISHA THAPA | D20: =INPUT!D20 -> 2062-06-25 | E20: =INPUT!E20 -> 801130210016 | F20: =INPUT!G20 -> 0011 | G20: =INPUT!I20 -> A | H20: =INPUT!J20 -> 3.6 | I20: =INPUT!M20 -> B+ | J20: =INPUT!N20 -> 3.2 | K20: =INPUT!P20 -> A | L20: =INPUT!Q20 -> 0031 | M20: =INPUT!S20 -> A | N20: =INPUT!T20 -> 3.6 | O20: =INPUT!W20 -> B+ | P20: =INPUT!X20 -> 3.2 | Q20: =INPUT!Z20 -> A | R20: =INPUT!AA20 -> 0051 | S20: =INPUT!AC20 -> A | T20: =INPUT!AD20 -> 3.6 | U20: =INPUT!AG20 -> A+ | V20: =INPUT!AH20 -> 4 | W20: =INPUT!AJ20 -> A+ | X20: =INPUT!AK20 -> 1031 | Y20: =INPUT!AM20 -> A+ | Z20: =INPUT!AN20 -> 4 | AA20: =INPUT!AQ20 -> A+ | AB20: =INPUT!AR20 -> 4 | AC20: =INPUT!AT20 -> A+ | AD20: =INPUT!AU20 -> 4251 | AE20: =INPUT!AW20 -> C+ | AF20: =INPUT!AX20 -> 2.4 | AG20: =INPUT!BA20 -> A+ | AH20: =INPUT!BB20 -> 4 | AI20: =INPUT!BD20 -> B | AJ20: =INPUT!BE20 -> 4171 | AK20: =INPUT!BG20 -> A | AL20: =INPUT!BH20 -> 3.6 | AM20: =INPUT!BK20 -> ABS | AN20: =INPUT!BL20 -> ABS | AO20: =INPUT!BN20 -> * | AP20: =INPUT!BO20 -> - | AQ20: =INPUT!BP20 -> 0 | AR20: =INPUT!BR20 -> ABS | AS20: =INPUT!BS20 -> ABS | AT20: =INPUT!BV20 -> ABS | AU20: =INPUT!BW20 -> ABS | AV20: =INPUT!BY20 ->  | BE20: =AP20&"_"&COUNTIF($AP$5:AP20,AP20) -> -_13
B21: =INPUT!F21 -> 11301336 | C21: =INPUT!C21 -> MOUSAM RAI | D21: =INPUT!D21 -> 2063-06-29 | E21: =INPUT!E21 -> 801130210017 | F21: =INPUT!G21 -> 0011 | G21: =INPUT!I21 -> C+ | H21: =INPUT!J21 -> 2.4 | I21: =INPUT!M21 -> C+ | J21: =INPUT!N21 -> 2.4 | K21: =INPUT!P21 -> C+ | L21: =INPUT!Q21 -> 0031 | M21: =INPUT!S21 -> C+ | N21: =INPUT!T21 -> 2.4 | O21: =INPUT!W21 -> C+ | P21: =INPUT!X21 -> 2.4 | Q21: =INPUT!Z21 -> C+ | R21: =INPUT!AA21 -> 0051 | S21: =INPUT!AC21 -> A | T21: =INPUT!AD21 -> 3.6 | U21: =INPUT!AG21 -> A+ | V21: =INPUT!AH21 -> 4 | W21: =INPUT!AJ21 -> A+ | X21: =INPUT!AK21 -> 1031 | Y21: =INPUT!AM21 -> B | Z21: =INPUT!AN21 -> 2.8 | AA21: =INPUT!AQ21 -> A | AB21: =INPUT!AR21 -> 3.6 | AC21: =INPUT!AT21 -> B+ | AD21: =INPUT!AU21 -> 4251 | AE21: =INPUT!AW21 -> C | AF21: =INPUT!AX21 -> 2 | AG21: =INPUT!BA21 -> A+ | AH21: =INPUT!BB21 -> 4 | AI21: =INPUT!BD21 -> B | AJ21: =INPUT!BE21 -> 4171 | AK21: =INPUT!BG21 -> C+ | AL21: =INPUT!BH21 -> 2.4 | AM21: =INPUT!BK21 -> ABS | AN21: =INPUT!BL21 -> ABS | AO21: =INPUT!BN21 -> * | AP21: =INPUT!BO21 -> - | AQ21: =INPUT!BP21 -> 0 | AR21: =INPUT!BR21 -> ABS | AS21: =INPUT!BS21 -> ABS | AT21: =INPUT!BV21 -> ABS | AU21: =INPUT!BW21 -> ABS | AV21: =INPUT!BY21 ->  | BE21: =AP21&"_"&COUNTIF($AP$5:AP21,AP21) -> -_14
B22: =INPUT!F22 -> 11301337 | C22: =INPUT!C22 -> NANIMA SHRESTHA | D22: =INPUT!D22 -> 2064-11-16 | E22: =INPUT!E22 -> 801130210018 | F22: =INPUT!G22 -> 0011 | G22: =INPUT!I22 -> C+ | H22: =INPUT!J22 -> 2.4 | I22: =INPUT!M22 -> C | J22: =INPUT!N22 -> 2 | K22: =INPUT!P22 -> C+ | L22: =INPUT!Q22 -> 0031 | M22: =INPUT!S22 -> C+ | N22: =INPUT!T22 -> 2.4 | O22: =INPUT!W22 -> C | P22: =INPUT!X22 -> 2 | Q22: =INPUT!Z22 -> C+ | R22: =INPUT!AA22 -> 0051 | S22: =INPUT!AC22 -> A | T22: =INPUT!AD22 -> 3.6 | U22: =INPUT!AG22 -> A+ | V22: =INPUT!AH22 -> 4 | W22: =INPUT!AJ22 -> A+ | X22: =INPUT!AK22 -> 1031 | Y22: =INPUT!AM22 -> B+ | Z22: =INPUT!AN22 -> 3.2 | AA22: =INPUT!AQ22 -> A | AB22: =INPUT!AR22 -> 3.6 | AC22: =INPUT!AT22 -> A | AD22: =INPUT!AU22 -> 4251 | AE22: =INPUT!AW22 -> C | AF22: =INPUT!AX22 -> 2 | AG22: =INPUT!BA22 -> A+ | AH22: =INPUT!BB22 -> 4 | AI22: =INPUT!BD22 -> B | AJ22: =INPUT!BE22 -> 4171 | AK22: =INPUT!BG22 -> B | AL22: =INPUT!BH22 -> 2.8 | AM22: =INPUT!BK22 -> ABS | AN22: =INPUT!BL22 -> ABS | AO22: =INPUT!BN22 -> * | AP22: =INPUT!BO22 -> - | AQ22: =INPUT!BP22 -> 0 | AR22: =INPUT!BR22 -> ABS | AS22: =INPUT!BS22 -> ABS | AT22: =INPUT!BV22 -> ABS | AU22: =INPUT!BW22 -> ABS | AV22: =INPUT!BY22 ->  | BE22: =AP22&"_"&COUNTIF($AP$5:AP22,AP22) -> -_15
B23: =INPUT!F23 -> 11301338 | C23: =INPUT!C23 -> PRABIN TAMANG | D23: =INPUT!D23 -> 2062-02-27 | E23: =INPUT!E23 -> 801130210019 | F23: =INPUT!G23 -> 0011 | G23: =INPUT!I23 -> C+ | H23: =INPUT!J23 -> 2.4 | I23: =INPUT!M23 -> C+ | J23: =INPUT!N23 -> 2.4 | K23: =INPUT!P23 -> C+ | L23: =INPUT!Q23 -> 0031 | M23: =INPUT!S23 -> C+ | N23: =INPUT!T23 -> 2.4 | O23: =INPUT!W23 -> C+ | P23: =INPUT!X23 -> 2.4 | Q23: =INPUT!Z23 -> C+ | R23: =INPUT!AA23 -> 0051 | S23: =INPUT!AC23 -> A | T23: =INPUT!AD23 -> 3.6 | U23: =INPUT!AG23 -> A+ | V23: =INPUT!AH23 -> 4 | W23: =INPUT!AJ23 -> A+ | X23: =INPUT!AK23 -> 1031 | Y23: =INPUT!AM23 -> B | Z23: =INPUT!AN23 -> 2.8 | AA23: =INPUT!AQ23 -> A | AB23: =INPUT!AR23 -> 3.6 | AC23: =INPUT!AT23 -> B+ | AD23: =INPUT!AU23 -> 4251 | AE23: =INPUT!AW23 -> C | AF23: =INPUT!AX23 -> 2 | AG23: =INPUT!BA23 -> A+ | AH23: =INPUT!BB23 -> 4 | AI23: =INPUT!BD23 -> B | AJ23: =INPUT!BE23 -> 4171 | AK23: =INPUT!BG23 -> B | AL23: =INPUT!BH23 -> 2.8 | AM23: =INPUT!BK23 -> ABS | AN23: =INPUT!BL23 -> ABS | AO23: =INPUT!BN23 -> * | AP23: =INPUT!BO23 -> - | AQ23: =INPUT!BP23 -> 0 | AR23: =INPUT!BR23 -> ABS | AS23: =INPUT!BS23 -> ABS | AT23: =INPUT!BV23 -> ABS | AU23: =INPUT!BW23 -> ABS | AV23: =INPUT!BY23 ->  | BE23: =AP23&"_"&COUNTIF($AP$5:AP23,AP23) -> -_16
B24: =INPUT!F24 -> 11301339 | C24: =INPUT!C24 -> PRAMISAN RAI | D24: =INPUT!D24 -> 2063-05-27 | E24: =INPUT!E24 -> 801130210020 | F24: =INPUT!G24 -> 0011 | G24: =INPUT!I24 -> C+ | H24: =INPUT!J24 -> 2.4 | I24: =INPUT!M24 -> C+ | J24: =INPUT!N24 -> 2.4 | K24: =INPUT!P24 -> C+ | L24: =INPUT!Q24 -> 0031 | M24: =INPUT!S24 -> C+ | N24: =INPUT!T24 -> 2.4 | O24: =INPUT!W24 -> C+ | P24: =INPUT!X24 -> 2.4 | Q24: =INPUT!Z24 -> C+ | R24: =INPUT!AA24 -> 0051 | S24: =INPUT!AC24 -> A | T24: =INPUT!AD24 -> 3.6 | U24: =INPUT!AG24 -> A+ | V24: =INPUT!AH24 -> 4 | W24: =INPUT!AJ24 -> A+ | X24: =INPUT!AK24 -> 1031 | Y24: =INPUT!AM24 -> B | Z24: =INPUT!AN24 -> 2.8 | AA24: =INPUT!AQ24 -> A | AB24: =INPUT!AR24 -> 3.6 | AC24: =INPUT!AT24 -> B+ | AD24: =INPUT!AU24 -> 4251 | AE24: =INPUT!AW24 -> C+ | AF24: =INPUT!AX24 -> 2.4 | AG24: =INPUT!BA24 -> A+ | AH24: =INPUT!BB24 -> 4 | AI24: =INPUT!BD24 -> B | AJ24: =INPUT!BE24 -> 4171 | AK24: =INPUT!BG24 -> C+ | AL24: =INPUT!BH24 -> 2.4 | AM24: =INPUT!BK24 -> ABS | AN24: =INPUT!BL24 -> ABS | AO24: =INPUT!BN24 -> * | AP24: =INPUT!BO24 -> - | AQ24: =INPUT!BP24 -> 0 | AR24: =INPUT!BR24 -> ABS | AS24: =INPUT!BS24 -> ABS | AT24: =INPUT!BV24 -> ABS | AU24: =INPUT!BW24 -> ABS | AV24: =INPUT!BY24 ->  | BE24: =AP24&"_"&COUNTIF($AP$5:AP24,AP24) -> -_17
B25: =INPUT!F25 -> 11301340 | C25: =INPUT!C25 -> REJINA RAI | D25: =INPUT!D25 -> 2062-02-27 | E25: =INPUT!E25 -> 801130210021 | F25: =INPUT!G25 -> 0011 | G25: =INPUT!I25 -> A+ | H25: =INPUT!J25 -> 4 | I25: =INPUT!M25 -> A | J25: =INPUT!N25 -> 3.6 | K25: =INPUT!P25 -> A+ | L25: =INPUT!Q25 -> 0031 | M25: =INPUT!S25 -> A+ | N25: =INPUT!T25 -> 4 | O25: =INPUT!W25 -> A | P25: =INPUT!X25 -> 3.6 | Q25: =INPUT!Z25 -> A+ | R25: =INPUT!AA25 -> 0051 | S25: =INPUT!AC25 -> A+ | T25: =INPUT!AD25 -> 4 | U25: =INPUT!AG25 -> A+ | V25: =INPUT!AH25 -> 4 | W25: =INPUT!AJ25 -> A+ | X25: =INPUT!AK25 -> 1031 | Y25: =INPUT!AM25 -> A+ | Z25: =INPUT!AN25 -> 4 | AA25: =INPUT!AQ25 -> A+ | AB25: =INPUT!AR25 -> 4 | AC25: =INPUT!AT25 -> A+ | AD25: =INPUT!AU25 -> 4251 | AE25: =INPUT!AW25 -> B | AF25: =INPUT!AX25 -> 2.8 | AG25: =INPUT!BA25 -> A+ | AH25: =INPUT!BB25 -> 4 | AI25: =INPUT!BD25 -> B+ | AJ25: =INPUT!BE25 -> 4051 | AK25: =INPUT!BG25 -> A+ | AL25: =INPUT!BH25 -> 4 | AM25: =INPUT!BK25 -> ABS | AN25: =INPUT!BL25 -> ABS | AO25: =INPUT!BN25 -> * | AP25: =INPUT!BO25 -> - | AQ25: =INPUT!BP25 -> 0 | AR25: =INPUT!BR25 -> ABS | AS25: =INPUT!BS25 -> ABS | AT25: =INPUT!BV25 -> ABS | AU25: =INPUT!BW25 -> ABS | AV25: =INPUT!BY25 ->  | BE25: =AP25&"_"&COUNTIF($AP$5:AP25,AP25) -> -_18
B26: =INPUT!F26 -> 11301341 | C26: =INPUT!C26 -> ROHAN JOSHI | D26: =INPUT!D26 -> 2062-04-08 | E26: =INPUT!E26 -> 801130210022 | F26: =INPUT!G26 -> 0011 | G26: =INPUT!I26 -> B+ | H26: =INPUT!J26 -> 3.2 | I26: =INPUT!M26 -> B+ | J26: =INPUT!N26 -> 3.2 | K26: =INPUT!P26 -> B+ | L26: =INPUT!Q26 -> 0031 | M26: =INPUT!S26 -> B+ | N26: =INPUT!T26 -> 3.2 | O26: =INPUT!W26 -> B+ | P26: =INPUT!X26 -> 3.2 | Q26: =INPUT!Z26 -> B+ | R26: =INPUT!AA26 -> 0051 | S26: =INPUT!AC26 -> B | T26: =INPUT!AD26 -> 2.8 | U26: =INPUT!AG26 -> A | V26: =INPUT!AH26 -> 3.6 | W26: =INPUT!AJ26 -> B+ | X26: =INPUT!AK26 -> 1031 | Y26: =INPUT!AM26 -> A | Z26: =INPUT!AN26 -> 3.6 | AA26: =INPUT!AQ26 -> A+ | AB26: =INPUT!AR26 -> 4 | AC26: =INPUT!AT26 -> A+ | AD26: =INPUT!AU26 -> 4251 | AE26: =INPUT!AW26 -> C+ | AF26: =INPUT!AX26 -> 2.4 | AG26: =INPUT!BA26 -> A+ | AH26: =INPUT!BB26 -> 4 | AI26: =INPUT!BD26 -> B | AJ26: =INPUT!BE26 -> 4051 | AK26: =INPUT!BG26 -> A | AL26: =INPUT!BH26 -> 3.6 | AM26: =INPUT!BK26 -> ABS | AN26: =INPUT!BL26 -> ABS | AO26: =INPUT!BN26 -> * | AP26: =INPUT!BO26 -> - | AQ26: =INPUT!BP26 -> 0 | AR26: =INPUT!BR26 -> ABS | AS26: =INPUT!BS26 -> ABS | AT26: =INPUT!BV26 -> ABS | AU26: =INPUT!BW26 -> ABS | AV26: =INPUT!BY26 ->  | BE26: =AP26&"_"&COUNTIF($AP$5:AP26,AP26) -> -_19
B27: =INPUT!F27 -> 11301342 | C27: =INPUT!C27 -> SALINA GAJMER | D27: =INPUT!D27 -> 2063-04-25 | E27: =INPUT!E27 -> 801130210023 | F27: =INPUT!G27 -> 0011 | G27: =INPUT!I27 -> C | H27: =INPUT!J27 -> 2 | I27: =INPUT!M27 -> C | J27: =INPUT!N27 -> 2 | K27: =INPUT!P27 -> C | L27: =INPUT!Q27 -> 0031 | M27: =INPUT!S27 -> C | N27: =INPUT!T27 -> 2 | O27: =INPUT!W27 -> C | P27: =INPUT!X27 -> 2 | Q27: =INPUT!Z27 -> C | R27: =INPUT!AA27 -> 0051 | S27: =INPUT!AC27 -> B | T27: =INPUT!AD27 -> 2.8 | U27: =INPUT!AG27 -> A | V27: =INPUT!AH27 -> 3.6 | W27: =INPUT!AJ27 -> B+ | X27: =INPUT!AK27 -> 1031 | Y27: =INPUT!AM27 -> B+ | Z27: =INPUT!AN27 -> 3.2 | AA27: =INPUT!AQ27 -> A | AB27: =INPUT!AR27 -> 3.6 | AC27: =INPUT!AT27 -> A | AD27: =INPUT!AU27 -> 4251 | AE27: =INPUT!AW27 -> C+ | AF27: =INPUT!AX27 -> 2.4 | AG27: =INPUT!BA27 -> A+ | AH27: =INPUT!BB27 -> 4 | AI27: =INPUT!BD27 -> B | AJ27: =INPUT!BE27 -> 4171 | AK27: =INPUT!BG27 -> B+ | AL27: =INPUT!BH27 -> 3.2 | AM27: =INPUT!BK27 -> ABS | AN27: =INPUT!BL27 -> ABS | AO27: =INPUT!BN27 -> * | AP27: =INPUT!BO27 -> - | AQ27: =INPUT!BP27 -> 0 | AR27: =INPUT!BR27 -> ABS | AS27: =INPUT!BS27 -> ABS | AT27: =INPUT!BV27 -> ABS | AU27: =INPUT!BW27 -> ABS | AV27: =INPUT!BY27 ->  | BE27: =AP27&"_"&COUNTIF($AP$5:AP27,AP27) -> -_20
B28: =INPUT!F28 -> 11301343 | C28: =INPUT!C28 -> SAPHAL SHRESTHA | D28: =INPUT!D28 -> 2062-08-06 | E28: =INPUT!E28 -> 801130210024 | F28: =INPUT!G28 -> 0011 | G28: =INPUT!I28 -> B+ | H28: =INPUT!J28 -> 3.2 | I28: =INPUT!M28 -> B+ | J28: =INPUT!N28 -> 3.2 | K28: =INPUT!P28 -> B+ | L28: =INPUT!Q28 -> 0031 | M28: =INPUT!S28 -> B+ | N28: =INPUT!T28 -> 3.2 | O28: =INPUT!W28 -> B+ | P28: =INPUT!X28 -> 3.2 | Q28: =INPUT!Z28 -> B+ | R28: =INPUT!AA28 -> 0051 | S28: =INPUT!AC28 -> B+ | T28: =INPUT!AD28 -> 3.2 | U28: =INPUT!AG28 -> A | V28: =INPUT!AH28 -> 3.6 | W28: =INPUT!AJ28 -> A | X28: =INPUT!AK28 -> 1031 | Y28: =INPUT!AM28 -> A+ | Z28: =INPUT!AN28 -> 4 | AA28: =INPUT!AQ28 -> A+ | AB28: =INPUT!AR28 -> 4 | AC28: =INPUT!AT28 -> A+ | AD28: =INPUT!AU28 -> 4251 | AE28: =INPUT!AW28 -> C+ | AF28: =INPUT!AX28 -> 2.4 | AG28: =INPUT!BA28 -> A+ | AH28: =INPUT!BB28 -> 4 | AI28: =INPUT!BD28 -> B | AJ28: =INPUT!BE28 -> 4171 | AK28: =INPUT!BG28 -> B+ | AL28: =INPUT!BH28 -> 3.2 | AM28: =INPUT!BK28 -> ABS | AN28: =INPUT!BL28 -> ABS | AO28: =INPUT!BN28 -> * | AP28: =INPUT!BO28 -> - | AQ28: =INPUT!BP28 -> 0 | AR28: =INPUT!BR28 -> ABS | AS28: =INPUT!BS28 -> ABS | AT28: =INPUT!BV28 -> ABS | AU28: =INPUT!BW28 -> ABS | AV28: =INPUT!BY28 ->  | BE28: =AP28&"_"&COUNTIF($AP$5:AP28,AP28) -> -_21
B29: =INPUT!F29 -> 11301344 | C29: =INPUT!C29 -> SAUGAT SHRESTHA | D29: =INPUT!D29 -> 2062-01-05 | E29: =INPUT!E29 -> 801130210025 | F29: =INPUT!G29 -> 0011 | G29: =INPUT!I29 -> C+ | H29: =INPUT!J29 -> 2.4 | I29: =INPUT!M29 -> C | J29: =INPUT!N29 -> 2 | K29: =INPUT!P29 -> C+ | L29: =INPUT!Q29 -> 0031 | M29: =INPUT!S29 -> C+ | N29: =INPUT!T29 -> 2.4 | O29: =INPUT!W29 -> C | P29: =INPUT!X29 -> 2 | Q29: =INPUT!Z29 -> C+ | R29: =INPUT!AA29 -> 0051 | S29: =INPUT!AC29 -> B+ | T29: =INPUT!AD29 -> 3.2 | U29: =INPUT!AG29 -> A | V29: =INPUT!AH29 -> 3.6 | W29: =INPUT!AJ29 -> A | X29: =INPUT!AK29 -> 1031 | Y29: =INPUT!AM29 -> B | Z29: =INPUT!AN29 -> 2.8 | AA29: =INPUT!AQ29 -> A | AB29: =INPUT!AR29 -> 3.6 | AC29: =INPUT!AT29 -> B+ | AD29: =INPUT!AU29 -> 4251 | AE29: =INPUT!AW29 -> C | AF29: =INPUT!AX29 -> 2 | AG29: =INPUT!BA29 -> A+ | AH29: =INPUT!BB29 -> 4 | AI29: =INPUT!BD29 -> B | AJ29: =INPUT!BE29 -> 4171 | AK29: =INPUT!BG29 -> C+ | AL29: =INPUT!BH29 -> 2.4 | AM29: =INPUT!BK29 -> ABS | AN29: =INPUT!BL29 -> ABS | AO29: =INPUT!BN29 -> * | AP29: =INPUT!BO29 -> - | AQ29: =INPUT!BP29 -> 0 | AR29: =INPUT!BR29 -> ABS | AS29: =INPUT!BS29 -> ABS | AT29: =INPUT!BV29 -> ABS | AU29: =INPUT!BW29 -> ABS | AV29: =INPUT!BY29 ->  | BE29: =AP29&"_"&COUNTIF($AP$5:AP29,AP29) -> -_22
B30: =INPUT!F30 -> 11301345 | C30: =INPUT!C30 -> SIKSHA RAI | D30: =INPUT!D30 -> 2064-03-21 | E30: =INPUT!E30 -> 801130210026 | F30: =INPUT!G30 -> 0011 | G30: =INPUT!I30 -> B | H30: =INPUT!J30 -> 2.8 | I30: =INPUT!M30 -> C+ | J30: =INPUT!N30 -> 2.4 | K30: =INPUT!P30 -> B | L30: =INPUT!Q30 -> 0031 | M30: =INPUT!S30 -> B | N30: =INPUT!T30 -> 2.8 | O30: =INPUT!W30 -> C+ | P30: =INPUT!X30 -> 2.4 | Q30: =INPUT!Z30 -> B | R30: =INPUT!AA30 -> 0051 | S30: =INPUT!AC30 -> A+ | T30: =INPUT!AD30 -> 4 | U30: =INPUT!AG30 -> A+ | V30: =INPUT!AH30 -> 4 | W30: =INPUT!AJ30 -> A+ | X30: =INPUT!AK30 -> 1031 | Y30: =INPUT!AM30 -> A+ | Z30: =INPUT!AN30 -> 4 | AA30: =INPUT!AQ30 -> A+ | AB30: =INPUT!AR30 -> 4 | AC30: =INPUT!AT30 -> A+ | AD30: =INPUT!AU30 -> 4251 | AE30: =INPUT!AW30 -> C+ | AF30: =INPUT!AX30 -> 2.4 | AG30: =INPUT!BA30 -> A+ | AH30: =INPUT!BB30 -> 4 | AI30: =INPUT!BD30 -> B | AJ30: =INPUT!BE30 -> 4051 | AK30: =INPUT!BG30 -> A+ | AL30: =INPUT!BH30 -> 4 | AM30: =INPUT!BK30 -> ABS | AN30: =INPUT!BL30 -> ABS | AO30: =INPUT!BN30 -> * | AP30: =INPUT!BO30 -> - | AQ30: =INPUT!BP30 -> 0 | AR30: =INPUT!BR30 -> ABS | AS30: =INPUT!BS30 -> ABS | AT30: =INPUT!BV30 -> ABS | AU30: =INPUT!BW30 -> ABS | AV30: =INPUT!BY30 ->  | BE30: =AP30&"_"&COUNTIF($AP$5:AP30,AP30) -> -_23
B31: =INPUT!F31 -> 0 | C31: =INPUT!C31 -> ESAN RAI | D31: =INPUT!D31 -> MALE | E31: =INPUT!E31 -> 58291 | F31: =INPUT!G31 -> 0011 | G31: =INPUT!I31 -> ABS | H31: =INPUT!J31 -> ABS | I31: =INPUT!M31 -> ABS | J31: =INPUT!N31 -> ABS | K31: =INPUT!P31 -> * | L31: =INPUT!Q31 -> 0031 | M31: =INPUT!S31 -> ABS | N31: =INPUT!T31 -> ABS | O31: =INPUT!W31 -> ABS | P31: =INPUT!X31 -> ABS | Q31: =INPUT!Z31 -> * | R31: =INPUT!AA31 -> 0051 | S31: =INPUT!AC31 -> ABS | T31: =INPUT!AD31 -> ABS | U31: =INPUT!AG31 -> ABS | V31: =INPUT!AH31 -> ABS | W31: =INPUT!AJ31 -> * | X31: =INPUT!AK31 -> 0 | Y31: =INPUT!AM31 -> ABS | Z31: =INPUT!AN31 -> ABS | AA31: =INPUT!AQ31 -> ABS | AB31: =INPUT!AR31 -> ABS | AC31: =INPUT!AT31 -> * | AD31: =INPUT!AU31 -> 0 | AE31: =INPUT!AW31 -> ABS | AF31: =INPUT!AX31 -> ABS | AG31: =INPUT!BA31 -> ABS | AH31: =INPUT!BB31 -> ABS | AI31: =INPUT!BD31 -> * | AJ31: =INPUT!BE31 -> 0 | AK31: =INPUT!BG31 -> ABS | AL31: =INPUT!BH31 -> ABS | AM31: =INPUT!BK31 -> ABS | AN31: =INPUT!BL31 -> ABS | AO31: =INPUT!BN31 -> * | AP31: =INPUT!BO31 -> - | AQ31: =INPUT!BP31 -> 0 | AR31: =INPUT!BR31 -> ABS | AS31: =INPUT!BS31 -> ABS | AT31: =INPUT!BV31 -> ABS | AU31: =INPUT!BW31 -> ABS | AV31: =INPUT!BY31 ->  | AX31: ABS | BE31: =AP31&"_"&COUNTIF($AP$5:AP31,AP31) -> -_24
B32: =INPUT!F32 -> 0 | C32: =INPUT!C32 -> ESHAN RAI | D32: =INPUT!D32 -> MALE | E32: =INPUT!E32 -> 59856 | F32: =INPUT!G32 -> 0011 | G32: =INPUT!I32 -> ABS | H32: =INPUT!J32 -> ABS | I32: =INPUT!M32 -> ABS | J32: =INPUT!N32 -> ABS | K32: =INPUT!P32 -> * | L32: =INPUT!Q32 -> 0031 | M32: =INPUT!S32 -> ABS | N32: =INPUT!T32 -> ABS | O32: =INPUT!W32 -> ABS | P32: =INPUT!X32 -> ABS | Q32: =INPUT!Z32 -> * | R32: =INPUT!AA32 -> 0051 | S32: =INPUT!AC32 -> ABS | T32: =INPUT!AD32 -> ABS | U32: =INPUT!AG32 -> ABS | V32: =INPUT!AH32 -> ABS | W32: =INPUT!AJ32 -> * | X32: =INPUT!AK32 -> 0 | Y32: =INPUT!AM32 -> ABS | Z32: =INPUT!AN32 -> ABS | AA32: =INPUT!AQ32 -> ABS | AB32: =INPUT!AR32 -> ABS | AC32: =INPUT!AT32 -> * | AD32: =INPUT!AU32 -> 0 | AE32: =INPUT!AW32 -> ABS | AF32: =INPUT!AX32 -> ABS | AG32: =INPUT!BA32 -> ABS | AH32: =INPUT!BB32 -> ABS | AI32: =INPUT!BD32 -> * | AJ32: =INPUT!BE32 -> 0 | AK32: =INPUT!BG32 -> ABS | AL32: =INPUT!BH32 -> ABS | AM32: =INPUT!BK32 -> ABS | AN32: =INPUT!BL32 -> ABS | AO32: =INPUT!BN32 -> * | AP32: =INPUT!BO32 -> - | AQ32: =INPUT!BP32 -> 0 | AR32: =INPUT!BR32 -> ABS | AS32: =INPUT!BS32 -> ABS | AT32: =INPUT!BV32 -> ABS | AU32: =INPUT!BW32 -> ABS | AV32: =INPUT!BY32 ->  | AX32: ABS | BE32: =AP32&"_"&COUNTIF($AP$5:AP32,AP32) -> -_25
B33: =INPUT!F33 -> 0 | C33: =INPUT!C33 -> INDESH RAI | D33: =INPUT!D33 -> MALE | E33: =INPUT!E33 -> 58546 | F33: =INPUT!G33 -> 0011 | G33: =INPUT!I33 -> ABS | H33: =INPUT!J33 -> ABS | I33: =INPUT!M33 -> ABS | J33: =INPUT!N33 -> ABS | K33: =INPUT!P33 -> * | L33: =INPUT!Q33 -> 0031 | M33: =INPUT!S33 -> ABS | N33: =INPUT!T33 -> ABS | O33: =INPUT!W33 -> ABS | P33: =INPUT!X33 -> ABS | Q33: =INPUT!Z33 -> * | R33: =INPUT!AA33 -> 0051 | S33: =INPUT!AC33 -> ABS | T33: =INPUT!AD33 -> ABS | U33: =INPUT!AG33 -> ABS | V33: =INPUT!AH33 -> ABS | W33: =INPUT!AJ33 -> * | X33: =INPUT!AK33 -> 0 | Y33: =INPUT!AM33 -> ABS | Z33: =INPUT!AN33 -> ABS | AA33: =INPUT!AQ33 -> ABS | AB33: =INPUT!AR33 -> ABS | AC33: =INPUT!AT33 -> * | AD33: =INPUT!AU33 -> 0 | AE33: =INPUT!AW33 -> ABS | AF33: =INPUT!AX33 -> ABS | AG33: =INPUT!BA33 -> ABS | AH33: =INPUT!BB33 -> ABS | AI33: =INPUT!BD33 -> * | AJ33: =INPUT!BE33 -> 0 | AK33: =INPUT!BG33 -> ABS | AL33: =INPUT!BH33 -> ABS | AM33: =INPUT!BK33 -> ABS | AN33: =INPUT!BL33 -> ABS | AO33: =INPUT!BN33 -> * | AP33: =INPUT!BO33 -> - | AQ33: =INPUT!BP33 -> 0 | AR33: =INPUT!BR33 -> ABS | AS33: =INPUT!BS33 -> ABS | AT33: =INPUT!BV33 -> ABS | AU33: =INPUT!BW33 -> ABS | AV33: =INPUT!BY33 ->  | AX33: ABS | BE33: =AP33&"_"&COUNTIF($AP$5:AP33,AP33) -> -_26
B34: =INPUT!F34 -> 0 | C34: =INPUT!C34 -> JENY RAI | D34: =INPUT!D34 -> FEMALE | E34: =INPUT!E34 -> 58353 | F34: =INPUT!G34 -> 0011 | G34: =INPUT!I34 -> ABS | H34: =INPUT!J34 -> ABS | I34: =INPUT!M34 -> ABS | J34: =INPUT!N34 -> ABS | K34: =INPUT!P34 -> * | L34: =INPUT!Q34 -> 0031 | M34: =INPUT!S34 -> ABS | N34: =INPUT!T34 -> ABS | O34: =INPUT!W34 -> ABS | P34: =INPUT!X34 -> ABS | Q34: =INPUT!Z34 -> * | R34: =INPUT!AA34 -> 0051 | S34: =INPUT!AC34 -> ABS | T34: =INPUT!AD34 -> ABS | U34: =INPUT!AG34 -> ABS | V34: =INPUT!AH34 -> ABS | W34: =INPUT!AJ34 -> * | X34: =INPUT!AK34 -> 0 | Y34: =INPUT!AM34 -> ABS | Z34: =INPUT!AN34 -> ABS | AA34: =INPUT!AQ34 -> ABS | AB34: =INPUT!AR34 -> ABS | AC34: =INPUT!AT34 -> * | AD34: =INPUT!AU34 -> 0 | AE34: =INPUT!AW34 -> ABS | AF34: =INPUT!AX34 -> ABS | AG34: =INPUT!BA34 -> ABS | AH34: =INPUT!BB34 -> ABS | AI34: =INPUT!BD34 -> * | AJ34: =INPUT!BE34 -> 0 | AK34: =INPUT!BG34 -> ABS | AL34: =INPUT!BH34 -> ABS | AM34: =INPUT!BK34 -> ABS | AN34: =INPUT!BL34 -> ABS | AO34: =INPUT!BN34 -> * | AP34: =INPUT!BO34 -> - | AQ34: =INPUT!BP34 -> 0 | AR34: =INPUT!BR34 -> ABS | AS34: =INPUT!BS34 -> ABS | AT34: =INPUT!BV34 -> ABS | AU34: =INPUT!BW34 -> ABS | AV34: =INPUT!BY34 ->  | AX34: ABS | BE34: =AP34&"_"&COUNTIF($AP$5:AP34,AP34) -> -_27
B35: =INPUT!F35 -> 0 | C35: =INPUT!C35 -> MANOJ MAGAR | D35: =INPUT!D35 -> MALE | E35: =INPUT!E35 -> 59378 | F35: =INPUT!G35 -> 0011 | G35: =INPUT!I35 -> ABS | H35: =INPUT!J35 -> ABS | I35: =INPUT!M35 -> ABS | J35: =INPUT!N35 -> ABS | K35: =INPUT!P35 -> * | L35: =INPUT!Q35 -> 0031 | M35: =INPUT!S35 -> ABS | N35: =INPUT!T35 -> ABS | O35: =INPUT!W35 -> ABS | P35: =INPUT!X35 -> ABS | Q35: =INPUT!Z35 -> * | R35: =INPUT!AA35 -> 0051 | S35: =INPUT!AC35 -> ABS | T35: =INPUT!AD35 -> ABS | U35: =INPUT!AG35 -> ABS | V35: =INPUT!AH35 -> ABS | W35: =INPUT!AJ35 -> * | X35: =INPUT!AK35 -> 0 | Y35: =INPUT!AM35 -> ABS | Z35: =INPUT!AN35 -> ABS | AA35: =INPUT!AQ35 -> ABS | AB35: =INPUT!AR35 -> ABS | AC35: =INPUT!AT35 -> * | AD35: =INPUT!AU35 -> 0 | AE35: =INPUT!AW35 -> ABS | AF35: =INPUT!AX35 -> ABS | AG35: =INPUT!BA35 -> ABS | AH35: =INPUT!BB35 -> ABS | AI35: =INPUT!BD35 -> * | AJ35: =INPUT!BE35 -> 0 | AK35: =INPUT!BG35 -> ABS | AL35: =INPUT!BH35 -> ABS | AM35: =INPUT!BK35 -> ABS | AN35: =INPUT!BL35 -> ABS | AO35: =INPUT!BN35 -> * | AP35: =INPUT!BO35 -> - | AQ35: =INPUT!BP35 -> 0 | AR35: =INPUT!BR35 -> ABS | AS35: =INPUT!BS35 -> ABS | AT35: =INPUT!BV35 -> ABS | AU35: =INPUT!BW35 -> ABS | AV35: =INPUT!BY35 ->  | AX35: ABS | BE35: =AP35&"_"&COUNTIF($AP$5:AP35,AP35) -> -_28
B36: =INPUT!F36 -> 0 | C36: =INPUT!C36 -> 0 | D36: =INPUT!D36 -> 00:00:00 | E36: =INPUT!E36 -> 0 | F36: =INPUT!G36 -> 0011 | G36: =INPUT!I36 -> ABS | H36: =INPUT!J36 -> ABS | I36: =INPUT!M36 -> ABS | J36: =INPUT!N36 -> ABS | K36: =INPUT!P36 -> * | L36: =INPUT!Q36 -> 0031 | M36: =INPUT!S36 -> ABS | N36: =INPUT!T36 -> ABS | O36: =INPUT!W36 -> ABS | P36: =INPUT!X36 -> ABS | Q36: =INPUT!Z36 -> * | R36: =INPUT!AA36 -> 0051 | S36: =INPUT!AC36 -> ABS | T36: =INPUT!AD36 -> ABS | U36: =INPUT!AG36 -> ABS | V36: =INPUT!AH36 -> ABS | W36: =INPUT!AJ36 -> * | X36: =INPUT!AK36 -> 0 | Y36: =INPUT!AM36 -> ABS | Z36: =INPUT!AN36 -> ABS | AA36: =INPUT!AQ36 -> ABS | AB36: =INPUT!AR36 -> ABS | AC36: =INPUT!AT36 -> * | AD36: =INPUT!AU36 -> 0 | AE36: =INPUT!AW36 -> ABS | AF36: =INPUT!AX36 -> ABS | AG36: =INPUT!BA36 -> ABS | AH36: =INPUT!BB36 -> ABS | AI36: =INPUT!BD36 -> * | AJ36: =INPUT!BE36 -> 0 | AK36: =INPUT!BG36 -> ABS | AL36: =INPUT!BH36 -> ABS | AM36: =INPUT!BK36 -> ABS | AN36: =INPUT!BL36 -> ABS | AO36: =INPUT!BN36 -> * | AP36: =INPUT!BO36 -> - | AQ36: =INPUT!BP36 -> 0 | AR36: =INPUT!BR36 -> ABS | AS36: =INPUT!BS36 -> ABS | AT36: =INPUT!BV36 -> ABS | AU36: =INPUT!BW36 -> ABS | AV36: =INPUT!BY36 ->  | AX36: ABS | BE36: =AP36&"_"&COUNTIF($AP$5:AP36,AP36) -> -_29
B37: =INPUT!F37 -> 0 | C37: =INPUT!C37 -> 0 | D37: =INPUT!D37 -> 00:00:00 | E37: =INPUT!E37 -> 0 | F37: =INPUT!G37 -> 0011 | G37: =INPUT!I37 -> ABS | H37: =INPUT!J37 -> ABS | I37: =INPUT!M37 -> ABS | J37: =INPUT!N37 -> ABS | K37: =INPUT!P37 -> * | L37: =INPUT!Q37 -> 0031 | M37: =INPUT!S37 -> ABS | N37: =INPUT!T37 -> ABS | O37: =INPUT!W37 -> ABS | P37: =INPUT!X37 -> ABS | Q37: =INPUT!Z37 -> * | R37: =INPUT!AA37 -> 0051 | S37: =INPUT!AC37 -> ABS | T37: =INPUT!AD37 -> ABS | U37: =INPUT!AG37 -> ABS | V37: =INPUT!AH37 -> ABS | W37: =INPUT!AJ37 -> * | X37: =INPUT!AK37 -> 0 | Y37: =INPUT!AM37 -> ABS | Z37: =INPUT!AN37 -> ABS | AA37: =INPUT!AQ37 -> ABS | AB37: =INPUT!AR37 -> ABS | AC37: =INPUT!AT37 -> * | AD37: =INPUT!AU37 -> 0 | AE37: =INPUT!AW37 -> ABS | AF37: =INPUT!AX37 -> ABS | AG37: =INPUT!BA37 -> ABS | AH37: =INPUT!BB37 -> ABS | AI37: =INPUT!BD37 -> * | AJ37: =INPUT!BE37 -> 0 | AK37: =INPUT!BG37 -> ABS | AL37: =INPUT!BH37 -> ABS | AM37: =INPUT!BK37 -> ABS | AN37: =INPUT!BL37 -> ABS | AO37: =INPUT!BN37 -> * | AP37: =INPUT!BO37 -> - | AQ37: =INPUT!BP37 -> 0 | AR37: =INPUT!BR37 -> ABS | AS37: =INPUT!BS37 -> ABS | AT37: =INPUT!BV37 -> ABS | AU37: =INPUT!BW37 -> ABS | AV37: =INPUT!BY37 ->  | AX37: ABS | BE37: =AP37&"_"&COUNTIF($AP$5:AP37,AP37) -> -_30
B38: =INPUT!F38 -> 0 | C38: =INPUT!C38 -> 0 | D38: =INPUT!D38 -> 00:00:00 | E38: =INPUT!E38 -> 0 | F38: =INPUT!G38 -> 0011 | G38: =INPUT!I38 -> ABS | H38: =INPUT!J38 -> ABS | I38: =INPUT!M38 -> ABS | J38: =INPUT!N38 -> ABS | K38: =INPUT!P38 -> * | L38: =INPUT!Q38 -> 0031 | M38: =INPUT!S38 -> ABS | N38: =INPUT!T38 -> ABS | O38: =INPUT!W38 -> ABS | P38: =INPUT!X38 -> ABS | Q38: =INPUT!Z38 -> * | R38: =INPUT!AA38 -> 0051 | S38: =INPUT!AC38 -> ABS | T38: =INPUT!AD38 -> ABS | U38: =INPUT!AG38 -> ABS | V38: =INPUT!AH38 -> ABS | W38: =INPUT!AJ38 -> * | X38: =INPUT!AK38 -> 0 | Y38: =INPUT!AM38 -> ABS | Z38: =INPUT!AN38 -> ABS | AA38: =INPUT!AQ38 -> ABS | AB38: =INPUT!AR38 -> ABS | AC38: =INPUT!AT38 -> * | AD38: =INPUT!AU38 -> 0 | AE38: =INPUT!AW38 -> ABS | AF38: =INPUT!AX38 -> ABS | AG38: =INPUT!BA38 -> ABS | AH38: =INPUT!BB38 -> ABS | AI38: =INPUT!BD38 -> * | AJ38: =INPUT!BE38 -> 0 | AK38: =INPUT!BG38 -> ABS | AL38: =INPUT!BH38 -> ABS | AM38: =INPUT!BK38 -> ABS | AN38: =INPUT!BL38 -> ABS | AO38: =INPUT!BN38 -> * | AP38: =INPUT!BO38 -> - | AQ38: =INPUT!BP38 -> 0 | AR38: =INPUT!BR38 -> ABS | AS38: =INPUT!BS38 -> ABS | AT38: =INPUT!BV38 -> ABS | AU38: =INPUT!BW38 -> ABS | AV38: =INPUT!BY38 ->  | AX38: ABS | BE38: =AP38&"_"&COUNTIF($AP$5:AP38,AP38) -> -_31
B39: =INPUT!F39 -> 0 | C39: =INPUT!C39 -> 0 | D39: =INPUT!D39 -> 00:00:00 | E39: =INPUT!E39 -> 0 | F39: =INPUT!G39 -> 0011 | G39: =INPUT!I39 -> ABS | H39: =INPUT!J39 -> ABS | I39: =INPUT!M39 -> ABS | J39: =INPUT!N39 -> ABS | K39: =INPUT!P39 -> * | L39: =INPUT!Q39 -> 0031 | M39: =INPUT!S39 -> ABS | N39: =INPUT!T39 -> ABS | O39: =INPUT!W39 -> ABS | P39: =INPUT!X39 -> ABS | Q39: =INPUT!Z39 -> * | R39: =INPUT!AA39 -> 0051 | S39: =INPUT!AC39 -> ABS | T39: =INPUT!AD39 -> ABS | U39: =INPUT!AG39 -> ABS | V39: =INPUT!AH39 -> ABS | W39: =INPUT!AJ39 -> * | X39: =INPUT!AK39 -> 0 | Y39: =INPUT!AM39 -> ABS | Z39: =INPUT!AN39 -> ABS | AA39: =INPUT!AQ39 -> ABS | AB39: =INPUT!AR39 -> ABS | AC39: =INPUT!AT39 -> * | AD39: =INPUT!AU39 -> 0 | AE39: =INPUT!AW39 -> ABS | AF39: =INPUT!AX39 -> ABS | AG39: =INPUT!BA39 -> ABS | AH39: =INPUT!BB39 -> ABS | AI39: =INPUT!BD39 -> * | AJ39: =INPUT!BE39 -> 0 | AK39: =INPUT!BG39 -> ABS | AL39: =INPUT!BH39 -> ABS | AM39: =INPUT!BK39 -> ABS | AN39: =INPUT!BL39 -> ABS | AO39: =INPUT!BN39 -> * | AP39: =INPUT!BO39 -> - | AQ39: =INPUT!BP39 -> 0 | AR39: =INPUT!BR39 -> ABS | AS39: =INPUT!BS39 -> ABS | AT39: =INPUT!BV39 -> ABS | AU39: =INPUT!BW39 -> ABS | AV39: =INPUT!BY39 ->  | AX39: ABS | BE39: =AP39&"_"&COUNTIF($AP$5:AP39,AP39) -> -_32
B40: =INPUT!F40 -> 0 | C40: =INPUT!C40 -> 0 | D40: =INPUT!D40 -> 00:00:00 | E40: =INPUT!E40 -> 0 | F40: =INPUT!G40 -> 0011 | G40: =INPUT!I40 -> ABS | H40: =INPUT!J40 -> ABS | I40: =INPUT!M40 -> ABS | J40: =INPUT!N40 -> ABS | K40: =INPUT!P40 -> * | L40: =INPUT!Q40 -> 0031 | M40: =INPUT!S40 -> ABS | N40: =INPUT!T40 -> ABS | O40: =INPUT!W40 -> ABS | P40: =INPUT!X40 -> ABS | Q40: =INPUT!Z40 -> * | R40: =INPUT!AA40 -> 0051 | S40: =INPUT!AC40 -> ABS | T40: =INPUT!AD40 -> ABS | U40: =INPUT!AG40 -> ABS | V40: =INPUT!AH40 -> ABS | W40: =INPUT!AJ40 -> * | X40: =INPUT!AK40 -> 0 | Y40: =INPUT!AM40 -> ABS | Z40: =INPUT!AN40 -> ABS | AA40: =INPUT!AQ40 -> ABS | AB40: =INPUT!AR40 -> ABS | AC40: =INPUT!AT40 -> * | AD40: =INPUT!AU40 -> 0 | AE40: =INPUT!AW40 -> ABS | AF40: =INPUT!AX40 -> ABS | AG40: =INPUT!BA40 -> ABS | AH40: =INPUT!BB40 -> ABS | AI40: =INPUT!BD40 -> * | AJ40: =INPUT!BE40 -> 0 | AK40: =INPUT!BG40 -> ABS | AL40: =INPUT!BH40 -> ABS | AM40: =INPUT!BK40 -> ABS | AN40: =INPUT!BL40 -> ABS | AO40: =INPUT!BN40 -> * | AP40: =INPUT!BO40 -> - | AQ40: =INPUT!BP40 -> 0 | AR40: =INPUT!BR40 -> ABS | AS40: =INPUT!BS40 -> ABS | AT40: =INPUT!BV40 -> ABS | AU40: =INPUT!BW40 -> ABS | AV40: =INPUT!BY40 ->  | AX40: ABS | BE40: =AP40&"_"&COUNTIF($AP$5:AP40,AP40) -> -_33
B41: =INPUT!F41 -> 0 | C41: =INPUT!C41 -> 0 | D41: =INPUT!D41 -> 00:00:00 | E41: =INPUT!E41 -> 0 | F41: =INPUT!G41 -> 0011 | G41: =INPUT!I41 -> ABS | H41: =INPUT!J41 -> ABS | I41: =INPUT!M41 -> ABS | J41: =INPUT!N41 -> ABS | K41: =INPUT!P41 -> * | L41: =INPUT!Q41 -> 0031 | M41: =INPUT!S41 -> ABS | N41: =INPUT!T41 -> ABS | O41: =INPUT!W41 -> ABS | P41: =INPUT!X41 -> ABS | Q41: =INPUT!Z41 -> * | R41: =INPUT!AA41 -> 0051 | S41: =INPUT!AC41 -> ABS | T41: =INPUT!AD41 -> ABS | U41: =INPUT!AG41 -> ABS | V41: =INPUT!AH41 -> ABS | W41: =INPUT!AJ41 -> * | X41: =INPUT!AK41 -> 0 | Y41: =INPUT!AM41 -> ABS | Z41: =INPUT!AN41 -> ABS | AA41: =INPUT!AQ41 -> ABS | AB41: =INPUT!AR41 -> ABS | AC41: =INPUT!AT41 -> * | AD41: =INPUT!AU41 -> 0 | AE41: =INPUT!AW41 -> ABS | AF41: =INPUT!AX41 -> ABS | AG41: =INPUT!BA41 -> ABS | AH41: =INPUT!BB41 -> ABS | AI41: =INPUT!BD41 -> * | AJ41: =INPUT!BE41 -> 0 | AK41: =INPUT!BG41 -> ABS | AL41: =INPUT!BH41 -> ABS | AM41: =INPUT!BK41 -> ABS | AN41: =INPUT!BL41 -> ABS | AO41: =INPUT!BN41 -> * | AP41: =INPUT!BO41 -> - | AQ41: =INPUT!BP41 -> 0 | AR41: =INPUT!BR41 -> ABS | AS41: =INPUT!BS41 -> ABS | AT41: =INPUT!BV41 -> ABS | AU41: =INPUT!BW41 -> ABS | AV41: =INPUT!BY41 ->  | AX41: ABS | BE41: =AP41&"_"&COUNTIF($AP$5:AP41,AP41) -> -_34
B42: =INPUT!F42 -> 0 | C42: =INPUT!C42 -> 0 | D42: =INPUT!D42 -> 00:00:00 | E42: =INPUT!E42 -> 0 | F42: =INPUT!G42 -> 0011 | G42: =INPUT!I42 -> ABS | H42: =INPUT!J42 -> ABS | I42: =INPUT!M42 -> ABS | J42: =INPUT!N42 -> ABS | K42: =INPUT!P42 -> * | L42: =INPUT!Q42 -> 0031 | M42: =INPUT!S42 -> ABS | N42: =INPUT!T42 -> ABS | O42: =INPUT!W42 -> ABS | P42: =INPUT!X42 -> ABS | Q42: =INPUT!Z42 -> * | R42: =INPUT!AA42 -> 0051 | S42: =INPUT!AC42 -> ABS | T42: =INPUT!AD42 -> ABS | U42: =INPUT!AG42 -> ABS | V42: =INPUT!AH42 -> ABS | W42: =INPUT!AJ42 -> * | X42: =INPUT!AK42 -> 0 | Y42: =INPUT!AM42 -> ABS | Z42: =INPUT!AN42 -> ABS | AA42: =INPUT!AQ42 -> ABS | AB42: =INPUT!AR42 -> ABS | AC42: =INPUT!AT42 -> * | AD42: =INPUT!AU42 -> 0 | AE42: =INPUT!AW42 -> ABS | AF42: =INPUT!AX42 -> ABS | AG42: =INPUT!BA42 -> ABS | AH42: =INPUT!BB42 -> ABS | AI42: =INPUT!BD42 -> * | AJ42: =INPUT!BE42 -> 0 | AK42: =INPUT!BG42 -> ABS | AL42: =INPUT!BH42 -> ABS | AM42: =INPUT!BK42 -> ABS | AN42: =INPUT!BL42 -> ABS | AO42: =INPUT!BN42 -> * | AP42: =INPUT!BO42 -> - | AQ42: =INPUT!BP42 -> 0 | AR42: =INPUT!BR42 -> ABS | AS42: =INPUT!BS42 -> ABS | AT42: =INPUT!BV42 -> ABS | AU42: =INPUT!BW42 -> ABS | AV42: =INPUT!BY42 ->  | AX42: ABS | BE42: =AP42&"_"&COUNTIF($AP$5:AP42,AP42) -> -_35
B43: =INPUT!F43 -> 0 | C43: =INPUT!C43 -> 0 | D43: =INPUT!D43 -> 00:00:00 | E43: =INPUT!E43 -> 0 | F43: =INPUT!G43 -> 0011 | G43: =INPUT!I43 -> ABS | H43: =INPUT!J43 -> ABS | I43: =INPUT!M43 -> ABS | J43: =INPUT!N43 -> ABS | K43: =INPUT!P43 -> * | L43: =INPUT!Q43 -> 0031 | M43: =INPUT!S43 -> ABS | N43: =INPUT!T43 -> ABS | O43: =INPUT!W43 -> ABS | P43: =INPUT!X43 -> ABS | Q43: =INPUT!Z43 -> * | R43: =INPUT!AA43 -> 0051 | S43: =INPUT!AC43 -> ABS | T43: =INPUT!AD43 -> ABS | U43: =INPUT!AG43 -> ABS | V43: =INPUT!AH43 -> ABS | W43: =INPUT!AJ43 -> * | X43: =INPUT!AK43 -> 0 | Y43: =INPUT!AM43 -> ABS | Z43: =INPUT!AN43 -> ABS | AA43: =INPUT!AQ43 -> ABS | AB43: =INPUT!AR43 -> ABS | AC43: =INPUT!AT43 -> * | AD43: =INPUT!AU43 -> 0 | AE43: =INPUT!AW43 -> ABS | AF43: =INPUT!AX43 -> ABS | AG43: =INPUT!BA43 -> ABS | AH43: =INPUT!BB43 -> ABS | AI43: =INPUT!BD43 -> * | AJ43: =INPUT!BE43 -> 0 | AK43: =INPUT!BG43 -> ABS | AL43: =INPUT!BH43 -> ABS | AM43: =INPUT!BK43 -> ABS | AN43: =INPUT!BL43 -> ABS | AO43: =INPUT!BN43 -> * | AP43: =INPUT!BO43 -> - | AQ43: =INPUT!BP43 -> 0 | AR43: =INPUT!BR43 -> ABS | AS43: =INPUT!BS43 -> ABS | AT43: =INPUT!BV43 -> ABS | AU43: =INPUT!BW43 -> ABS | AV43: =INPUT!BY43 ->  | AX43: ABS | BE43: =AP43&"_"&COUNTIF($AP$5:AP43,AP43) -> -_36
B44: =INPUT!F44 -> 0 | C44: =INPUT!C44 -> 0 | D44: =INPUT!D44 -> 00:00:00 | E44: =INPUT!E44 -> 0 | F44: =INPUT!G44 -> 0011 | G44: =INPUT!I44 -> ABS | H44: =INPUT!J44 -> ABS | I44: =INPUT!M44 -> ABS | J44: =INPUT!N44 -> ABS | K44: =INPUT!P44 -> * | L44: =INPUT!Q44 -> 0031 | M44: =INPUT!S44 -> ABS | N44: =INPUT!T44 -> ABS | O44: =INPUT!W44 -> ABS | P44: =INPUT!X44 -> ABS | Q44: =INPUT!Z44 -> * | R44: =INPUT!AA44 -> 0051 | S44: =INPUT!AC44 -> ABS | T44: =INPUT!AD44 -> ABS | U44: =INPUT!AG44 -> ABS | V44: =INPUT!AH44 -> ABS | W44: =INPUT!AJ44 -> * | X44: =INPUT!AK44 -> 0 | Y44: =INPUT!AM44 -> ABS | Z44: =INPUT!AN44 -> ABS | AA44: =INPUT!AQ44 -> ABS | AB44: =INPUT!AR44 -> ABS | AC44: =INPUT!AT44 -> * | AD44: =INPUT!AU44 -> 0 | AE44: =INPUT!AW44 -> ABS | AF44: =INPUT!AX44 -> ABS | AG44: =INPUT!BA44 -> ABS | AH44: =INPUT!BB44 -> ABS | AI44: =INPUT!BD44 -> * | AJ44: =INPUT!BE44 -> 0 | AK44: =INPUT!BG44 -> ABS | AL44: =INPUT!BH44 -> ABS | AM44: =INPUT!BK44 -> ABS | AN44: =INPUT!BL44 -> ABS | AO44: =INPUT!BN44 -> * | AP44: =INPUT!BO44 -> - | AQ44: =INPUT!BP44 -> 0 | AR44: =INPUT!BR44 -> ABS | AS44: =INPUT!BS44 -> ABS | AT44: =INPUT!BV44 -> ABS | AU44: =INPUT!BW44 -> ABS | AV44: =INPUT!BY44 ->  | AX44: ABS | BE44: =AP44&"_"&COUNTIF($AP$5:AP44,AP44) -> -_37
B45: =INPUT!F45 -> 0 | C45: =INPUT!C45 -> 0 | D45: =INPUT!D45 -> 00:00:00 | E45: =INPUT!E45 -> 0 | F45: =INPUT!G45 -> 0011 | G45: =INPUT!I45 -> ABS | H45: =INPUT!J45 -> ABS | I45: =INPUT!M45 -> ABS | J45: =INPUT!N45 -> ABS | K45: =INPUT!P45 -> * | L45: =INPUT!Q45 -> 0031 | M45: =INPUT!S45 -> ABS | N45: =INPUT!T45 -> ABS | O45: =INPUT!W45 -> ABS | P45: =INPUT!X45 -> ABS | Q45: =INPUT!Z45 -> * | R45: =INPUT!AA45 -> 0051 | S45: =INPUT!AC45 -> ABS | T45: =INPUT!AD45 -> ABS | U45: =INPUT!AG45 -> ABS | V45: =INPUT!AH45 -> ABS | W45: =INPUT!AJ45 -> * | X45: =INPUT!AK45 -> 0 | Y45: =INPUT!AM45 -> ABS | Z45: =INPUT!AN45 -> ABS | AA45: =INPUT!AQ45 -> ABS | AB45: =INPUT!AR45 -> ABS | AC45: =INPUT!AT45 -> * | AD45: =INPUT!AU45 -> 0 | AE45: =INPUT!AW45 -> ABS | AF45: =INPUT!AX45 -> ABS | AG45: =INPUT!BA45 -> ABS | AH45: =INPUT!BB45 -> ABS | AI45: =INPUT!BD45 -> * | AJ45: =INPUT!BE45 -> 0 | AK45: =INPUT!BG45 -> ABS | AL45: =INPUT!BH45 -> ABS | AM45: =INPUT!BK45 -> ABS | AN45: =INPUT!BL45 -> ABS | AO45: =INPUT!BN45 -> * | AP45: =INPUT!BO45 -> - | AQ45: =INPUT!BP45 -> 0 | AR45: =INPUT!BR45 -> ABS | AS45: =INPUT!BS45 -> ABS | AT45: =INPUT!BV45 -> ABS | AU45: =INPUT!BW45 -> ABS | AV45: =INPUT!BY45 ->  | AX45: ABS | BE45: =AP45&"_"&COUNTIF($AP$5:AP45,AP45) -> -_38
B46: =INPUT!F46 -> 0 | C46: =INPUT!C46 -> 0 | D46: =INPUT!D46 -> 00:00:00 | E46: =INPUT!E46 -> 0 | F46: =INPUT!G46 -> 0011 | G46: =INPUT!I46 -> ABS | H46: =INPUT!J46 -> ABS | I46: =INPUT!M46 -> ABS | J46: =INPUT!N46 -> ABS | K46: =INPUT!P46 -> * | L46: =INPUT!Q46 -> 0031 | M46: =INPUT!S46 -> ABS | N46: =INPUT!T46 -> ABS | O46: =INPUT!W46 -> ABS | P46: =INPUT!X46 -> ABS | Q46: =INPUT!Z46 -> * | R46: =INPUT!AA46 -> 0051 | S46: =INPUT!AC46 -> ABS | T46: =INPUT!AD46 -> ABS | U46: =INPUT!AG46 -> ABS | V46: =INPUT!AH46 -> ABS | W46: =INPUT!AJ46 -> * | X46: =INPUT!AK46 -> 0 | Y46: =INPUT!AM46 -> ABS | Z46: =INPUT!AN46 -> ABS | AA46: =INPUT!AQ46 -> ABS | AB46: =INPUT!AR46 -> ABS | AC46: =INPUT!AT46 -> * | AD46: =INPUT!AU46 -> 0 | AE46: =INPUT!AW46 -> ABS | AF46: =INPUT!AX46 -> ABS | AG46: =INPUT!BA46 -> ABS | AH46: =INPUT!BB46 -> ABS | AI46: =INPUT!BD46 -> * | AJ46: =INPUT!BE46 -> 0 | AK46: =INPUT!BG46 -> ABS | AL46: =INPUT!BH46 -> ABS | AM46: =INPUT!BK46 -> ABS | AN46: =INPUT!BL46 -> ABS | AO46: =INPUT!BN46 -> * | AP46: =INPUT!BO46 -> - | AQ46: =INPUT!BP46 -> 0 | AR46: =INPUT!BR46 -> ABS | AS46: =INPUT!BS46 -> ABS | AT46: =INPUT!BV46 -> ABS | AU46: =INPUT!BW46 -> ABS | AV46: =INPUT!BY46 ->  | AX46: ABS | BE46: =AP46&"_"&COUNTIF($AP$5:AP46,AP46) -> -_39
B47: =INPUT!F47 -> 0 | C47: =INPUT!C47 -> 0 | D47: =INPUT!D47 -> 00:00:00 | E47: =INPUT!E47 -> 0 | F47: =INPUT!G47 -> 0011 | G47: =INPUT!I47 -> ABS | H47: =INPUT!J47 -> ABS | I47: =INPUT!M47 -> ABS | J47: =INPUT!N47 -> ABS | K47: =INPUT!P47 -> * | L47: =INPUT!Q47 -> 0031 | M47: =INPUT!S47 -> ABS | N47: =INPUT!T47 -> ABS | O47: =INPUT!W47 -> ABS | P47: =INPUT!X47 -> ABS | Q47: =INPUT!Z47 -> * | R47: =INPUT!AA47 -> 0051 | S47: =INPUT!AC47 -> ABS | T47: =INPUT!AD47 -> ABS | U47: =INPUT!AG47 -> ABS | V47: =INPUT!AH47 -> ABS | W47: =INPUT!AJ47 -> * | X47: =INPUT!AK47 -> 0 | Y47: =INPUT!AM47 -> ABS | Z47: =INPUT!AN47 -> ABS | AA47: =INPUT!AQ47 -> ABS | AB47: =INPUT!AR47 -> ABS | AC47: =INPUT!AT47 -> * | AD47: =INPUT!AU47 -> 0 | AE47: =INPUT!AW47 -> ABS | AF47: =INPUT!AX47 -> ABS | AG47: =INPUT!BA47 -> ABS | AH47: =INPUT!BB47 -> ABS | AI47: =INPUT!BD47 -> * | AJ47: =INPUT!BE47 -> 0 | AK47: =INPUT!BG47 -> ABS | AL47: =INPUT!BH47 -> ABS | AM47: =INPUT!BK47 -> ABS | AN47: =INPUT!BL47 -> ABS | AO47: =INPUT!BN47 -> * | AP47: =INPUT!BO47 -> - | AQ47: =INPUT!BP47 -> 0 | AR47: =INPUT!BR47 -> ABS | AS47: =INPUT!BS47 -> ABS | AT47: =INPUT!BV47 -> ABS | AU47: =INPUT!BW47 -> ABS | AV47: =INPUT!BY47 ->  | AX47: ABS | BE47: =AP47&"_"&COUNTIF($AP$5:AP47,AP47) -> -_40
B48: =INPUT!F48 -> 0 | C48: =INPUT!C48 -> 0 | D48: =INPUT!D48 -> 00:00:00 | E48: =INPUT!E48 -> 0 | F48: =INPUT!G48 -> 0011 | G48: =INPUT!I48 -> ABS | H48: =INPUT!J48 -> ABS | I48: =INPUT!M48 -> ABS | J48: =INPUT!N48 -> ABS | K48: =INPUT!P48 -> * | L48: =INPUT!Q48 -> 0031 | M48: =INPUT!S48 -> ABS | N48: =INPUT!T48 -> ABS | O48: =INPUT!W48 -> ABS | P48: =INPUT!X48 -> ABS | Q48: =INPUT!Z48 -> * | R48: =INPUT!AA48 -> 0051 | S48: =INPUT!AC48 -> ABS | T48: =INPUT!AD48 -> ABS | U48: =INPUT!AG48 -> ABS | V48: =INPUT!AH48 -> ABS | W48: =INPUT!AJ48 -> * | X48: =INPUT!AK48 -> 0 | Y48: =INPUT!AM48 -> ABS | Z48: =INPUT!AN48 -> ABS | AA48: =INPUT!AQ48 -> ABS | AB48: =INPUT!AR48 -> ABS | AC48: =INPUT!AT48 -> * | AD48: =INPUT!AU48 -> 0 | AE48: =INPUT!AW48 -> ABS | AF48: =INPUT!AX48 -> ABS | AG48: =INPUT!BA48 -> ABS | AH48: =INPUT!BB48 -> ABS | AI48: =INPUT!BD48 -> * | AJ48: =INPUT!BE48 -> 0 | AK48: =INPUT!BG48 -> ABS | AL48: =INPUT!BH48 -> ABS | AM48: =INPUT!BK48 -> ABS | AN48: =INPUT!BL48 -> ABS | AO48: =INPUT!BN48 -> * | AP48: =INPUT!BO48 -> - | AQ48: =INPUT!BP48 -> 0 | AR48: =INPUT!BR48 -> ABS | AS48: =INPUT!BS48 -> ABS | AT48: =INPUT!BV48 -> ABS | AU48: =INPUT!BW48 -> ABS | AV48: =INPUT!BY48 ->  | AX48: ABS | BE48: =AP48&"_"&COUNTIF($AP$5:AP48,AP48) -> -_41
B49: =INPUT!F49 -> 0 | C49: =INPUT!C49 -> 0 | D49: =INPUT!D49 -> 00:00:00 | E49: =INPUT!E49 -> 0 | F49: =INPUT!G49 -> 0011 | G49: =INPUT!I49 -> ABS | H49: =INPUT!J49 -> ABS | I49: =INPUT!M49 -> ABS | J49: =INPUT!N49 -> ABS | K49: =INPUT!P49 -> * | L49: =INPUT!Q49 -> 0031 | M49: =INPUT!S49 -> ABS | N49: =INPUT!T49 -> ABS | O49: =INPUT!W49 -> ABS | P49: =INPUT!X49 -> ABS | Q49: =INPUT!Z49 -> * | R49: =INPUT!AA49 -> 0051 | S49: =INPUT!AC49 -> ABS | T49: =INPUT!AD49 -> ABS | U49: =INPUT!AG49 -> ABS | V49: =INPUT!AH49 -> ABS | W49: =INPUT!AJ49 -> * | X49: =INPUT!AK49 -> 0 | Y49: =INPUT!AM49 -> ABS | Z49: =INPUT!AN49 -> ABS | AA49: =INPUT!AQ49 -> ABS | AB49: =INPUT!AR49 -> ABS | AC49: =INPUT!AT49 -> * | AD49: =INPUT!AU49 -> 0 | AE49: =INPUT!AW49 -> ABS | AF49: =INPUT!AX49 -> ABS | AG49: =INPUT!BA49 -> ABS | AH49: =INPUT!BB49 -> ABS | AI49: =INPUT!BD49 -> * | AJ49: =INPUT!BE49 -> 0 | AK49: =INPUT!BG49 -> ABS | AL49: =INPUT!BH49 -> ABS | AM49: =INPUT!BK49 -> ABS | AN49: =INPUT!BL49 -> ABS | AO49: =INPUT!BN49 -> * | AP49: =INPUT!BO49 -> - | AQ49: =INPUT!BP49 -> 0 | AR49: =INPUT!BR49 -> ABS | AS49: =INPUT!BS49 -> ABS | AT49: =INPUT!BV49 -> ABS | AU49: =INPUT!BW49 -> ABS | AV49: =INPUT!BY49 ->  | AX49: ABS | BE49: =AP49&"_"&COUNTIF($AP$5:AP49,AP49) -> -_42
B50: =INPUT!F50 -> 0 | C50: =INPUT!C50 -> 0 | D50: =INPUT!D50 -> 00:00:00 | E50: =INPUT!E50 -> 0 | F50: =INPUT!G50 -> 0011 | G50: =INPUT!I50 -> ABS | H50: =INPUT!J50 -> ABS | I50: =INPUT!M50 -> ABS | J50: =INPUT!N50 -> ABS | K50: =INPUT!P50 -> * | L50: =INPUT!Q50 -> 0031 | M50: =INPUT!S50 -> ABS | N50: =INPUT!T50 -> ABS | O50: =INPUT!W50 -> ABS | P50: =INPUT!X50 -> ABS | Q50: =INPUT!Z50 -> * | R50: =INPUT!AA50 -> 0051 | S50: =INPUT!AC50 -> ABS | T50: =INPUT!AD50 -> ABS | U50: =INPUT!AG50 -> ABS | V50: =INPUT!AH50 -> ABS | W50: =INPUT!AJ50 -> * | X50: =INPUT!AK50 -> 0 | Y50: =INPUT!AM50 -> ABS | Z50: =INPUT!AN50 -> ABS | AA50: =INPUT!AQ50 -> ABS | AB50: =INPUT!AR50 -> ABS | AC50: =INPUT!AT50 -> * | AD50: =INPUT!AU50 -> 0 | AE50: =INPUT!AW50 -> ABS | AF50: =INPUT!AX50 -> ABS | AG50: =INPUT!BA50 -> ABS | AH50: =INPUT!BB50 -> ABS | AI50: =INPUT!BD50 -> * | AJ50: =INPUT!BE50 -> 0 | AK50: =INPUT!BG50 -> ABS | AL50: =INPUT!BH50 -> ABS | AM50: =INPUT!BK50 -> ABS | AN50: =INPUT!BL50 -> ABS | AO50: =INPUT!BN50 -> * | AP50: =INPUT!BO50 -> - | AQ50: =INPUT!BP50 -> 0 | AR50: =INPUT!BR50 -> ABS | AS50: =INPUT!BS50 -> ABS | AT50: =INPUT!BV50 -> ABS | AU50: =INPUT!BW50 -> ABS | AV50: =INPUT!BY50 ->  | AX50: ABS | BE50: =AP50&"_"&COUNTIF($AP$5:AP50,AP50) -> -_43
B51: =INPUT!F51 -> 0 | C51: =INPUT!C51 -> 0 | D51: =INPUT!D51 -> 00:00:00 | E51: =INPUT!E51 -> 0 | F51: =INPUT!G51 -> 0011 | G51: =INPUT!I51 -> ABS | H51: =INPUT!J51 -> ABS | I51: =INPUT!M51 -> ABS | J51: =INPUT!N51 -> ABS | K51: =INPUT!P51 -> * | L51: =INPUT!Q51 -> 0031 | M51: =INPUT!S51 -> ABS | N51: =INPUT!T51 -> ABS | O51: =INPUT!W51 -> ABS | P51: =INPUT!X51 -> ABS | Q51: =INPUT!Z51 -> * | R51: =INPUT!AA51 -> 0051 | S51: =INPUT!AC51 -> ABS | T51: =INPUT!AD51 -> ABS | U51: =INPUT!AG51 -> ABS | V51: =INPUT!AH51 -> ABS | W51: =INPUT!AJ51 -> * | X51: =INPUT!AK51 -> 0 | Y51: =INPUT!AM51 -> ABS | Z51: =INPUT!AN51 -> ABS | AA51: =INPUT!AQ51 -> ABS | AB51: =INPUT!AR51 -> ABS | AC51: =INPUT!AT51 -> * | AD51: =INPUT!AU51 -> 0 | AE51: =INPUT!AW51 -> ABS | AF51: =INPUT!AX51 -> ABS | AG51: =INPUT!BA51 -> ABS | AH51: =INPUT!BB51 -> ABS | AI51: =INPUT!BD51 -> * | AJ51: =INPUT!BE51 -> 0 | AK51: =INPUT!BG51 -> ABS | AL51: =INPUT!BH51 -> ABS | AM51: =INPUT!BK51 -> ABS | AN51: =INPUT!BL51 -> ABS | AO51: =INPUT!BN51 -> * | AP51: =INPUT!BO51 -> - | AQ51: =INPUT!BP51 -> 0 | AR51: =INPUT!BR51 -> ABS | AS51: =INPUT!BS51 -> ABS | AT51: =INPUT!BV51 -> ABS | AU51: =INPUT!BW51 -> ABS | AV51: =INPUT!BY51 ->  | AX51: ABS | BE51: =AP51&"_"&COUNTIF($AP$5:AP51,AP51) -> -_44
B52: =INPUT!F52 -> 0 | C52: =INPUT!C52 -> 0 | D52: =INPUT!D52 -> 00:00:00 | E52: =INPUT!E52 -> 0 | F52: =INPUT!G52 -> 0011 | G52: =INPUT!I52 -> ABS | H52: =INPUT!J52 -> ABS | I52: =INPUT!M52 -> ABS | J52: =INPUT!N52 -> ABS | K52: =INPUT!P52 -> * | L52: =INPUT!Q52 -> 0031 | M52: =INPUT!S52 -> ABS | N52: =INPUT!T52 -> ABS | O52: =INPUT!W52 -> ABS | P52: =INPUT!X52 -> ABS | Q52: =INPUT!Z52 -> * | R52: =INPUT!AA52 -> 0051 | S52: =INPUT!AC52 -> ABS | T52: =INPUT!AD52 -> ABS | U52: =INPUT!AG52 -> ABS | V52: =INPUT!AH52 -> ABS | W52: =INPUT!AJ52 -> * | X52: =INPUT!AK52 -> 0 | Y52: =INPUT!AM52 -> ABS | Z52: =INPUT!AN52 -> ABS | AA52: =INPUT!AQ52 -> ABS | AB52: =INPUT!AR52 -> ABS | AC52: =INPUT!AT52 -> * | AD52: =INPUT!AU52 -> 0 | AE52: =INPUT!AW52 -> ABS | AF52: =INPUT!AX52 -> ABS | AG52: =INPUT!BA52 -> ABS | AH52: =INPUT!BB52 -> ABS | AI52: =INPUT!BD52 -> * | AJ52: =INPUT!BE52 -> 0 | AK52: =INPUT!BG52 -> ABS | AL52: =INPUT!BH52 -> ABS | AM52: =INPUT!BK52 -> ABS | AN52: =INPUT!BL52 -> ABS | AO52: =INPUT!BN52 -> * | AP52: =INPUT!BO52 -> - | AQ52: =INPUT!BP52 -> 0 | AR52: =INPUT!BR52 -> ABS | AS52: =INPUT!BS52 -> ABS | AT52: =INPUT!BV52 -> ABS | AU52: =INPUT!BW52 -> ABS | AV52: =INPUT!BY52 ->  | AX52: ABS | BE52: =AP52&"_"&COUNTIF($AP$5:AP52,AP52) -> -_45
B53: =INPUT!F53 -> 0 | C53: =INPUT!C53 -> 0 | D53: =INPUT!D53 -> 00:00:00 | E53: =INPUT!E53 -> 0 | F53: =INPUT!G53 -> 0011 | G53: =INPUT!I53 -> ABS | H53: =INPUT!J53 -> ABS | I53: =INPUT!M53 -> ABS | J53: =INPUT!N53 -> ABS | K53: =INPUT!P53 -> * | L53: =INPUT!Q53 -> 0031 | M53: =INPUT!S53 -> ABS | N53: =INPUT!T53 -> ABS | O53: =INPUT!W53 -> ABS | P53: =INPUT!X53 -> ABS | Q53: =INPUT!Z53 -> * | R53: =INPUT!AA53 -> 0051 | S53: =INPUT!AC53 -> ABS | T53: =INPUT!AD53 -> ABS | U53: =INPUT!AG53 -> ABS | V53: =INPUT!AH53 -> ABS | W53: =INPUT!AJ53 -> * | X53: =INPUT!AK53 -> 0 | Y53: =INPUT!AM53 -> ABS | Z53: =INPUT!AN53 -> ABS | AA53: =INPUT!AQ53 -> ABS | AB53: =INPUT!AR53 -> ABS | AC53: =INPUT!AT53 -> * | AD53: =INPUT!AU53 -> 0 | AE53: =INPUT!AW53 -> ABS | AF53: =INPUT!AX53 -> ABS | AG53: =INPUT!BA53 -> ABS | AH53: =INPUT!BB53 -> ABS | AI53: =INPUT!BD53 -> * | AJ53: =INPUT!BE53 -> 0 | AK53: =INPUT!BG53 -> ABS | AL53: =INPUT!BH53 -> ABS | AM53: =INPUT!BK53 -> ABS | AN53: =INPUT!BL53 -> ABS | AO53: =INPUT!BN53 -> * | AP53: =INPUT!BO53 -> - | AQ53: =INPUT!BP53 -> 0 | AR53: =INPUT!BR53 -> ABS | AS53: =INPUT!BS53 -> ABS | AT53: =INPUT!BV53 -> ABS | AU53: =INPUT!BW53 -> ABS | AV53: =INPUT!BY53 ->  | AX53: ABS | BE53: =AP53&"_"&COUNTIF($AP$5:AP53,AP53) -> -_46
B54: =INPUT!F54 -> 0 | C54: =INPUT!C54 -> 0 | D54: =INPUT!D54 -> 00:00:00 | E54: =INPUT!E54 -> 0 | F54: =INPUT!G54 -> 0011 | G54: =INPUT!I54 -> ABS | H54: =INPUT!J54 -> ABS | I54: =INPUT!M54 -> ABS | J54: =INPUT!N54 -> ABS | K54: =INPUT!P54 -> * | L54: =INPUT!Q54 -> 0031 | M54: =INPUT!S54 -> ABS | N54: =INPUT!T54 -> ABS | O54: =INPUT!W54 -> ABS | P54: =INPUT!X54 -> ABS | Q54: =INPUT!Z54 -> * | R54: =INPUT!AA54 -> 0051 | S54: =INPUT!AC54 -> ABS | T54: =INPUT!AD54 -> ABS | U54: =INPUT!AG54 -> ABS | V54: =INPUT!AH54 -> ABS | W54: =INPUT!AJ54 -> * | X54: =INPUT!AK54 -> 0 | Y54: =INPUT!AM54 -> ABS | Z54: =INPUT!AN54 -> ABS | AA54: =INPUT!AQ54 -> ABS | AB54: =INPUT!AR54 -> ABS | AC54: =INPUT!AT54 -> * | AD54: =INPUT!AU54 -> 0 | AE54: =INPUT!AW54 -> ABS | AF54: =INPUT!AX54 -> ABS | AG54: =INPUT!BA54 -> ABS | AH54: =INPUT!BB54 -> ABS | AI54: =INPUT!BD54 -> * | AJ54: =INPUT!BE54 -> 0 | AK54: =INPUT!BG54 -> ABS | AL54: =INPUT!BH54 -> ABS | AM54: =INPUT!BK54 -> ABS | AN54: =INPUT!BL54 -> ABS | AO54: =INPUT!BN54 -> * | AP54: =INPUT!BO54 -> - | AQ54: =INPUT!BP54 -> 0 | AR54: =INPUT!BR54 -> ABS | AS54: =INPUT!BS54 -> ABS | AT54: =INPUT!BV54 -> ABS | AU54: =INPUT!BW54 -> ABS | AV54: =INPUT!BY54 ->  | AX54: ABS | BE54: =AP54&"_"&COUNTIF($AP$5:AP54,AP54) -> -_47
B55: =INPUT!F55 -> 0 | C55: =INPUT!C55 -> 0 | D55: =INPUT!D55 -> 00:00:00 | E55: =INPUT!E55 -> 0 | F55: =INPUT!G55 -> 0011 | G55: =INPUT!I55 -> ABS | H55: =INPUT!J55 -> ABS | I55: =INPUT!M55 -> ABS | J55: =INPUT!N55 -> ABS | K55: =INPUT!P55 -> * | L55: =INPUT!Q55 -> 0031 | M55: =INPUT!S55 -> ABS | N55: =INPUT!T55 -> ABS | O55: =INPUT!W55 -> ABS | P55: =INPUT!X55 -> ABS | Q55: =INPUT!Z55 -> * | R55: =INPUT!AA55 -> 0051 | S55: =INPUT!AC55 -> ABS | T55: =INPUT!AD55 -> ABS | U55: =INPUT!AG55 -> ABS | V55: =INPUT!AH55 -> ABS | W55: =INPUT!AJ55 -> * | X55: =INPUT!AK55 -> 0 | Y55: =INPUT!AM55 -> ABS | Z55: =INPUT!AN55 -> ABS | AA55: =INPUT!AQ55 -> ABS | AB55: =INPUT!AR55 -> ABS | AC55: =INPUT!AT55 -> * | AD55: =INPUT!AU55 -> 0 | AE55: =INPUT!AW55 -> ABS | AF55: =INPUT!AX55 -> ABS | AG55: =INPUT!BA55 -> ABS | AH55: =INPUT!BB55 -> ABS | AI55: =INPUT!BD55 -> * | AJ55: =INPUT!BE55 -> 0 | AK55: =INPUT!BG55 -> ABS | AL55: =INPUT!BH55 -> ABS | AM55: =INPUT!BK55 -> ABS | AN55: =INPUT!BL55 -> ABS | AO55: =INPUT!BN55 -> * | AP55: =INPUT!BO55 -> - | AQ55: =INPUT!BP55 -> 0 | AR55: =INPUT!BR55 -> ABS | AS55: =INPUT!BS55 -> ABS | AT55: =INPUT!BV55 -> ABS | AU55: =INPUT!BW55 -> ABS | AV55: =INPUT!BY55 ->  | AX55: ABS | BE55: =AP55&"_"&COUNTIF($AP$5:AP55,AP55) -> -_48
B56: =INPUT!F56 -> 0 | C56: =INPUT!C56 -> 0 | D56: =INPUT!D56 -> 00:00:00 | E56: =INPUT!E56 -> 0 | F56: =INPUT!G56 -> 0011 | G56: =INPUT!I56 -> ABS | H56: =INPUT!J56 -> ABS | I56: =INPUT!M56 -> ABS | J56: =INPUT!N56 -> ABS | K56: =INPUT!P56 -> * | L56: =INPUT!Q56 -> 0031 | M56: =INPUT!S56 -> ABS | N56: =INPUT!T56 -> ABS | O56: =INPUT!W56 -> ABS | P56: =INPUT!X56 -> ABS | Q56: =INPUT!Z56 -> * | R56: =INPUT!AA56 -> 0051 | S56: =INPUT!AC56 -> ABS | T56: =INPUT!AD56 -> ABS | U56: =INPUT!AG56 -> ABS | V56: =INPUT!AH56 -> ABS | W56: =INPUT!AJ56 -> * | X56: =INPUT!AK56 -> 0 | Y56: =INPUT!AM56 -> ABS | Z56: =INPUT!AN56 -> ABS | AA56: =INPUT!AQ56 -> ABS | AB56: =INPUT!AR56 -> ABS | AC56: =INPUT!AT56 -> * | AD56: =INPUT!AU56 -> 0 | AE56: =INPUT!AW56 -> ABS | AF56: =INPUT!AX56 -> ABS | AG56: =INPUT!BA56 -> ABS | AH56: =INPUT!BB56 -> ABS | AI56: =INPUT!BD56 -> * | AJ56: =INPUT!BE56 -> 0 | AK56: =INPUT!BG56 -> ABS | AL56: =INPUT!BH56 -> ABS | AM56: =INPUT!BK56 -> ABS | AN56: =INPUT!BL56 -> ABS | AO56: =INPUT!BN56 -> * | AP56: =INPUT!BO56 -> - | AQ56: =INPUT!BP56 -> 0 | AR56: =INPUT!BR56 -> ABS | AS56: =INPUT!BS56 -> ABS | AT56: =INPUT!BV56 -> ABS | AU56: =INPUT!BW56 -> ABS | AV56: =INPUT!BY56 ->  | AX56: ABS | BE56: =AP56&"_"&COUNTIF($AP$5:AP56,AP56) -> -_49
B57: =INPUT!F57 -> 0 | C57: =INPUT!C57 -> 0 | D57: =INPUT!D57 -> 00:00:00 | E57: =INPUT!E57 -> 0 | F57: =INPUT!G57 -> 0011 | G57: =INPUT!I57 -> ABS | H57: =INPUT!J57 -> ABS | I57: =INPUT!M57 -> ABS | J57: =INPUT!N57 -> ABS | K57: =INPUT!P57 -> * | L57: =INPUT!Q57 -> 0031 | M57: =INPUT!S57 -> ABS | N57: =INPUT!T57 -> ABS | O57: =INPUT!W57 -> ABS | P57: =INPUT!X57 -> ABS | Q57: =INPUT!Z57 -> * | R57: =INPUT!AA57 -> 0051 | S57: =INPUT!AC57 -> ABS | T57: =INPUT!AD57 -> ABS | U57: =INPUT!AG57 -> ABS | V57: =INPUT!AH57 -> ABS | W57: =INPUT!AJ57 -> * | X57: =INPUT!AK57 -> 0 | Y57: =INPUT!AM57 -> ABS | Z57: =INPUT!AN57 -> ABS | AA57: =INPUT!AQ57 -> ABS | AB57: =INPUT!AR57 -> ABS | AC57: =INPUT!AT57 -> * | AD57: =INPUT!AU57 -> 0 | AE57: =INPUT!AW57 -> ABS | AF57: =INPUT!AX57 -> ABS | AG57: =INPUT!BA57 -> ABS | AH57: =INPUT!BB57 -> ABS | AI57: =INPUT!BD57 -> * | AJ57: =INPUT!BE57 -> 0 | AK57: =INPUT!BG57 -> ABS | AL57: =INPUT!BH57 -> ABS | AM57: =INPUT!BK57 -> ABS | AN57: =INPUT!BL57 -> ABS | AO57: =INPUT!BN57 -> * | AP57: =INPUT!BO57 -> - | AQ57: =INPUT!BP57 -> 0 | AR57: =INPUT!BR57 -> ABS | AS57: =INPUT!BS57 -> ABS | AT57: =INPUT!BV57 -> ABS | AU57: =INPUT!BW57 -> ABS | AV57: =INPUT!BY57 ->  | AX57: ABS | BE57: =AP57&"_"&COUNTIF($AP$5:AP57,AP57) -> -_50
B58: =INPUT!F58 -> 0 | C58: =INPUT!C58 -> 0 | D58: =INPUT!D58 -> 00:00:00 | E58: =INPUT!E58 -> 0 | F58: =INPUT!G58 -> 0011 | G58: =INPUT!I58 -> ABS | H58: =INPUT!J58 -> ABS | I58: =INPUT!M58 -> ABS | J58: =INPUT!N58 -> ABS | K58: =INPUT!P58 -> * | L58: =INPUT!Q58 -> 0031 | M58: =INPUT!S58 -> ABS | N58: =INPUT!T58 -> ABS | O58: =INPUT!W58 -> ABS | P58: =INPUT!X58 -> ABS | Q58: =INPUT!Z58 -> * | R58: =INPUT!AA58 -> 0051 | S58: =INPUT!AC58 -> ABS | T58: =INPUT!AD58 -> ABS | U58: =INPUT!AG58 -> ABS | V58: =INPUT!AH58 -> ABS | W58: =INPUT!AJ58 -> * | X58: =INPUT!AK58 -> 0 | Y58: =INPUT!AM58 -> ABS | Z58: =INPUT!AN58 -> ABS | AA58: =INPUT!AQ58 -> ABS | AB58: =INPUT!AR58 -> ABS | AC58: =INPUT!AT58 -> * | AD58: =INPUT!AU58 -> 0 | AE58: =INPUT!AW58 -> ABS | AF58: =INPUT!AX58 -> ABS | AG58: =INPUT!BA58 -> ABS | AH58: =INPUT!BB58 -> ABS | AI58: =INPUT!BD58 -> * | AJ58: =INPUT!BE58 -> 0 | AK58: =INPUT!BG58 -> ABS | AL58: =INPUT!BH58 -> ABS | AM58: =INPUT!BK58 -> ABS | AN58: =INPUT!BL58 -> ABS | AO58: =INPUT!BN58 -> * | AP58: =INPUT!BO58 -> - | AQ58: =INPUT!BP58 -> 0 | AR58: =INPUT!BR58 -> ABS | AS58: =INPUT!BS58 -> ABS | AT58: =INPUT!BV58 -> ABS | AU58: =INPUT!BW58 -> ABS | AV58: =INPUT!BY58 ->  | AX58: ABS | BE58: =AP58&"_"&COUNTIF($AP$5:AP58,AP58) -> -_51
B59: =INPUT!F59 -> 0 | C59: =INPUT!C59 -> 0 | D59: =INPUT!D59 -> 00:00:00 | E59: =INPUT!E59 -> 0 | F59: =INPUT!G59 -> 0011 | G59: =INPUT!I59 -> ABS | H59: =INPUT!J59 -> ABS | I59: =INPUT!M59 -> ABS | J59: =INPUT!N59 -> ABS | K59: =INPUT!P59 -> * | L59: =INPUT!Q59 -> 0031 | M59: =INPUT!S59 -> ABS | N59: =INPUT!T59 -> ABS | O59: =INPUT!W59 -> ABS | P59: =INPUT!X59 -> ABS | Q59: =INPUT!Z59 -> * | R59: =INPUT!AA59 -> 0051 | S59: =INPUT!AC59 -> ABS | T59: =INPUT!AD59 -> ABS | U59: =INPUT!AG59 -> ABS | V59: =INPUT!AH59 -> ABS | W59: =INPUT!AJ59 -> * | X59: =INPUT!AK59 -> 0 | Y59: =INPUT!AM59 -> ABS | Z59: =INPUT!AN59 -> ABS | AA59: =INPUT!AQ59 -> ABS | AB59: =INPUT!AR59 -> ABS | AC59: =INPUT!AT59 -> * | AD59: =INPUT!AU59 -> 0 | AE59: =INPUT!AW59 -> ABS | AF59: =INPUT!AX59 -> ABS | AG59: =INPUT!BA59 -> ABS | AH59: =INPUT!BB59 -> ABS | AI59: =INPUT!BD59 -> * | AJ59: =INPUT!BE59 -> 0 | AK59: =INPUT!BG59 -> ABS | AL59: =INPUT!BH59 -> ABS | AM59: =INPUT!BK59 -> ABS | AN59: =INPUT!BL59 -> ABS | AO59: =INPUT!BN59 -> * | AP59: =INPUT!BO59 -> - | AQ59: =INPUT!BP59 -> 0 | AR59: =INPUT!BR59 -> ABS | AS59: =INPUT!BS59 -> ABS | AT59: =INPUT!BV59 -> ABS | AU59: =INPUT!BW59 -> ABS | AV59: =INPUT!BY59 ->  | AX59: ABS | BE59: =AP59&"_"&COUNTIF($AP$5:AP59,AP59) -> -_52
B60: =INPUT!F60 -> 0 | C60: =INPUT!C60 -> 0 | D60: =INPUT!D60 -> 00:00:00 | E60: =INPUT!E60 -> 0 | F60: =INPUT!G60 -> 0011 | G60: =INPUT!I60 -> ABS | H60: =INPUT!J60 -> ABS | I60: =INPUT!M60 -> ABS | J60: =INPUT!N60 -> ABS | K60: =INPUT!P60 -> * | L60: =INPUT!Q60 -> 0031 | M60: =INPUT!S60 -> ABS | N60: =INPUT!T60 -> ABS | O60: =INPUT!W60 -> ABS | P60: =INPUT!X60 -> ABS | Q60: =INPUT!Z60 -> * | R60: =INPUT!AA60 -> 0051 | S60: =INPUT!AC60 -> ABS | T60: =INPUT!AD60 -> ABS | U60: =INPUT!AG60 -> ABS | V60: =INPUT!AH60 -> ABS | W60: =INPUT!AJ60 -> * | X60: =INPUT!AK60 -> 0 | Y60: =INPUT!AM60 -> ABS | Z60: =INPUT!AN60 -> ABS | AA60: =INPUT!AQ60 -> ABS | AB60: =INPUT!AR60 -> ABS | AC60: =INPUT!AT60 -> * | AD60: =INPUT!AU60 -> 0 | AE60: =INPUT!AW60 -> ABS | AF60: =INPUT!AX60 -> ABS | AG60: =INPUT!BA60 -> ABS | AH60: =INPUT!BB60 -> ABS | AI60: =INPUT!BD60 -> * | AJ60: =INPUT!BE60 -> 0 | AK60: =INPUT!BG60 -> ABS | AL60: =INPUT!BH60 -> ABS | AM60: =INPUT!BK60 -> ABS | AN60: =INPUT!BL60 -> ABS | AO60: =INPUT!BN60 -> * | AP60: =INPUT!BO60 -> - | AQ60: =INPUT!BP60 -> 0 | AR60: =INPUT!BR60 -> ABS | AS60: =INPUT!BS60 -> ABS | AT60: =INPUT!BV60 -> ABS | AU60: =INPUT!BW60 -> ABS | AV60: =INPUT!BY60 ->  | AX60: ABS | BE60: =AP60&"_"&COUNTIF($AP$5:AP60,AP60) -> -_53
B61: =INPUT!F61 -> 0 | C61: =INPUT!C61 -> 0 | D61: =INPUT!D61 -> 00:00:00 | E61: =INPUT!E61 -> 0 | F61: =INPUT!G61 -> 0011 | G61: =INPUT!I61 -> ABS | H61: =INPUT!J61 -> ABS | I61: =INPUT!M61 -> ABS | J61: =INPUT!N61 -> ABS | K61: =INPUT!P61 -> * | L61: =INPUT!Q61 -> 0031 | M61: =INPUT!S61 -> ABS | N61: =INPUT!T61 -> ABS | O61: =INPUT!W61 -> ABS | P61: =INPUT!X61 -> ABS | Q61: =INPUT!Z61 -> * | R61: =INPUT!AA61 -> 0051 | S61: =INPUT!AC61 -> ABS | T61: =INPUT!AD61 -> ABS | U61: =INPUT!AG61 -> ABS | V61: =INPUT!AH61 -> ABS | W61: =INPUT!AJ61 -> * | X61: =INPUT!AK61 -> 0 | Y61: =INPUT!AM61 -> ABS | Z61: =INPUT!AN61 -> ABS | AA61: =INPUT!AQ61 -> ABS | AB61: =INPUT!AR61 -> ABS | AC61: =INPUT!AT61 -> * | AD61: =INPUT!AU61 -> 0 | AE61: =INPUT!AW61 -> ABS | AF61: =INPUT!AX61 -> ABS | AG61: =INPUT!BA61 -> ABS | AH61: =INPUT!BB61 -> ABS | AI61: =INPUT!BD61 -> * | AJ61: =INPUT!BE61 -> 0 | AK61: =INPUT!BG61 -> ABS | AL61: =INPUT!BH61 -> ABS | AM61: =INPUT!BK61 -> ABS | AN61: =INPUT!BL61 -> ABS | AO61: =INPUT!BN61 -> * | AP61: =INPUT!BO61 -> - | AQ61: =INPUT!BP61 -> 0 | AR61: =INPUT!BR61 -> ABS | AS61: =INPUT!BS61 -> ABS | AT61: =INPUT!BV61 -> ABS | AU61: =INPUT!BW61 -> ABS | AV61: =INPUT!BY61 ->  | AX61: ABS | BE61: =AP61&"_"&COUNTIF($AP$5:AP61,AP61) -> -_54
B62: =INPUT!F62 -> 0 | C62: =INPUT!C62 -> 0 | D62: =INPUT!D62 -> 00:00:00 | E62: =INPUT!E62 -> 0 | F62: =INPUT!G62 -> 0011 | G62: =INPUT!I62 -> ABS | H62: =INPUT!J62 -> ABS | I62: =INPUT!M62 -> ABS | J62: =INPUT!N62 -> ABS | K62: =INPUT!P62 -> * | L62: =INPUT!Q62 -> 0031 | M62: =INPUT!S62 -> ABS | N62: =INPUT!T62 -> ABS | O62: =INPUT!W62 -> ABS | P62: =INPUT!X62 -> ABS | Q62: =INPUT!Z62 -> * | R62: =INPUT!AA62 -> 0051 | S62: =INPUT!AC62 -> ABS | T62: =INPUT!AD62 -> ABS | U62: =INPUT!AG62 -> ABS | V62: =INPUT!AH62 -> ABS | W62: =INPUT!AJ62 -> * | X62: =INPUT!AK62 -> 0 | Y62: =INPUT!AM62 -> ABS | Z62: =INPUT!AN62 -> ABS | AA62: =INPUT!AQ62 -> ABS | AB62: =INPUT!AR62 -> ABS | AC62: =INPUT!AT62 -> * | AD62: =INPUT!AU62 -> 0 | AE62: =INPUT!AW62 -> ABS | AF62: =INPUT!AX62 -> ABS | AG62: =INPUT!BA62 -> ABS | AH62: =INPUT!BB62 -> ABS | AI62: =INPUT!BD62 -> * | AJ62: =INPUT!BE62 -> 0 | AK62: =INPUT!BG62 -> ABS | AL62: =INPUT!BH62 -> ABS | AM62: =INPUT!BK62 -> ABS | AN62: =INPUT!BL62 -> ABS | AO62: =INPUT!BN62 -> * | AP62: =INPUT!BO62 -> - | AQ62: =INPUT!BP62 -> 0 | AR62: =INPUT!BR62 -> ABS | AS62: =INPUT!BS62 -> ABS | AT62: =INPUT!BV62 -> ABS | AU62: =INPUT!BW62 -> ABS | AV62: =INPUT!BY62 ->  | AX62: ABS | BE62: =AP62&"_"&COUNTIF($AP$5:AP62,AP62) -> -_55
B63: =INPUT!F63 -> 0 | C63: =INPUT!C63 -> 0 | D63: =INPUT!D63 -> 00:00:00 | E63: =INPUT!E63 -> 0 | F63: =INPUT!G63 -> 0011 | G63: =INPUT!I63 -> ABS | H63: =INPUT!J63 -> ABS | I63: =INPUT!M63 -> ABS | J63: =INPUT!N63 -> ABS | K63: =INPUT!P63 -> * | L63: =INPUT!Q63 -> 0031 | M63: =INPUT!S63 -> ABS | N63: =INPUT!T63 -> ABS | O63: =INPUT!W63 -> ABS | P63: =INPUT!X63 -> ABS | Q63: =INPUT!Z63 -> * | R63: =INPUT!AA63 -> 0051 | S63: =INPUT!AC63 -> ABS | T63: =INPUT!AD63 -> ABS | U63: =INPUT!AG63 -> ABS | V63: =INPUT!AH63 -> ABS | W63: =INPUT!AJ63 -> * | X63: =INPUT!AK63 -> 0 | Y63: =INPUT!AM63 -> ABS | Z63: =INPUT!AN63 -> ABS | AA63: =INPUT!AQ63 -> ABS | AB63: =INPUT!AR63 -> ABS | AC63: =INPUT!AT63 -> * | AD63: =INPUT!AU63 -> 0 | AE63: =INPUT!AW63 -> ABS | AF63: =INPUT!AX63 -> ABS | AG63: =INPUT!BA63 -> ABS | AH63: =INPUT!BB63 -> ABS | AI63: =INPUT!BD63 -> * | AJ63: =INPUT!BE63 -> 0 | AK63: =INPUT!BG63 -> ABS | AL63: =INPUT!BH63 -> ABS | AM63: =INPUT!BK63 -> ABS | AN63: =INPUT!BL63 -> ABS | AO63: =INPUT!BN63 -> * | AP63: =INPUT!BO63 -> - | AQ63: =INPUT!BP63 -> 0 | AR63: =INPUT!BR63 -> ABS | AS63: =INPUT!BS63 -> ABS | AT63: =INPUT!BV63 -> ABS | AU63: =INPUT!BW63 -> ABS | AV63: =INPUT!BY63 ->  | AX63: ABS | BE63: =AP63&"_"&COUNTIF($AP$5:AP63,AP63) -> -_56
B64: =INPUT!F64 -> 0 | C64: =INPUT!C64 -> 0 | D64: =INPUT!D64 -> 00:00:00 | E64: =INPUT!E64 -> 0 | F64: =INPUT!G64 -> 0011 | G64: =INPUT!I64 -> ABS | H64: =INPUT!J64 -> ABS | I64: =INPUT!M64 -> ABS | J64: =INPUT!N64 -> ABS | K64: =INPUT!P64 -> * | L64: =INPUT!Q64 -> 0031 | M64: =INPUT!S64 -> ABS | N64: =INPUT!T64 -> ABS | O64: =INPUT!W64 -> ABS | P64: =INPUT!X64 -> ABS | Q64: =INPUT!Z64 -> * | R64: =INPUT!AA64 -> 0051 | S64: =INPUT!AC64 -> ABS | T64: =INPUT!AD64 -> ABS | U64: =INPUT!AG64 -> ABS | V64: =INPUT!AH64 -> ABS | W64: =INPUT!AJ64 -> * | X64: =INPUT!AK64 -> 0 | Y64: =INPUT!AM64 -> ABS | Z64: =INPUT!AN64 -> ABS | AA64: =INPUT!AQ64 -> ABS | AB64: =INPUT!AR64 -> ABS | AC64: =INPUT!AT64 -> * | AD64: =INPUT!AU64 -> 0 | AE64: =INPUT!AW64 -> ABS | AF64: =INPUT!AX64 -> ABS | AG64: =INPUT!BA64 -> ABS | AH64: =INPUT!BB64 -> ABS | AI64: =INPUT!BD64 -> * | AJ64: =INPUT!BE64 -> 0 | AK64: =INPUT!BG64 -> ABS | AL64: =INPUT!BH64 -> ABS | AM64: =INPUT!BK64 -> ABS | AN64: =INPUT!BL64 -> ABS | AO64: =INPUT!BN64 -> * | AP64: =INPUT!BO64 -> - | AQ64: =INPUT!BP64 -> 0 | AR64: =INPUT!BR64 -> ABS | AS64: =INPUT!BS64 -> ABS | AT64: =INPUT!BV64 -> ABS | AU64: =INPUT!BW64 -> ABS | AV64: =INPUT!BY64 ->  | AX64: ABS | BE64: =AP64&"_"&COUNTIF($AP$5:AP64,AP64) -> -_57
B65: =INPUT!F65 -> 0 | C65: =INPUT!C65 -> 0 | D65: =INPUT!D65 -> 00:00:00 | E65: =INPUT!E65 -> 0 | F65: =INPUT!G65 -> 0011 | G65: =INPUT!I65 -> ABS | H65: =INPUT!J65 -> ABS | I65: =INPUT!M65 -> ABS | J65: =INPUT!N65 -> ABS | K65: =INPUT!P65 -> * | L65: =INPUT!Q65 -> 0031 | M65: =INPUT!S65 -> ABS | N65: =INPUT!T65 -> ABS | O65: =INPUT!W65 -> ABS | P65: =INPUT!X65 -> ABS | Q65: =INPUT!Z65 -> * | R65: =INPUT!AA65 -> 0051 | S65: =INPUT!AC65 -> ABS | T65: =INPUT!AD65 -> ABS | U65: =INPUT!AG65 -> ABS | V65: =INPUT!AH65 -> ABS | W65: =INPUT!AJ65 -> * | X65: =INPUT!AK65 -> 0 | Y65: =INPUT!AM65 -> ABS | Z65: =INPUT!AN65 -> ABS | AA65: =INPUT!AQ65 -> ABS | AB65: =INPUT!AR65 -> ABS | AC65: =INPUT!AT65 -> * | AD65: =INPUT!AU65 -> 0 | AE65: =INPUT!AW65 -> ABS | AF65: =INPUT!AX65 -> ABS | AG65: =INPUT!BA65 -> ABS | AH65: =INPUT!BB65 -> ABS | AI65: =INPUT!BD65 -> * | AJ65: =INPUT!BE65 -> 0 | AK65: =INPUT!BG65 -> ABS | AL65: =INPUT!BH65 -> ABS | AM65: =INPUT!BK65 -> ABS | AN65: =INPUT!BL65 -> ABS | AO65: =INPUT!BN65 -> * | AP65: =INPUT!BO65 -> - | AQ65: =INPUT!BP65 -> 0 | AR65: =INPUT!BR65 -> ABS | AS65: =INPUT!BS65 -> ABS | AT65: =INPUT!BV65 -> ABS | AU65: =INPUT!BW65 -> ABS | AV65: =INPUT!BY65 ->  | AX65: ABS | BE65: =AP65&"_"&COUNTIF($AP$5:AP65,AP65) -> -_58
B66: =INPUT!F66 -> 0 | C66: =INPUT!C66 -> 0 | D66: =INPUT!D66 -> 00:00:00 | E66: =INPUT!E66 -> 0 | F66: =INPUT!G66 -> 0011 | G66: =INPUT!I66 -> ABS | H66: =INPUT!J66 -> ABS | I66: =INPUT!M66 -> ABS | J66: =INPUT!N66 -> ABS | K66: =INPUT!P66 -> * | L66: =INPUT!Q66 -> 0031 | M66: =INPUT!S66 -> ABS | N66: =INPUT!T66 -> ABS | O66: =INPUT!W66 -> ABS | P66: =INPUT!X66 -> ABS | Q66: =INPUT!Z66 -> * | R66: =INPUT!AA66 -> 0051 | S66: =INPUT!AC66 -> ABS | T66: =INPUT!AD66 -> ABS | U66: =INPUT!AG66 -> ABS | V66: =INPUT!AH66 -> ABS | W66: =INPUT!AJ66 -> * | X66: =INPUT!AK66 -> 0 | Y66: =INPUT!AM66 -> ABS | Z66: =INPUT!AN66 -> ABS | AA66: =INPUT!AQ66 -> ABS | AB66: =INPUT!AR66 -> ABS | AC66: =INPUT!AT66 -> * | AD66: =INPUT!AU66 -> 0 | AE66: =INPUT!AW66 -> ABS | AF66: =INPUT!AX66 -> ABS | AG66: =INPUT!BA66 -> ABS | AH66: =INPUT!BB66 -> ABS | AI66: =INPUT!BD66 -> * | AJ66: =INPUT!BE66 -> 0 | AK66: =INPUT!BG66 -> ABS | AL66: =INPUT!BH66 -> ABS | AM66: =INPUT!BK66 -> ABS | AN66: =INPUT!BL66 -> ABS | AO66: =INPUT!BN66 -> * | AP66: =INPUT!BO66 -> - | AQ66: =INPUT!BP66 -> 0 | AR66: =INPUT!BR66 -> ABS | AS66: =INPUT!BS66 -> ABS | AT66: =INPUT!BV66 -> ABS | AU66: =INPUT!BW66 -> ABS | AV66: =INPUT!BY66 ->  | AX66: ABS | BE66: =AP66&"_"&COUNTIF($AP$5:AP66,AP66) -> -_59
B67: =INPUT!F67 -> 0 | C67: =INPUT!C67 -> 0 | D67: =INPUT!D67 -> 00:00:00 | E67: =INPUT!E67 -> 0 | F67: =INPUT!G67 -> 0011 | G67: =INPUT!I67 -> ABS | H67: =INPUT!J67 -> ABS | I67: =INPUT!M67 -> ABS | J67: =INPUT!N67 -> ABS | K67: =INPUT!P67 -> * | L67: =INPUT!Q67 -> 0031 | M67: =INPUT!S67 -> ABS | N67: =INPUT!T67 -> ABS | O67: =INPUT!W67 -> ABS | P67: =INPUT!X67 -> ABS | Q67: =INPUT!Z67 -> * | R67: =INPUT!AA67 -> 0051 | S67: =INPUT!AC67 -> ABS | T67: =INPUT!AD67 -> ABS | U67: =INPUT!AG67 -> ABS | V67: =INPUT!AH67 -> ABS | W67: =INPUT!AJ67 -> * | X67: =INPUT!AK67 -> 0 | Y67: =INPUT!AM67 -> ABS | Z67: =INPUT!AN67 -> ABS | AA67: =INPUT!AQ67 -> ABS | AB67: =INPUT!AR67 -> ABS | AC67: =INPUT!AT67 -> * | AD67: =INPUT!AU67 -> 0 | AE67: =INPUT!AW67 -> ABS | AF67: =INPUT!AX67 -> ABS | AG67: =INPUT!BA67 -> ABS | AH67: =INPUT!BB67 -> ABS | AI67: =INPUT!BD67 -> * | AJ67: =INPUT!BE67 -> 0 | AK67: =INPUT!BG67 -> ABS | AL67: =INPUT!BH67 -> ABS | AM67: =INPUT!BK67 -> ABS | AN67: =INPUT!BL67 -> ABS | AO67: =INPUT!BN67 -> * | AP67: =INPUT!BO67 -> - | AQ67: =INPUT!BP67 -> 0 | AR67: =INPUT!BR67 -> ABS | AS67: =INPUT!BS67 -> ABS | AT67: =INPUT!BV67 -> ABS | AU67: =INPUT!BW67 -> ABS | AV67: =INPUT!BY67 ->  | AX67: ABS | BE67: =AP67&"_"&COUNTIF($AP$5:AP67,AP67) -> -_60
B68: =INPUT!F68 -> 0 | C68: =INPUT!C68 -> 0 | D68: =INPUT!D68 -> 00:00:00 | E68: =INPUT!E68 -> 0 | F68: =INPUT!G68 -> 0011 | G68: =INPUT!I68 -> ABS | H68: =INPUT!J68 -> ABS | I68: =INPUT!M68 -> ABS | J68: =INPUT!N68 -> ABS | K68: =INPUT!P68 -> * | L68: =INPUT!Q68 -> 0031 | M68: =INPUT!S68 -> ABS | N68: =INPUT!T68 -> ABS | O68: =INPUT!W68 -> ABS | P68: =INPUT!X68 -> ABS | Q68: =INPUT!Z68 -> * | R68: =INPUT!AA68 -> 0051 | S68: =INPUT!AC68 -> ABS | T68: =INPUT!AD68 -> ABS | U68: =INPUT!AG68 -> ABS | V68: =INPUT!AH68 -> ABS | W68: =INPUT!AJ68 -> * | X68: =INPUT!AK68 -> 0 | Y68: =INPUT!AM68 -> ABS | Z68: =INPUT!AN68 -> ABS | AA68: =INPUT!AQ68 -> ABS | AB68: =INPUT!AR68 -> ABS | AC68: =INPUT!AT68 -> * | AD68: =INPUT!AU68 -> 0 | AE68: =INPUT!AW68 -> ABS | AF68: =INPUT!AX68 -> ABS | AG68: =INPUT!BA68 -> ABS | AH68: =INPUT!BB68 -> ABS | AI68: =INPUT!BD68 -> * | AJ68: =INPUT!BE68 -> 0 | AK68: =INPUT!BG68 -> ABS | AL68: =INPUT!BH68 -> ABS | AM68: =INPUT!BK68 -> ABS | AN68: =INPUT!BL68 -> ABS | AO68: =INPUT!BN68 -> * | AP68: =INPUT!BO68 -> - | AQ68: =INPUT!BP68 -> 0 | AR68: =INPUT!BR68 -> ABS | AS68: =INPUT!BS68 -> ABS | AT68: =INPUT!BV68 -> ABS | AU68: =INPUT!BW68 -> ABS | AV68: =INPUT!BY68 ->  | AX68: ABS | BE68: =AP68&"_"&COUNTIF($AP$5:AP68,AP68) -> -_61
B69: =INPUT!F69 -> 0 | C69: =INPUT!C69 -> 0 | D69: =INPUT!D69 -> 00:00:00 | E69: =INPUT!E69 -> 0 | F69: =INPUT!G69 -> 0011 | G69: =INPUT!I69 -> ABS | H69: =INPUT!J69 -> ABS | I69: =INPUT!M69 -> ABS | J69: =INPUT!N69 -> ABS | K69: =INPUT!P69 -> * | L69: =INPUT!Q69 -> 0031 | M69: =INPUT!S69 -> ABS | N69: =INPUT!T69 -> ABS | O69: =INPUT!W69 -> ABS | P69: =INPUT!X69 -> ABS | Q69: =INPUT!Z69 -> * | R69: =INPUT!AA69 -> 0051 | S69: =INPUT!AC69 -> ABS | T69: =INPUT!AD69 -> ABS | U69: =INPUT!AG69 -> ABS | V69: =INPUT!AH69 -> ABS | W69: =INPUT!AJ69 -> * | X69: =INPUT!AK69 -> 0 | Y69: =INPUT!AM69 -> ABS | Z69: =INPUT!AN69 -> ABS | AA69: =INPUT!AQ69 -> ABS | AB69: =INPUT!AR69 -> ABS | AC69: =INPUT!AT69 -> * | AD69: =INPUT!AU69 -> 0 | AE69: =INPUT!AW69 -> ABS | AF69: =INPUT!AX69 -> ABS | AG69: =INPUT!BA69 -> ABS | AH69: =INPUT!BB69 -> ABS | AI69: =INPUT!BD69 -> * | AJ69: =INPUT!BE69 -> 0 | AK69: =INPUT!BG69 -> ABS | AL69: =INPUT!BH69 -> ABS | AM69: =INPUT!BK69 -> ABS | AN69: =INPUT!BL69 -> ABS | AO69: =INPUT!BN69 -> * | AP69: =INPUT!BO69 -> - | AQ69: =INPUT!BP69 -> 0 | AR69: =INPUT!BR69 -> ABS | AS69: =INPUT!BS69 -> ABS | AT69: =INPUT!BV69 -> ABS | AU69: =INPUT!BW69 -> ABS | AV69: =INPUT!BY69 ->  | AX69: ABS | BE69: =AP69&"_"&COUNTIF($AP$5:AP69,AP69) -> -_62
B70: =INPUT!F70 -> 0 | C70: =INPUT!C70 -> 0 | D70: =INPUT!D70 -> 00:00:00 | E70: =INPUT!E70 -> 0 | F70: =INPUT!G70 -> 0011 | G70: =INPUT!I70 -> ABS | H70: =INPUT!J70 -> ABS | I70: =INPUT!M70 -> ABS | J70: =INPUT!N70 -> ABS | K70: =INPUT!P70 -> * | L70: =INPUT!Q70 -> 0031 | M70: =INPUT!S70 -> ABS | N70: =INPUT!T70 -> ABS | O70: =INPUT!W70 -> ABS | P70: =INPUT!X70 -> ABS | Q70: =INPUT!Z70 -> * | R70: =INPUT!AA70 -> 0051 | S70: =INPUT!AC70 -> ABS | T70: =INPUT!AD70 -> ABS | U70: =INPUT!AG70 -> ABS | V70: =INPUT!AH70 -> ABS | W70: =INPUT!AJ70 -> * | X70: =INPUT!AK70 -> 0 | Y70: =INPUT!AM70 -> ABS | Z70: =INPUT!AN70 -> ABS | AA70: =INPUT!AQ70 -> ABS | AB70: =INPUT!AR70 -> ABS | AC70: =INPUT!AT70 -> * | AD70: =INPUT!AU70 -> 0 | AE70: =INPUT!AW70 -> ABS | AF70: =INPUT!AX70 -> ABS | AG70: =INPUT!BA70 -> ABS | AH70: =INPUT!BB70 -> ABS | AI70: =INPUT!BD70 -> * | AJ70: =INPUT!BE70 -> 0 | AK70: =INPUT!BG70 -> ABS | AL70: =INPUT!BH70 -> ABS | AM70: =INPUT!BK70 -> ABS | AN70: =INPUT!BL70 -> ABS | AO70: =INPUT!BN70 -> * | AP70: =INPUT!BO70 -> - | AQ70: =INPUT!BP70 -> 0 | AR70: =INPUT!BR70 -> ABS | AS70: =INPUT!BS70 -> ABS | AT70: =INPUT!BV70 -> ABS | AU70: =INPUT!BW70 -> ABS | AV70: =INPUT!BY70 ->  | AW70: =IF(OR(G70="NG",M70="NG",S70="NG",Y70="NG",AE70="NG",AK70="NG"),"NG","") ->  | AX70: =IF(OR(H70="ABS",N70="ABS",T70="ABS",Z70="ABS",AF70="ABS",AL70="ABS"),"ABS","") -> ABS | AY70: =IF(OR(J70="-",P70="-",V70="-",AB70="-",AH70="-",AN70="NG",AW70="NG"),"W","") ->  | BE70: =AP70&"_"&COUNTIF($AP$5:AP70,AP70) -> -_63
B71: =INPUT!F71 -> 0 | C71: =INPUT!C71 -> 0 | D71: =INPUT!D71 -> 00:00:00 | E71: =INPUT!E71 -> 0 | F71: =INPUT!G71 -> 0011 | G71: =INPUT!I71 -> ABS | H71: =INPUT!J71 -> ABS | I71: =INPUT!M71 -> ABS | J71: =INPUT!N71 -> ABS | K71: =INPUT!P71 -> * | L71: =INPUT!Q71 -> 0031 | M71: =INPUT!S71 -> ABS | N71: =INPUT!T71 -> ABS | O71: =INPUT!W71 -> ABS | P71: =INPUT!X71 -> ABS | Q71: =INPUT!Z71 -> * | R71: =INPUT!AA71 -> 0051 | S71: =INPUT!AC71 -> ABS | T71: =INPUT!AD71 -> ABS | U71: =INPUT!AG71 -> ABS | V71: =INPUT!AH71 -> ABS | W71: =INPUT!AJ71 -> * | X71: =INPUT!AK71 -> 0 | Y71: =INPUT!AM71 -> ABS | Z71: =INPUT!AN71 -> ABS | AA71: =INPUT!AQ71 -> ABS | AB71: =INPUT!AR71 -> ABS | AC71: =INPUT!AT71 -> * | AD71: =INPUT!AU71 -> 0 | AE71: =INPUT!AW71 -> ABS | AF71: =INPUT!AX71 -> ABS | AG71: =INPUT!BA71 -> ABS | AH71: =INPUT!BB71 -> ABS | AI71: =INPUT!BD71 -> * | AJ71: =INPUT!BE71 -> 0 | AK71: =INPUT!BG71 -> ABS | AL71: =INPUT!BH71 -> ABS | AM71: =INPUT!BK71 -> ABS | AN71: =INPUT!BL71 -> ABS | AO71: =INPUT!BN71 -> * | AP71: =INPUT!BO71 -> - | AQ71: =INPUT!BP71 -> 0 | AR71: =INPUT!BR71 -> ABS | AS71: =INPUT!BS71 -> ABS | AT71: =INPUT!BV71 -> ABS | AU71: =INPUT!BW71 -> ABS | AV71: =INPUT!BY71 ->  | AX71: ABS | BE71: =AP71&"_"&COUNTIF($AP$5:AP71,AP71) -> -_64
B72: =INPUT!F72 -> 0 | C72: =INPUT!C72 -> 0 | D72: =INPUT!D72 -> 00:00:00 | E72: =INPUT!E72 -> 0 | F72: =INPUT!G72 -> 0011 | G72: =INPUT!I72 -> ABS | H72: =INPUT!J72 -> ABS | I72: =INPUT!M72 -> ABS | J72: =INPUT!N72 -> ABS | K72: =INPUT!P72 -> * | L72: =INPUT!Q72 -> 0031 | M72: =INPUT!S72 -> ABS | N72: =INPUT!T72 -> ABS | O72: =INPUT!W72 -> ABS | P72: =INPUT!X72 -> ABS | Q72: =INPUT!Z72 -> * | R72: =INPUT!AA72 -> 0051 | S72: =INPUT!AC72 -> ABS | T72: =INPUT!AD72 -> ABS | U72: =INPUT!AG72 -> ABS | V72: =INPUT!AH72 -> ABS | W72: =INPUT!AJ72 -> * | X72: =INPUT!AK72 -> 0 | Y72: =INPUT!AM72 -> ABS | Z72: =INPUT!AN72 -> ABS | AA72: =INPUT!AQ72 -> ABS | AB72: =INPUT!AR72 -> ABS | AC72: =INPUT!AT72 -> * | AD72: =INPUT!AU72 -> 0 | AE72: =INPUT!AW72 -> ABS | AF72: =INPUT!AX72 -> ABS | AG72: =INPUT!BA72 -> ABS | AH72: =INPUT!BB72 -> ABS | AI72: =INPUT!BD72 -> * | AJ72: =INPUT!BE72 -> 0 | AK72: =INPUT!BG72 -> ABS | AL72: =INPUT!BH72 -> ABS | AM72: =INPUT!BK72 -> ABS | AN72: =INPUT!BL72 -> ABS | AO72: =INPUT!BN72 -> * | AP72: =INPUT!BO72 -> - | AQ72: =INPUT!BP72 -> 0 | AR72: =INPUT!BR72 -> ABS | AS72: =INPUT!BS72 -> ABS | AT72: =INPUT!BV72 -> ABS | AU72: =INPUT!BW72 -> ABS | AV72: =INPUT!BY72 ->  | AX72: ABS | BE72: =AP72&"_"&COUNTIF($AP$5:AP72,AP72) -> -_65
B73: =INPUT!F73 -> 0 | C73: =INPUT!C73 -> 0 | D73: =INPUT!D73 -> 00:00:00 | E73: =INPUT!E73 -> 0 | F73: =INPUT!G73 -> 0011 | G73: =INPUT!I73 -> ABS | H73: =INPUT!J73 -> ABS | I73: =INPUT!M73 -> ABS | J73: =INPUT!N73 -> ABS | K73: =INPUT!P73 -> * | L73: =INPUT!Q73 -> 0031 | M73: =INPUT!S73 -> ABS | N73: =INPUT!T73 -> ABS | O73: =INPUT!W73 -> ABS | P73: =INPUT!X73 -> ABS | Q73: =INPUT!Z73 -> * | R73: =INPUT!AA73 -> 0051 | S73: =INPUT!AC73 -> ABS | T73: =INPUT!AD73 -> ABS | U73: =INPUT!AG73 -> ABS | V73: =INPUT!AH73 -> ABS | W73: =INPUT!AJ73 -> * | X73: =INPUT!AK73 -> 0 | Y73: =INPUT!AM73 -> ABS | Z73: =INPUT!AN73 -> ABS | AA73: =INPUT!AQ73 -> ABS | AB73: =INPUT!AR73 -> ABS | AC73: =INPUT!AT73 -> * | AD73: =INPUT!AU73 -> 0 | AE73: =INPUT!AW73 -> ABS | AF73: =INPUT!AX73 -> ABS | AG73: =INPUT!BA73 -> ABS | AH73: =INPUT!BB73 -> ABS | AI73: =INPUT!BD73 -> * | AJ73: =INPUT!BE73 -> 0 | AK73: =INPUT!BG73 -> ABS | AL73: =INPUT!BH73 -> ABS | AM73: =INPUT!BK73 -> ABS | AN73: =INPUT!BL73 -> ABS | AO73: =INPUT!BN73 -> * | AP73: =INPUT!BO73 -> - | AQ73: =INPUT!BP73 -> 0 | AR73: =INPUT!BR73 -> ABS | AS73: =INPUT!BS73 -> ABS | AT73: =INPUT!BV73 -> ABS | AU73: =INPUT!BW73 -> ABS | AV73: =INPUT!BY73 ->  | AX73: ABS | BE73: =AP73&"_"&COUNTIF($AP$5:AP73,AP73) -> -_66
B74: =INPUT!F74 -> 0 | C74: =INPUT!C74 -> 0 | D74: =INPUT!D74 -> 00:00:00 | E74: =INPUT!E74 -> 0 | F74: =INPUT!G74 -> 0011 | G74: =INPUT!I74 -> ABS | H74: =INPUT!J74 -> ABS | I74: =INPUT!M74 -> ABS | J74: =INPUT!N74 -> ABS | K74: =INPUT!P74 -> * | L74: =INPUT!Q74 -> 0031 | M74: =INPUT!S74 -> ABS | N74: =INPUT!T74 -> ABS | O74: =INPUT!W74 -> ABS | P74: =INPUT!X74 -> ABS | Q74: =INPUT!Z74 -> * | R74: =INPUT!AA74 -> 0051 | S74: =INPUT!AC74 -> ABS | T74: =INPUT!AD74 -> ABS | U74: =INPUT!AG74 -> ABS | V74: =INPUT!AH74 -> ABS | W74: =INPUT!AJ74 -> * | X74: =INPUT!AK74 -> 0 | Y74: =INPUT!AM74 -> ABS | Z74: =INPUT!AN74 -> ABS | AA74: =INPUT!AQ74 -> ABS | AB74: =INPUT!AR74 -> ABS | AC74: =INPUT!AT74 -> * | AD74: =INPUT!AU74 -> 0 | AE74: =INPUT!AW74 -> ABS | AF74: =INPUT!AX74 -> ABS | AG74: =INPUT!BA74 -> ABS | AH74: =INPUT!BB74 -> ABS | AI74: =INPUT!BD74 -> * | AJ74: =INPUT!BE74 -> 0 | AK74: =INPUT!BG74 -> ABS | AL74: =INPUT!BH74 -> ABS | AM74: =INPUT!BK74 -> ABS | AN74: =INPUT!BL74 -> ABS | AO74: =INPUT!BN74 -> * | AP74: =INPUT!BO74 -> - | AQ74: =INPUT!BP74 -> 0 | AR74: =INPUT!BR74 -> ABS | AS74: =INPUT!BS74 -> ABS | AT74: =INPUT!BV74 -> ABS | AU74: =INPUT!BW74 -> ABS | AV74: =INPUT!BY74 ->  | AX74: ABS | BE74: =AP74&"_"&COUNTIF($AP$5:AP74,AP74) -> -_67
B75: =INPUT!F75 -> 0 | C75: =INPUT!C75 -> 0 | D75: =INPUT!D75 -> 00:00:00 | E75: =INPUT!E75 -> 0 | F75: =INPUT!G75 -> 0011 | G75: =INPUT!I75 -> ABS | H75: =INPUT!J75 -> ABS | I75: =INPUT!M75 -> ABS | J75: =INPUT!N75 -> ABS | K75: =INPUT!P75 -> * | L75: =INPUT!Q75 -> 0031 | M75: =INPUT!S75 -> ABS | N75: =INPUT!T75 -> ABS | O75: =INPUT!W75 -> ABS | P75: =INPUT!X75 -> ABS | Q75: =INPUT!Z75 -> * | R75: =INPUT!AA75 -> 0051 | S75: =INPUT!AC75 -> ABS | T75: =INPUT!AD75 -> ABS | U75: =INPUT!AG75 -> ABS | V75: =INPUT!AH75 -> ABS | W75: =INPUT!AJ75 -> * | X75: =INPUT!AK75 -> 0 | Y75: =INPUT!AM75 -> ABS | Z75: =INPUT!AN75 -> ABS | AA75: =INPUT!AQ75 -> ABS | AB75: =INPUT!AR75 -> ABS | AC75: =INPUT!AT75 -> * | AD75: =INPUT!AU75 -> 0 | AE75: =INPUT!AW75 -> ABS | AF75: =INPUT!AX75 -> ABS | AG75: =INPUT!BA75 -> ABS | AH75: =INPUT!BB75 -> ABS | AI75: =INPUT!BD75 -> * | AJ75: =INPUT!BE75 -> 0 | AK75: =INPUT!BG75 -> ABS | AL75: =INPUT!BH75 -> ABS | AM75: =INPUT!BK75 -> ABS | AN75: =INPUT!BL75 -> ABS | AO75: =INPUT!BN75 -> * | AP75: =INPUT!BO75 -> - | AQ75: =INPUT!BP75 -> 0 | AR75: =INPUT!BR75 -> ABS | AS75: =INPUT!BS75 -> ABS | AT75: =INPUT!BV75 -> ABS | AU75: =INPUT!BW75 -> ABS | AV75: =INPUT!BY75 ->  | AX75: ABS | BE75: =AP75&"_"&COUNTIF($AP$5:AP75,AP75) -> -_68
B76: =INPUT!F76 -> 0 | C76: =INPUT!C76 -> 0 | D76: =INPUT!D76 -> 00:00:00 | E76: =INPUT!E76 -> 0 | F76: =INPUT!G76 -> 0011 | G76: =INPUT!I76 -> ABS | H76: =INPUT!J76 -> ABS | I76: =INPUT!M76 -> ABS | J76: =INPUT!N76 -> ABS | K76: =INPUT!P76 -> * | L76: =INPUT!Q76 -> 0031 | M76: =INPUT!S76 -> ABS | N76: =INPUT!T76 -> ABS | O76: =INPUT!W76 -> ABS | P76: =INPUT!X76 -> ABS | Q76: =INPUT!Z76 -> * | R76: =INPUT!AA76 -> 0051 | S76: =INPUT!AC76 -> ABS | T76: =INPUT!AD76 -> ABS | U76: =INPUT!AG76 -> ABS | V76: =INPUT!AH76 -> ABS | W76: =INPUT!AJ76 -> * | X76: =INPUT!AK76 -> 0 | Y76: =INPUT!AM76 -> ABS | Z76: =INPUT!AN76 -> ABS | AA76: =INPUT!AQ76 -> ABS | AB76: =INPUT!AR76 -> ABS | AC76: =INPUT!AT76 -> * | AD76: =INPUT!AU76 -> 0 | AE76: =INPUT!AW76 -> ABS | AF76: =INPUT!AX76 -> ABS | AG76: =INPUT!BA76 -> ABS | AH76: =INPUT!BB76 -> ABS | AI76: =INPUT!BD76 -> * | AJ76: =INPUT!BE76 -> 0 | AK76: =INPUT!BG76 -> ABS | AL76: =INPUT!BH76 -> ABS | AM76: =INPUT!BK76 -> ABS | AN76: =INPUT!BL76 -> ABS | AO76: =INPUT!BN76 -> * | AP76: =INPUT!BO76 -> - | AQ76: =INPUT!BP76 -> 0 | AR76: =INPUT!BR76 -> ABS | AS76: =INPUT!BS76 -> ABS | AT76: =INPUT!BV76 -> ABS | AU76: =INPUT!BW76 -> ABS | AV76: =INPUT!BY76 ->  | AX76: ABS | BE76: =AP76&"_"&COUNTIF($AP$5:AP76,AP76) -> -_69
B77: =INPUT!F77 -> 0 | C77: =INPUT!C77 -> 0 | D77: =INPUT!D77 -> 00:00:00 | E77: =INPUT!E77 -> 0 | F77: =INPUT!G77 -> 0011 | G77: =INPUT!I77 -> ABS | H77: =INPUT!J77 -> ABS | I77: =INPUT!M77 -> ABS | J77: =INPUT!N77 -> ABS | K77: =INPUT!P77 -> * | L77: =INPUT!Q77 -> 0031 | M77: =INPUT!S77 -> ABS | N77: =INPUT!T77 -> ABS | O77: =INPUT!W77 -> ABS | P77: =INPUT!X77 -> ABS | Q77: =INPUT!Z77 -> * | R77: =INPUT!AA77 -> 0051 | S77: =INPUT!AC77 -> ABS | T77: =INPUT!AD77 -> ABS | U77: =INPUT!AG77 -> ABS | V77: =INPUT!AH77 -> ABS | W77: =INPUT!AJ77 -> * | X77: =INPUT!AK77 -> 0 | Y77: =INPUT!AM77 -> ABS | Z77: =INPUT!AN77 -> ABS | AA77: =INPUT!AQ77 -> ABS | AB77: =INPUT!AR77 -> ABS | AC77: =INPUT!AT77 -> * | AD77: =INPUT!AU77 -> 0 | AE77: =INPUT!AW77 -> ABS | AF77: =INPUT!AX77 -> ABS | AG77: =INPUT!BA77 -> ABS | AH77: =INPUT!BB77 -> ABS | AI77: =INPUT!BD77 -> * | AJ77: =INPUT!BE77 -> 0 | AK77: =INPUT!BG77 -> ABS | AL77: =INPUT!BH77 -> ABS | AM77: =INPUT!BK77 -> ABS | AN77: =INPUT!BL77 -> ABS | AO77: =INPUT!BN77 -> * | AP77: =INPUT!BO77 -> - | AQ77: =INPUT!BP77 -> 0 | AR77: =INPUT!BR77 -> ABS | AS77: =INPUT!BS77 -> ABS | AT77: =INPUT!BV77 -> ABS | AU77: =INPUT!BW77 -> ABS | AV77: =INPUT!BY77 ->  | AX77: ABS | BE77: =AP77&"_"&COUNTIF($AP$5:AP77,AP77) -> -_70
B78: =INPUT!F78 -> 0 | C78: =INPUT!C78 -> 0 | D78: =INPUT!D78 -> 00:00:00 | E78: =INPUT!E78 -> 0 | F78: =INPUT!G78 -> 0011 | G78: =INPUT!I78 -> ABS | H78: =INPUT!J78 -> ABS | I78: =INPUT!M78 -> ABS | J78: =INPUT!N78 -> ABS | K78: =INPUT!P78 -> * | L78: =INPUT!Q78 -> 0031 | M78: =INPUT!S78 -> ABS | N78: =INPUT!T78 -> ABS | O78: =INPUT!W78 -> ABS | P78: =INPUT!X78 -> ABS | Q78: =INPUT!Z78 -> * | R78: =INPUT!AA78 -> 0051 | S78: =INPUT!AC78 -> ABS | T78: =INPUT!AD78 -> ABS | U78: =INPUT!AG78 -> ABS | V78: =INPUT!AH78 -> ABS | W78: =INPUT!AJ78 -> * | X78: =INPUT!AK78 -> 0 | Y78: =INPUT!AM78 -> ABS | Z78: =INPUT!AN78 -> ABS | AA78: =INPUT!AQ78 -> ABS | AB78: =INPUT!AR78 -> ABS | AC78: =INPUT!AT78 -> * | AD78: =INPUT!AU78 -> 0 | AE78: =INPUT!AW78 -> ABS | AF78: =INPUT!AX78 -> ABS | AG78: =INPUT!BA78 -> ABS | AH78: =INPUT!BB78 -> ABS | AI78: =INPUT!BD78 -> * | AJ78: =INPUT!BE78 -> 0 | AK78: =INPUT!BG78 -> ABS | AL78: =INPUT!BH78 -> ABS | AM78: =INPUT!BK78 -> ABS | AN78: =INPUT!BL78 -> ABS | AO78: =INPUT!BN78 -> * | AP78: =INPUT!BO78 -> - | AQ78: =INPUT!BP78 -> 0 | AR78: =INPUT!BR78 -> ABS | AS78: =INPUT!BS78 -> ABS | AT78: =INPUT!BV78 -> ABS | AU78: =INPUT!BW78 -> ABS | AV78: =INPUT!BY78 ->  | AX78: ABS | BE78: =AP78&"_"&COUNTIF($AP$5:AP78,AP78) -> -_71
B79: =INPUT!F79 -> 0 | C79: =INPUT!C79 -> 0 | D79: =INPUT!D79 -> 00:00:00 | E79: =INPUT!E79 -> 0 | F79: =INPUT!G79 -> 0011 | G79: =INPUT!I79 -> ABS | H79: =INPUT!J79 -> ABS | I79: =INPUT!M79 -> ABS | J79: =INPUT!N79 -> ABS | K79: =INPUT!P79 -> * | L79: =INPUT!Q79 -> 0031 | M79: =INPUT!S79 -> ABS | N79: =INPUT!T79 -> ABS | O79: =INPUT!W79 -> ABS | P79: =INPUT!X79 -> ABS | Q79: =INPUT!Z79 -> * | R79: =INPUT!AA79 -> 0051 | S79: =INPUT!AC79 -> ABS | T79: =INPUT!AD79 -> ABS | U79: =INPUT!AG79 -> ABS | V79: =INPUT!AH79 -> ABS | W79: =INPUT!AJ79 -> * | X79: =INPUT!AK79 -> 0 | Y79: =INPUT!AM79 -> ABS | Z79: =INPUT!AN79 -> ABS | AA79: =INPUT!AQ79 -> ABS | AB79: =INPUT!AR79 -> ABS | AC79: =INPUT!AT79 -> * | AD79: =INPUT!AU79 -> 0 | AE79: =INPUT!AW79 -> ABS | AF79: =INPUT!AX79 -> ABS | AG79: =INPUT!BA79 -> ABS | AH79: =INPUT!BB79 -> ABS | AI79: =INPUT!BD79 -> * | AJ79: =INPUT!BE79 -> 0 | AK79: =INPUT!BG79 -> ABS | AL79: =INPUT!BH79 -> ABS | AM79: =INPUT!BK79 -> ABS | AN79: =INPUT!BL79 -> ABS | AO79: =INPUT!BN79 -> * | AP79: =INPUT!BO79 -> - | AQ79: =INPUT!BP79 -> 0 | AR79: =INPUT!BR79 -> ABS | AS79: =INPUT!BS79 -> ABS | AT79: =INPUT!BV79 -> ABS | AU79: =INPUT!BW79 -> ABS | AV79: =INPUT!BY79 ->  | AX79: ABS | BE79: =AP79&"_"&COUNTIF($AP$5:AP79,AP79) -> -_72
B80: =INPUT!F80 -> 0 | C80: =INPUT!C80 -> 0 | D80: =INPUT!D80 -> 00:00:00 | E80: =INPUT!E80 -> 0 | F80: =INPUT!G80 -> 0011 | G80: =INPUT!I80 -> ABS | H80: =INPUT!J80 -> ABS | I80: =INPUT!M80 -> ABS | J80: =INPUT!N80 -> ABS | K80: =INPUT!P80 -> * | L80: =INPUT!Q80 -> 0031 | M80: =INPUT!S80 -> ABS | N80: =INPUT!T80 -> ABS | O80: =INPUT!W80 -> ABS | P80: =INPUT!X80 -> ABS | Q80: =INPUT!Z80 -> * | R80: =INPUT!AA80 -> 0051 | S80: =INPUT!AC80 -> ABS | T80: =INPUT!AD80 -> ABS | U80: =INPUT!AG80 -> ABS | V80: =INPUT!AH80 -> ABS | W80: =INPUT!AJ80 -> * | X80: =INPUT!AK80 -> 0 | Y80: =INPUT!AM80 -> ABS | Z80: =INPUT!AN80 -> ABS | AA80: =INPUT!AQ80 -> ABS | AB80: =INPUT!AR80 -> ABS | AC80: =INPUT!AT80 -> * | AD80: =INPUT!AU80 -> 0 | AE80: =INPUT!AW80 -> ABS | AF80: =INPUT!AX80 -> ABS | AG80: =INPUT!BA80 -> ABS | AH80: =INPUT!BB80 -> ABS | AI80: =INPUT!BD80 -> * | AJ80: =INPUT!BE80 -> 0 | AK80: =INPUT!BG80 -> ABS | AL80: =INPUT!BH80 -> ABS | AM80: =INPUT!BK80 -> ABS | AN80: =INPUT!BL80 -> ABS | AO80: =INPUT!BN80 -> * | AP80: =INPUT!BO80 -> - | AQ80: =INPUT!BP80 -> 0 | AR80: =INPUT!BR80 -> ABS | AS80: =INPUT!BS80 -> ABS | AT80: =INPUT!BV80 -> ABS | AU80: =INPUT!BW80 -> ABS | AV80: =INPUT!BY80 ->  | AX80: ABS | BE80: =AP80&"_"&COUNTIF($AP$5:AP80,AP80) -> -_73
B81: =INPUT!F81 -> 0 | C81: =INPUT!C81 -> 0 | D81: =INPUT!D81 -> 00:00:00 | E81: =INPUT!E81 -> 0 | F81: =INPUT!G81 -> 0011 | G81: =INPUT!I81 -> ABS | H81: =INPUT!J81 -> ABS | I81: =INPUT!M81 -> ABS | J81: =INPUT!N81 -> ABS | K81: =INPUT!P81 -> * | L81: =INPUT!Q81 -> 0031 | M81: =INPUT!S81 -> ABS | N81: =INPUT!T81 -> ABS | O81: =INPUT!W81 -> ABS | P81: =INPUT!X81 -> ABS | Q81: =INPUT!Z81 -> * | R81: =INPUT!AA81 -> 0051 | S81: =INPUT!AC81 -> ABS | T81: =INPUT!AD81 -> ABS | U81: =INPUT!AG81 -> ABS | V81: =INPUT!AH81 -> ABS | W81: =INPUT!AJ81 -> * | X81: =INPUT!AK81 -> 0 | Y81: =INPUT!AM81 -> ABS | Z81: =INPUT!AN81 -> ABS | AA81: =INPUT!AQ81 -> ABS | AB81: =INPUT!AR81 -> ABS | AC81: =INPUT!AT81 -> * | AD81: =INPUT!AU81 -> 0 | AE81: =INPUT!AW81 -> ABS | AF81: =INPUT!AX81 -> ABS | AG81: =INPUT!BA81 -> ABS | AH81: =INPUT!BB81 -> ABS | AI81: =INPUT!BD81 -> * | AJ81: =INPUT!BE81 -> 0 | AK81: =INPUT!BG81 -> ABS | AL81: =INPUT!BH81 -> ABS | AM81: =INPUT!BK81 -> ABS | AN81: =INPUT!BL81 -> ABS | AO81: =INPUT!BN81 -> * | AP81: =INPUT!BO81 -> - | AQ81: =INPUT!BP81 -> 0 | AR81: =INPUT!BR81 -> ABS | AS81: =INPUT!BS81 -> ABS | AT81: =INPUT!BV81 -> ABS | AU81: =INPUT!BW81 -> ABS | AV81: =INPUT!BY81 ->  | AX81: ABS | BE81: =AP81&"_"&COUNTIF($AP$5:AP81,AP81) -> -_74
B82: =INPUT!F82 -> 0 | C82: =INPUT!C82 -> 0 | D82: =INPUT!D82 -> 00:00:00 | E82: =INPUT!E82 -> 0 | F82: =INPUT!G82 -> 0011 | G82: =INPUT!I82 -> ABS | H82: =INPUT!J82 -> ABS | I82: =INPUT!M82 -> ABS | J82: =INPUT!N82 -> ABS | K82: =INPUT!P82 -> * | L82: =INPUT!Q82 -> 0031 | M82: =INPUT!S82 -> ABS | N82: =INPUT!T82 -> ABS | O82: =INPUT!W82 -> ABS | P82: =INPUT!X82 -> ABS | Q82: =INPUT!Z82 -> * | R82: =INPUT!AA82 -> 0051 | S82: =INPUT!AC82 -> ABS | T82: =INPUT!AD82 -> ABS | U82: =INPUT!AG82 -> ABS | V82: =INPUT!AH82 -> ABS | W82: =INPUT!AJ82 -> * | X82: =INPUT!AK82 -> 0 | Y82: =INPUT!AM82 -> ABS | Z82: =INPUT!AN82 -> ABS | AA82: =INPUT!AQ82 -> ABS | AB82: =INPUT!AR82 -> ABS | AC82: =INPUT!AT82 -> * | AD82: =INPUT!AU82 -> 0 | AE82: =INPUT!AW82 -> ABS | AF82: =INPUT!AX82 -> ABS | AG82: =INPUT!BA82 -> ABS | AH82: =INPUT!BB82 -> ABS | AI82: =INPUT!BD82 -> * | AJ82: =INPUT!BE82 -> 0 | AK82: =INPUT!BG82 -> ABS | AL82: =INPUT!BH82 -> ABS | AM82: =INPUT!BK82 -> ABS | AN82: =INPUT!BL82 -> ABS | AO82: =INPUT!BN82 -> * | AP82: =INPUT!BO82 -> - | AQ82: =INPUT!BP82 -> 0 | AR82: =INPUT!BR82 -> ABS | AS82: =INPUT!BS82 -> ABS | AT82: =INPUT!BV82 -> ABS | AU82: =INPUT!BW82 -> ABS | AV82: =INPUT!BY82 ->  | AX82: ABS | BE82: =AP82&"_"&COUNTIF($AP$5:AP82,AP82) -> -_75
B83: =INPUT!F83 -> 0 | C83: =INPUT!C83 -> 0 | D83: =INPUT!D83 -> 00:00:00 | E83: =INPUT!E83 -> 0 | F83: =INPUT!G83 -> 0011 | G83: =INPUT!I83 -> ABS | H83: =INPUT!J83 -> ABS | I83: =INPUT!M83 -> ABS | J83: =INPUT!N83 -> ABS | K83: =INPUT!P83 -> * | L83: =INPUT!Q83 -> 0031 | M83: =INPUT!S83 -> ABS | N83: =INPUT!T83 -> ABS | O83: =INPUT!W83 -> ABS | P83: =INPUT!X83 -> ABS | Q83: =INPUT!Z83 -> * | R83: =INPUT!AA83 -> 0051 | S83: =INPUT!AC83 -> ABS | T83: =INPUT!AD83 -> ABS | U83: =INPUT!AG83 -> ABS | V83: =INPUT!AH83 -> ABS | W83: =INPUT!AJ83 -> * | X83: =INPUT!AK83 -> 0 | Y83: =INPUT!AM83 -> ABS | Z83: =INPUT!AN83 -> ABS | AA83: =INPUT!AQ83 -> ABS | AB83: =INPUT!AR83 -> ABS | AC83: =INPUT!AT83 -> * | AD83: =INPUT!AU83 -> 0 | AE83: =INPUT!AW83 -> ABS | AF83: =INPUT!AX83 -> ABS | AG83: =INPUT!BA83 -> ABS | AH83: =INPUT!BB83 -> ABS | AI83: =INPUT!BD83 -> * | AJ83: =INPUT!BE83 -> 0 | AK83: =INPUT!BG83 -> ABS | AL83: =INPUT!BH83 -> ABS | AM83: =INPUT!BK83 -> ABS | AN83: =INPUT!BL83 -> ABS | AO83: =INPUT!BN83 -> * | AP83: =INPUT!BO83 -> - | AQ83: =INPUT!BP83 -> 0 | AR83: =INPUT!BR83 -> ABS | AS83: =INPUT!BS83 -> ABS | AT83: =INPUT!BV83 -> ABS | AU83: =INPUT!BW83 -> ABS | AV83: =INPUT!BY83 ->  | AX83: ABS | BE83: =AP83&"_"&COUNTIF($AP$5:AP83,AP83) -> -_76
B84: =INPUT!F84 -> 0 | C84: =INPUT!C84 -> 0 | D84: =INPUT!D84 -> 00:00:00 | E84: =INPUT!E84 -> 0 | F84: =INPUT!G84 -> 0011 | G84: =INPUT!I84 -> ABS | H84: =INPUT!J84 -> ABS | I84: =INPUT!M84 -> ABS | J84: =INPUT!N84 -> ABS | K84: =INPUT!P84 -> * | L84: =INPUT!Q84 -> 0031 | M84: =INPUT!S84 -> ABS | N84: =INPUT!T84 -> ABS | O84: =INPUT!W84 -> ABS | P84: =INPUT!X84 -> ABS | Q84: =INPUT!Z84 -> * | R84: =INPUT!AA84 -> 0051 | S84: =INPUT!AC84 -> ABS | T84: =INPUT!AD84 -> ABS | U84: =INPUT!AG84 -> ABS | V84: =INPUT!AH84 -> ABS | W84: =INPUT!AJ84 -> * | X84: =INPUT!AK84 -> 0 | Y84: =INPUT!AM84 -> ABS | Z84: =INPUT!AN84 -> ABS | AA84: =INPUT!AQ84 -> ABS | AB84: =INPUT!AR84 -> ABS | AC84: =INPUT!AT84 -> * | AD84: =INPUT!AU84 -> 0 | AE84: =INPUT!AW84 -> ABS | AF84: =INPUT!AX84 -> ABS | AG84: =INPUT!BA84 -> ABS | AH84: =INPUT!BB84 -> ABS | AI84: =INPUT!BD84 -> * | AJ84: =INPUT!BE84 -> 0 | AK84: =INPUT!BG84 -> ABS | AL84: =INPUT!BH84 -> ABS | AM84: =INPUT!BK84 -> ABS | AN84: =INPUT!BL84 -> ABS | AO84: =INPUT!BN84 -> * | AP84: =INPUT!BO84 -> - | AQ84: =INPUT!BP84 -> 0 | AR84: =INPUT!BR84 -> ABS | AS84: =INPUT!BS84 -> ABS | AT84: =INPUT!BV84 -> ABS | AU84: =INPUT!BW84 -> ABS | AV84: =INPUT!BY84 ->  | AX84: ABS | BE84: =AP84&"_"&COUNTIF($AP$5:AP84,AP84) -> -_77
B85: =INPUT!F85 -> 0 | C85: =INPUT!C85 -> 0 | D85: =INPUT!D85 -> 00:00:00 | E85: =INPUT!E85 -> 0 | F85: =INPUT!G85 -> 0011 | G85: =INPUT!I85 -> ABS | H85: =INPUT!J85 -> ABS | I85: =INPUT!M85 -> ABS | J85: =INPUT!N85 -> ABS | K85: =INPUT!P85 -> * | L85: =INPUT!Q85 -> 0031 | M85: =INPUT!S85 -> ABS | N85: =INPUT!T85 -> ABS | O85: =INPUT!W85 -> ABS | P85: =INPUT!X85 -> ABS | Q85: =INPUT!Z85 -> * | R85: =INPUT!AA85 -> 0051 | S85: =INPUT!AC85 -> ABS | T85: =INPUT!AD85 -> ABS | U85: =INPUT!AG85 -> ABS | V85: =INPUT!AH85 -> ABS | W85: =INPUT!AJ85 -> * | X85: =INPUT!AK85 -> 0 | Y85: =INPUT!AM85 -> ABS | Z85: =INPUT!AN85 -> ABS | AA85: =INPUT!AQ85 -> ABS | AB85: =INPUT!AR85 -> ABS | AC85: =INPUT!AT85 -> * | AD85: =INPUT!AU85 -> 0 | AE85: =INPUT!AW85 -> ABS | AF85: =INPUT!AX85 -> ABS | AG85: =INPUT!BA85 -> ABS | AH85: =INPUT!BB85 -> ABS | AI85: =INPUT!BD85 -> * | AJ85: =INPUT!BE85 -> 0 | AK85: =INPUT!BG85 -> ABS | AL85: =INPUT!BH85 -> ABS | AM85: =INPUT!BK85 -> ABS | AN85: =INPUT!BL85 -> ABS | AO85: =INPUT!BN85 -> * | AP85: =INPUT!BO85 -> - | AQ85: =INPUT!BP85 -> 0 | AR85: =INPUT!BR85 -> ABS | AS85: =INPUT!BS85 -> ABS | AT85: =INPUT!BV85 -> ABS | AU85: =INPUT!BW85 -> ABS | AV85: =INPUT!BY85 ->  | AX85: ABS | BE85: =AP85&"_"&COUNTIF($AP$5:AP85,AP85) -> -_78
B86: =INPUT!F86 -> 0 | C86: =INPUT!C86 -> 0 | D86: =INPUT!D86 -> 00:00:00 | E86: =INPUT!E86 -> 0 | F86: =INPUT!G86 -> 0011 | G86: =INPUT!I86 -> ABS | H86: =INPUT!J86 -> ABS | I86: =INPUT!M86 -> ABS | J86: =INPUT!N86 -> ABS | K86: =INPUT!P86 -> * | L86: =INPUT!Q86 -> 0031 | M86: =INPUT!S86 -> ABS | N86: =INPUT!T86 -> ABS | O86: =INPUT!W86 -> ABS | P86: =INPUT!X86 -> ABS | Q86: =INPUT!Z86 -> * | R86: =INPUT!AA86 -> 0051 | S86: =INPUT!AC86 -> ABS | T86: =INPUT!AD86 -> ABS | U86: =INPUT!AG86 -> ABS | V86: =INPUT!AH86 -> ABS | W86: =INPUT!AJ86 -> * | X86: =INPUT!AK86 -> 0 | Y86: =INPUT!AM86 -> ABS | Z86: =INPUT!AN86 -> ABS | AA86: =INPUT!AQ86 -> ABS | AB86: =INPUT!AR86 -> ABS | AC86: =INPUT!AT86 -> * | AD86: =INPUT!AU86 -> 0 | AE86: =INPUT!AW86 -> ABS | AF86: =INPUT!AX86 -> ABS | AG86: =INPUT!BA86 -> ABS | AH86: =INPUT!BB86 -> ABS | AI86: =INPUT!BD86 -> * | AJ86: =INPUT!BE86 -> 0 | AK86: =INPUT!BG86 -> ABS | AL86: =INPUT!BH86 -> ABS | AM86: =INPUT!BK86 -> ABS | AN86: =INPUT!BL86 -> ABS | AO86: =INPUT!BN86 -> * | AP86: =INPUT!BO86 -> - | AQ86: =INPUT!BP86 -> 0 | AR86: =INPUT!BR86 -> ABS | AS86: =INPUT!BS86 -> ABS | AT86: =INPUT!BV86 -> ABS | AU86: =INPUT!BW86 -> ABS | AV86: =INPUT!BY86 ->  | AX86: ABS | BE86: =AP86&"_"&COUNTIF($AP$5:AP86,AP86) -> -_79
B87: =INPUT!F87 -> 0 | C87: =INPUT!C87 -> 0 | D87: =INPUT!D87 -> 00:00:00 | E87: =INPUT!E87 -> 0 | F87: =INPUT!G87 -> 0011 | G87: =INPUT!I87 -> ABS | H87: =INPUT!J87 -> ABS | I87: =INPUT!M87 -> ABS | J87: =INPUT!N87 -> ABS | K87: =INPUT!P87 -> * | L87: =INPUT!Q87 -> 0031 | M87: =INPUT!S87 -> ABS | N87: =INPUT!T87 -> ABS | O87: =INPUT!W87 -> ABS | P87: =INPUT!X87 -> ABS | Q87: =INPUT!Z87 -> * | R87: =INPUT!AA87 -> 0051 | S87: =INPUT!AC87 -> ABS | T87: =INPUT!AD87 -> ABS | U87: =INPUT!AG87 -> ABS | V87: =INPUT!AH87 -> ABS | W87: =INPUT!AJ87 -> * | X87: =INPUT!AK87 -> 0 | Y87: =INPUT!AM87 -> ABS | Z87: =INPUT!AN87 -> ABS | AA87: =INPUT!AQ87 -> ABS | AB87: =INPUT!AR87 -> ABS | AC87: =INPUT!AT87 -> * | AD87: =INPUT!AU87 -> 0 | AE87: =INPUT!AW87 -> ABS | AF87: =INPUT!AX87 -> ABS | AG87: =INPUT!BA87 -> ABS | AH87: =INPUT!BB87 -> ABS | AI87: =INPUT!BD87 -> * | AJ87: =INPUT!BE87 -> 0 | AK87: =INPUT!BG87 -> ABS | AL87: =INPUT!BH87 -> ABS | AM87: =INPUT!BK87 -> ABS | AN87: =INPUT!BL87 -> ABS | AO87: =INPUT!BN87 -> * | AP87: =INPUT!BO87 -> - | AQ87: =INPUT!BP87 -> 0 | AR87: =INPUT!BR87 -> ABS | AS87: =INPUT!BS87 -> ABS | AT87: =INPUT!BV87 -> ABS | AU87: =INPUT!BW87 -> ABS | AV87: =INPUT!BY87 ->  | AX87: ABS | BE87: =AP87&"_"&COUNTIF($AP$5:AP87,AP87) -> -_80
B88: =INPUT!F88 -> 0 | C88: =INPUT!C88 -> 0 | D88: =INPUT!D88 -> 00:00:00 | E88: =INPUT!E88 -> 0 | F88: =INPUT!G88 -> 0011 | G88: =INPUT!I88 -> ABS | H88: =INPUT!J88 -> ABS | I88: =INPUT!M88 -> ABS | J88: =INPUT!N88 -> ABS | K88: =INPUT!P88 -> * | L88: =INPUT!Q88 -> 0031 | M88: =INPUT!S88 -> ABS | N88: =INPUT!T88 -> ABS | O88: =INPUT!W88 -> ABS | P88: =INPUT!X88 -> ABS | Q88: =INPUT!Z88 -> * | R88: =INPUT!AA88 -> 0051 | S88: =INPUT!AC88 -> ABS | T88: =INPUT!AD88 -> ABS | U88: =INPUT!AG88 -> ABS | V88: =INPUT!AH88 -> ABS | W88: =INPUT!AJ88 -> * | X88: =INPUT!AK88 -> 0 | Y88: =INPUT!AM88 -> ABS | Z88: =INPUT!AN88 -> ABS | AA88: =INPUT!AQ88 -> ABS | AB88: =INPUT!AR88 -> ABS | AC88: =INPUT!AT88 -> * | AD88: =INPUT!AU88 -> 0 | AE88: =INPUT!AW88 -> ABS | AF88: =INPUT!AX88 -> ABS | AG88: =INPUT!BA88 -> ABS | AH88: =INPUT!BB88 -> ABS | AI88: =INPUT!BD88 -> * | AJ88: =INPUT!BE88 -> 0 | AK88: =INPUT!BG88 -> ABS | AL88: =INPUT!BH88 -> ABS | AM88: =INPUT!BK88 -> ABS | AN88: =INPUT!BL88 -> ABS | AO88: =INPUT!BN88 -> * | AP88: =INPUT!BO88 -> - | AQ88: =INPUT!BP88 -> 0 | AR88: =INPUT!BR88 -> ABS | AS88: =INPUT!BS88 -> ABS | AT88: =INPUT!BV88 -> ABS | AU88: =INPUT!BW88 -> ABS | AV88: =INPUT!BY88 ->  | AX88: ABS | BE88: =AP88&"_"&COUNTIF($AP$5:AP88,AP88) -> -_81
B89: =INPUT!F89 -> 0 | C89: =INPUT!C89 -> 0 | D89: =INPUT!D89 -> 00:00:00 | E89: =INPUT!E89 -> 0 | F89: =INPUT!G89 -> 0011 | G89: =INPUT!I89 -> ABS | H89: =INPUT!J89 -> ABS | I89: =INPUT!M89 -> ABS | J89: =INPUT!N89 -> ABS | K89: =INPUT!P89 -> * | L89: =INPUT!Q89 -> 0031 | M89: =INPUT!S89 -> ABS | N89: =INPUT!T89 -> ABS | O89: =INPUT!W89 -> ABS | P89: =INPUT!X89 -> ABS | Q89: =INPUT!Z89 -> * | R89: =INPUT!AA89 -> 0051 | S89: =INPUT!AC89 -> ABS | T89: =INPUT!AD89 -> ABS | U89: =INPUT!AG89 -> ABS | V89: =INPUT!AH89 -> ABS | W89: =INPUT!AJ89 -> * | X89: =INPUT!AK89 -> 0 | Y89: =INPUT!AM89 -> ABS | Z89: =INPUT!AN89 -> ABS | AA89: =INPUT!AQ89 -> ABS | AB89: =INPUT!AR89 -> ABS | AC89: =INPUT!AT89 -> * | AD89: =INPUT!AU89 -> 0 | AE89: =INPUT!AW89 -> ABS | AF89: =INPUT!AX89 -> ABS | AG89: =INPUT!BA89 -> ABS | AH89: =INPUT!BB89 -> ABS | AI89: =INPUT!BD89 -> * | AJ89: =INPUT!BE89 -> 0 | AK89: =INPUT!BG89 -> ABS | AL89: =INPUT!BH89 -> ABS | AM89: =INPUT!BK89 -> ABS | AN89: =INPUT!BL89 -> ABS | AO89: =INPUT!BN89 -> * | AP89: =INPUT!BO89 -> - | AQ89: =INPUT!BP89 -> 0 | AR89: =INPUT!BR89 -> ABS | AS89: =INPUT!BS89 -> ABS | AT89: =INPUT!BV89 -> ABS | AU89: =INPUT!BW89 -> ABS | AV89: =INPUT!BY89 ->  | AX89: ABS | BE89: =AP89&"_"&COUNTIF($AP$5:AP89,AP89) -> -_82
B90: =INPUT!F90 -> 0 | C90: =INPUT!C90 -> 0 | D90: =INPUT!D90 -> 00:00:00 | E90: =INPUT!E90 -> 0 | F90: =INPUT!G90 -> 0011 | G90: =INPUT!I90 -> ABS | H90: =INPUT!J90 -> ABS | I90: =INPUT!M90 -> ABS | J90: =INPUT!N90 -> ABS | K90: =INPUT!P90 -> * | L90: =INPUT!Q90 -> 0031 | M90: =INPUT!S90 -> ABS | N90: =INPUT!T90 -> ABS | O90: =INPUT!W90 -> ABS | P90: =INPUT!X90 -> ABS | Q90: =INPUT!Z90 -> * | R90: =INPUT!AA90 -> 0051 | S90: =INPUT!AC90 -> ABS | T90: =INPUT!AD90 -> ABS | U90: =INPUT!AG90 -> ABS | V90: =INPUT!AH90 -> ABS | W90: =INPUT!AJ90 -> * | X90: =INPUT!AK90 -> 0 | Y90: =INPUT!AM90 -> ABS | Z90: =INPUT!AN90 -> ABS | AA90: =INPUT!AQ90 -> ABS | AB90: =INPUT!AR90 -> ABS | AC90: =INPUT!AT90 -> * | AD90: =INPUT!AU90 -> 0 | AE90: =INPUT!AW90 -> ABS | AF90: =INPUT!AX90 -> ABS | AG90: =INPUT!BA90 -> ABS | AH90: =INPUT!BB90 -> ABS | AI90: =INPUT!BD90 -> * | AJ90: =INPUT!BE90 -> 0 | AK90: =INPUT!BG90 -> ABS | AL90: =INPUT!BH90 -> ABS | AM90: =INPUT!BK90 -> ABS | AN90: =INPUT!BL90 -> ABS | AO90: =INPUT!BN90 -> * | AP90: =INPUT!BO90 -> - | AQ90: =INPUT!BP90 -> 0 | AR90: =INPUT!BR90 -> ABS | AS90: =INPUT!BS90 -> ABS | AT90: =INPUT!BV90 -> ABS | AU90: =INPUT!BW90 -> ABS | AV90: =INPUT!BY90 ->  | AX90: ABS | BE90: =AP90&"_"&COUNTIF($AP$5:AP90,AP90) -> -_83
B91: =INPUT!F91 -> 0 | C91: =INPUT!C91 -> 0 | D91: =INPUT!D91 -> 00:00:00 | E91: =INPUT!E91 -> 0 | F91: =INPUT!G91 -> 0011 | G91: =INPUT!I91 -> ABS | H91: =INPUT!J91 -> ABS | I91: =INPUT!M91 -> ABS | J91: =INPUT!N91 -> ABS | K91: =INPUT!P91 -> * | L91: =INPUT!Q91 -> 0031 | M91: =INPUT!S91 -> ABS | N91: =INPUT!T91 -> ABS | O91: =INPUT!W91 -> ABS | P91: =INPUT!X91 -> ABS | Q91: =INPUT!Z91 -> * | R91: =INPUT!AA91 -> 0051 | S91: =INPUT!AC91 -> ABS | T91: =INPUT!AD91 -> ABS | U91: =INPUT!AG91 -> ABS | V91: =INPUT!AH91 -> ABS | W91: =INPUT!AJ91 -> * | X91: =INPUT!AK91 -> 0 | Y91: =INPUT!AM91 -> ABS | Z91: =INPUT!AN91 -> ABS | AA91: =INPUT!AQ91 -> ABS | AB91: =INPUT!AR91 -> ABS | AC91: =INPUT!AT91 -> * | AD91: =INPUT!AU91 -> 0 | AE91: =INPUT!AW91 -> ABS | AF91: =INPUT!AX91 -> ABS | AG91: =INPUT!BA91 -> ABS | AH91: =INPUT!BB91 -> ABS | AI91: =INPUT!BD91 -> * | AJ91: =INPUT!BE91 -> 0 | AK91: =INPUT!BG91 -> ABS | AL91: =INPUT!BH91 -> ABS | AM91: =INPUT!BK91 -> ABS | AN91: =INPUT!BL91 -> ABS | AO91: =INPUT!BN91 -> * | AP91: =INPUT!BO91 -> - | AQ91: =INPUT!BP91 -> 0 | AR91: =INPUT!BR91 -> ABS | AS91: =INPUT!BS91 -> ABS | AT91: =INPUT!BV91 -> ABS | AU91: =INPUT!BW91 -> ABS | AV91: =INPUT!BY91 ->  | AX91: ABS | BE91: =AP91&"_"&COUNTIF($AP$5:AP91,AP91) -> -_84
B92: =INPUT!F92 -> 0 | C92: =INPUT!C92 -> 0 | D92: =INPUT!D92 -> 00:00:00 | E92: =INPUT!E92 -> 0 | F92: =INPUT!G92 -> 0011 | G92: =INPUT!I92 -> ABS | H92: =INPUT!J92 -> ABS | I92: =INPUT!M92 -> ABS | J92: =INPUT!N92 -> ABS | K92: =INPUT!P92 -> * | L92: =INPUT!Q92 -> 0031 | M92: =INPUT!S92 -> ABS | N92: =INPUT!T92 -> ABS | O92: =INPUT!W92 -> ABS | P92: =INPUT!X92 -> ABS | Q92: =INPUT!Z92 -> * | R92: =INPUT!AA92 -> 0051 | S92: =INPUT!AC92 -> ABS | T92: =INPUT!AD92 -> ABS | U92: =INPUT!AG92 -> ABS | V92: =INPUT!AH92 -> ABS | W92: =INPUT!AJ92 -> * | X92: =INPUT!AK92 -> 0 | Y92: =INPUT!AM92 -> ABS | Z92: =INPUT!AN92 -> ABS | AA92: =INPUT!AQ92 -> ABS | AB92: =INPUT!AR92 -> ABS | AC92: =INPUT!AT92 -> * | AD92: =INPUT!AU92 -> 0 | AE92: =INPUT!AW92 -> ABS | AF92: =INPUT!AX92 -> ABS | AG92: =INPUT!BA92 -> ABS | AH92: =INPUT!BB92 -> ABS | AI92: =INPUT!BD92 -> * | AJ92: =INPUT!BE92 -> 0 | AK92: =INPUT!BG92 -> ABS | AL92: =INPUT!BH92 -> ABS | AM92: =INPUT!BK92 -> ABS | AN92: =INPUT!BL92 -> ABS | AO92: =INPUT!BN92 -> * | AP92: =INPUT!BO92 -> - | AQ92: =INPUT!BP92 -> 0 | AR92: =INPUT!BR92 -> ABS | AS92: =INPUT!BS92 -> ABS | AT92: =INPUT!BV92 -> ABS | AU92: =INPUT!BW92 -> ABS | AV92: =INPUT!BY92 ->  | AX92: ABS | BE92: =AP92&"_"&COUNTIF($AP$5:AP92,AP92) -> -_85
B93: =INPUT!F93 -> 0 | C93: =INPUT!C93 -> 0 | D93: =INPUT!D93 -> 00:00:00 | E93: =INPUT!E93 -> 0 | F93: =INPUT!G93 -> 0011 | G93: =INPUT!I93 -> ABS | H93: =INPUT!J93 -> ABS | I93: =INPUT!M93 -> ABS | J93: =INPUT!N93 -> ABS | K93: =INPUT!P93 -> * | L93: =INPUT!Q93 -> 0031 | M93: =INPUT!S93 -> ABS | N93: =INPUT!T93 -> ABS | O93: =INPUT!W93 -> ABS | P93: =INPUT!X93 -> ABS | Q93: =INPUT!Z93 -> * | R93: =INPUT!AA93 -> 0051 | S93: =INPUT!AC93 -> ABS | T93: =INPUT!AD93 -> ABS | U93: =INPUT!AG93 -> ABS | V93: =INPUT!AH93 -> ABS | W93: =INPUT!AJ93 -> * | X93: =INPUT!AK93 -> 0 | Y93: =INPUT!AM93 -> ABS | Z93: =INPUT!AN93 -> ABS | AA93: =INPUT!AQ93 -> ABS | AB93: =INPUT!AR93 -> ABS | AC93: =INPUT!AT93 -> * | AD93: =INPUT!AU93 -> 0 | AE93: =INPUT!AW93 -> ABS | AF93: =INPUT!AX93 -> ABS | AG93: =INPUT!BA93 -> ABS | AH93: =INPUT!BB93 -> ABS | AI93: =INPUT!BD93 -> * | AJ93: =INPUT!BE93 -> 0 | AK93: =INPUT!BG93 -> ABS | AL93: =INPUT!BH93 -> ABS | AM93: =INPUT!BK93 -> ABS | AN93: =INPUT!BL93 -> ABS | AO93: =INPUT!BN93 -> * | AP93: =INPUT!BO93 -> - | AQ93: =INPUT!BP93 -> 0 | AR93: =INPUT!BR93 -> ABS | AS93: =INPUT!BS93 -> ABS | AT93: =INPUT!BV93 -> ABS | AU93: =INPUT!BW93 -> ABS | AV93: =INPUT!BY93 ->  | AX93: ABS | BE93: =AP93&"_"&COUNTIF($AP$5:AP93,AP93) -> -_86
B94: =INPUT!F94 -> 0 | C94: =INPUT!C94 -> 0 | D94: =INPUT!D94 -> 00:00:00 | E94: =INPUT!E94 -> 0 | F94: =INPUT!G94 -> 0011 | G94: =INPUT!I94 -> ABS | H94: =INPUT!J94 -> ABS | I94: =INPUT!M94 -> ABS | J94: =INPUT!N94 -> ABS | K94: =INPUT!P94 -> * | L94: =INPUT!Q94 -> 0031 | M94: =INPUT!S94 -> ABS | N94: =INPUT!T94 -> ABS | O94: =INPUT!W94 -> ABS | P94: =INPUT!X94 -> ABS | Q94: =INPUT!Z94 -> * | R94: =INPUT!AA94 -> 0051 | S94: =INPUT!AC94 -> ABS | T94: =INPUT!AD94 -> ABS | U94: =INPUT!AG94 -> ABS | V94: =INPUT!AH94 -> ABS | W94: =INPUT!AJ94 -> * | X94: =INPUT!AK94 -> 0 | Y94: =INPUT!AM94 -> ABS | Z94: =INPUT!AN94 -> ABS | AA94: =INPUT!AQ94 -> ABS | AB94: =INPUT!AR94 -> ABS | AC94: =INPUT!AT94 -> * | AD94: =INPUT!AU94 -> 0 | AE94: =INPUT!AW94 -> ABS | AF94: =INPUT!AX94 -> ABS | AG94: =INPUT!BA94 -> ABS | AH94: =INPUT!BB94 -> ABS | AI94: =INPUT!BD94 -> * | AJ94: =INPUT!BE94 -> 0 | AK94: =INPUT!BG94 -> ABS | AL94: =INPUT!BH94 -> ABS | AM94: =INPUT!BK94 -> ABS | AN94: =INPUT!BL94 -> ABS | AO94: =INPUT!BN94 -> * | AP94: =INPUT!BO94 -> - | AQ94: =INPUT!BP94 -> 0 | AR94: =INPUT!BR94 -> ABS | AS94: =INPUT!BS94 -> ABS | AT94: =INPUT!BV94 -> ABS | AU94: =INPUT!BW94 -> ABS | AV94: =INPUT!BY94 ->  | AX94: ABS | BE94: =AP94&"_"&COUNTIF($AP$5:AP94,AP94) -> -_87
B95: =INPUT!F95 -> 0 | C95: =INPUT!C95 -> 0 | D95: =INPUT!D95 -> 00:00:00 | E95: =INPUT!E95 -> 0 | F95: =INPUT!G95 -> 0011 | G95: =INPUT!I95 -> ABS | H95: =INPUT!J95 -> ABS | I95: =INPUT!M95 -> ABS | J95: =INPUT!N95 -> ABS | K95: =INPUT!P95 -> * | L95: =INPUT!Q95 -> 0031 | M95: =INPUT!S95 -> ABS | N95: =INPUT!T95 -> ABS | O95: =INPUT!W95 -> ABS | P95: =INPUT!X95 -> ABS | Q95: =INPUT!Z95 -> * | R95: =INPUT!AA95 -> 0051 | S95: =INPUT!AC95 -> ABS | T95: =INPUT!AD95 -> ABS | U95: =INPUT!AG95 -> ABS | V95: =INPUT!AH95 -> ABS | W95: =INPUT!AJ95 -> * | X95: =INPUT!AK95 -> 0 | Y95: =INPUT!AM95 -> ABS | Z95: =INPUT!AN95 -> ABS | AA95: =INPUT!AQ95 -> ABS | AB95: =INPUT!AR95 -> ABS | AC95: =INPUT!AT95 -> * | AD95: =INPUT!AU95 -> 0 | AE95: =INPUT!AW95 -> ABS | AF95: =INPUT!AX95 -> ABS | AG95: =INPUT!BA95 -> ABS | AH95: =INPUT!BB95 -> ABS | AI95: =INPUT!BD95 -> * | AJ95: =INPUT!BE95 -> 0 | AK95: =INPUT!BG95 -> ABS | AL95: =INPUT!BH95 -> ABS | AM95: =INPUT!BK95 -> ABS | AN95: =INPUT!BL95 -> ABS | AO95: =INPUT!BN95 -> * | AP95: =INPUT!BO95 -> - | AQ95: =INPUT!BP95 -> 0 | AR95: =INPUT!BR95 -> ABS | AS95: =INPUT!BS95 -> ABS | AT95: =INPUT!BV95 -> ABS | AU95: =INPUT!BW95 -> ABS | AV95: =INPUT!BY95 ->  | AX95: ABS | BE95: =AP95&"_"&COUNTIF($AP$5:AP95,AP95) -> -_88
B96: =INPUT!F96 -> 0 | C96: =INPUT!C96 -> 0 | D96: =INPUT!D96 -> 00:00:00 | E96: =INPUT!E96 -> 0 | F96: =INPUT!G96 -> 0011 | G96: =INPUT!I96 -> ABS | H96: =INPUT!J96 -> ABS | I96: =INPUT!M96 -> ABS | J96: =INPUT!N96 -> ABS | K96: =INPUT!P96 -> * | L96: =INPUT!Q96 -> 0031 | M96: =INPUT!S96 -> ABS | N96: =INPUT!T96 -> ABS | O96: =INPUT!W96 -> ABS | P96: =INPUT!X96 -> ABS | Q96: =INPUT!Z96 -> * | R96: =INPUT!AA96 -> 0051 | S96: =INPUT!AC96 -> ABS | T96: =INPUT!AD96 -> ABS | U96: =INPUT!AG96 -> ABS | V96: =INPUT!AH96 -> ABS | W96: =INPUT!AJ96 -> * | X96: =INPUT!AK96 -> 0 | Y96: =INPUT!AM96 -> ABS | Z96: =INPUT!AN96 -> ABS | AA96: =INPUT!AQ96 -> ABS | AB96: =INPUT!AR96 -> ABS | AC96: =INPUT!AT96 -> * | AD96: =INPUT!AU96 -> 0 | AE96: =INPUT!AW96 -> ABS | AF96: =INPUT!AX96 -> ABS | AG96: =INPUT!BA96 -> ABS | AH96: =INPUT!BB96 -> ABS | AI96: =INPUT!BD96 -> * | AJ96: =INPUT!BE96 -> 0 | AK96: =INPUT!BG96 -> ABS | AL96: =INPUT!BH96 -> ABS | AM96: =INPUT!BK96 -> ABS | AN96: =INPUT!BL96 -> ABS | AO96: =INPUT!BN96 -> * | AP96: =INPUT!BO96 -> - | AQ96: =INPUT!BP96 -> 0 | AR96: =INPUT!BR96 -> ABS | AS96: =INPUT!BS96 -> ABS | AT96: =INPUT!BV96 -> ABS | AU96: =INPUT!BW96 -> ABS | AV96: =INPUT!BY96 ->  | AX96: ABS | BE96: =AP96&"_"&COUNTIF($AP$5:AP96,AP96) -> -_89
B97: =INPUT!F97 -> 0 | C97: =INPUT!C97 -> 0 | D97: =INPUT!D97 -> 00:00:00 | E97: =INPUT!E97 -> 0 | F97: =INPUT!G97 -> 0011 | G97: =INPUT!I97 -> ABS | H97: =INPUT!J97 -> ABS | I97: =INPUT!M97 -> ABS | J97: =INPUT!N97 -> ABS | K97: =INPUT!P97 -> * | L97: =INPUT!Q97 -> 0031 | M97: =INPUT!S97 -> ABS | N97: =INPUT!T97 -> ABS | O97: =INPUT!W97 -> ABS | P97: =INPUT!X97 -> ABS | Q97: =INPUT!Z97 -> * | R97: =INPUT!AA97 -> 0051 | S97: =INPUT!AC97 -> ABS | T97: =INPUT!AD97 -> ABS | U97: =INPUT!AG97 -> ABS | V97: =INPUT!AH97 -> ABS | W97: =INPUT!AJ97 -> * | X97: =INPUT!AK97 -> 0 | Y97: =INPUT!AM97 -> ABS | Z97: =INPUT!AN97 -> ABS | AA97: =INPUT!AQ97 -> ABS | AB97: =INPUT!AR97 -> ABS | AC97: =INPUT!AT97 -> * | AD97: =INPUT!AU97 -> 0 | AE97: =INPUT!AW97 -> ABS | AF97: =INPUT!AX97 -> ABS | AG97: =INPUT!BA97 -> ABS | AH97: =INPUT!BB97 -> ABS | AI97: =INPUT!BD97 -> * | AJ97: =INPUT!BE97 -> 0 | AK97: =INPUT!BG97 -> ABS | AL97: =INPUT!BH97 -> ABS | AM97: =INPUT!BK97 -> ABS | AN97: =INPUT!BL97 -> ABS | AO97: =INPUT!BN97 -> * | AP97: =INPUT!BO97 -> - | AQ97: =INPUT!BP97 -> 0 | AR97: =INPUT!BR97 -> ABS | AS97: =INPUT!BS97 -> ABS | AT97: =INPUT!BV97 -> ABS | AU97: =INPUT!BW97 -> ABS | AV97: =INPUT!BY97 ->  | AX97: ABS | BE97: =AP97&"_"&COUNTIF($AP$5:AP97,AP97) -> -_90
B98: =INPUT!F98 -> 0 | C98: =INPUT!C98 -> 0 | D98: =INPUT!D98 -> 00:00:00 | E98: =INPUT!E98 -> 0 | F98: =INPUT!G98 -> 0011 | G98: =INPUT!I98 -> ABS | H98: =INPUT!J98 -> ABS | I98: =INPUT!M98 -> ABS | J98: =INPUT!N98 -> ABS | K98: =INPUT!P98 -> * | L98: =INPUT!Q98 -> 0031 | M98: =INPUT!S98 -> ABS | N98: =INPUT!T98 -> ABS | O98: =INPUT!W98 -> ABS | P98: =INPUT!X98 -> ABS | Q98: =INPUT!Z98 -> * | R98: =INPUT!AA98 -> 0051 | S98: =INPUT!AC98 -> ABS | T98: =INPUT!AD98 -> ABS | U98: =INPUT!AG98 -> ABS | V98: =INPUT!AH98 -> ABS | W98: =INPUT!AJ98 -> * | X98: =INPUT!AK98 -> 0 | Y98: =INPUT!AM98 -> ABS | Z98: =INPUT!AN98 -> ABS | AA98: =INPUT!AQ98 -> ABS | AB98: =INPUT!AR98 -> ABS | AC98: =INPUT!AT98 -> * | AD98: =INPUT!AU98 -> 0 | AE98: =INPUT!AW98 -> ABS | AF98: =INPUT!AX98 -> ABS | AG98: =INPUT!BA98 -> ABS | AH98: =INPUT!BB98 -> ABS | AI98: =INPUT!BD98 -> * | AJ98: =INPUT!BE98 -> 0 | AK98: =INPUT!BG98 -> ABS | AL98: =INPUT!BH98 -> ABS | AM98: =INPUT!BK98 -> ABS | AN98: =INPUT!BL98 -> ABS | AO98: =INPUT!BN98 -> * | AP98: =INPUT!BO98 -> - | AQ98: =INPUT!BP98 -> 0 | AR98: =INPUT!BR98 -> ABS | AS98: =INPUT!BS98 -> ABS | AT98: =INPUT!BV98 -> ABS | AU98: =INPUT!BW98 -> ABS | AV98: =INPUT!BY98 ->  | AX98: ABS | BE98: =AP98&"_"&COUNTIF($AP$5:AP98,AP98) -> -_91
B99: =INPUT!F99 -> 0 | C99: =INPUT!C99 -> 0 | D99: =INPUT!D99 -> 00:00:00 | E99: =INPUT!E99 -> 0 | F99: =INPUT!G99 -> 0011 | G99: =INPUT!I99 -> ABS | H99: =INPUT!J99 -> ABS | I99: =INPUT!M99 -> ABS | J99: =INPUT!N99 -> ABS | K99: =INPUT!P99 -> * | L99: =INPUT!Q99 -> 0031 | M99: =INPUT!S99 -> ABS | N99: =INPUT!T99 -> ABS | O99: =INPUT!W99 -> ABS | P99: =INPUT!X99 -> ABS | Q99: =INPUT!Z99 -> * | R99: =INPUT!AA99 -> 0051 | S99: =INPUT!AC99 -> ABS | T99: =INPUT!AD99 -> ABS | U99: =INPUT!AG99 -> ABS | V99: =INPUT!AH99 -> ABS | W99: =INPUT!AJ99 -> * | X99: =INPUT!AK99 -> 0 | Y99: =INPUT!AM99 -> ABS | Z99: =INPUT!AN99 -> ABS | AA99: =INPUT!AQ99 -> ABS | AB99: =INPUT!AR99 -> ABS | AC99: =INPUT!AT99 -> * | AD99: =INPUT!AU99 -> 0 | AE99: =INPUT!AW99 -> ABS | AF99: =INPUT!AX99 -> ABS | AG99: =INPUT!BA99 -> ABS | AH99: =INPUT!BB99 -> ABS | AI99: =INPUT!BD99 -> * | AJ99: =INPUT!BE99 -> 0 | AK99: =INPUT!BG99 -> ABS | AL99: =INPUT!BH99 -> ABS | AM99: =INPUT!BK99 -> ABS | AN99: =INPUT!BL99 -> ABS | AO99: =INPUT!BN99 -> * | AP99: =INPUT!BO99 -> - | AQ99: =INPUT!BP99 -> 0 | AR99: =INPUT!BR99 -> ABS | AS99: =INPUT!BS99 -> ABS | AT99: =INPUT!BV99 -> ABS | AU99: =INPUT!BW99 -> ABS | AV99: =INPUT!BY99 ->  | AX99: ABS | BE99: =AP99&"_"&COUNTIF($AP$5:AP99,AP99) -> -_92
B100: =INPUT!F100 -> 0 | C100: =INPUT!C100 -> 0 | D100: =INPUT!D100 -> 00:00:00 | E100: =INPUT!E100 -> 0 | F100: =INPUT!G100 -> 0011 | G100: =INPUT!I100 -> ABS | H100: =INPUT!J100 -> ABS | I100: =INPUT!M100 -> ABS | J100: =INPUT!N100 -> ABS | K100: =INPUT!P100 -> * | L100: =INPUT!Q100 -> 0031 | M100: =INPUT!S100 -> ABS | N100: =INPUT!T100 -> ABS | O100: =INPUT!W100 -> ABS | P100: =INPUT!X100 -> ABS | Q100: =INPUT!Z100 -> * | R100: =INPUT!AA100 -> 0051 | S100: =INPUT!AC100 -> ABS | T100: =INPUT!AD100 -> ABS | U100: =INPUT!AG100 -> ABS | V100: =INPUT!AH100 -> ABS | W100: =INPUT!AJ100 -> * | X100: =INPUT!AK100 -> 0 | Y100: =INPUT!AM100 -> ABS | Z100: =INPUT!AN100 -> ABS | AA100: =INPUT!AQ100 -> ABS | AB100: =INPUT!AR100 -> ABS | AC100: =INPUT!AT100 -> * | AD100: =INPUT!AU100 -> 0 | AE100: =INPUT!AW100 -> ABS | AF100: =INPUT!AX100 -> ABS | AG100: =INPUT!BA100 -> ABS | AH100: =INPUT!BB100 -> ABS | AI100: =INPUT!BD100 -> * | AJ100: =INPUT!BE100 -> 0 | AK100: =INPUT!BG100 -> ABS | AL100: =INPUT!BH100 -> ABS | AM100: =INPUT!BK100 -> ABS | AN100: =INPUT!BL100 -> ABS | AO100: =INPUT!BN100 -> * | AP100: =INPUT!BO100 -> - | AQ100: =INPUT!BP100 -> 0 | AR100: =INPUT!BR100 -> ABS | AS100: =INPUT!BS100 -> ABS | AT100: =INPUT!BV100 -> ABS | AU100: =INPUT!BW100 -> ABS | AV100: =INPUT!BY100 ->  | AX100: ABS | BE100: =AP100&"_"&COUNTIF($AP$5:AP100,AP100) -> -_93
B101: =INPUT!F101 -> 0 | C101: =INPUT!C101 -> 0 | D101: =INPUT!D101 -> 00:00:00 | E101: =INPUT!E101 -> 0 | F101: =INPUT!G101 -> 0011 | G101: =INPUT!I101 -> ABS | H101: =INPUT!J101 -> ABS | I101: =INPUT!M101 -> ABS | J101: =INPUT!N101 -> ABS | K101: =INPUT!P101 -> * | L101: =INPUT!Q101 -> 0031 | M101: =INPUT!S101 -> ABS | N101: =INPUT!T101 -> ABS | O101: =INPUT!W101 -> ABS | P101: =INPUT!X101 -> ABS | Q101: =INPUT!Z101 -> * | R101: =INPUT!AA101 -> 0051 | S101: =INPUT!AC101 -> ABS | T101: =INPUT!AD101 -> ABS | U101: =INPUT!AG101 -> ABS | V101: =INPUT!AH101 -> ABS | W101: =INPUT!AJ101 -> * | X101: =INPUT!AK101 -> 0 | Y101: =INPUT!AM101 -> ABS | Z101: =INPUT!AN101 -> ABS | AA101: =INPUT!AQ101 -> ABS | AB101: =INPUT!AR101 -> ABS | AC101: =INPUT!AT101 -> * | AD101: =INPUT!AU101 -> 0 | AE101: =INPUT!AW101 -> ABS | AF101: =INPUT!AX101 -> ABS | AG101: =INPUT!BA101 -> ABS | AH101: =INPUT!BB101 -> ABS | AI101: =INPUT!BD101 -> * | AJ101: =INPUT!BE101 -> 0 | AK101: =INPUT!BG101 -> ABS | AL101: =INPUT!BH101 -> ABS | AM101: =INPUT!BK101 -> ABS | AN101: =INPUT!BL101 -> ABS | AO101: =INPUT!BN101 -> * | AP101: =INPUT!BO101 -> - | AQ101: =INPUT!BP101 -> 0 | AR101: =INPUT!BR101 -> ABS | AS101: =INPUT!BS101 -> ABS | AT101: =INPUT!BV101 -> ABS | AU101: =INPUT!BW101 -> ABS | AV101: =INPUT!BY101 ->  | AX101: ABS | BE101: =AP101&"_"&COUNTIF($AP$5:AP101,AP101) -> -_94
B102: =INPUT!F102 -> 0 | C102: =INPUT!C102 -> 0 | D102: =INPUT!D102 -> 00:00:00 | E102: =INPUT!E102 -> 0 | F102: =INPUT!G102 -> 0011 | G102: =INPUT!I102 -> ABS | H102: =INPUT!J102 -> ABS | I102: =INPUT!M102 -> ABS | J102: =INPUT!N102 -> ABS | K102: =INPUT!P102 -> * | L102: =INPUT!Q102 -> 0031 | M102: =INPUT!S102 -> ABS | N102: =INPUT!T102 -> ABS | O102: =INPUT!W102 -> ABS | P102: =INPUT!X102 -> ABS | Q102: =INPUT!Z102 -> * | R102: =INPUT!AA102 -> 0051 | S102: =INPUT!AC102 -> ABS | T102: =INPUT!AD102 -> ABS | U102: =INPUT!AG102 -> ABS | V102: =INPUT!AH102 -> ABS | W102: =INPUT!AJ102 -> * | X102: =INPUT!AK102 -> 0 | Y102: =INPUT!AM102 -> ABS | Z102: =INPUT!AN102 -> ABS | AA102: =INPUT!AQ102 -> ABS | AB102: =INPUT!AR102 -> ABS | AC102: =INPUT!AT102 -> * | AD102: =INPUT!AU102 -> 0 | AE102: =INPUT!AW102 -> ABS | AF102: =INPUT!AX102 -> ABS | AG102: =INPUT!BA102 -> ABS | AH102: =INPUT!BB102 -> ABS | AI102: =INPUT!BD102 -> * | AJ102: =INPUT!BE102 -> 0 | AK102: =INPUT!BG102 -> ABS | AL102: =INPUT!BH102 -> ABS | AM102: =INPUT!BK102 -> ABS | AN102: =INPUT!BL102 -> ABS | AO102: =INPUT!BN102 -> * | AP102: =INPUT!BO102 -> - | AQ102: =INPUT!BP102 -> 0 | AR102: =INPUT!BR102 -> ABS | AS102: =INPUT!BS102 -> ABS | AT102: =INPUT!BV102 -> ABS | AU102: =INPUT!BW102 -> ABS | AV102: =INPUT!BY102 ->  | AX102: ABS | BE102: =AP102&"_"&COUNTIF($AP$5:AP102,AP102) -> -_95
B103: =INPUT!F103 -> 0 | C103: =INPUT!C103 -> 0 | D103: =INPUT!D103 -> 00:00:00 | E103: =INPUT!E103 -> 0 | F103: =INPUT!G103 -> 0011 | G103: =INPUT!I103 -> ABS | H103: =INPUT!J103 -> ABS | I103: =INPUT!M103 -> ABS | J103: =INPUT!N103 -> ABS | K103: =INPUT!P103 -> * | L103: =INPUT!Q103 -> 0031 | M103: =INPUT!S103 -> ABS | N103: =INPUT!T103 -> ABS | O103: =INPUT!W103 -> ABS | P103: =INPUT!X103 -> ABS | Q103: =INPUT!Z103 -> * | R103: =INPUT!AA103 -> 0051 | S103: =INPUT!AC103 -> ABS | T103: =INPUT!AD103 -> ABS | U103: =INPUT!AG103 -> ABS | V103: =INPUT!AH103 -> ABS | W103: =INPUT!AJ103 -> * | X103: =INPUT!AK103 -> 0 | Y103: =INPUT!AM103 -> ABS | Z103: =INPUT!AN103 -> ABS | AA103: =INPUT!AQ103 -> ABS | AB103: =INPUT!AR103 -> ABS | AC103: =INPUT!AT103 -> * | AD103: =INPUT!AU103 -> 0 | AE103: =INPUT!AW103 -> ABS | AF103: =INPUT!AX103 -> ABS | AG103: =INPUT!BA103 -> ABS | AH103: =INPUT!BB103 -> ABS | AI103: =INPUT!BD103 -> * | AJ103: =INPUT!BE103 -> 0 | AK103: =INPUT!BG103 -> ABS | AL103: =INPUT!BH103 -> ABS | AM103: =INPUT!BK103 -> ABS | AN103: =INPUT!BL103 -> ABS | AO103: =INPUT!BN103 -> * | AP103: =INPUT!BO103 -> - | AQ103: =INPUT!BP103 -> 0 | AR103: =INPUT!BR103 -> ABS | AS103: =INPUT!BS103 -> ABS | AT103: =INPUT!BV103 -> ABS | AU103: =INPUT!BW103 -> ABS | AV103: =INPUT!BY103 ->  | AX103: ABS | BE103: =AP103&"_"&COUNTIF($AP$5:AP103,AP103) -> -_96
B104: =INPUT!F104 -> 0 | C104: =INPUT!C104 -> 0 | D104: =INPUT!D104 -> 00:00:00 | E104: =INPUT!E104 -> 0 | F104: =INPUT!G104 -> 0011 | G104: =INPUT!I104 -> ABS | H104: =INPUT!J104 -> ABS | I104: =INPUT!M104 -> ABS | J104: =INPUT!N104 -> ABS | K104: =INPUT!P104 -> * | L104: =INPUT!Q104 -> 0031 | M104: =INPUT!S104 -> ABS | N104: =INPUT!T104 -> ABS | O104: =INPUT!W104 -> ABS | P104: =INPUT!X104 -> ABS | Q104: =INPUT!Z104 -> * | R104: =INPUT!AA104 -> 0051 | S104: =INPUT!AC104 -> ABS | T104: =INPUT!AD104 -> ABS | U104: =INPUT!AG104 -> ABS | V104: =INPUT!AH104 -> ABS | W104: =INPUT!AJ104 -> * | X104: =INPUT!AK104 -> 0 | Y104: =INPUT!AM104 -> ABS | Z104: =INPUT!AN104 -> ABS | AA104: =INPUT!AQ104 -> ABS | AB104: =INPUT!AR104 -> ABS | AC104: =INPUT!AT104 -> * | AD104: =INPUT!AU104 -> 0 | AE104: =INPUT!AW104 -> ABS | AF104: =INPUT!AX104 -> ABS | AG104: =INPUT!BA104 -> ABS | AH104: =INPUT!BB104 -> ABS | AI104: =INPUT!BD104 -> * | AJ104: =INPUT!BE104 -> 0 | AK104: =INPUT!BG104 -> ABS | AL104: =INPUT!BH104 -> ABS | AM104: =INPUT!BK104 -> ABS | AN104: =INPUT!BL104 -> ABS | AO104: =INPUT!BN104 -> * | AP104: =INPUT!BO104 -> - | AQ104: =INPUT!BP104 -> 0 | AR104: =INPUT!BR104 -> ABS | AS104: =INPUT!BS104 -> ABS | AT104: =INPUT!BV104 -> ABS | AU104: =INPUT!BW104 -> ABS | AV104: =INPUT!BY104 ->  | AX104: ABS | BE104: =AP104&"_"&COUNTIF($AP$5:AP104,AP104) -> -_97
B105: =INPUT!F105 -> 0 | C105: =INPUT!C105 -> 0 | D105: =INPUT!D105 -> 00:00:00 | E105: =INPUT!E105 -> 0 | F105: =INPUT!G105 -> 0011 | G105: =INPUT!I105 -> ABS | H105: =INPUT!J105 -> ABS | I105: =INPUT!M105 -> ABS | J105: =INPUT!N105 -> ABS | K105: =INPUT!P105 -> * | L105: =INPUT!Q105 -> 0031 | M105: =INPUT!S105 -> ABS | N105: =INPUT!T105 -> ABS | O105: =INPUT!W105 -> ABS | P105: =INPUT!X105 -> ABS | Q105: =INPUT!Z105 -> * | R105: =INPUT!AA105 -> 0051 | S105: =INPUT!AC105 -> ABS | T105: =INPUT!AD105 -> ABS | U105: =INPUT!AG105 -> ABS | V105: =INPUT!AH105 -> ABS | W105: =INPUT!AJ105 -> * | X105: =INPUT!AK105 -> 0 | Y105: =INPUT!AM105 -> ABS | Z105: =INPUT!AN105 -> ABS | AA105: =INPUT!AQ105 -> ABS | AB105: =INPUT!AR105 -> ABS | AC105: =INPUT!AT105 -> * | AD105: =INPUT!AU105 -> 0 | AE105: =INPUT!AW105 -> ABS | AF105: =INPUT!AX105 -> ABS | AG105: =INPUT!BA105 -> ABS | AH105: =INPUT!BB105 -> ABS | AI105: =INPUT!BD105 -> * | AJ105: =INPUT!BE105 -> 0 | AK105: =INPUT!BG105 -> ABS | AL105: =INPUT!BH105 -> ABS | AM105: =INPUT!BK105 -> ABS | AN105: =INPUT!BL105 -> ABS | AO105: =INPUT!BN105 -> * | AP105: =INPUT!BO105 -> - | AQ105: =INPUT!BP105 -> 0 | AR105: =INPUT!BR105 -> ABS | AS105: =INPUT!BS105 -> ABS | AT105: =INPUT!BV105 -> ABS | AU105: =INPUT!BW105 -> ABS | AV105: =INPUT!BY105 ->  | AX105: ABS | BE105: =AP105&"_"&COUNTIF($AP$5:AP105,AP105) -> -_98
B106: =INPUT!F106 -> 0 | C106: =INPUT!C106 -> 0 | D106: =INPUT!D106 -> 00:00:00 | E106: =INPUT!E106 -> 0 | F106: =INPUT!G106 -> 0011 | G106: =INPUT!I106 -> ABS | H106: =INPUT!J106 -> ABS | I106: =INPUT!M106 -> ABS | J106: =INPUT!N106 -> ABS | K106: =INPUT!P106 -> * | L106: =INPUT!Q106 -> 0031 | M106: =INPUT!S106 -> ABS | N106: =INPUT!T106 -> ABS | O106: =INPUT!W106 -> ABS | P106: =INPUT!X106 -> ABS | Q106: =INPUT!Z106 -> * | R106: =INPUT!AA106 -> 0051 | S106: =INPUT!AC106 -> ABS | T106: =INPUT!AD106 -> ABS | U106: =INPUT!AG106 -> ABS | V106: =INPUT!AH106 -> ABS | W106: =INPUT!AJ106 -> * | X106: =INPUT!AK106 -> 0 | Y106: =INPUT!AM106 -> ABS | Z106: =INPUT!AN106 -> ABS | AA106: =INPUT!AQ106 -> ABS | AB106: =INPUT!AR106 -> ABS | AC106: =INPUT!AT106 -> * | AD106: =INPUT!AU106 -> 0 | AE106: =INPUT!AW106 -> ABS | AF106: =INPUT!AX106 -> ABS | AG106: =INPUT!BA106 -> ABS | AH106: =INPUT!BB106 -> ABS | AI106: =INPUT!BD106 -> * | AJ106: =INPUT!BE106 -> 0 | AK106: =INPUT!BG106 -> ABS | AL106: =INPUT!BH106 -> ABS | AM106: =INPUT!BK106 -> ABS | AN106: =INPUT!BL106 -> ABS | AO106: =INPUT!BN106 -> * | AP106: =INPUT!BO106 -> - | AQ106: =INPUT!BP106 -> 0 | AR106: =INPUT!BR106 -> ABS | AS106: =INPUT!BS106 -> ABS | AT106: =INPUT!BV106 -> ABS | AU106: =INPUT!BW106 -> ABS | AV106: =INPUT!BY106 ->  | AX106: ABS | BE106: =AP106&"_"&COUNTIF($AP$5:AP106,AP106) -> -_99
B107: =INPUT!F107 -> 0 | C107: =INPUT!C107 -> 0 | D107: =INPUT!D107 -> 00:00:00 | E107: =INPUT!E107 -> 0 | F107: =INPUT!G107 -> 0011 | G107: =INPUT!I107 -> ABS | H107: =INPUT!J107 -> ABS | I107: =INPUT!M107 -> ABS | J107: =INPUT!N107 -> ABS | K107: =INPUT!P107 -> * | L107: =INPUT!Q107 -> 0031 | M107: =INPUT!S107 -> ABS | N107: =INPUT!T107 -> ABS | O107: =INPUT!W107 -> ABS | P107: =INPUT!X107 -> ABS | Q107: =INPUT!Z107 -> * | R107: =INPUT!AA107 -> 0051 | S107: =INPUT!AC107 -> ABS | T107: =INPUT!AD107 -> ABS | U107: =INPUT!AG107 -> ABS | V107: =INPUT!AH107 -> ABS | W107: =INPUT!AJ107 -> * | X107: =INPUT!AK107 -> 0 | Y107: =INPUT!AM107 -> ABS | Z107: =INPUT!AN107 -> ABS | AA107: =INPUT!AQ107 -> ABS | AB107: =INPUT!AR107 -> ABS | AC107: =INPUT!AT107 -> * | AD107: =INPUT!AU107 -> 0 | AE107: =INPUT!AW107 -> ABS | AF107: =INPUT!AX107 -> ABS | AG107: =INPUT!BA107 -> ABS | AH107: =INPUT!BB107 -> ABS | AI107: =INPUT!BD107 -> * | AJ107: =INPUT!BE107 -> 0 | AK107: =INPUT!BG107 -> ABS | AL107: =INPUT!BH107 -> ABS | AM107: =INPUT!BK107 -> ABS | AN107: =INPUT!BL107 -> ABS | AO107: =INPUT!BN107 -> * | AP107: =INPUT!BO107 -> - | AQ107: =INPUT!BP107 -> 0 | AR107: =INPUT!BR107 -> ABS | AS107: =INPUT!BS107 -> ABS | AT107: =INPUT!BV107 -> ABS | AU107: =INPUT!BW107 -> ABS | AV107: =INPUT!BY107 ->  | AX107: ABS | BE107: =AP107&"_"&COUNTIF($AP$5:AP107,AP107) -> -_100
B108: =INPUT!F108 -> 0 | C108: =INPUT!C108 -> 0 | D108: =INPUT!D108 -> 00:00:00 | E108: =INPUT!E108 -> 0 | F108: =INPUT!G108 -> 0011 | G108: =INPUT!I108 -> ABS | H108: =INPUT!J108 -> ABS | I108: =INPUT!M108 -> ABS | J108: =INPUT!N108 -> ABS | K108: =INPUT!P108 -> * | L108: =INPUT!Q108 -> 0031 | M108: =INPUT!S108 -> ABS | N108: =INPUT!T108 -> ABS | O108: =INPUT!W108 -> ABS | P108: =INPUT!X108 -> ABS | Q108: =INPUT!Z108 -> * | R108: =INPUT!AA108 -> 0051 | S108: =INPUT!AC108 -> ABS | T108: =INPUT!AD108 -> ABS | U108: =INPUT!AG108 -> ABS | V108: =INPUT!AH108 -> ABS | W108: =INPUT!AJ108 -> * | X108: =INPUT!AK108 -> 0 | Y108: =INPUT!AM108 -> ABS | Z108: =INPUT!AN108 -> ABS | AA108: =INPUT!AQ108 -> ABS | AB108: =INPUT!AR108 -> ABS | AC108: =INPUT!AT108 -> * | AD108: =INPUT!AU108 -> 0 | AE108: =INPUT!AW108 -> ABS | AF108: =INPUT!AX108 -> ABS | AG108: =INPUT!BA108 -> ABS | AH108: =INPUT!BB108 -> ABS | AI108: =INPUT!BD108 -> * | AJ108: =INPUT!BE108 -> 0 | AK108: =INPUT!BG108 -> ABS | AL108: =INPUT!BH108 -> ABS | AM108: =INPUT!BK108 -> ABS | AN108: =INPUT!BL108 -> ABS | AO108: =INPUT!BN108 -> * | AP108: =INPUT!BO108 -> - | AQ108: =INPUT!BP108 -> 0 | AR108: =INPUT!BR108 -> ABS | AS108: =INPUT!BS108 -> ABS | AT108: =INPUT!BV108 -> ABS | AU108: =INPUT!BW108 -> ABS | AV108: =INPUT!BY108 ->  | AX108: ABS | BE108: =AP108&"_"&COUNTIF($AP$5:AP108,AP108) -> -_101
B109: =INPUT!F109 -> 0 | C109: =INPUT!C109 -> 0 | D109: =INPUT!D109 -> 00:00:00 | E109: =INPUT!E109 -> 0 | F109: =INPUT!G109 -> 0011 | G109: =INPUT!I109 -> ABS | H109: =INPUT!J109 -> ABS | I109: =INPUT!M109 -> ABS | J109: =INPUT!N109 -> ABS | K109: =INPUT!P109 -> * | L109: =INPUT!Q109 -> 0031 | M109: =INPUT!S109 -> ABS | N109: =INPUT!T109 -> ABS | O109: =INPUT!W109 -> ABS | P109: =INPUT!X109 -> ABS | Q109: =INPUT!Z109 -> * | R109: =INPUT!AA109 -> 0051 | S109: =INPUT!AC109 -> ABS | T109: =INPUT!AD109 -> ABS | U109: =INPUT!AG109 -> ABS | V109: =INPUT!AH109 -> ABS | W109: =INPUT!AJ109 -> * | X109: =INPUT!AK109 -> 0 | Y109: =INPUT!AM109 -> ABS | Z109: =INPUT!AN109 -> ABS | AA109: =INPUT!AQ109 -> ABS | AB109: =INPUT!AR109 -> ABS | AC109: =INPUT!AT109 -> * | AD109: =INPUT!AU109 -> 0 | AE109: =INPUT!AW109 -> ABS | AF109: =INPUT!AX109 -> ABS | AG109: =INPUT!BA109 -> ABS | AH109: =INPUT!BB109 -> ABS | AI109: =INPUT!BD109 -> * | AJ109: =INPUT!BE109 -> 0 | AK109: =INPUT!BG109 -> ABS | AL109: =INPUT!BH109 -> ABS | AM109: =INPUT!BK109 -> ABS | AN109: =INPUT!BL109 -> ABS | AO109: =INPUT!BN109 -> * | AP109: =INPUT!BO109 -> - | AQ109: =INPUT!BP109 -> 0 | AR109: =INPUT!BR109 -> ABS | AS109: =INPUT!BS109 -> ABS | AT109: =INPUT!BV109 -> ABS | AU109: =INPUT!BW109 -> ABS | AV109: =INPUT!BY109 ->  | AX109: ABS | BE109: =AP109&"_"&COUNTIF($AP$5:AP109,AP109) -> -_102
B110: =INPUT!F110 -> 0 | C110: =INPUT!C110 -> 0 | D110: =INPUT!D110 -> 00:00:00 | E110: =INPUT!E110 -> 0 | F110: =INPUT!G110 -> 0011 | G110: =INPUT!I110 -> ABS | H110: =INPUT!J110 -> ABS | I110: =INPUT!M110 -> ABS | J110: =INPUT!N110 -> ABS | K110: =INPUT!P110 -> * | L110: =INPUT!Q110 -> 0031 | M110: =INPUT!S110 -> ABS | N110: =INPUT!T110 -> ABS | O110: =INPUT!W110 -> ABS | P110: =INPUT!X110 -> ABS | Q110: =INPUT!Z110 -> * | R110: =INPUT!AA110 -> 0051 | S110: =INPUT!AC110 -> ABS | T110: =INPUT!AD110 -> ABS | U110: =INPUT!AG110 -> ABS | V110: =INPUT!AH110 -> ABS | W110: =INPUT!AJ110 -> * | X110: =INPUT!AK110 -> 0 | Y110: =INPUT!AM110 -> ABS | Z110: =INPUT!AN110 -> ABS | AA110: =INPUT!AQ110 -> ABS | AB110: =INPUT!AR110 -> ABS | AC110: =INPUT!AT110 -> * | AD110: =INPUT!AU110 -> 0 | AE110: =INPUT!AW110 -> ABS | AF110: =INPUT!AX110 -> ABS | AG110: =INPUT!BA110 -> ABS | AH110: =INPUT!BB110 -> ABS | AI110: =INPUT!BD110 -> * | AJ110: =INPUT!BE110 -> 0 | AK110: =INPUT!BG110 -> ABS | AL110: =INPUT!BH110 -> ABS | AM110: =INPUT!BK110 -> ABS | AN110: =INPUT!BL110 -> ABS | AO110: =INPUT!BN110 -> * | AP110: =INPUT!BO110 -> - | AQ110: =INPUT!BP110 -> 0 | AR110: =INPUT!BR110 -> ABS | AS110: =INPUT!BS110 -> ABS | AT110: =INPUT!BV110 -> ABS | AU110: =INPUT!BW110 -> ABS | AV110: =INPUT!BY110 ->  | AX110: ABS | BE110: =AP110&"_"&COUNTIF($AP$5:AP110,AP110) -> -_103
B111: =INPUT!F111 -> 0 | C111: =INPUT!C111 -> 0 | D111: =INPUT!D111 -> 00:00:00 | E111: =INPUT!E111 -> 0 | F111: =INPUT!G111 -> 0011 | G111: =INPUT!I111 -> ABS | H111: =INPUT!J111 -> ABS | I111: =INPUT!M111 -> ABS | J111: =INPUT!N111 -> ABS | K111: =INPUT!P111 -> * | L111: =INPUT!Q111 -> 0031 | M111: =INPUT!S111 -> ABS | N111: =INPUT!T111 -> ABS | O111: =INPUT!W111 -> ABS | P111: =INPUT!X111 -> ABS | Q111: =INPUT!Z111 -> * | R111: =INPUT!AA111 -> 0051 | S111: =INPUT!AC111 -> ABS | T111: =INPUT!AD111 -> ABS | U111: =INPUT!AG111 -> ABS | V111: =INPUT!AH111 -> ABS | W111: =INPUT!AJ111 -> * | X111: =INPUT!AK111 -> 0 | Y111: =INPUT!AM111 -> ABS | Z111: =INPUT!AN111 -> ABS | AA111: =INPUT!AQ111 -> ABS | AB111: =INPUT!AR111 -> ABS | AC111: =INPUT!AT111 -> * | AD111: =INPUT!AU111 -> 0 | AE111: =INPUT!AW111 -> ABS | AF111: =INPUT!AX111 -> ABS | AG111: =INPUT!BA111 -> ABS | AH111: =INPUT!BB111 -> ABS | AI111: =INPUT!BD111 -> * | AJ111: =INPUT!BE111 -> 0 | AK111: =INPUT!BG111 -> ABS | AL111: =INPUT!BH111 -> ABS | AM111: =INPUT!BK111 -> ABS | AN111: =INPUT!BL111 -> ABS | AO111: =INPUT!BN111 -> * | AP111: =INPUT!BO111 -> - | AQ111: =INPUT!BP111 -> 0 | AR111: =INPUT!BR111 -> ABS | AS111: =INPUT!BS111 -> ABS | AT111: =INPUT!BV111 -> ABS | AU111: =INPUT!BW111 -> ABS | AV111: =INPUT!BY111 ->  | AX111: ABS | BE111: =AP111&"_"&COUNTIF($AP$5:AP111,AP111) -> -_104
B112: =INPUT!F112 -> 0 | C112: =INPUT!C112 -> 0 | D112: =INPUT!D112 -> 00:00:00 | E112: =INPUT!E112 -> 0 | F112: =INPUT!G112 -> 0011 | G112: =INPUT!I112 -> ABS | H112: =INPUT!J112 -> ABS | I112: =INPUT!M112 -> ABS | J112: =INPUT!N112 -> ABS | K112: =INPUT!P112 -> * | L112: =INPUT!Q112 -> 0031 | M112: =INPUT!S112 -> ABS | N112: =INPUT!T112 -> ABS | O112: =INPUT!W112 -> ABS | P112: =INPUT!X112 -> ABS | Q112: =INPUT!Z112 -> * | R112: =INPUT!AA112 -> 0051 | S112: =INPUT!AC112 -> ABS | T112: =INPUT!AD112 -> ABS | U112: =INPUT!AG112 -> ABS | V112: =INPUT!AH112 -> ABS | W112: =INPUT!AJ112 -> * | X112: =INPUT!AK112 -> 0 | Y112: =INPUT!AM112 -> ABS | Z112: =INPUT!AN112 -> ABS | AA112: =INPUT!AQ112 -> ABS | AB112: =INPUT!AR112 -> ABS | AC112: =INPUT!AT112 -> * | AD112: =INPUT!AU112 -> 0 | AE112: =INPUT!AW112 -> ABS | AF112: =INPUT!AX112 -> ABS | AG112: =INPUT!BA112 -> ABS | AH112: =INPUT!BB112 -> ABS | AI112: =INPUT!BD112 -> * | AJ112: =INPUT!BE112 -> 0 | AK112: =INPUT!BG112 -> ABS | AL112: =INPUT!BH112 -> ABS | AM112: =INPUT!BK112 -> ABS | AN112: =INPUT!BL112 -> ABS | AO112: =INPUT!BN112 -> * | AP112: =INPUT!BO112 -> - | AQ112: =INPUT!BP112 -> 0 | AR112: =INPUT!BR112 -> ABS | AS112: =INPUT!BS112 -> ABS | AT112: =INPUT!BV112 -> ABS | AU112: =INPUT!BW112 -> ABS | AV112: =INPUT!BY112 ->  | AX112: ABS | BE112: =AP112&"_"&COUNTIF($AP$5:AP112,AP112) -> -_105
B113: =INPUT!F113 -> 0 | C113: =INPUT!C113 -> 0 | D113: =INPUT!D113 -> 00:00:00 | E113: =INPUT!E113 -> 0 | F113: =INPUT!G113 -> 0011 | G113: =INPUT!I113 -> ABS | H113: =INPUT!J113 -> ABS | I113: =INPUT!M113 -> ABS | J113: =INPUT!N113 -> ABS | K113: =INPUT!P113 -> * | L113: =INPUT!Q113 -> 0031 | M113: =INPUT!S113 -> ABS | N113: =INPUT!T113 -> ABS | O113: =INPUT!W113 -> ABS | P113: =INPUT!X113 -> ABS | Q113: =INPUT!Z113 -> * | R113: =INPUT!AA113 -> 0051 | S113: =INPUT!AC113 -> ABS | T113: =INPUT!AD113 -> ABS | U113: =INPUT!AG113 -> ABS | V113: =INPUT!AH113 -> ABS | W113: =INPUT!AJ113 -> * | X113: =INPUT!AK113 -> 0 | Y113: =INPUT!AM113 -> ABS | Z113: =INPUT!AN113 -> ABS | AA113: =INPUT!AQ113 -> ABS | AB113: =INPUT!AR113 -> ABS | AC113: =INPUT!AT113 -> * | AD113: =INPUT!AU113 -> 0 | AE113: =INPUT!AW113 -> ABS | AF113: =INPUT!AX113 -> ABS | AG113: =INPUT!BA113 -> ABS | AH113: =INPUT!BB113 -> ABS | AI113: =INPUT!BD113 -> * | AJ113: =INPUT!BE113 -> 0 | AK113: =INPUT!BG113 -> ABS | AL113: =INPUT!BH113 -> ABS | AM113: =INPUT!BK113 -> ABS | AN113: =INPUT!BL113 -> ABS | AO113: =INPUT!BN113 -> * | AP113: =INPUT!BO113 -> - | AQ113: =INPUT!BP113 -> 0 | AR113: =INPUT!BR113 -> ABS | AS113: =INPUT!BS113 -> ABS | AT113: =INPUT!BV113 -> ABS | AU113: =INPUT!BW113 -> ABS | AV113: =INPUT!BY113 ->  | AX113: ABS | BE113: =AP113&"_"&COUNTIF($AP$5:AP113,AP113) -> -_106
B114: =INPUT!F114 -> 0 | C114: =INPUT!C114 -> 0 | D114: =INPUT!D114 -> 00:00:00 | E114: =INPUT!E114 -> 0 | F114: =INPUT!G114 -> 0011 | G114: =INPUT!I114 -> ABS | H114: =INPUT!J114 -> ABS | I114: =INPUT!M114 -> ABS | J114: =INPUT!N114 -> ABS | K114: =INPUT!P114 -> * | L114: =INPUT!Q114 -> 0031 | M114: =INPUT!S114 -> ABS | N114: =INPUT!T114 -> ABS | O114: =INPUT!W114 -> ABS | P114: =INPUT!X114 -> ABS | Q114: =INPUT!Z114 -> * | R114: =INPUT!AA114 -> 0051 | S114: =INPUT!AC114 -> ABS | T114: =INPUT!AD114 -> ABS | U114: =INPUT!AG114 -> ABS | V114: =INPUT!AH114 -> ABS | W114: =INPUT!AJ114 -> * | X114: =INPUT!AK114 -> 0 | Y114: =INPUT!AM114 -> ABS | Z114: =INPUT!AN114 -> ABS | AA114: =INPUT!AQ114 -> ABS | AB114: =INPUT!AR114 -> ABS | AC114: =INPUT!AT114 -> * | AD114: =INPUT!AU114 -> 0 | AE114: =INPUT!AW114 -> ABS | AF114: =INPUT!AX114 -> ABS | AG114: =INPUT!BA114 -> ABS | AH114: =INPUT!BB114 -> ABS | AI114: =INPUT!BD114 -> * | AJ114: =INPUT!BE114 -> 0 | AK114: =INPUT!BG114 -> ABS | AL114: =INPUT!BH114 -> ABS | AM114: =INPUT!BK114 -> ABS | AN114: =INPUT!BL114 -> ABS | AO114: =INPUT!BN114 -> * | AP114: =INPUT!BO114 -> - | AQ114: =INPUT!BP114 -> 0 | AR114: =INPUT!BR114 -> ABS | AS114: =INPUT!BS114 -> ABS | AT114: =INPUT!BV114 -> ABS | AU114: =INPUT!BW114 -> ABS | AV114: =INPUT!BY114 ->  | AX114: ABS | BE114: =AP114&"_"&COUNTIF($AP$5:AP114,AP114) -> -_107
B115: =INPUT!F115 -> 0 | C115: =INPUT!C115 -> 0 | D115: =INPUT!D115 -> 00:00:00 | E115: =INPUT!E115 -> 0 | F115: =INPUT!G115 -> 0011 | G115: =INPUT!I115 -> ABS | H115: =INPUT!J115 -> ABS | I115: =INPUT!M115 -> ABS | J115: =INPUT!N115 -> ABS | K115: =INPUT!P115 -> * | L115: =INPUT!Q115 -> 0031 | M115: =INPUT!S115 -> ABS | N115: =INPUT!T115 -> ABS | O115: =INPUT!W115 -> ABS | P115: =INPUT!X115 -> ABS | Q115: =INPUT!Z115 -> * | R115: =INPUT!AA115 -> 0051 | S115: =INPUT!AC115 -> ABS | T115: =INPUT!AD115 -> ABS | U115: =INPUT!AG115 -> ABS | V115: =INPUT!AH115 -> ABS | W115: =INPUT!AJ115 -> * | X115: =INPUT!AK115 -> 0 | Y115: =INPUT!AM115 -> ABS | Z115: =INPUT!AN115 -> ABS | AA115: =INPUT!AQ115 -> ABS | AB115: =INPUT!AR115 -> ABS | AC115: =INPUT!AT115 -> * | AD115: =INPUT!AU115 -> 0 | AE115: =INPUT!AW115 -> ABS | AF115: =INPUT!AX115 -> ABS | AG115: =INPUT!BA115 -> ABS | AH115: =INPUT!BB115 -> ABS | AI115: =INPUT!BD115 -> * | AJ115: =INPUT!BE115 -> 0 | AK115: =INPUT!BG115 -> ABS | AL115: =INPUT!BH115 -> ABS | AM115: =INPUT!BK115 -> ABS | AN115: =INPUT!BL115 -> ABS | AO115: =INPUT!BN115 -> * | AP115: =INPUT!BO115 -> - | AQ115: =INPUT!BP115 -> 0 | AR115: =INPUT!BR115 -> ABS | AS115: =INPUT!BS115 -> ABS | AT115: =INPUT!BV115 -> ABS | AU115: =INPUT!BW115 -> ABS | AV115: =INPUT!BY115 ->  | AX115: ABS | BE115: =AP115&"_"&COUNTIF($AP$5:AP115,AP115) -> -_108
B116: =INPUT!F116 -> 0 | C116: =INPUT!C116 -> 0 | D116: =INPUT!D116 -> 00:00:00 | E116: =INPUT!E116 -> 0 | F116: =INPUT!G116 -> 0011 | G116: =INPUT!I116 -> ABS | H116: =INPUT!J116 -> ABS | I116: =INPUT!M116 -> ABS | J116: =INPUT!N116 -> ABS | K116: =INPUT!P116 -> * | L116: =INPUT!Q116 -> 0031 | M116: =INPUT!S116 -> ABS | N116: =INPUT!T116 -> ABS | O116: =INPUT!W116 -> ABS | P116: =INPUT!X116 -> ABS | Q116: =INPUT!Z116 -> * | R116: =INPUT!AA116 -> 0051 | S116: =INPUT!AC116 -> ABS | T116: =INPUT!AD116 -> ABS | U116: =INPUT!AG116 -> ABS | V116: =INPUT!AH116 -> ABS | W116: =INPUT!AJ116 -> * | X116: =INPUT!AK116 -> 0 | Y116: =INPUT!AM116 -> ABS | Z116: =INPUT!AN116 -> ABS | AA116: =INPUT!AQ116 -> ABS | AB116: =INPUT!AR116 -> ABS | AC116: =INPUT!AT116 -> * | AD116: =INPUT!AU116 -> 0 | AE116: =INPUT!AW116 -> ABS | AF116: =INPUT!AX116 -> ABS | AG116: =INPUT!BA116 -> ABS | AH116: =INPUT!BB116 -> ABS | AI116: =INPUT!BD116 -> * | AJ116: =INPUT!BE116 -> 0 | AK116: =INPUT!BG116 -> ABS | AL116: =INPUT!BH116 -> ABS | AM116: =INPUT!BK116 -> ABS | AN116: =INPUT!BL116 -> ABS | AO116: =INPUT!BN116 -> * | AP116: =INPUT!BO116 -> - | AQ116: =INPUT!BP116 -> 0 | AR116: =INPUT!BR116 -> ABS | AS116: =INPUT!BS116 -> ABS | AT116: =INPUT!BV116 -> ABS | AU116: =INPUT!BW116 -> ABS | AV116: =INPUT!BY116 ->  | AX116: ABS | BE116: =AP116&"_"&COUNTIF($AP$5:AP116,AP116) -> -_109
B117: =INPUT!F117 -> 0 | C117: =INPUT!C117 -> 0 | D117: =INPUT!D117 -> 00:00:00 | E117: =INPUT!E117 -> 0 | F117: =INPUT!G117 -> 0011 | G117: =INPUT!I117 -> ABS | H117: =INPUT!J117 -> ABS | I117: =INPUT!M117 -> ABS | J117: =INPUT!N117 -> ABS | K117: =INPUT!P117 -> * | L117: =INPUT!Q117 -> 0031 | M117: =INPUT!S117 -> ABS | N117: =INPUT!T117 -> ABS | O117: =INPUT!W117 -> ABS | P117: =INPUT!X117 -> ABS | Q117: =INPUT!Z117 -> * | R117: =INPUT!AA117 -> 0051 | S117: =INPUT!AC117 -> ABS | T117: =INPUT!AD117 -> ABS | U117: =INPUT!AG117 -> ABS | V117: =INPUT!AH117 -> ABS | W117: =INPUT!AJ117 -> * | X117: =INPUT!AK117 -> 0 | Y117: =INPUT!AM117 -> ABS | Z117: =INPUT!AN117 -> ABS | AA117: =INPUT!AQ117 -> ABS | AB117: =INPUT!AR117 -> ABS | AC117: =INPUT!AT117 -> * | AD117: =INPUT!AU117 -> 0 | AE117: =INPUT!AW117 -> ABS | AF117: =INPUT!AX117 -> ABS | AG117: =INPUT!BA117 -> ABS | AH117: =INPUT!BB117 -> ABS | AI117: =INPUT!BD117 -> * | AJ117: =INPUT!BE117 -> 0 | AK117: =INPUT!BG117 -> ABS | AL117: =INPUT!BH117 -> ABS | AM117: =INPUT!BK117 -> ABS | AN117: =INPUT!BL117 -> ABS | AO117: =INPUT!BN117 -> * | AP117: =INPUT!BO117 -> - | AQ117: =INPUT!BP117 -> 0 | AR117: =INPUT!BR117 -> ABS | AS117: =INPUT!BS117 -> ABS | AT117: =INPUT!BV117 -> ABS | AU117: =INPUT!BW117 -> ABS | AV117: =INPUT!BY117 ->  | AX117: ABS | BE117: =AP117&"_"&COUNTIF($AP$5:AP117,AP117) -> -_110
B118: =INPUT!F118 -> 0 | C118: =INPUT!C118 -> 0 | D118: =INPUT!D118 -> 00:00:00 | E118: =INPUT!E118 -> 0 | F118: =INPUT!G118 -> 0011 | G118: =INPUT!I118 -> ABS | H118: =INPUT!J118 -> ABS | I118: =INPUT!M118 -> ABS | J118: =INPUT!N118 -> ABS | K118: =INPUT!P118 -> * | L118: =INPUT!Q118 -> 0031 | M118: =INPUT!S118 -> ABS | N118: =INPUT!T118 -> ABS | O118: =INPUT!W118 -> ABS | P118: =INPUT!X118 -> ABS | Q118: =INPUT!Z118 -> * | R118: =INPUT!AA118 -> 0051 | S118: =INPUT!AC118 -> ABS | T118: =INPUT!AD118 -> ABS | U118: =INPUT!AG118 -> ABS | V118: =INPUT!AH118 -> ABS | W118: =INPUT!AJ118 -> * | X118: =INPUT!AK118 -> 0 | Y118: =INPUT!AM118 -> ABS | Z118: =INPUT!AN118 -> ABS | AA118: =INPUT!AQ118 -> ABS | AB118: =INPUT!AR118 -> ABS | AC118: =INPUT!AT118 -> * | AD118: =INPUT!AU118 -> 0 | AE118: =INPUT!AW118 -> ABS | AF118: =INPUT!AX118 -> ABS | AG118: =INPUT!BA118 -> ABS | AH118: =INPUT!BB118 -> ABS | AI118: =INPUT!BD118 -> * | AJ118: =INPUT!BE118 -> 0 | AK118: =INPUT!BG118 -> ABS | AL118: =INPUT!BH118 -> ABS | AM118: =INPUT!BK118 -> ABS | AN118: =INPUT!BL118 -> ABS | AO118: =INPUT!BN118 -> * | AP118: =INPUT!BO118 -> - | AQ118: =INPUT!BP118 -> 0 | AR118: =INPUT!BR118 -> ABS | AS118: =INPUT!BS118 -> ABS | AT118: =INPUT!BV118 -> ABS | AU118: =INPUT!BW118 -> ABS | AV118: =INPUT!BY118 ->  | AX118: ABS | BE118: =AP118&"_"&COUNTIF($AP$5:AP118,AP118) -> -_111
B119: =INPUT!F119 -> 0 | C119: =INPUT!C119 -> 0 | D119: =INPUT!D119 -> 00:00:00 | E119: =INPUT!E119 -> 0 | F119: =INPUT!G119 -> 0011 | G119: =INPUT!I119 -> ABS | H119: =INPUT!J119 -> ABS | I119: =INPUT!M119 -> ABS | J119: =INPUT!N119 -> ABS | K119: =INPUT!P119 -> * | L119: =INPUT!Q119 -> 0031 | M119: =INPUT!S119 -> ABS | N119: =INPUT!T119 -> ABS | O119: =INPUT!W119 -> ABS | P119: =INPUT!X119 -> ABS | Q119: =INPUT!Z119 -> * | R119: =INPUT!AA119 -> 0051 | S119: =INPUT!AC119 -> ABS | T119: =INPUT!AD119 -> ABS | U119: =INPUT!AG119 -> ABS | V119: =INPUT!AH119 -> ABS | W119: =INPUT!AJ119 -> * | X119: =INPUT!AK119 -> 0 | Y119: =INPUT!AM119 -> ABS | Z119: =INPUT!AN119 -> ABS | AA119: =INPUT!AQ119 -> ABS | AB119: =INPUT!AR119 -> ABS | AC119: =INPUT!AT119 -> * | AD119: =INPUT!AU119 -> 0 | AE119: =INPUT!AW119 -> ABS | AF119: =INPUT!AX119 -> ABS | AG119: =INPUT!BA119 -> ABS | AH119: =INPUT!BB119 -> ABS | AI119: =INPUT!BD119 -> * | AJ119: =INPUT!BE119 -> 0 | AK119: =INPUT!BG119 -> ABS | AL119: =INPUT!BH119 -> ABS | AM119: =INPUT!BK119 -> ABS | AN119: =INPUT!BL119 -> ABS | AO119: =INPUT!BN119 -> * | AP119: =INPUT!BO119 -> - | AQ119: =INPUT!BP119 -> 0 | AR119: =INPUT!BR119 -> ABS | AS119: =INPUT!BS119 -> ABS | AT119: =INPUT!BV119 -> ABS | AU119: =INPUT!BW119 -> ABS | AV119: =INPUT!BY119 ->  | AX119: ABS | BE119: =AP119&"_"&COUNTIF($AP$5:AP119,AP119) -> -_112
B120: =INPUT!F120 -> 0 | C120: =INPUT!C120 -> 0 | D120: =INPUT!D120 -> 00:00:00 | E120: =INPUT!E120 -> 0 | F120: =INPUT!G120 -> 0011 | G120: =INPUT!I120 -> ABS | H120: =INPUT!J120 -> ABS | I120: =INPUT!M120 -> ABS | J120: =INPUT!N120 -> ABS | K120: =INPUT!P120 -> * | L120: =INPUT!Q120 -> 0031 | M120: =INPUT!S120 -> ABS | N120: =INPUT!T120 -> ABS | O120: =INPUT!W120 -> ABS | P120: =INPUT!X120 -> ABS | Q120: =INPUT!Z120 -> * | R120: =INPUT!AA120 -> 0051 | S120: =INPUT!AC120 -> ABS | T120: =INPUT!AD120 -> ABS | U120: =INPUT!AG120 -> ABS | V120: =INPUT!AH120 -> ABS | W120: =INPUT!AJ120 -> * | X120: =INPUT!AK120 -> 0 | Y120: =INPUT!AM120 -> ABS | Z120: =INPUT!AN120 -> ABS | AA120: =INPUT!AQ120 -> ABS | AB120: =INPUT!AR120 -> ABS | AC120: =INPUT!AT120 -> * | AD120: =INPUT!AU120 -> 0 | AE120: =INPUT!AW120 -> ABS | AF120: =INPUT!AX120 -> ABS | AG120: =INPUT!BA120 -> ABS | AH120: =INPUT!BB120 -> ABS | AI120: =INPUT!BD120 -> * | AJ120: =INPUT!BE120 -> 0 | AK120: =INPUT!BG120 -> ABS | AL120: =INPUT!BH120 -> ABS | AM120: =INPUT!BK120 -> ABS | AN120: =INPUT!BL120 -> ABS | AO120: =INPUT!BN120 -> * | AP120: =INPUT!BO120 -> - | AQ120: =INPUT!BP120 -> 0 | AR120: =INPUT!BR120 -> ABS | AS120: =INPUT!BS120 -> ABS | AT120: =INPUT!BV120 -> ABS | AU120: =INPUT!BW120 -> ABS | AV120: =INPUT!BY120 ->  | AX120: ABS | BE120: =AP120&"_"&COUNTIF($AP$5:AP120,AP120) -> -_113
B121: =INPUT!F121 -> 0 | C121: =INPUT!C121 -> 0 | D121: =INPUT!D121 -> 00:00:00 | E121: =INPUT!E121 -> 0 | F121: =INPUT!G121 -> 0011 | G121: =INPUT!I121 -> ABS | H121: =INPUT!J121 -> ABS | I121: =INPUT!M121 -> ABS | J121: =INPUT!N121 -> ABS | K121: =INPUT!P121 -> * | L121: =INPUT!Q121 -> 0031 | M121: =INPUT!S121 -> ABS | N121: =INPUT!T121 -> ABS | O121: =INPUT!W121 -> ABS | P121: =INPUT!X121 -> ABS | Q121: =INPUT!Z121 -> * | R121: =INPUT!AA121 -> 0051 | S121: =INPUT!AC121 -> ABS | T121: =INPUT!AD121 -> ABS | U121: =INPUT!AG121 -> ABS | V121: =INPUT!AH121 -> ABS | W121: =INPUT!AJ121 -> * | X121: =INPUT!AK121 -> 0 | Y121: =INPUT!AM121 -> ABS | Z121: =INPUT!AN121 -> ABS | AA121: =INPUT!AQ121 -> ABS | AB121: =INPUT!AR121 -> ABS | AC121: =INPUT!AT121 -> * | AD121: =INPUT!AU121 -> 0 | AE121: =INPUT!AW121 -> ABS | AF121: =INPUT!AX121 -> ABS | AG121: =INPUT!BA121 -> ABS | AH121: =INPUT!BB121 -> ABS | AI121: =INPUT!BD121 -> * | AJ121: =INPUT!BE121 -> 0 | AK121: =INPUT!BG121 -> ABS | AL121: =INPUT!BH121 -> ABS | AM121: =INPUT!BK121 -> ABS | AN121: =INPUT!BL121 -> ABS | AO121: =INPUT!BN121 -> * | AP121: =INPUT!BO121 -> - | AQ121: =INPUT!BP121 -> 0 | AR121: =INPUT!BR121 -> ABS | AS121: =INPUT!BS121 -> ABS | AT121: =INPUT!BV121 -> ABS | AU121: =INPUT!BW121 -> ABS | AV121: =INPUT!BY121 ->  | AX121: ABS | BE121: =AP121&"_"&COUNTIF($AP$5:AP121,AP121) -> -_114
B122: =INPUT!F122 -> 0 | C122: =INPUT!C122 -> 0 | D122: =INPUT!D122 -> 00:00:00 | E122: =INPUT!E122 -> 0 | F122: =INPUT!G122 -> 0011 | G122: =INPUT!I122 -> ABS | H122: =INPUT!J122 -> ABS | I122: =INPUT!M122 -> ABS | J122: =INPUT!N122 -> ABS | K122: =INPUT!P122 -> * | L122: =INPUT!Q122 -> 0031 | M122: =INPUT!S122 -> ABS | N122: =INPUT!T122 -> ABS | O122: =INPUT!W122 -> ABS | P122: =INPUT!X122 -> ABS | Q122: =INPUT!Z122 -> * | R122: =INPUT!AA122 -> 0051 | S122: =INPUT!AC122 -> ABS | T122: =INPUT!AD122 -> ABS | U122: =INPUT!AG122 -> ABS | V122: =INPUT!AH122 -> ABS | W122: =INPUT!AJ122 -> * | X122: =INPUT!AK122 -> 0 | Y122: =INPUT!AM122 -> ABS | Z122: =INPUT!AN122 -> ABS | AA122: =INPUT!AQ122 -> ABS | AB122: =INPUT!AR122 -> ABS | AC122: =INPUT!AT122 -> * | AD122: =INPUT!AU122 -> 0 | AE122: =INPUT!AW122 -> ABS | AF122: =INPUT!AX122 -> ABS | AG122: =INPUT!BA122 -> ABS | AH122: =INPUT!BB122 -> ABS | AI122: =INPUT!BD122 -> * | AJ122: =INPUT!BE122 -> 0 | AK122: =INPUT!BG122 -> ABS | AL122: =INPUT!BH122 -> ABS | AM122: =INPUT!BK122 -> ABS | AN122: =INPUT!BL122 -> ABS | AO122: =INPUT!BN122 -> * | AP122: =INPUT!BO122 -> - | AQ122: =INPUT!BP122 -> 0 | AR122: =INPUT!BR122 -> ABS | AS122: =INPUT!BS122 -> ABS | AT122: =INPUT!BV122 -> ABS | AU122: =INPUT!BW122 -> ABS | AV122: =INPUT!BY122 ->  | AX122: ABS | BE122: =AP122&"_"&COUNTIF($AP$5:AP122,AP122) -> -_115
B123: =INPUT!F123 -> 0 | C123: =INPUT!C123 -> 0 | D123: =INPUT!D123 -> 00:00:00 | E123: =INPUT!E123 -> 0 | F123: =INPUT!G123 -> 0011 | G123: =INPUT!I123 -> ABS | H123: =INPUT!J123 -> ABS | I123: =INPUT!M123 -> ABS | J123: =INPUT!N123 -> ABS | K123: =INPUT!P123 -> * | L123: =INPUT!Q123 -> 0031 | M123: =INPUT!S123 -> ABS | N123: =INPUT!T123 -> ABS | O123: =INPUT!W123 -> ABS | P123: =INPUT!X123 -> ABS | Q123: =INPUT!Z123 -> * | R123: =INPUT!AA123 -> 0051 | S123: =INPUT!AC123 -> ABS | T123: =INPUT!AD123 -> ABS | U123: =INPUT!AG123 -> ABS | V123: =INPUT!AH123 -> ABS | W123: =INPUT!AJ123 -> * | X123: =INPUT!AK123 -> 0 | Y123: =INPUT!AM123 -> ABS | Z123: =INPUT!AN123 -> ABS | AA123: =INPUT!AQ123 -> ABS | AB123: =INPUT!AR123 -> ABS | AC123: =INPUT!AT123 -> * | AD123: =INPUT!AU123 -> 0 | AE123: =INPUT!AW123 -> ABS | AF123: =INPUT!AX123 -> ABS | AG123: =INPUT!BA123 -> ABS | AH123: =INPUT!BB123 -> ABS | AI123: =INPUT!BD123 -> * | AJ123: =INPUT!BE123 -> 0 | AK123: =INPUT!BG123 -> ABS | AL123: =INPUT!BH123 -> ABS | AM123: =INPUT!BK123 -> ABS | AN123: =INPUT!BL123 -> ABS | AO123: =INPUT!BN123 -> * | AP123: =INPUT!BO123 -> - | AQ123: =INPUT!BP123 -> 0 | AR123: =INPUT!BR123 -> ABS | AS123: =INPUT!BS123 -> ABS | AT123: =INPUT!BV123 -> ABS | AU123: =INPUT!BW123 -> ABS | AV123: =INPUT!BY123 ->  | AX123: ABS | BE123: =AP123&"_"&COUNTIF($AP$5:AP123,AP123) -> -_116
B124: =INPUT!F124 -> 0 | C124: =INPUT!C124 -> 0 | D124: =INPUT!D124 -> 00:00:00 | E124: =INPUT!E124 -> 0 | F124: =INPUT!G124 -> 0011 | G124: =INPUT!I124 -> ABS | H124: =INPUT!J124 -> ABS | I124: =INPUT!M124 -> ABS | J124: =INPUT!N124 -> ABS | K124: =INPUT!P124 -> * | L124: =INPUT!Q124 -> 0031 | M124: =INPUT!S124 -> ABS | N124: =INPUT!T124 -> ABS | O124: =INPUT!W124 -> ABS | P124: =INPUT!X124 -> ABS | Q124: =INPUT!Z124 -> * | R124: =INPUT!AA124 -> 0051 | S124: =INPUT!AC124 -> ABS | T124: =INPUT!AD124 -> ABS | U124: =INPUT!AG124 -> ABS | V124: =INPUT!AH124 -> ABS | W124: =INPUT!AJ124 -> * | X124: =INPUT!AK124 -> 0 | Y124: =INPUT!AM124 -> ABS | Z124: =INPUT!AN124 -> ABS | AA124: =INPUT!AQ124 -> ABS | AB124: =INPUT!AR124 -> ABS | AC124: =INPUT!AT124 -> * | AD124: =INPUT!AU124 -> 0 | AE124: =INPUT!AW124 -> ABS | AF124: =INPUT!AX124 -> ABS | AG124: =INPUT!BA124 -> ABS | AH124: =INPUT!BB124 -> ABS | AI124: =INPUT!BD124 -> * | AJ124: =INPUT!BE124 -> 0 | AK124: =INPUT!BG124 -> ABS | AL124: =INPUT!BH124 -> ABS | AM124: =INPUT!BK124 -> ABS | AN124: =INPUT!BL124 -> ABS | AO124: =INPUT!BN124 -> * | AP124: =INPUT!BO124 -> - | AQ124: =INPUT!BP124 -> 0 | AR124: =INPUT!BR124 -> ABS | AS124: =INPUT!BS124 -> ABS | AT124: =INPUT!BV124 -> ABS | AU124: =INPUT!BW124 -> ABS | AV124: =INPUT!BY124 ->  | AX124: ABS | BE124: =AP124&"_"&COUNTIF($AP$5:AP124,AP124) -> -_117
B125: =INPUT!F125 -> 0 | C125: =INPUT!C125 -> 0 | D125: =INPUT!D125 -> 00:00:00 | E125: =INPUT!E125 -> 0 | F125: =INPUT!G125 -> 0011 | G125: =INPUT!I125 -> ABS | H125: =INPUT!J125 -> ABS | I125: =INPUT!M125 -> ABS | J125: =INPUT!N125 -> ABS | K125: =INPUT!P125 -> * | L125: =INPUT!Q125 -> 0031 | M125: =INPUT!S125 -> ABS | N125: =INPUT!T125 -> ABS | O125: =INPUT!W125 -> ABS | P125: =INPUT!X125 -> ABS | Q125: =INPUT!Z125 -> * | R125: =INPUT!AA125 -> 0051 | S125: =INPUT!AC125 -> ABS | T125: =INPUT!AD125 -> ABS | U125: =INPUT!AG125 -> ABS | V125: =INPUT!AH125 -> ABS | W125: =INPUT!AJ125 -> * | X125: =INPUT!AK125 -> 0 | Y125: =INPUT!AM125 -> ABS | Z125: =INPUT!AN125 -> ABS | AA125: =INPUT!AQ125 -> ABS | AB125: =INPUT!AR125 -> ABS | AC125: =INPUT!AT125 -> * | AD125: =INPUT!AU125 -> 0 | AE125: =INPUT!AW125 -> ABS | AF125: =INPUT!AX125 -> ABS | AG125: =INPUT!BA125 -> ABS | AH125: =INPUT!BB125 -> ABS | AI125: =INPUT!BD125 -> * | AJ125: =INPUT!BE125 -> 0 | AK125: =INPUT!BG125 -> ABS | AL125: =INPUT!BH125 -> ABS | AM125: =INPUT!BK125 -> ABS | AN125: =INPUT!BL125 -> ABS | AO125: =INPUT!BN125 -> * | AP125: =INPUT!BO125 -> - | AQ125: =INPUT!BP125 -> 0 | AR125: =INPUT!BR125 -> ABS | AS125: =INPUT!BS125 -> ABS | AT125: =INPUT!BV125 -> ABS | AU125: =INPUT!BW125 -> ABS | AV125: =INPUT!BY125 ->  | AX125: ABS | BE125: =AP125&"_"&COUNTIF($AP$5:AP125,AP125) -> -_118
B126: =INPUT!F126 -> 0 | C126: =INPUT!C126 -> 0 | D126: =INPUT!D126 -> 00:00:00 | E126: =INPUT!E126 -> 0 | F126: =INPUT!G126 -> 0011 | G126: =INPUT!I126 -> ABS | H126: =INPUT!J126 -> ABS | I126: =INPUT!M126 -> ABS | J126: =INPUT!N126 -> ABS | K126: =INPUT!P126 -> * | L126: =INPUT!Q126 -> 0031 | M126: =INPUT!S126 -> ABS | N126: =INPUT!T126 -> ABS | O126: =INPUT!W126 -> ABS | P126: =INPUT!X126 -> ABS | Q126: =INPUT!Z126 -> * | R126: =INPUT!AA126 -> 0051 | S126: =INPUT!AC126 -> ABS | T126: =INPUT!AD126 -> ABS | U126: =INPUT!AG126 -> ABS | V126: =INPUT!AH126 -> ABS | W126: =INPUT!AJ126 -> * | X126: =INPUT!AK126 -> 0 | Y126: =INPUT!AM126 -> ABS | Z126: =INPUT!AN126 -> ABS | AA126: =INPUT!AQ126 -> ABS | AB126: =INPUT!AR126 -> ABS | AC126: =INPUT!AT126 -> * | AD126: =INPUT!AU126 -> 0 | AE126: =INPUT!AW126 -> ABS | AF126: =INPUT!AX126 -> ABS | AG126: =INPUT!BA126 -> ABS | AH126: =INPUT!BB126 -> ABS | AI126: =INPUT!BD126 -> * | AJ126: =INPUT!BE126 -> 0 | AK126: =INPUT!BG126 -> ABS | AL126: =INPUT!BH126 -> ABS | AM126: =INPUT!BK126 -> ABS | AN126: =INPUT!BL126 -> ABS | AO126: =INPUT!BN126 -> * | AP126: =INPUT!BO126 -> - | AQ126: =INPUT!BP126 -> 0 | AR126: =INPUT!BR126 -> ABS | AS126: =INPUT!BS126 -> ABS | AT126: =INPUT!BV126 -> ABS | AU126: =INPUT!BW126 -> ABS | AV126: =INPUT!BY126 ->  | AX126: ABS | BE126: =AP126&"_"&COUNTIF($AP$5:AP126,AP126) -> -_119
B127: =INPUT!F127 -> 0 | C127: =INPUT!C127 -> 0 | D127: =INPUT!D127 -> 00:00:00 | E127: =INPUT!E127 -> 0 | F127: =INPUT!G127 -> 0011 | G127: =INPUT!I127 -> ABS | H127: =INPUT!J127 -> ABS | I127: =INPUT!M127 -> ABS | J127: =INPUT!N127 -> ABS | K127: =INPUT!P127 -> * | L127: =INPUT!Q127 -> 0031 | M127: =INPUT!S127 -> ABS | N127: =INPUT!T127 -> ABS | O127: =INPUT!W127 -> ABS | P127: =INPUT!X127 -> ABS | Q127: =INPUT!Z127 -> * | R127: =INPUT!AA127 -> 0051 | S127: =INPUT!AC127 -> ABS | T127: =INPUT!AD127 -> ABS | U127: =INPUT!AG127 -> ABS | V127: =INPUT!AH127 -> ABS | W127: =INPUT!AJ127 -> * | X127: =INPUT!AK127 -> 0 | Y127: =INPUT!AM127 -> ABS | Z127: =INPUT!AN127 -> ABS | AA127: =INPUT!AQ127 -> ABS | AB127: =INPUT!AR127 -> ABS | AC127: =INPUT!AT127 -> * | AD127: =INPUT!AU127 -> 0 | AE127: =INPUT!AW127 -> ABS | AF127: =INPUT!AX127 -> ABS | AG127: =INPUT!BA127 -> ABS | AH127: =INPUT!BB127 -> ABS | AI127: =INPUT!BD127 -> * | AJ127: =INPUT!BE127 -> 0 | AK127: =INPUT!BG127 -> ABS | AL127: =INPUT!BH127 -> ABS | AM127: =INPUT!BK127 -> ABS | AN127: =INPUT!BL127 -> ABS | AO127: =INPUT!BN127 -> * | AP127: =INPUT!BO127 -> - | AQ127: =INPUT!BP127 -> 0 | AR127: =INPUT!BR127 -> ABS | AS127: =INPUT!BS127 -> ABS | AT127: =INPUT!BV127 -> ABS | AU127: =INPUT!BW127 -> ABS | AV127: =INPUT!BY127 ->  | AX127: ABS | BE127: =AP127&"_"&COUNTIF($AP$5:AP127,AP127) -> -_120
B128: =INPUT!F128 -> 0 | C128: =INPUT!C128 -> 0 | D128: =INPUT!D128 -> 00:00:00 | E128: =INPUT!E128 -> 0 | F128: =INPUT!G128 -> 0011 | G128: =INPUT!I128 -> ABS | H128: =INPUT!J128 -> ABS | I128: =INPUT!M128 -> ABS | J128: =INPUT!N128 -> ABS | K128: =INPUT!P128 -> * | L128: =INPUT!Q128 -> 0031 | M128: =INPUT!S128 -> ABS | N128: =INPUT!T128 -> ABS | O128: =INPUT!W128 -> ABS | P128: =INPUT!X128 -> ABS | Q128: =INPUT!Z128 -> * | R128: =INPUT!AA128 -> 0051 | S128: =INPUT!AC128 -> ABS | T128: =INPUT!AD128 -> ABS | U128: =INPUT!AG128 -> ABS | V128: =INPUT!AH128 -> ABS | W128: =INPUT!AJ128 -> * | X128: =INPUT!AK128 -> 0 | Y128: =INPUT!AM128 -> ABS | Z128: =INPUT!AN128 -> ABS | AA128: =INPUT!AQ128 -> ABS | AB128: =INPUT!AR128 -> ABS | AC128: =INPUT!AT128 -> * | AD128: =INPUT!AU128 -> 0 | AE128: =INPUT!AW128 -> ABS | AF128: =INPUT!AX128 -> ABS | AG128: =INPUT!BA128 -> ABS | AH128: =INPUT!BB128 -> ABS | AI128: =INPUT!BD128 -> * | AJ128: =INPUT!BE128 -> 0 | AK128: =INPUT!BG128 -> ABS | AL128: =INPUT!BH128 -> ABS | AM128: =INPUT!BK128 -> ABS | AN128: =INPUT!BL128 -> ABS | AO128: =INPUT!BN128 -> * | AP128: =INPUT!BO128 -> - | AQ128: =INPUT!BP128 -> 0 | AR128: =INPUT!BR128 -> ABS | AS128: =INPUT!BS128 -> ABS | AT128: =INPUT!BV128 -> ABS | AU128: =INPUT!BW128 -> ABS | AV128: =INPUT!BY128 ->  | AX128: ABS | BE128: =AP128&"_"&COUNTIF($AP$5:AP128,AP128) -> -_121
B129: =INPUT!F129 -> 0 | C129: =INPUT!C129 -> 0 | D129: =INPUT!D129 -> 00:00:00 | E129: =INPUT!E129 -> 0 | F129: =INPUT!G129 -> 0011 | G129: =INPUT!I129 -> ABS | H129: =INPUT!J129 -> ABS | I129: =INPUT!M129 -> ABS | J129: =INPUT!N129 -> ABS | K129: =INPUT!P129 -> * | L129: =INPUT!Q129 -> 0031 | M129: =INPUT!S129 -> ABS | N129: =INPUT!T129 -> ABS | O129: =INPUT!W129 -> ABS | P129: =INPUT!X129 -> ABS | Q129: =INPUT!Z129 -> * | R129: =INPUT!AA129 -> 0051 | S129: =INPUT!AC129 -> ABS | T129: =INPUT!AD129 -> ABS | U129: =INPUT!AG129 -> ABS | V129: =INPUT!AH129 -> ABS | W129: =INPUT!AJ129 -> * | X129: =INPUT!AK129 -> 0 | Y129: =INPUT!AM129 -> ABS | Z129: =INPUT!AN129 -> ABS | AA129: =INPUT!AQ129 -> ABS | AB129: =INPUT!AR129 -> ABS | AC129: =INPUT!AT129 -> * | AD129: =INPUT!AU129 -> 0 | AE129: =INPUT!AW129 -> ABS | AF129: =INPUT!AX129 -> ABS | AG129: =INPUT!BA129 -> ABS | AH129: =INPUT!BB129 -> ABS | AI129: =INPUT!BD129 -> * | AJ129: =INPUT!BE129 -> 0 | AK129: =INPUT!BG129 -> ABS | AL129: =INPUT!BH129 -> ABS | AM129: =INPUT!BK129 -> ABS | AN129: =INPUT!BL129 -> ABS | AO129: =INPUT!BN129 -> * | AP129: =INPUT!BO129 -> - | AQ129: =INPUT!BP129 -> 0 | AR129: =INPUT!BR129 -> ABS | AS129: =INPUT!BS129 -> ABS | AT129: =INPUT!BV129 -> ABS | AU129: =INPUT!BW129 -> ABS | AV129: =INPUT!BY129 ->  | AX129: ABS | BE129: =AP129&"_"&COUNTIF($AP$5:AP129,AP129) -> -_122
B130: =INPUT!F130 -> 0 | C130: =INPUT!C130 -> 0 | D130: =INPUT!D130 -> 00:00:00 | E130: =INPUT!E130 -> 0 | F130: =INPUT!G130 -> 0011 | G130: =INPUT!I130 -> ABS | H130: =INPUT!J130 -> ABS | I130: =INPUT!M130 -> ABS | J130: =INPUT!N130 -> ABS | K130: =INPUT!P130 -> * | L130: =INPUT!Q130 -> 0031 | M130: =INPUT!S130 -> ABS | N130: =INPUT!T130 -> ABS | O130: =INPUT!W130 -> ABS | P130: =INPUT!X130 -> ABS | Q130: =INPUT!Z130 -> * | R130: =INPUT!AA130 -> 0051 | S130: =INPUT!AC130 -> ABS | T130: =INPUT!AD130 -> ABS | U130: =INPUT!AG130 -> ABS | V130: =INPUT!AH130 -> ABS | W130: =INPUT!AJ130 -> * | X130: =INPUT!AK130 -> 0 | Y130: =INPUT!AM130 -> ABS | Z130: =INPUT!AN130 -> ABS | AA130: =INPUT!AQ130 -> ABS | AB130: =INPUT!AR130 -> ABS | AC130: =INPUT!AT130 -> * | AD130: =INPUT!AU130 -> 0 | AE130: =INPUT!AW130 -> ABS | AF130: =INPUT!AX130 -> ABS | AG130: =INPUT!BA130 -> ABS | AH130: =INPUT!BB130 -> ABS | AI130: =INPUT!BD130 -> * | AJ130: =INPUT!BE130 -> 0 | AK130: =INPUT!BG130 -> ABS | AL130: =INPUT!BH130 -> ABS | AM130: =INPUT!BK130 -> ABS | AN130: =INPUT!BL130 -> ABS | AO130: =INPUT!BN130 -> * | AP130: =INPUT!BO130 -> - | AQ130: =INPUT!BP130 -> 0 | AR130: =INPUT!BR130 -> ABS | AS130: =INPUT!BS130 -> ABS | AT130: =INPUT!BV130 -> ABS | AU130: =INPUT!BW130 -> ABS | AV130: =INPUT!BY130 ->  | AX130: ABS | BE130: =AP130&"_"&COUNTIF($AP$5:AP130,AP130) -> -_123
B131: =INPUT!F131 -> 0 | C131: =INPUT!C131 -> 0 | D131: =INPUT!D131 -> 00:00:00 | E131: =INPUT!E131 -> 0 | F131: =INPUT!G131 -> 0011 | G131: =INPUT!I131 -> ABS | H131: =INPUT!J131 -> ABS | I131: =INPUT!M131 -> ABS | J131: =INPUT!N131 -> ABS | K131: =INPUT!P131 -> * | L131: =INPUT!Q131 -> 0031 | M131: =INPUT!S131 -> ABS | N131: =INPUT!T131 -> ABS | O131: =INPUT!W131 -> ABS | P131: =INPUT!X131 -> ABS | Q131: =INPUT!Z131 -> * | R131: =INPUT!AA131 -> 0051 | S131: =INPUT!AC131 -> ABS | T131: =INPUT!AD131 -> ABS | U131: =INPUT!AG131 -> ABS | V131: =INPUT!AH131 -> ABS | W131: =INPUT!AJ131 -> * | X131: =INPUT!AK131 -> 0 | Y131: =INPUT!AM131 -> ABS | Z131: =INPUT!AN131 -> ABS | AA131: =INPUT!AQ131 -> ABS | AB131: =INPUT!AR131 -> ABS | AC131: =INPUT!AT131 -> * | AD131: =INPUT!AU131 -> 0 | AE131: =INPUT!AW131 -> ABS | AF131: =INPUT!AX131 -> ABS | AG131: =INPUT!BA131 -> ABS | AH131: =INPUT!BB131 -> ABS | AI131: =INPUT!BD131 -> * | AJ131: =INPUT!BE131 -> 0 | AK131: =INPUT!BG131 -> ABS | AL131: =INPUT!BH131 -> ABS | AM131: =INPUT!BK131 -> ABS | AN131: =INPUT!BL131 -> ABS | AO131: =INPUT!BN131 -> * | AP131: =INPUT!BO131 -> - | AQ131: =INPUT!BP131 -> 0 | AR131: =INPUT!BR131 -> ABS | AS131: =INPUT!BS131 -> ABS | AT131: =INPUT!BV131 -> ABS | AU131: =INPUT!BW131 -> ABS | AV131: =INPUT!BY131 ->  | AX131: ABS | BE131: =AP131&"_"&COUNTIF($AP$5:AP131,AP131) -> -_124
B132: =INPUT!F132 -> 0 | C132: =INPUT!C132 -> 0 | D132: =INPUT!D132 -> 00:00:00 | E132: =INPUT!E132 -> 0 | F132: =INPUT!G132 -> 0011 | G132: =INPUT!I132 -> ABS | H132: =INPUT!J132 -> ABS | I132: =INPUT!M132 -> ABS | J132: =INPUT!N132 -> ABS | K132: =INPUT!P132 -> * | L132: =INPUT!Q132 -> 0031 | M132: =INPUT!S132 -> ABS | N132: =INPUT!T132 -> ABS | O132: =INPUT!W132 -> ABS | P132: =INPUT!X132 -> ABS | Q132: =INPUT!Z132 -> * | R132: =INPUT!AA132 -> 0051 | S132: =INPUT!AC132 -> ABS | T132: =INPUT!AD132 -> ABS | U132: =INPUT!AG132 -> ABS | V132: =INPUT!AH132 -> ABS | W132: =INPUT!AJ132 -> * | X132: =INPUT!AK132 -> 0 | Y132: =INPUT!AM132 -> ABS | Z132: =INPUT!AN132 -> ABS | AA132: =INPUT!AQ132 -> ABS | AB132: =INPUT!AR132 -> ABS | AC132: =INPUT!AT132 -> * | AD132: =INPUT!AU132 -> 0 | AE132: =INPUT!AW132 -> ABS | AF132: =INPUT!AX132 -> ABS | AG132: =INPUT!BA132 -> ABS | AH132: =INPUT!BB132 -> ABS | AI132: =INPUT!BD132 -> * | AJ132: =INPUT!BE132 -> 0 | AK132: =INPUT!BG132 -> ABS | AL132: =INPUT!BH132 -> ABS | AM132: =INPUT!BK132 -> ABS | AN132: =INPUT!BL132 -> ABS | AO132: =INPUT!BN132 -> * | AP132: =INPUT!BO132 -> - | AQ132: =INPUT!BP132 -> 0 | AR132: =INPUT!BR132 -> ABS | AS132: =INPUT!BS132 -> ABS | AT132: =INPUT!BV132 -> ABS | AU132: =INPUT!BW132 -> ABS | AV132: =INPUT!BY132 ->  | AX132: ABS | BE132: =AP132&"_"&COUNTIF($AP$5:AP132,AP132) -> -_125
B133: =INPUT!F133 -> 0 | C133: =INPUT!C133 -> 0 | D133: =INPUT!D133 -> 00:00:00 | E133: =INPUT!E133 -> 0 | F133: =INPUT!G133 -> 0011 | G133: =INPUT!I133 -> ABS | H133: =INPUT!J133 -> ABS | I133: =INPUT!M133 -> ABS | J133: =INPUT!N133 -> ABS | K133: =INPUT!P133 -> * | L133: =INPUT!Q133 -> 0031 | M133: =INPUT!S133 -> ABS | N133: =INPUT!T133 -> ABS | O133: =INPUT!W133 -> ABS | P133: =INPUT!X133 -> ABS | Q133: =INPUT!Z133 -> * | R133: =INPUT!AA133 -> 0051 | S133: =INPUT!AC133 -> ABS | T133: =INPUT!AD133 -> ABS | U133: =INPUT!AG133 -> ABS | V133: =INPUT!AH133 -> ABS | W133: =INPUT!AJ133 -> * | X133: =INPUT!AK133 -> 0 | Y133: =INPUT!AM133 -> ABS | Z133: =INPUT!AN133 -> ABS | AA133: =INPUT!AQ133 -> ABS | AB133: =INPUT!AR133 -> ABS | AC133: =INPUT!AT133 -> * | AD133: =INPUT!AU133 -> 0 | AE133: =INPUT!AW133 -> ABS | AF133: =INPUT!AX133 -> ABS | AG133: =INPUT!BA133 -> ABS | AH133: =INPUT!BB133 -> ABS | AI133: =INPUT!BD133 -> * | AJ133: =INPUT!BE133 -> 0 | AK133: =INPUT!BG133 -> ABS | AL133: =INPUT!BH133 -> ABS | AM133: =INPUT!BK133 -> ABS | AN133: =INPUT!BL133 -> ABS | AO133: =INPUT!BN133 -> * | AP133: =INPUT!BO133 -> - | AQ133: =INPUT!BP133 -> 0 | AR133: =INPUT!BR133 -> ABS | AS133: =INPUT!BS133 -> ABS | AT133: =INPUT!BV133 -> ABS | AU133: =INPUT!BW133 -> ABS | AV133: =INPUT!BY133 ->  | AX133: ABS | BE133: =AP133&"_"&COUNTIF($AP$5:AP133,AP133) -> -_126
B134: =INPUT!F134 -> 0 | C134: =INPUT!C134 -> 0 | D134: =INPUT!D134 -> 00:00:00 | E134: =INPUT!E134 -> 0 | F134: =INPUT!G134 -> 0011 | G134: =INPUT!I134 -> ABS | H134: =INPUT!J134 -> ABS | I134: =INPUT!M134 -> ABS | J134: =INPUT!N134 -> ABS | K134: =INPUT!P134 -> * | L134: =INPUT!Q134 -> 0031 | M134: =INPUT!S134 -> ABS | N134: =INPUT!T134 -> ABS | O134: =INPUT!W134 -> ABS | P134: =INPUT!X134 -> ABS | Q134: =INPUT!Z134 -> * | R134: =INPUT!AA134 -> 0051 | S134: =INPUT!AC134 -> ABS | T134: =INPUT!AD134 -> ABS | U134: =INPUT!AG134 -> ABS | V134: =INPUT!AH134 -> ABS | W134: =INPUT!AJ134 -> * | X134: =INPUT!AK134 -> 0 | Y134: =INPUT!AM134 -> ABS | Z134: =INPUT!AN134 -> ABS | AA134: =INPUT!AQ134 -> ABS | AB134: =INPUT!AR134 -> ABS | AC134: =INPUT!AT134 -> * | AD134: =INPUT!AU134 -> 0 | AE134: =INPUT!AW134 -> ABS | AF134: =INPUT!AX134 -> ABS | AG134: =INPUT!BA134 -> ABS | AH134: =INPUT!BB134 -> ABS | AI134: =INPUT!BD134 -> * | AJ134: =INPUT!BE134 -> 0 | AK134: =INPUT!BG134 -> ABS | AL134: =INPUT!BH134 -> ABS | AM134: =INPUT!BK134 -> ABS | AN134: =INPUT!BL134 -> ABS | AO134: =INPUT!BN134 -> * | AP134: =INPUT!BO134 -> - | AQ134: =INPUT!BP134 -> 0 | AR134: =INPUT!BR134 -> ABS | AS134: =INPUT!BS134 -> ABS | AT134: =INPUT!BV134 -> ABS | AU134: =INPUT!BW134 -> ABS | AV134: =INPUT!BY134 ->  | AW134: =IF(OR(G134="NG",M134="NG",S134="NG",Y134="NG",AE134="NG",AK134="NG"),"NG","") ->  | AX134: =IF(OR(H134="ABS",N134="ABS",T134="ABS",Z134="ABS",AF134="ABS",AL134="ABS"),"ABS","") -> ABS | AY134: =IF(OR(J134="-",P134="-",V134="-",AB134="-",AH134="-",AN134="NG",AW134="NG"),"W","") ->  | BE134: =AP134&"_"&COUNTIF($AP$5:AP134,AP134) -> -_127
B135: =INPUT!F135 -> 0 | C135: =INPUT!C135 -> 0 | D135: =INPUT!D135 -> 00:00:00 | E135: =INPUT!E135 -> 0 | F135: =INPUT!G135 -> 0011 | G135: =INPUT!I135 -> ABS | H135: =INPUT!J135 -> ABS | I135: =INPUT!M135 -> ABS | J135: =INPUT!N135 -> ABS | K135: =INPUT!P135 -> * | L135: =INPUT!Q135 -> 0031 | M135: =INPUT!S135 -> ABS | N135: =INPUT!T135 -> ABS | O135: =INPUT!W135 -> ABS | P135: =INPUT!X135 -> ABS | Q135: =INPUT!Z135 -> * | R135: =INPUT!AA135 -> 0051 | S135: =INPUT!AC135 -> ABS | T135: =INPUT!AD135 -> ABS | U135: =INPUT!AG135 -> ABS | V135: =INPUT!AH135 -> ABS | W135: =INPUT!AJ135 -> * | X135: =INPUT!AK135 -> 0 | Y135: =INPUT!AM135 -> ABS | Z135: =INPUT!AN135 -> ABS | AA135: =INPUT!AQ135 -> ABS | AB135: =INPUT!AR135 -> ABS | AC135: =INPUT!AT135 -> * | AD135: =INPUT!AU135 -> 0 | AE135: =INPUT!AW135 -> ABS | AF135: =INPUT!AX135 -> ABS | AG135: =INPUT!BA135 -> ABS | AH135: =INPUT!BB135 -> ABS | AI135: =INPUT!BD135 -> * | AJ135: =INPUT!BE135 -> 0 | AK135: =INPUT!BG135 -> ABS | AL135: =INPUT!BH135 -> ABS | AM135: =INPUT!BK135 -> ABS | AN135: =INPUT!BL135 -> ABS | AO135: =INPUT!BN135 -> * | AP135: =INPUT!BO135 -> - | AQ135: =INPUT!BP135 -> 0 | AR135: =INPUT!BR135 -> ABS | AS135: =INPUT!BS135 -> ABS | AT135: =INPUT!BV135 -> ABS | AU135: =INPUT!BW135 -> ABS | AV135: =INPUT!BY135 ->  | AX135: ABS | BE135: =AP135&"_"&COUNTIF($AP$5:AP135,AP135) -> -_128
